Workbook

Sheet Inputs & Results
B2: Model Information
B3: DESCRIPTION
B4: Second Line Diabetes Medication Added to Standard Therapy in Preventing Type 2 Diabetes related Nephropathy
B6: STRATEGIES
B7: Base case
B8: ---
B9: Tirzepatide 15mg/Week
B10: ---
B11: Semaglutide 1mg/Week
B12: ---
B13: Empagliflozin 25mg/Day
B14: ---
B16: Green cells are editable
B17: Gray cells - no impact on calculation
B18: INPUTS | F18: MODEL RESULTS
B19: Description | C19: Value | D19: Reference in TreeAge | F19: WTP: | G19: 100000
B20: Parameter Variables | F20: Strategy | G20: Cost | H20: Eff | I20: Payoff 3 - Life expectancy
C21: 0 | D21: vQoLDeath | F21: Base case | G21: ='1. Strategy Calcs'!J70 -> 66439.20616 | H21: ='1. Strategy Calcs'!L70 -> 10.29681152 | I21: ='1. Strategy Calcs'!N70 -> 13.38894065
B22: Kähm K, Laxy M, Schneider U, Rogowski WH, Lhachimi SK, Holle R. Health Care Costs Associated With Incident Complications in Patients With Type 2 Diabetes in Germany. Diabetes Care. 2018;41(5):971-8. | C22: 44213.85 | D22: cFirstYearRenalDiseaseBaseCase | F22: Empagliflozin 25mg/Day | G22: ='4. Strategy Calcs'!J70 -> 79681.98747 | H22: ='4. Strategy Calcs'!L70 -> 10.49798668 | I22: ='4. Strategy Calcs'!N70 -> 13.67976367
B23: Kähm K, Laxy M, Schneider U, Rogowski WH, Lhachimi SK, Holle R. Health Care Costs Associated With Incident Complications in Patients With Type 2 Diabetes in Germany. Diabetes Care. 2018;41(5):971-8. | C23: 31911.91 | D23: cFollowingRenalDiseaseBaseCase | F23: Semaglutide 1mg/Week | G23: ='3. Strategy Calcs'!J70 -> 84311.63182 | H23: ='3. Strategy Calcs'!L70 -> 10.59154752 | I23: ='3. Strategy Calcs'!N70 -> 13.77514867
B24: 0 = Male; 1 = Female for internal use in risk equations | C24: 0 | D24: rGender | F24: Tirzepatide 15mg/Week | G24: ='2. Strategy Calcs'!J70 -> 156011.8457 | H24: ='2. Strategy Calcs'!L70 -> 10.76922703 | I24: ='2. Strategy Calcs'!N70 -> 14.01952344
B25: ACCORD Trial as listed in Basu S, Sussman JB, Berkowitz SA, Hayward RA, Yudkin JS. Development and validation of Risk Equations for Complications Of type 2 Diabetes (RECODe) using individual participant data from randomised trials. Lancet Diabetes Endocrinol. | C25: 0 | D25: rSmoker
B26: ACCORD Trial as listed in Basu S, Sussman JB, Berkowitz SA, Hayward RA, Yudkin JS. Development and validation of Risk Equations for Complications Of type 2 Diabetes (RECODe) using individual participant data from randomised trials. Lancet Diabetes Endocrinol. | C26: 8.3 | D26: rHbA1c
B27: ACCORD Trial as listed in Basu S, Sussman JB, Berkowitz SA, Hayward RA, Yudkin JS. Development and validation of Risk Equations for Complications Of type 2 Diabetes (RECODe) using individual participant data from randomised trials. Lancet Diabetes Endocrinol. | C27: 136.5 | D27: rSBP | F27: Category | G27: Strategy | H27: Cost | I27: Incr. Cost | J27: Eff | K27: Incr. Eff | L27: ICER | M27: NMB | N27: CE
B28: ACCORD Trial as listed in Basu S, Sussman JB, Berkowitz SA, Hayward RA, Yudkin JS. Development and validation of Risk Equations for Complications Of type 2 Diabetes (RECODe) using individual participant data from randomised trials. Lancet Diabetes Endocrinol. | C28: 32.2 | D28: rBMI | F28: Undominated | G28: Base case | H28: 66439.20616 | J28: 10.29681152 | M28: =J28*WTP - H28 -> 963241.9459 | N28: 6452.405779
B29: Kähm K, Laxy M, Schneider U, Rogowski WH, Lhachimi SK, Holle R. Health Care Costs Associated With Incident Complications in Patients With Type 2 Diabetes in Germany. Diabetes Care. 2018;41(5):971-8. | C29: 8615.75 | D29: cFirstYearMacroalbuminuriaBaseCase | F29: Undominated | G29: Semaglutide 1mg/Week | H29: 84311.63182 | I29: 17872.42566 | J29: 10.59154752 | K29: 0.2947359971 | L29: 60638.76089 | M29: =J29*WTP - H29 -> 974843.12 | N29: 7960.275085
B30: Kähm K, Laxy M, Schneider U, Rogowski WH, Lhachimi SK, Holle R. Health Care Costs Associated With Incident Complications in Patients With Type 2 Diabetes in Germany. Diabetes Care. 2018;41(5):971-8. | C30: 8615.75 | D30: cFirstYearMicroalbuminuriaBaseCase | F30: Undominated | G30: Tirzepatide 15mg/Week | H30: 156011.8457 | I30: 71700.21387 | J30: 10.76922703 | K30: 0.1776795071 | L30: 403536.7671 | M30: =J30*WTP - H30 -> 920910.8568 | N30: 14486.81928
B31: Kähm K, Laxy M, Schneider U, Rogowski WH, Lhachimi SK, Holle R. Health Care Costs Associated With Incident Complications in Patients With Type 2 Diabetes in Germany. Diabetes Care. 2018;41(5):971-8. | C31: 7109.76 | D31: cFollowingMacroalbuminuriaBaseCase | F31: Ext. dominated | G31: Empagliflozin 25mg/Day | H31: 79681.98747 | J31: 10.49798668 | M31: =J31*WTP - H31 -> 970116.6801 | N31: 7590.216099
B32: Kähm K, Laxy M, Schneider U, Rogowski WH, Lhachimi SK, Holle R. Health Care Costs Associated With Incident Complications in Patients With Type 2 Diabetes in Germany. Diabetes Care. 2018;41(5):971-8. | C32: 7109.76 | D32: cFollowingMicroalbuminuriaBaseCase
B33: Kähm K, Laxy M, Schneider U, Rogowski WH, Lhachimi SK, Holle R. Health Care Costs Associated With Incident Complications in Patients With Type 2 Diabetes in Germany. Diabetes Care. 2018;41(5):971-8. | C33: 3772.48 | D33: cT2DBaseCase
B34: ACCORD Trial as listed in Basu S, Sussman JB, Berkowitz SA, Hayward RA, Yudkin JS. Development and validation of Risk Equations for Complications Of type 2 Diabetes (RECODe) using individual participant data from randomised trials. Lancet Diabetes Endocrinol. | C34: 62.8 | D34: rAge
B35: ACCORD Trial as listed in Basu S, Sussman JB, Berkowitz SA, Hayward RA, Yudkin JS. Development and validation of Risk Equations for Complications Of type 2 Diabetes (RECODe) using individual participant data from randomised trials. Lancet Diabetes Endocrinol. | C35: 0 | D35: risBlack
B36: ACCORD Trial as listed in Basu S, Sussman JB, Berkowitz SA, Hayward RA, Yudkin JS. Development and validation of Risk Equations for Complications Of type 2 Diabetes (RECODe) using individual participant data from randomised trials. Lancet Diabetes Endocrinol. | C36: 0 | D36: risHispanic
B37: ACCORD Trial as listed in Basu S, Sussman JB, Berkowitz SA, Hayward RA, Yudkin JS. Development and validation of Risk Equations for Complications Of type 2 Diabetes (RECODe) using individual participant data from randomised trials. Lancet Diabetes Endocrinol. | C37: 0 | D37: rCVDHistory
B38: Assumption as effect is considered elsewhere in the model. | C38: 0 | D38: rBPDrugs
B39: Assumption as effect is considered elsewhere in the model. | C39: 1 | D39: rOralT2DDrugs
B40: Assumption as effect is considered elsewhere in the model. | C40: 0 | D40: rAnticoagulants
B41: Assumption as effect is considered elsewhere in the model. | C41: 0 | D41: rAntiHypertensiveDrugs
B42: ACCORD Trial as listed in Basu S, Sussman JB, Berkowitz SA, Hayward RA, Yudkin JS. Development and validation of Risk Equations for Complications Of type 2 Diabetes (RECODe) using individual participant data from randomised trials. Lancet Diabetes Endocrinol. | C42: 183.2 | D42: rTotalCholesterol
B43: ACCORD Trial as listed in Basu S, Sussman JB, Berkowitz SA, Hayward RA, Yudkin JS. Development and validation of Risk Equations for Complications Of type 2 Diabetes (RECODe) using individual participant data from randomised trials. Lancet Diabetes Endocrinol. | C43: 41.8 | D43: rHDL
B44: ACCORD Trial as listed in Basu S, Sussman JB, Berkowitz SA, Hayward RA, Yudkin JS. Development and validation of Risk Equations for Complications Of type 2 Diabetes (RECODe) using individual participant data from randomised trials. Lancet Diabetes Endocrinol. | C44: 0.9 | D44: rSerumCreatinine
B45: ACCORD Trial as listed in Basu S, Sussman JB, Berkowitz SA, Hayward RA, Yudkin JS. Development and validation of Risk Equations for Complications Of type 2 Diabetes (RECODe) using individual participant data from randomised trials. Lancet Diabetes Endocrinol. | C45: 99.2 | D45: rUrinAlbumin_Creatinine
B46: Prescribing information Mounjaro;(Inkonsistent mit: Ludvik B, Giorgino F, Jódar E, Frias JP, Fernández Landó L, Brown K, et al. Once-weekly tirzepatide versus once-daily insulin degludec as add-on to metformin with or without SGLT2 inhibitors in patients with type 2 diabetes (SURPASS-3): a randomised, open-label, parallel-group, phase 3 trial. The Lancet. 2021;398(10300):583-98. | C46: -2.3 | D46: rHbA1c_Tirzepatide
B47: Prescribing information Mounjaro; Ludvik B, Giorgino F, Jódar E, Frias JP, Fernández Landó L, Brown K, et al. Once-weekly tirzepatide versus once-daily insulin degludec as add-on to metformin with or without SGLT2 inhibitors in patients with type 2 diabetes (SURPASS-3): a randomised, open-label, parallel-group, phase 3 trial. The Lancet. 2021;398(10300):583-98. | C47: 4.8 | D47: rHDL_Tirzepatide
B48: Prescribing information Mounjaro; Ludvik B, Giorgino F, Jódar E, Frias JP, Fernández Landó L, Brown K, et al. Once-weekly tirzepatide versus once-daily insulin degludec as add-on to metformin with or without SGLT2 inhibitors in patients with type 2 diabetes (SURPASS-3): a randomised, open-label, parallel-group, phase 3 trial. The Lancet. 2021;398(10300):583-98. | C48: -10.4 | D48: rTotalCholesterol_Tirzepatide
B49: Prescribing information NovoNordisk Ozempic; Ahrén B, Masmiquel L, Kumar H, Sargin M, Karsbøl JD, Jacobsen SH, Chow F. Efficacy and safety of once-weekly semaglutide versus once-daily sitagliptin as an add-on to metformin, thiazolidinediones, or both, in patients with type 2 diabetes (SUSTAIN 2): a 56-week, double-blind, phase 3a, randomised trial. Lancet Diabetes Endocrinol. 2017 May;5(5):341-354. doi: 10.1016/S2213-8587(17)30092-X. Epub 2017 Apr 3. PMID: 28385659. | C49: -1.5 | D49: rHbA1c_Semaglutide1mg
B50: Davies M, Færch L, Jeppesen OK, Pakseresht A, Pedersen SD, Perreault L, Rosenstock J, Shimomura I, Viljoen A, Wadden TA, Lingvay I; STEP 2 Study Group. Semaglutide 2·4 mg once a week in adults with overweight or obesity, and type 2 diabetes (STEP 2): a randomised, double-blind, double-dummy, placebo-controlled, phase 3 trial. Lancet. 2021 Mar 13;397(10278):971-984. doi: 10.1016/S0140-6736(21)00213-0. Epub 2021 Mar 2. PMID: 33667417. | C50: 2.51 | D50: rHDL_Semaglutide1mg
B51: Davies M, Færch L, Jeppesen OK, Pakseresht A, Pedersen SD, Perreault L, Rosenstock J, Shimomura I, Viljoen A, Wadden TA, Lingvay I; STEP 2 Study Group. Semaglutide 2·4 mg once a week in adults with overweight or obesity, and type 2 diabetes (STEP 2): a randomised, double-blind, double-dummy, placebo-controlled, phase 3 trial. Lancet. 2021 Mar 13;397(10278):971-984. doi: 10.1016/S0140-6736(21)00213-0. Epub 2021 Mar 2. PMID: 33667417. | C51: -4.02 | D51: rTotalCholesterol_Semaglutide1mg
B52: Assumption: 15mg/week, last accessed: 11.11.2025 https://www.shop-apotheke.com/arzneimittel/18253693/mounjaro-15-mg-dosis-kwikpen-inj-lsg-fertigpen.htm | C52: 6261.84 | D52: cTirzepatideTx
B53: Assumption: 1mg/week Ozempic, last accessed: 11.11.2025 https://www.shop-apotheke.com/arzneimittel/19904158/ozempic-1-mg-injektionsloesg-im-fertigpen-8-wochen.htm?position=3&query=ozepmi&queryID=07ffbac16c5a8b5e559a5d5ddbf1d8d7&eventName=click+on+product+in+suggest&eventType=click&objectIDs=%5B19904158%5D | C53: 1283.75 | D53: cSemaglutide1mgTx
B54: Zinman, Empagliflozin, Cardiovascular Outcomes, and Mortality in Type 2 Diabetes | C54: -0.36 | D54: rHbA1c_Empagliflozin
B55: Assumption: 25mg/day, last accessed: 04.11.2025 https://www.shop-apotheke.com/arzneimittel/10262132/jardiance-25-mg.htm?position=4&query=Empagliflozin+&queryID=79e83702696ea23012196877f3a6981c&eventName=click+on+product+in+suggest&eventType=click&objectIDs=%5B10262132%5D | C55: 694.92 | D55: cEmpagliflozinTx
B56: Emanuelsson 2025 Effect of empagliflozin on plasma lipids and lipoproteins in type 2 diabetes and heart failure – Empire HF and SIMPLE | C56: 0 | D56: rHDL_Empagliflozin
B57: Emanuelsson F, Jensen J, Omar M, Jürgens M, Kistorp C, Brandt-Jacobsen NH, et al. Effect of empagliflozin on plasma lipids and lipoproteins in type 2 diabetes and heart failure - Empire HF and SIMPLE. J Clin Lipidol. 2025;19(2):276-85. | C57: 0 | D57: rTotalCholesterol_Empagliflozin
B58: Assumption: 2,4mg/week Wegovy last accessed: 17.11.2205 https://www.shop-apotheke.com/arzneimittel/18299347/wegovy-2-4-mg-flextouch-injektionslsg-fertigpen.htm?eventName=click+on+product+list+item&position=1&query=semaglutide&queryID=cdcdb95a45e17e361228951da73ff51c&eventType=click&objectIDs=%5B18299347%5D | C58: 3598.79 | D58: cSemaglutideTx2_4mg
B59: Prescribing information NovoNordisk Wegovy; Davies M, Færch L, Jeppesen OK, Pakseresht A, Pedersen SD, Perreault L, Rosenstock J, Shimomura I, Viljoen A, Wadden TA, Lingvay I; STEP 2 Study Group. Semaglutide 2·4 mg once a week in adults with overweight or obesity, and type 2 diabetes (STEP 2): a randomised, double-blind, double-dummy, placebo-controlled, phase 3 trial. Lancet. 2021 Mar 13;397(10278):971-984. doi: 10.1016/S0140-6736(21)00213-0. Epub 2021 Mar 2. PMID: 33667417. | C59: -1.6 | D59: rHbA1c_Semaglutide2_4mg
B60: Prescribing information NovoNordisk Wegovy; Davies M, Færch L, Jeppesen OK, Pakseresht A, Pedersen SD, Perreault L, Rosenstock J, Shimomura I, Viljoen A, Wadden TA, Lingvay I; STEP 2 Study Group. Semaglutide 2·4 mg once a week in adults with overweight or obesity, and type 2 diabetes (STEP 2): a randomised, double-blind, double-dummy, placebo-controlled, phase 3 trial. Lancet. 2021 Mar 13;397(10278):971-984. doi: 10.1016/S0140-6736(21)00213-0. Epub 2021 Mar 2. PMID: 33667417. | C60: 5.14 | D60: rHDL_Semaglutide2_4mg
B61: Prescribing information NovoNordisk Wegovy; Davies M, Færch L, Jeppesen OK, Pakseresht A, Pedersen SD, Perreault L, Rosenstock J, Shimomura I, Viljoen A, Wadden TA, Lingvay I; STEP 2 Study Group. Semaglutide 2·4 mg once a week in adults with overweight or obesity, and type 2 diabetes (STEP 2): a randomised, double-blind, double-dummy, placebo-controlled, phase 3 trial. Lancet. 2021 Mar 13;397(10278):971-984. doi: 10.1016/S0140-6736(21)00213-0. Epub 2021 Mar 2. PMID: 33667417. | C61: -2.39 | D61: rTotalCholesterol_Semaglutide2_4mg
B62: Hazard Ratio used to model impact of treatment related remission specified in each submodel sperately. | C62: 1 | D62: vHR_Intervention_MicroMacro (Defined in node Base case)
B63: Factor used to model impact of treatment related HbA1c change specified in each submodel seperately. | C63: 1 | D63: vFactorHbA1cChange (Defined in node Base case)
C64: 1 | D64: vHR_Intervention_RenalDeath (Defined in node Base case)
C65: 1 | D65: vHR_Intervention_MacroRenal (Defined in node Base case)
B66: Hazard Ratio used to model impact of treatment related remission specified in each submodel sperately. | C66: 0.58 | D66: vHR_Intervention_MicroMacro (Defined in node Tirzepatide 15mg/Week)
B67: Factor used to model impact of treatment related HbA1c change specified in each submodel seperately. | C67: 2.277777074 | D67: vFactorHbA1cChange (Defined in node Tirzepatide 15mg/Week)
C68: 0.58 | D68: vHR_Intervention_RenalDeath (Defined in node Tirzepatide 15mg/Week)
C69: 0.58 | D69: vHR_Intervention_MacroRenal (Defined in node Tirzepatide 15mg/Week)
B70: Hazard Ratio used to model impact of treatment related remission specified in each submodel sperately. | C70: 0.79 | D70: vHR_Intervention_MicroMacro (Defined in node Semaglutide 1mg/Week)
B71: Factor used to model impact of treatment related HbA1c change specified in each submodel seperately. | C71: 1.731174362 | D71: vFactorHbA1cChange (Defined in node Semaglutide 1mg/Week)
C72: 0.79 | D72: vHR_Intervention_RenalDeath (Defined in node Semaglutide 1mg/Week)
C73: 0.79 | D73: vHR_Intervention_MacroRenal (Defined in node Semaglutide 1mg/Week)
B74: Hazard Ratio used to model impact of treatment related remission specified in each submodel sperately. | C74: 0.61 | D74: vHR_Intervention_MicroMacro (Defined in node Empagliflozin 25mg/Day)
B75: Factor used to model impact of treatment related HbA1c change specified in each submodel seperately. | C75: 1.485750453 | D75: vFactorHbA1cChange (Defined in node Empagliflozin 25mg/Day)
C76: 0.61 | D76: vHR_Intervention_RenalDeath (Defined in node Empagliflozin 25mg/Day)
C77: 0.61 | D77: vHR_Intervention_MacroRenal (Defined in node Empagliflozin 25mg/Day)

Sheet 1. Strategy Calcs
B1: Strategy | C1: 1 | D1: Base case
B2: States | C2: All
R3: T2D - State 1.1 | AH3: Microalbuminuria - State 1.2 | AX3: Macroalbuminuria - State 1.3 | BM3: Renal Disease - State 1.4 | BZ3: Death - State 1.5
D4: Cohort State Proportions | R4: Cohort % | Y4: Payoff 1 - Cost | AB4: Payoff 2 - QALY | AE4: Payoff 3 - Life expectancy | AH4: Cohort % | AN4: Payoff 1 - Cost | AR4: Payoff 2 - QALY | AU4: Payoff 3 - Life expectancy | AX4: Cohort % | BC4: Payoff 1 - Cost | BG4: Payoff 2 - QALY | BJ4: Payoff 3 - Life expectancy | BM4: Cohort % | BP4: Payoff 1 - Cost | BT4: Payoff 2 - QALY | BW4: Payoff 3 - Life expectancy | BZ4: Cohort % | CB4: Payoff 2 - QALY
B5: Cycle | D5: T2D | E5: Microalbuminuria | F5: Macroalbuminuria | G5: Renal Disease | H5: Death | I5: Payoff 1 - Cost | K5: Payoff 2 - QALY | M5: Payoff 3 - Life expectancy | P5: Checksum of Cohort % | R5: 1.1 State | S5: 1.1.1 Transition | T5: 1.1.1.1 Transition | U5: 1.1.1.2 Transition | V5: 1.1.1.3 Transition | W5: 1.1.1.4 Transition | X5: 1.1.2 Transition | Y5: 1.1 State before WCC | Z5: 1.1 State after WCC | AA5: State/Trans | AB5: 1.1 State before WCC | AC5: 1.1 State after WCC | AD5: State/Trans | AE5: 1.1 State before WCC | AF5: 1.1 State after WCC | AG5: State/Trans | AH5: 1.2 State | AI5: 1.2.1 Transition | AJ5: 1.2.1.1 Transition | AK5: 1.2.1.2 Transition | AL5: 1.2.1.3 Transition | AM5: 1.2.2 Transition | AN5: 1.2 State before WCC | AO5: 1.2 State after WCC | AP5: 1.2 State StartUp and Event | AQ5: State/Trans | AR5: 1.2 State before WCC | AS5: 1.2 State after WCC | AT5: State/Trans | AU5: 1.2 State before WCC | AV5: 1.2 State after WCC | AW5: State/Trans | AX5: 1.3 State | AY5: 1.3.1 Transition | AZ5: 1.3.1.1 Transition | BA5: 1.3.1.2 Transition | BB5: 1.3.2 Transition | BC5: 1.3 State before WCC | BD5: 1.3 State after WCC | BE5: 1.3 State StartUp and Event | BF5: State/Trans | BG5: 1.3 State before WCC | BH5: 1.3 State after WCC | BI5: State/Trans | BJ5: 1.3 State before WCC | BK5: 1.3 State after WCC | BL5: State/Trans | BM5: 1.4 State | BN5: 1.4.1 Transition | BO5: 1.4.2 Transition | BP5: 1.4 State before WCC | BQ5: 1.4 State after WCC | BR5: 1.4 State StartUp and Event | BS5: State/Trans | BT5: 1.4 State before WCC | BU5: 1.4 State after WCC | BV5: State/Trans | BW5: 1.4 State before WCC | BX5: 1.4 State after WCC | BY5: State/Trans | BZ5: 1.5 State | CA5: 1.5.1 Transition | CB5: 1.5 State before WCC | CC5: 1.5 State after WCC | CD5: State/Trans | CF5: pMacroalbuminuriaToDeath | CG5: pMicroalbuminuriaToDeath | CH5: pT2DToDeath | CI5: vQoLMacro | CJ5: vQoLMicro | CK5: vQoLRenalDisease | CL5: vQoLT2D
I6: WCC Disc | J6: Cum Disc | K6: WCC Disc | L6: Cum Disc | M6: WCC Disc | N6: Cum Disc | R6: T2D | S6: Alive | T6: Stay in T2D | U6: Microalbuminuria | V6: Macroalbuminuria | W6: Renal Disease | X6: Dead | Y6: T2D | Z6: T2D | AA6: State Total | AB6: T2D | AC6: T2D | AD6: State Total | AE6: T2D | AF6: T2D | AG6: State Total | AH6: Microalbuminuria | AI6: Alive | AJ6: Stay in Microalbuminuria | AK6: T2D | AL6: Macroalbuminuria | AM6: Dead | AN6: Microalbuminuria | AO6: Microalbuminuria | AP6: Microalbuminuria | AQ6: State Total | AR6: Microalbuminuria | AS6: Microalbuminuria | AT6: State Total | AU6: Microalbuminuria | AV6: Microalbuminuria | AW6: State Total | AX6: Macroalbuminuria | AY6: Alive | AZ6: Stay in Macroalbuminuria | BA6: Renal Disease | BB6: Dead | BC6: Macroalbuminuria | BD6: Macroalbuminuria | BE6: Macroalbuminuria | BF6: State Total | BG6: Macroalbuminuria | BH6: Macroalbuminuria | BI6: State Total | BJ6: Macroalbuminuria | BK6: Macroalbuminuria | BL6: State Total | BM6: Renal Disease | BN6: Stay in Renal Disease | BO6: Dead | BP6: Renal Disease | BQ6: Renal Disease | BR6: Renal Disease | BS6: State Total | BT6: Renal Disease | BU6: Renal Disease | BV6: State Total | BW6: Renal Disease | BX6: Renal Disease | BY6: State Total | BZ6: Death | CA6: Dead | CB6: Death | CC6: Death | CD6: State Total
B8: 0 | D8: =1 -> 1 | E8: =0 -> 0 | F8: =0 -> 0 | G8: =0 -> 0 | H8: =0 -> 0 | I8: ='1. Strategy Calcs'!AA8 + '1. Strategy Calcs'!AQ8 + '1. Strategy Calcs'!BF8 + '1. Strategy Calcs'!BS8 -> 3826.430238 | J8: =I8 -> 3826.430238 | K8: ='1. Strategy Calcs'!AD8 + '1. Strategy Calcs'!AT8 + '1. Strategy Calcs'!BI8 + '1. Strategy Calcs'!BV8 + '1. Strategy Calcs'!CD8 -> 0.7736255123 | L8: =K8 -> 0.7736255123 | M8: ='1. Strategy Calcs'!AG8 + '1. Strategy Calcs'!AW8 + '1. Strategy Calcs'!BL8 + '1. Strategy Calcs'!BY8 -> 0.980232702 | N8: =M8 -> 0.980232702 | P8: =SUM(D8:H8) -> 1 | R8: ='1. Strategy Calcs'!D8 -> 1 | S8: =R8*(1-(INDEX(pT2DToDeath_1,cycle+1))) -> 0.9892793662 | T8: =S8*(1-((1-(0.78^(EXP(((((((((((((((0.02114*(rAge+cycle))+(0.16956*rGender))-(0.00804*risBlack))+(0.17342*risHispanic))+(0.28362*rSmoker))+(0.00334*rSBP))+(0.22312*rCVDHistory))+(0.28372*rAntiHypertensiveDrugs))+(0.06584*rOralT2DDrugs))+(0.42199*rAnticoagulants))+(0.13847*rHbA1c))+(0.00034*rTotalCholesterol))-(0.0097*rHDL))+(0.67026*rSerumCreatinine))-3.64)/10))))-((1-(0.94^(EXP((((((((((((((((0.00733*(rAge+cycle))+(0.2738*rGender))-(0.00556*risBlack))+(0.3563*risHispanic))+(0.1001*rSmoker))+((-0.00101)*rSBP))+(0.2557*rCVDHistory))+(0.2418*rAntiHypertensiveDrugs))+(0.09015*rOralT2DDrugs))+(0.01091*rAnticoagulants))+(0.09639*rHbA1c))+(0.00009*rTotalCholesterol))-(0.01135*rHDL))+(1.149*rSerumCreatinine))+(0.01335*rUrinAlbumin_Creatinine))-2.66)/10))))-((1-(0.973^(EXP(((((((((((((((((-0.01938)*(rAge+cycle))+((-0.01129)*rGender))+(0.08812*risBlack))+(0.2338*risHispanic))+(0.1483*rSmoker))+(0.00303*rSBP))+((-0.02164)*rCVDHistory))+((-0.07952)*rAntiHypertensiveDrugs))-(0.1256*rOralT2DDrugs))+(0.03199*rAnticoagulants))+(0.1369*rHbA1c))-(0.00111*rTotalCholesterol))+(0.00629*rHDL))+(0.8609*rSerumCreatinine))+(0.00036*rUrinAlbumin_Creatinine))-0.23)/10))))) -> 0.9567523366 | U8: =S8*((1-(0.78^(EXP(((((((((((((((0.02114*(rAge+cycle))+(0.16956*rGender))-(0.00804*risBlack))+(0.17342*risHispanic))+(0.28362*rSmoker))+(0.00334*rSBP))+(0.22312*rCVDHistory))+(0.28372*rAntiHypertensiveDrugs))+(0.06584*rOralT2DDrugs))+(0.42199*rAnticoagulants))+(0.13847*rHbA1c))+(0.00034*rTotalCholesterol))-(0.0097*rHDL))+(0.67026*rSerumCreatinine))-3.64)/10)))) -> 0.01664576895 | V8: =S8*((1-(0.94^(EXP((((((((((((((((0.00733*(rAge+cycle))+(0.2738*rGender))-(0.00556*risBlack))+(0.3563*risHispanic))+(0.1001*rSmoker))+((-0.00101)*rSBP))+(0.2557*rCVDHistory))+(0.2418*rAntiHypertensiveDrugs))+(0.09015*rOralT2DDrugs))+(0.01091*rAnticoagulants))+(0.09639*rHbA1c))+(0.00009*rTotalCholesterol))-(0.01135*rHDL))+(1.149*rSerumCreatinine))+(0.01335*rUrinAlbumin_Creatinine))-2.66)/10)))) -> 0.009583279951 | W8: =S8*((1-(0.973^(EXP(((((((((((((((((-0.01938)*(rAge+cycle))+((-0.01129)*rGender))+(0.08812*risBlack))+(0.2338*risHispanic))+(0.1483*rSmoker))+(0.00303*rSBP))+((-0.02164)*rCVDHistory))+((-0.07952)*rAntiHypertensiveDrugs))-(0.1256*rOralT2DDrugs))+(0.03199*rAnticoagulants))+(0.1369*rHbA1c))-(0.00111*rTotalCholesterol))+(0.00629*rHDL))+(0.8609*rSerumCreatinine))+(0.00036*rUrinAlbumin_Creatinine))-0.23)/10)))) -> 0.006297980652 | X8: =R8*(INDEX(pT2DToDeath_1,cycle+1)) -> 0.0107206338 | Y8: =(R8*(cT2DBaseCase))*'Time Discounting'!C5 -> 3772.48 | Z8: =(Y8 + Y9)/2 -> 3638.341483 | AA8: =SUM(Z8:Z8) -> 3638.341483 | AB8: =(R8*(INDEX(vQoLT2D_1,cycle+1)))*'Time Discounting'!E5 -> 0.79 | AC8: =(AB8 + AB9)/2 -> 0.7619098767 | AD8: =SUM(AC8:AC8) -> 0.7619098767 | AE8: =(R8*(1))*'Time Discounting'!G5 -> 1 | AF8: =(AE8 + AE9)/2 -> 0.9644428819 | AG8: =SUM(AF8:AF8) -> 0.9644428819 | AH8: ='1. Strategy Calcs'!E8 -> 0 | AI8: =AH8*(1-(INDEX(pMicroalbuminuriaToDeath_1,cycle+1))) -> 0 | AJ8: =AI8*(1-(((((1-INDEX(pMicroalbuminuriaToDeath_1,cycle+1))*0.072)*vFactorHbA1cChange_Node3)*1))-((0.028*vHR_Intervention_MicroMacro_Node3))) -> 0 | AK8: =AI8*(((((1-INDEX(pMicroalbuminuriaToDeath_1,cycle+1))*0.072)*vFactorHbA1cChange_Node3)*1)) -> 0 | AL8: =AI8*((0.028*vHR_Intervention_MicroMacro_Node3)) -> 0 | AM8: =AH8*(INDEX(pMicroalbuminuriaToDeath_1,cycle+1)) -> 0 | AN8: =(AH8*(cFollowingMicroalbuminuriaBaseCase))*'Time Discounting'!C5 -> 0 | AO8: =(AN8 + AN9)/2 -> 57.45020498 | AP8: =(AH8*(cFirstYearMicroalbuminuriaBaseCase) + 0)*'Time Discounting'!C5 -> 0 | AQ8: =SUM(AO8:AP8) -> 57.45020498 | AR8: =(AH8*(INDEX(vQoLMicro_1,cycle+1)))*'Time Discounting'!E5 -> 0 | AS8: =(AR8 + AR9)/2 -> 0.006383571588 | AT8: =SUM(AS8:AS8) -> 0.006383571588 | AU8: =(AH8*(1))*'Time Discounting'!G5 -> 0 | AV8: =(AU8 + AU9)/2 -> 0.008080470364 | AW8: =SUM(AV8:AV8) -> 0.008080470364 | AX8: ='1. Strategy Calcs'!F8 -> 0 | AY8: =AX8*(1-(INDEX(pMacroalbuminuriaToDeath_1,cycle+1))) -> 0 | AZ8: =AY8*(1-((0.023*vHR_Intervention_MacroRenal_Node3))) -> 0 | BA8: =AY8*((0.023*vHR_Intervention_MacroRenal_Node3)) -> 0 | BB8: =AX8*(INDEX(pMacroalbuminuriaToDeath_1,cycle+1)) -> 0 | BC8: =(AX8*(cFollowingMacroalbuminuriaBaseCase))*'Time Discounting'!C5 -> 0 | BD8: =(BC8 + BC9)/2 -> 33.07515556 | BE8: =(AX8*(cFirstYearMacroalbuminuriaBaseCase) + 0)*'Time Discounting'!C5 -> 0 | BF8: =SUM(BD8:BE8) -> 33.07515556 | BG8: =(AX8*(INDEX(vQoLMacro_1,cycle+1)))*'Time Discounting'!E5 -> 0 | BH8: =(BG8 + BG9)/2 -> 0.003451841613 | BI8: =SUM(BH8:BH8) -> 0.003451841613 | BJ8: =(AX8*(1))*'Time Discounting'!G5 -> 0 | BK8: =(BJ8 + BJ9)/2 -> 0.004652077646 | BL8: =SUM(BK8:BK8) -> 0.004652077646 | BM8: ='1. Strategy Calcs'!G8 -> 0 | BN8: =BM8*(1-((IF(rAge<64,0.214,0.365)*vHR_Intervention_RenalDeath_Node3))) -> 0 | BO8: =BM8*((IF(rAge<64,0.214,0.365)*vHR_Intervention_RenalDeath_Node3)) -> 0 | BP8: =(BM8*(cFollowingRenalDiseaseBaseCase))*'Time Discounting'!C5 -> 0 | BQ8: =(BP8 + BP9)/2 -> 97.56339405 | BR8: =(BM8*(cFirstYearRenalDiseaseBaseCase) + 0)*'Time Discounting'!C5 -> 0 | BS8: =SUM(BQ8:BR8) -> 97.56339405 | BT8: =(BM8*(INDEX(vQoLRenalDisease_1,cycle+1)))*'Time Discounting'!E5 -> 0 | BU8: =(BT8 + BT9)/2 -> 0.001880222379 | BV8: =SUM(BU8:BU8) -> 0.001880222379 | BW8: =(BM8*(1))*'Time Discounting'!G5 -> 0 | BX8: =(BW8 + BW9)/2 -> 0.003057272161 | BY8: =SUM(BX8:BX8) -> 0.003057272161 | BZ8: ='1. Strategy Calcs'!H8 -> 0 | CA8: =BZ8*(1) -> 0 | CB8: =(BZ8*(vQoLDeath))*'Time Discounting'!E5 -> 0 | CC8: =(CB8 + CB9)/2 -> 0 | CD8: =SUM(CC8:CC8) -> 0 | CF8: =INDEX(pT2DToDeath_1,cycle+1)*2.47 -> 0.02647996549 | CG8: =IF(rAge<64,INDEX(pT2DToDeath_1,cycle+1)*2.3,INDEX(pT2DToDeath_1,cycle+1)*1.7) -> 0.02465745774 | CH8: =IF(rGender=0,InterpolateTable(tGeneralMortWONephropathy_2023,rAge+cycle,1),InterpolateTable(tGeneralMortWONephropathy_2023,rAge+cycle,2)) -> 0.0107206338 | CI8: =IF(rGender=1,(0.742-(InterpolateTable(tQoL_AgeDecrements,VALUE(cycle),1)))-0.093,0.742-(InterpolateTable(tQoL_AgeDecrements,VALUE(cycle),1))) -> 0.742 | CJ8: =IF(rGender=1,(0.79-(InterpolateTable(tQoL_AgeDecrements,VALUE(cycle),1)))-0.093,0.79-(InterpolateTable(tQoL_AgeDecrements,VALUE(cycle),1))) -> 0.79 | CK8: =IF(rGender=1,(0.615-(InterpolateTable(tQoL_AgeDecrements,VALUE(cycle),1)))-0.093,0.615-(InterpolateTable(tQoL_AgeDecrements,VALUE(cycle),1))) -> 0.615 | CL8: =IF(rGender=1,(0.79-(InterpolateTable(tQoL_AgeDecrements,VALUE(cycle),1)))-0.093,0.79-(InterpolateTable(tQoL_AgeDecrements,VALUE(cycle),1))) -> 0.79
B9: 1 | D9: ='1. Strategy Calcs'!R9 -> 0.9567523366 | E9: ='1. Strategy Calcs'!AH9 -> 0.01664576895 | F9: ='1. Strategy Calcs'!AX9 -> 0.009583279951 | G9: ='1. Strategy Calcs'!BM9 -> 0.006297980652 | H9: ='1. Strategy Calcs'!BZ9 -> 0.0107206338 | I9: ='1. Strategy Calcs'!AA9 + '1. Strategy Calcs'!AQ9 + '1. Strategy Calcs'!BF9 + '1. Strategy Calcs'!BS9 -> 3900.191187 | J9: =J8 + I9 -> 7726.621425 | K9: ='1. Strategy Calcs'!AD9 + '1. Strategy Calcs'!AT9 + '1. Strategy Calcs'!BI9 + '1. Strategy Calcs'!BV9 + '1. Strategy Calcs'!CD9 -> 0.7406512392 | L9: =L8 + K9 -> 1.514276751 | M9: ='1. Strategy Calcs'!AG9 + '1. Strategy Calcs'!AW9 + '1. Strategy Calcs'!BL9 + '1. Strategy Calcs'!BY9 -> 0.9401861421 | N9: =N8 + M9 -> 1.920418844 | P9: 1 | R9: =0 + T8 + '1. Strategy Calcs'!AK8 -> 0.9567523366 | S9: 0.9454799107 | T9: 0.9141041453 | U9: 0.01624574755 | V9: 0.009226041049 | W9: 0.005903976763 | X9: 0.01127242599 | Y9: =(R9*(cT2DBaseCase))*'Time Discounting'!C6 -> 3504.202966 | Z9: 3379.360972 | AA9: 3379.360972 | AB9: =(R9*(INDEX(vQoLT2D_1,cycle+1)))*'Time Discounting'!E6 -> 0.7338197534 | AC9: 0.7076764272 | AD9: 0.7076764272 | AE9: =(R9*(1))*'Time Discounting'!G6 -> 0.9288857637 | AF9: 0.8957929459 | AG9: 0.8957929459 | AH9: =0 + '1. Strategy Calcs'!U8 + AJ8 -> 0.01664576895 | AI9: 0.01619469312 | AJ9: 0.01460682117 | AK9: 0.001134420536 | AL9: 0.0004534514073 | AM9: 0.0004510758323 | AN9: =(AH9*(cFollowingMicroalbuminuriaBaseCase))*'Time Discounting'!C6 -> 114.90041 | AO9: 160.8314657 | AP9: =(0)*'Time Discounting'!C6 -> 0 | AQ9: 160.8314657 | AR9: =(AH9*(INDEX(vQoLMicro_1,cycle+1)))*'Time Discounting'!E6 -> 0.01276714318 | AS9: 0.01787076609 | AT9: 0.01787076609 | AU9: =(AH9*(1))*'Time Discounting'!G6 -> 0.01616094073 | AV9: 0.0226212229 | AW9: 0.0226212229 | AX9: =0 + '1. Strategy Calcs'!V8 + '1. Strategy Calcs'!AL8 + AZ8 -> 0.009583279951 | AY9: 0.009304392489 | AZ9: 0.009090391462 | BA9: 0.0002140010272 | BB9: 0.0002788874616 | BC9: =(AX9*(cFollowingMacroalbuminuriaBaseCase))*'Time Discounting'!C6 -> 66.15031113 | BD9: 95.96957063 | BE9: =(0)*'Time Discounting'!C6 -> 0 | BF9: 95.96957063 | BG9: =(AX9*(INDEX(vQoLMacro_1,cycle+1)))*'Time Discounting'!E6 -> 0.006903683227 | BH9: 0.01001572787 | BI9: 0.01001572787 | BJ9: =(AX9*(1))*'Time Discounting'!G6 -> 0.009304155292 | BK9: 0.01349828554 | BL9: 0.01349828554 | BM9: =0 + '1. Strategy Calcs'!W8 + '1. Strategy Calcs'!BA8 + BN8 -> 0.006297980652 | BN9: 0.004950212792 | BO9: 0.00134776786 | BP9: =(BM9*(cFollowingRenalDiseaseBaseCase))*'Time Discounting'!C6 -> 195.1267881 | BQ9: 264.0291786 | BR9: =(0)*'Time Discounting'!C6 -> 0 | BS9: 264.0291786 | BT9: =(BM9*(INDEX(vQoLRenalDisease_1,cycle+1)))*'Time Discounting'!E6 -> 0.003760444758 | BU9: 0.005088317962 | BV9: 0.005088317962 | BW9: =(BM9*(1))*'Time Discounting'!G6 -> 0.006114544322 | BX9: 0.008273687744 | BY9: 0.008273687744 | BZ9: =0 + '1. Strategy Calcs'!X8 + '1. Strategy Calcs'!AM8 + '1. Strategy Calcs'!BB8 + '1. Strategy Calcs'!BO8 + CA8 -> 0.0107206338 | CA9: 0.0107206338 | CB9: =(BZ9*(vQoLDeath))*'Time Discounting'!E6 -> 0 | CC9: 0 | CD9: 0 | CF9: 0.02910146244 | CG9: 0.02709852778 | CH9: =IF(rGender=0,InterpolateTable(tGeneralMortWONephropathy_2023,rAge+cycle,1),InterpolateTable(tGeneralMortWONephropathy_2023,rAge+cycle,2)) -> 0.0117819686 | CI9: =IF(rGender=1,(0.742-(InterpolateTable(tQoL_AgeDecrements,VALUE(cycle),1)))-0.093,0.742-(InterpolateTable(tQoL_AgeDecrements,VALUE(cycle),1))) -> 0.742 | CJ9: =IF(rGender=1,(0.79-(InterpolateTable(tQoL_AgeDecrements,VALUE(cycle),1)))-0.093,0.79-(InterpolateTable(tQoL_AgeDecrements,VALUE(cycle),1))) -> 0.79 | CK9: =IF(rGender=1,(0.615-(InterpolateTable(tQoL_AgeDecrements,VALUE(cycle),1)))-0.093,0.615-(InterpolateTable(tQoL_AgeDecrements,VALUE(cycle),1))) -> 0.615 | CL9: =IF(rGender=1,(0.79-(InterpolateTable(tQoL_AgeDecrements,VALUE(cycle),1)))-0.093,0.79-(InterpolateTable(tQoL_AgeDecrements,VALUE(cycle),1))) -> 0.79
B10: 2 | D10: ='1. Strategy Calcs'!R10 -> 0.9152385658 | E10: ='1. Strategy Calcs'!AH10 -> 0.03085256873 | F10: ='1. Strategy Calcs'!AX10 -> 0.01876988392 | G10: ='1. Strategy Calcs'!BM10 -> 0.01106819058 | H10: ='1. Strategy Calcs'!BZ10 -> 0.02407079094 | I10: ='1. Strategy Calcs'!AA10 + '1. Strategy Calcs'!AQ10 + '1. Strategy Calcs'!BF10 + '1. Strategy Calcs'!BS10 -> 3913.488739 | J10: 11640.11016 | K10: ='1. Strategy Calcs'!AD10 + '1. Strategy Calcs'!AT10 + '1. Strategy Calcs'!BI10 + '1. Strategy Calcs'!BV10 + '1. Strategy Calcs'!CD10 -> 0.7073398729 | L10: 2.221616624 | M10: ='1. Strategy Calcs'!AG10 + '1. Strategy Calcs'!AW10 + '1. Strategy Calcs'!BL10 + '1. Strategy Calcs'!BY10 -> 0.8993086625 | N10: 2.819727507 | P10: 1 | R10: =0 + T9 + '1. Strategy Calcs'!AK9 -> 0.9152385658 | S10: 0.9033877138 | T10: 0.8731234731 | U10: 0.01585120877 | V10: 0.008879837039 | W10: 0.005533194886 | X10: 0.01185085198 | Y10: =(R10*(cT2DBaseCase))*'Time Discounting'!C7 -> 3254.518979 | Z10: 3138.034487 | AA10: 3138.034487 | AB10: =(R10*(INDEX(vQoLT2D_1,cycle+1)))*'Time Discounting'!E7 -> 0.6815331011 | AC10: 0.6571399304 | AD10: 0.6571399304 | AE10: =(R10*(1))*'Time Discounting'!G7 -> 0.862700128 | AF10: 0.8318226967 | AG10: 0.8318226967 | AH10: =0 + '1. Strategy Calcs'!U9 + AJ9 -> 0.03085256873 | AI10: 0.02993374029 | AJ10: 0.02700455171 | AK10: 0.002091043853 | AL10: 0.0008381447283 | AM10: 0.0009188284339 | AN10: =(AH10*(cFollowingMicroalbuminuriaBaseCase))*'Time Discounting'!C7 -> 206.7625215 | AO10: 242.8004257 | AP10: =(0)*'Time Discounting'!C7 -> 0 | AQ10: 242.8004257 | AR10: =(AH10*(INDEX(vQoLMicro_1,cycle+1)))*'Time Discounting'!E7 -> 0.02297438901 | AS10: 0.02697873575 | AT10: 0.02697873575 | AU10: =(AH10*(1))*'Time Discounting'!G7 -> 0.02908150507 | AV10: 0.03415029842 | AW10: 0.03415029842 | AX10: =0 + '1. Strategy Calcs'!V9 + '1. Strategy Calcs'!AL9 + AZ9 -> 0.01876988392 | AY10: 0.01816957637 | AZ10: 0.01775167612 | BA10: 0.0004179002566 | BB10: 0.0006003075451 | BC10: =(AX10*(cFollowingMacroalbuminuriaBaseCase))*'Time Discounting'!C7 -> 125.7888301 | BD10: 152.259222 | BE10: =(0)*'Time Discounting'!C7 -> 0 | BF10: 152.259222 | BG10: =(AX10*(INDEX(vQoLMacro_1,cycle+1)))*'Time Discounting'!E7 -> 0.01312777252 | BH10: 0.01589031736 | BI10: 0.01589031736 | BJ10: =(AX10*(1))*'Time Discounting'!G7 -> 0.0176924158 | BK10: 0.02141552205 | BL10: 0.02141552205 | BM10: =0 + '1. Strategy Calcs'!W9 + '1. Strategy Calcs'!BA9 + BN9 -> 0.01106819058 | BN10: 0.008699597798 | BO10: 0.002368592785 | BP10: =(BM10*(cFollowingRenalDiseaseBaseCase))*'Time Discounting'!C7 -> 332.9315692 | BQ10: 380.3946042 | BR10: =(0)*'Time Discounting'!C7 -> 0 | BS10: 380.3946042 | BT10: =(BM10*(INDEX(vQoLRenalDisease_1,cycle+1)))*'Time Discounting'!E7 -> 0.006416191166 | BU10: 0.007330889364 | BV10: 0.007330889364 | BW10: =(BM10*(1))*'Time Discounting'!G7 -> 0.01043283116 | BX10: 0.01192014531 | BY10: 0.01192014531 | BZ10: =0 + '1. Strategy Calcs'!X9 + '1. Strategy Calcs'!AM9 + '1. Strategy Calcs'!BB9 + '1. Strategy Calcs'!BO9 + CA9 -> 0.02407079094 | CA10: 0.02407079094 | CB10: =(BZ10*(vQoLDeath))*'Time Discounting'!E7 -> 0 | CC10: 0 | CD10: 0 | CF10: 0.03198248576 | CG10: 0.02978126204 | CH10: =IF(rGender=0,InterpolateTable(tGeneralMortWONephropathy_2023,rAge+cycle,1),InterpolateTable(tGeneralMortWONephropathy_2023,rAge+cycle,2)) -> 0.0129483748 | CI10: =IF(rGender=1,(0.742-(InterpolateTable(tQoL_AgeDecrements,VALUE(cycle),1)))-0.093,0.742-(InterpolateTable(tQoL_AgeDecrements,VALUE(cycle),1))) -> 0.742 | CJ10: =IF(rGender=1,(0.79-(InterpolateTable(tQoL_AgeDecrements,VALUE(cycle),1)))-0.093,0.79-(InterpolateTable(tQoL_AgeDecrements,VALUE(cycle),1))) -> 0.79 | CK10: =IF(rGender=1,(0.615-(InterpolateTable(tQoL_AgeDecrements,VALUE(cycle),1)))-0.093,0.615-(InterpolateTable(tQoL_AgeDecrements,VALUE(cycle),1))) -> 0.615 | CL10: =IF(rGender=1,(0.79-(InterpolateTable(tQoL_AgeDecrements,VALUE(cycle),1)))-0.093,0.79-(InterpolateTable(tQoL_AgeDecrements,VALUE(cycle),1))) -> 0.79
B11: 3 | D11: ='1. Strategy Calcs'!R11 -> 0.875214517 | E11: ='1. Strategy Calcs'!AH11 -> 0.04285576049 | F11: ='1. Strategy Calcs'!AX11 -> 0.02746965788 | G11: ='1. Strategy Calcs'!BM11 -> 0.01465069294 | H11: ='1. Strategy Calcs'!BZ11 -> 0.03980937169 | I11: ='1. Strategy Calcs'!AA11 + '1. Strategy Calcs'!AQ11 + '1. Strategy Calcs'!BF11 + '1. Strategy Calcs'!BS11 -> 3880.092778 | J11: 15520.20294 | K11: ='1. Strategy Calcs'!AD11 + '1. Strategy Calcs'!AT11 + '1. Strategy Calcs'!BI11 + '1. Strategy Calcs'!BV11 + '1. Strategy Calcs'!CD11 -> 0.6738882845 | L11: 2.895504909 | M11: ='1. Strategy Calcs'!AG11 + '1. Strategy Calcs'!AW11 + '1. Strategy Calcs'!BL11 + '1. Strategy Calcs'!BY11 -> 0.8579359886 | N11: 3.677663495 | P11: 1 | R11: =0 + T10 + '1. Strategy Calcs'!AK10 -> 0.875214517 | S11: 0.8627599918 | T11: 0.8335753364 | U11: 0.01545885442 | V11: 0.008542567862 | W11: 0.005183233068 | X11: 0.01245452523 | Y11: =(R11*(cT2DBaseCase))*'Time Discounting'!C8 -> 3021.549995 | Z11: 2912.601964 | AA11: 2912.601964 | AB11: =(R11*(INDEX(vQoLT2D_1,cycle+1)))*'Time Discounting'!E8 -> 0.6327467596 | AC11: 0.6099318092 | AD11: 0.6099318092 | AE11: =(R11*(1))*'Time Discounting'!G8 -> 0.8009452654 | AF11: 0.7720655813 | AG11: 0.7720655813 | AH11: =0 + '1. Strategy Calcs'!U10 + AJ10 -> 0.04285576049 | AI11: 0.04145310923 | AJ11: 0.0374054838 | AK11: 0.002886938363 | AL11: 0.001160687058 | AM11: 0.001402651261 | AN11: =(AH11*(cFollowingMicroalbuminuriaBaseCase))*'Time Discounting'!C8 -> 278.8383299 | AO11: 306.3893183 | AP11: =(0)*'Time Discounting'!C8 -> 0 | AQ11: 306.3893183 | AR11: =(AH11*(INDEX(vQoLMicro_1,cycle+1)))*'Time Discounting'!E8 -> 0.03098308249 | AS11: 0.03404440677 | AT11: 0.03404440677 | AU11: =(AH11*(1))*'Time Discounting'!G8 -> 0.03921909176 | AV11: 0.04309418579 | AW11: 0.04309418579 | AX11: =0 + '1. Strategy Calcs'!V10 + '1. Strategy Calcs'!AL10 + AZ10 -> 0.02746965788 | AY11: 0.02650413434 | AZ11: 0.02589453925 | BA11: 0.0006095950898 | BB11: 0.0009655235433 | BC11: =(AX11*(cFollowingMacroalbuminuriaBaseCase))*'Time Discounting'!C8 -> 178.7296139 | BD11: 201.7991881 | BE11: =(0)*'Time Discounting'!C8 -> 0 | BF11: 201.7991881 | BG11: =(AX11*(INDEX(vQoLMacro_1,cycle+1)))*'Time Discounting'!E8 -> 0.0186528622 | BH11: 0.02106048553 | BI11: 0.02106048553 | BJ11: =(AX11*(1))*'Time Discounting'!G8 -> 0.0251386283 | BK11: 0.02838340368 | BL11: 0.02838340368 | BM11: =0 + '1. Strategy Calcs'!W10 + '1. Strategy Calcs'!BA10 + BN10 -> 0.01465069294 | BN11: 0.01151544465 | BO11: 0.003135248289 | BP11: =(BM11*(cFollowingRenalDiseaseBaseCase))*'Time Discounting'!C8 -> 427.8576393 | BQ11: 459.3023073 | BR11: =(0)*'Time Discounting'!C8 -> 0 | BS11: 459.3023073 | BT11: =(BM11*(INDEX(vQoLRenalDisease_1,cycle+1)))*'Time Discounting'!E8 -> 0.008245587561 | BU11: 0.008851582966 | BV11: 0.008851582966 | BW11: =(BM11*(1))*'Time Discounting'!G8 -> 0.01340745945 | BX11: 0.01439281783 | BY11: 0.01439281783 | BZ11: =0 + '1. Strategy Calcs'!X10 + '1. Strategy Calcs'!AM10 + '1. Strategy Calcs'!BB10 + '1. Strategy Calcs'!BO10 + CA10 -> 0.03980937169 | CA11: 0.03980937169 | CB11: =(BZ11*(vQoLDeath))*'Time Discounting'!E8 -> 0 | CC11: 0 | CD11: 0 | CF11: 0.03514872837 | CG11: 0.03272958512 | CH11: =IF(rGender=0,InterpolateTable(tGeneralMortWONephropathy_2023,rAge+cycle,1),InterpolateTable(tGeneralMortWONephropathy_2023,rAge+cycle,2)) -> 0.0142302544 | CI11: =IF(rGender=1,(0.742-(InterpolateTable(tQoL_AgeDecrements,VALUE(cycle),1)))-0.093,0.742-(InterpolateTable(tQoL_AgeDecrements,VALUE(cycle),1))) -> 0.742 | CJ11: =IF(rGender=1,(0.79-(InterpolateTable(tQoL_AgeDecrements,VALUE(cycle),1)))-0.093,0.79-(InterpolateTable(tQoL_AgeDecrements,VALUE(cycle),1))) -> 0.79 | CK11: =IF(rGender=1,(0.615-(InterpolateTable(tQoL_AgeDecrements,VALUE(cycle),1)))-0.093,0.615-(InterpolateTable(tQoL_AgeDecrements,VALUE(cycle),1))) -> 0.615 | CL11: =IF(rGender=1,(0.79-(InterpolateTable(tQoL_AgeDecrements,VALUE(cycle),1)))-0.093,0.79-(InterpolateTable(tQoL_AgeDecrements,VALUE(cycle),1))) -> 0.79
B12: 4 | D12: ='1. Strategy Calcs'!R12 -> 0.8364622748 | E12: ='1. Strategy Calcs'!AH12 -> 0.05286433823 | F12: ='1. Strategy Calcs'!AX12 -> 0.03559779417 | G12: ='1. Strategy Calcs'!BM12 -> 0.01730827281 | H12: ='1. Strategy Calcs'!BZ12 -> 0.05776732001 | I12: ='1. Strategy Calcs'!AA12 + '1. Strategy Calcs'!AQ12 + '1. Strategy Calcs'!BF12 + '1. Strategy Calcs'!BS12 -> 3810.503719 | J12: 19330.70666 | K12: ='1. Strategy Calcs'!AD12 + '1. Strategy Calcs'!AT12 + '1. Strategy Calcs'!BI12 + '1. Strategy Calcs'!BV12 + '1. Strategy Calcs'!CD12 -> 0.6404415511 | L12: 3.53594646 | M12: ='1. Strategy Calcs'!AG12 + '1. Strategy Calcs'!AW12 + '1. Strategy Calcs'!BL12 + '1. Strategy Calcs'!BY12 -> 0.8163170126 | N12: 4.493980508 | P12: 1 | R12: =0 + T11 + '1. Strategy Calcs'!AK11 -> 0.8364622748 | S12: 0.8233808088 | T12: 0.7952509182 | U12: 0.01506556451 | V12: 0.008212335597 | W12: 0.004851990511 | X12: 0.01308146597 | Y12: =(R12*(cT2DBaseCase))*'Time Discounting'!C9 -> 2803.653934 | Z12: 2701.525109 | AA12: 2701.525109 | AB12: =(R12*(INDEX(vQoLT2D_1,cycle+1)))*'Time Discounting'!E9 -> 0.5871168588 | AC12: 0.5657299273 | AD12: 0.5657299273 | AE12: =(R12*(1))*'Time Discounting'!G9 -> 0.7431858972 | AF12: 0.716113832 | AG12: 0.716113832 | AH12: =0 + '1. Strategy Calcs'!U11 + AJ11 -> 0.05286433823 | AI12: 0.05096281912 | AJ12: 0.04599852198 | AK12: 0.003537338203 | AL12: 0.001426958935 | AM12: 0.001901519104 | AN12: =(AH12*(cFollowingMicroalbuminuriaBaseCase))*'Time Discounting'!C9 -> 333.9403068 | AO12: 354.2213864 | AP12: =(0)*'Time Discounting'!C9 -> 0 | AQ12: 354.2213864 | AR12: =(AH12*(INDEX(vQoLMicro_1,cycle+1)))*'Time Discounting'!E9 -> 0.03710573105 | AS12: 0.03935926041 | AT12: 0.03935926041 | AU12: =(AH12*(1))*'Time Discounting'!G9 -> 0.04696927981 | AV12: 0.04982184862 | AW12: 0.04982184862 | AX12: =0 + '1. Strategy Calcs'!V11 + '1. Strategy Calcs'!AL11 + AZ11 -> 0.03559779417 | AY12: 0.03422270742 | AZ12: 0.03343558515 | BA12: 0.0007871222706 | BB12: 0.001375086752 | BC12: =(AX12*(cFollowingMacroalbuminuriaBaseCase))*'Time Discounting'!C9 -> 224.8687623 | BD12: 244.5222383 | BE12: =(0)*'Time Discounting'!C9 -> 0 | BF12: 244.5222383 | BG12: =(AX12*(INDEX(vQoLMacro_1,cycle+1)))*'Time Discounting'!E9 -> 0.02346810886 | BH12: 0.02551921595 | BI12: 0.02551921595 | BJ12: =(AX12*(1))*'Time Discounting'!G9 -> 0.03162817906 | BK12: 0.03439247433 | BL12: 0.03439247433 | BM12: =0 + '1. Strategy Calcs'!W11 + '1. Strategy Calcs'!BA11 + BN11 -> 0.01730827281 | BN12: 0.01360430243 | BO12: 0.003703970381 | BP12: =(BM12*(cFollowingRenalDiseaseBaseCase))*'Time Discounting'!C9 -> 490.7469753 | BQ12: 510.234985 | BR12: =(0)*'Time Discounting'!C9 -> 0 | BS12: 510.234985 | BT12: =(BM12*(INDEX(vQoLRenalDisease_1,cycle+1)))*'Time Discounting'!E9 -> 0.009457578371 | BU12: 0.009833147429 | BV12: 0.009833147429 | BW12: =(BM12*(1))*'Time Discounting'!G9 -> 0.01537817621 | BX12: 0.01598885761 | BY12: 0.01598885761 | BZ12: =0 + '1. Strategy Calcs'!X11 + '1. Strategy Calcs'!AM11 + '1. Strategy Calcs'!BB11 + '1. Strategy Calcs'!BO11 + CA11 -> 0.05776732001 | CA12: 0.05776732001 | CB12: =(BZ12*(vQoLDeath))*'Time Discounting'!E9 -> 0 | CC12: 0 | CD12: 0 | CF12: 0.03862842584 | CG12: 0.03596978924 | CH12: =IF(rGender=0,InterpolateTable(tGeneralMortWONephropathy_2023,rAge+cycle,1),InterpolateTable(tGeneralMortWONephropathy_2023,rAge+cycle,2)) -> 0.0156390388 | CI12: =IF(rGender=1,(0.742-(InterpolateTable(tQoL_AgeDecrements,VALUE(cycle),1)))-0.093,0.742-(InterpolateTable(tQoL_AgeDecrements,VALUE(cycle),1))) -> 0.742 | CJ12: =IF(rGender=1,(0.79-(InterpolateTable(tQoL_AgeDecrements,VALUE(cycle),1)))-0.093,0.79-(InterpolateTable(tQoL_AgeDecrements,VALUE(cycle),1))) -> 0.79 | CK12: =IF(rGender=1,(0.615-(InterpolateTable(tQoL_AgeDecrements,VALUE(cycle),1)))-0.093,0.615-(InterpolateTable(tQoL_AgeDecrements,VALUE(cycle),1))) -> 0.615 | CL12: =IF(rGender=1,(0.79-(InterpolateTable(tQoL_AgeDecrements,VALUE(cycle),1)))-0.093,0.79-(InterpolateTable(tQoL_AgeDecrements,VALUE(cycle),1))) -> 0.79
B13: 5 | D13: ='1. Strategy Calcs'!R13 -> 0.7987882564 | E13: ='1. Strategy Calcs'!AH13 -> 0.0610640865 | F13: ='1. Strategy Calcs'!AX13 -> 0.04307487968 | G13: ='1. Strategy Calcs'!BM13 -> 0.01924341521 | H13: ='1. Strategy Calcs'!BZ13 -> 0.07782936222 | I13: ='1. Strategy Calcs'!AA13 + '1. Strategy Calcs'!AQ13 + '1. Strategy Calcs'!BF13 + '1. Strategy Calcs'!BS13 -> 3712.75193 | J13: 23043.45859 | K13: ='1. Strategy Calcs'!AD13 + '1. Strategy Calcs'!AT13 + '1. Strategy Calcs'!BI13 + '1. Strategy Calcs'!BV13 + '1. Strategy Calcs'!CD13 -> 0.6071079318 | L13: 4.143054392 | M13: ='1. Strategy Calcs'!AG13 + '1. Strategy Calcs'!AW13 + '1. Strategy Calcs'!BL13 + '1. Strategy Calcs'!BY13 -> 0.7746380751 | N13: 5.268618583 | P13: 1 | R13: =0 + T12 + '1. Strategy Calcs'!AK12 -> 0.7987882564 | S13: 0.7850592492 | T13: 0.757965781 | U13: 0.0146683979 | V13: 0.007887434659 | W13: 0.004537635622 | X13: 0.01372900717 | Y13: =(R13*(cT2DBaseCase))*'Time Discounting'!C10 -> 2599.396285 | Z13: 2503.460947 | AA13: 2503.460947 | AB13: =(R13*(INDEX(vQoLT2D_1,cycle+1)))*'Time Discounting'!E10 -> 0.5443429958 | AC13: 0.5242530505 | AD13: 0.5242530505 | AE13: =(R13*(1))*'Time Discounting'!G10 -> 0.6890417668 | AF13: 0.6636114563 | AG13: 0.6636114563 | AH13: =0 + '1. Strategy Calcs'!U12 + AJ12 -> 0.0610640865 | AI13: 0.05865017601 | AJ13: 0.05295208946 | AK13: 0.004055881628 | AL13: 0.001642204928 | AM13: 0.002413910484 | AN13: =(AH13*(cFollowingMicroalbuminuriaBaseCase))*'Time Discounting'!C10 -> 374.502466 | AO13: 388.567975 | AP13: =(0)*'Time Discounting'!C10 -> 0 | AQ13: 388.567975 | AR13: =(AH13*(INDEX(vQoLMicro_1,cycle+1)))*'Time Discounting'!E10 -> 0.04161278976 | AS13: 0.04317567685 | AT13: 0.04317567685 | AU13: =(AH13*(1))*'Time Discounting'!G10 -> 0.05267441742 | AV13: 0.05465275551 | AW13: 0.05465275551 | AX13: =0 + '1. Strategy Calcs'!V12 + '1. Strategy Calcs'!AL12 + AZ12 -> 0.04307487968 | AY13: 0.04124623854 | AZ13: 0.04029757505 | BA13: 0.0009486634864 | BB13: 0.001828641143 | BC13: =(AX13*(cFollowingMacroalbuminuriaBaseCase))*'Time Discounting'!C10 -> 264.1757142 | BD13: 280.4312498 | BE13: =(0)*'Time Discounting'!C10 -> 0 | BF13: 280.4312498 | BG13: =(AX13*(INDEX(vQoLMacro_1,cycle+1)))*'Time Discounting'!E10 -> 0.02757032304 | BH13: 0.02926680892 | BI13: 0.02926680892 | BJ13: =(AX13*(1))*'Time Discounting'!G10 -> 0.0371567696 | BK13: 0.03944313871 | BL13: 0.03944313871 | BM13: =0 + '1. Strategy Calcs'!W12 + '1. Strategy Calcs'!BA12 + BN12 -> 0.01924341521 | BN13: 0.01512532436 | BO13: 0.004118090855 | BP13: =(BM13*(cFollowingRenalDiseaseBaseCase))*'Time Discounting'!C10 -> 529.7229947 | BQ13: 540.291759 | BR13: =(0)*'Time Discounting'!C10 -> 0 | BS13: 540.291759 | BT13: =(BM13*(INDEX(vQoLRenalDisease_1,cycle+1)))*'Time Discounting'!E10 -> 0.01020871649 | BU13: 0.01041239562 | BV13: 0.01041239562 | BW13: =(BM13*(1))*'Time Discounting'!G10 -> 0.016599539 | BX13: 0.01693072458 | BY13: 0.01693072458 | BZ13: =0 + '1. Strategy Calcs'!X12 + '1. Strategy Calcs'!AM12 + '1. Strategy Calcs'!BB12 + '1. Strategy Calcs'!BO12 + CA12 -> 0.07782936222 | CA13: 0.07782936222 | CB13: =(BZ13*(vQoLDeath))*'Time Discounting'!E10 -> 0 | CC13: 0 | CD13: 0 | CF13: 0.04245261173 | CG13: 0.03953077206 | CH13: =IF(rGender=0,InterpolateTable(tGeneralMortWONephropathy_2023,rAge+cycle,1),InterpolateTable(tGeneralMortWONephropathy_2023,rAge+cycle,2)) -> 0.0171872922 | CI13: =IF(rGender=1,(0.742-(InterpolateTable(tQoL_AgeDecrements,VALUE(cycle),1)))-0.093,0.742-(InterpolateTable(tQoL_AgeDecrements,VALUE(cycle),1))) -> 0.742 | CJ13: =IF(rGender=1,(0.79-(InterpolateTable(tQoL_AgeDecrements,VALUE(cycle),1)))-0.093,0.79-(InterpolateTable(tQoL_AgeDecrements,VALUE(cycle),1))) -> 0.79 | CK13: =IF(rGender=1,(0.615-(InterpolateTable(tQoL_AgeDecrements,VALUE(cycle),1)))-0.093,0.615-(InterpolateTable(tQoL_AgeDecrements,VALUE(cycle),1))) -> 0.615 | CL13: =IF(rGender=1,(0.79-(InterpolateTable(tQoL_AgeDecrements,VALUE(cycle),1)))-0.093,0.79-(InterpolateTable(tQoL_AgeDecrements,VALUE(cycle),1))) -> 0.79
B14: 6 | D14: ='1. Strategy Calcs'!R14 -> 0.7620216627 | E14: ='1. Strategy Calcs'!AH14 -> 0.06762048735 | F14: ='1. Strategy Calcs'!AX14 -> 0.04982721464 | G14: ='1. Strategy Calcs'!BM14 -> 0.02061162346 | H14: ='1. Strategy Calcs'!BZ14 -> 0.09991901187 | I14: ='1. Strategy Calcs'!AA14 + '1. Strategy Calcs'!AQ14 + '1. Strategy Calcs'!BF14 + '1. Strategy Calcs'!BS14 -> 3593.0082 | J14: 26636.46679 | K14: ='1. Strategy Calcs'!AD14 + '1. Strategy Calcs'!AT14 + '1. Strategy Calcs'!BI14 + '1. Strategy Calcs'!BV14 + '1. Strategy Calcs'!CD14 -> 0.5739703907 | L14: 4.717024782 | M14: ='1. Strategy Calcs'!AG14 + '1. Strategy Calcs'!AW14 + '1. Strategy Calcs'!BL14 + '1. Strategy Calcs'!BY14 -> 0.733041593 | N14: 6.001660176 | P14: 1 | R14: =0 + T13 + '1. Strategy Calcs'!AK13 -> 0.7620216627 | S14: 0.7476279714 | T14: 0.7215584492 | U14: 0.01426459838 | V14: 0.007566345277 | W14: 0.004238578541 | X14: 0.01439369124 | Y14: =(R14*(cT2DBaseCase))*'Time Discounting'!C11 -> 2407.525609 | Z14: 2317.239015 | AA14: 2317.239015 | AB14: =(R14*(INDEX(vQoLT2D_1,cycle+1)))*'Time Discounting'!E11 -> 0.5041631051 | AC14: 0.4852560708 | AD14: 0.4852560708 | AE14: =(R14*(1))*'Time Discounting'!G11 -> 0.6381811457 | AF14: 0.6142481909 | AG14: 0.6142481909 | AH14: =0 + '1. Strategy Calcs'!U13 + AJ13 -> 0.06762048735 | AI14: 0.06468276331 | AJ14: 0.05841681395 | AK14: 0.004454831996 | AL14: 0.001811117373 | AM14: 0.002937724041 | AN14: =(AH14*(cFollowingMicroalbuminuriaBaseCase))*'Time Discounting'!C11 -> 402.633484 | AO14: 411.3982034 | AP14: =(0)*'Time Discounting'!C11 -> 0 | AQ14: 411.3982034 | AR14: =(AH14*(INDEX(vQoLMicro_1,cycle+1)))*'Time Discounting'!E11 -> 0.04473856394 | AS14: 0.04571245453 | AT14: 0.04571245453 | AU14: =(AH14*(1))*'Time Discounting'!G11 -> 0.05663109359 | AV14: 0.05786386649 | AW14: 0.05786386649 | AX14: =0 + '1. Strategy Calcs'!V13 + '1. Strategy Calcs'!AL13 + AZ13 -> 0.04982721464 | AY14: 0.04750250654 | AZ14: 0.04640994889 | BA14: 0.00109255765 | BB14: 0.002324708099 | BC14: =(AX14*(cFollowingMacroalbuminuriaBaseCase))*'Time Discounting'!C11 -> 296.6867855 | BD14: 309.5937121 | BE14: =(0)*'Time Discounting'!C11 -> 0 | BF14: 309.5937121 | BG14: =(AX14*(INDEX(vQoLMacro_1,cycle+1)))*'Time Discounting'!E11 -> 0.0309632948 | BH14: 0.03231030785 | BI14: 0.03231030785 | BJ14: =(AX14*(1))*'Time Discounting'!G11 -> 0.04172950781 | BK14: 0.04354488929 | BL14: 0.04354488929 | BM14: =0 + '1. Strategy Calcs'!W13 + '1. Strategy Calcs'!BA13 + BN13 -> 0.02061162346 | BN14: 0.01620073604 | BO14: 0.004410887421 | BP14: =(BM14*(cFollowingRenalDiseaseBaseCase))*'Time Discounting'!C11 -> 550.8605233 | BQ14: 554.7772696 | BR14: =(0)*'Time Discounting'!C11 -> 0 | BS14: 554.7772696 | BT14: =(BM14*(INDEX(vQoLRenalDisease_1,cycle+1)))*'Time Discounting'!E11 -> 0.01061607475 | BU14: 0.0106915575 | BV14: 0.0106915575 | BW14: =(BM14*(1))*'Time Discounting'!G11 -> 0.01726191016 | BX14: 0.01738464635 | BY14: 0.01738464635 | BZ14: =0 + '1. Strategy Calcs'!X13 + '1. Strategy Calcs'!AM13 + '1. Strategy Calcs'!BB13 + '1. Strategy Calcs'!BO13 + CA13 -> 0.09991901187 | CA14: 0.09991901187 | CB14: =(BZ14*(vQoLDeath))*'Time Discounting'!E11 -> 0 | CC14: 0 | CD14: 0 | CF14: 0.04665538935 | CG14: 0.04344428968 | CH14: =IF(rGender=0,InterpolateTable(tGeneralMortWONephropathy_2023,rAge+cycle,1),InterpolateTable(tGeneralMortWONephropathy_2023,rAge+cycle,2)) -> 0.0188888216 | CI14: =IF(rGender=1,(0.742-(InterpolateTable(tQoL_AgeDecrements,VALUE(cycle),1)))-0.093,0.742-(InterpolateTable(tQoL_AgeDecrements,VALUE(cycle),1))) -> 0.742 | CJ14: =IF(rGender=1,(0.79-(InterpolateTable(tQoL_AgeDecrements,VALUE(cycle),1)))-0.093,0.79-(InterpolateTable(tQoL_AgeDecrements,VALUE(cycle),1))) -> 0.79 | CK14: =IF(rGender=1,(0.615-(InterpolateTable(tQoL_AgeDecrements,VALUE(cycle),1)))-0.093,0.615-(InterpolateTable(tQoL_AgeDecrements,VALUE(cycle),1))) -> 0.615 | CL14: =IF(rGender=1,(0.79-(InterpolateTable(tQoL_AgeDecrements,VALUE(cycle),1)))-0.093,0.79-(InterpolateTable(tQoL_AgeDecrements,VALUE(cycle),1))) -> 0.79
B15: 7 | D15: ='1. Strategy Calcs'!R15 -> 0.7260132812 | E15: ='1. Strategy Calcs'!AH15 -> 0.07268141232 | F15: ='1. Strategy Calcs'!AX15 -> 0.05578741154 | G15: ='1. Strategy Calcs'!BM15 -> 0.02153187223 | H15: ='1. Strategy Calcs'!BZ15 -> 0.1239860227 | I15: ='1. Strategy Calcs'!AA15 + '1. Strategy Calcs'!AQ15 + '1. Strategy Calcs'!BF15 + '1. Strategy Calcs'!BS15 -> 3456.050344 | J15: 30092.51714 | K15: ='1. Strategy Calcs'!AD15 + '1. Strategy Calcs'!AT15 + '1. Strategy Calcs'!BI15 + '1. Strategy Calcs'!BV15 + '1. Strategy Calcs'!CD15 -> 0.5410955028 | L15: 5.258120285 | M15: ='1. Strategy Calcs'!AG15 + '1. Strategy Calcs'!AW15 + '1. Strategy Calcs'!BL15 + '1. Strategy Calcs'!BY15 -> 0.6916404032 | N15: 6.693300579 | P15: 1 | R15: =0 + T14 + '1. Strategy Calcs'!AK14 -> 0.7260132812 | S15: 0.7109421163 | T15: 0.6858893319 | U15: 0.0138516067 | V15: 0.00724773011 | W15: 0.003953447563 | X15: 0.01507116494 | Y15: =(R15*(cT2DBaseCase))*'Time Discounting'!C12 -> 2226.952422 | Z15: 2141.841702 | AA15: 2141.841702 | AB15: =(R15*(INDEX(vQoLT2D_1,cycle+1)))*'Time Discounting'!E12 -> 0.4663490365 | AC15: 0.4485258887 | AD15: 0.4485258887 | AE15: =(R15*(1))*'Time Discounting'!G12 -> 0.5903152361 | AF15: 0.5677542895 | AG15: 0.5677542895 | AH15: =0 + '1. Strategy Calcs'!U14 + AJ14 -> 0.07268141232 | AI15: 0.06921122075 | AJ15: 0.06252802314 | AK15: 0.00474528343 | AL15: 0.001937914181 | AM15: 0.003470191575 | AN15: =(AH15*(cFollowingMicroalbuminuriaBaseCase))*'Time Discounting'!C12 -> 420.1629229 | AO15: 424.4221871 | AP15: =(0)*'Time Discounting'!C12 -> 0 | AQ15: 424.4221871 | AR15: =(AH15*(INDEX(vQoLMicro_1,cycle+1)))*'Time Discounting'!E12 -> 0.04668634512 | AS15: 0.04715961268 | AT15: 0.04715961268 | AU15: =(AH15*(1))*'Time Discounting'!G12 -> 0.05909663939 | AV15: 0.05969571225 | AW15: 0.05969571225 | AX15: =0 + '1. Strategy Calcs'!V14 + '1. Strategy Calcs'!AL14 + AZ14 -> 0.05578741154 | AY15: 0.05292695455 | AZ15: 0.0517096346 | BA15: 0.001217319955 | BB15: 0.002860456988 | BC15: =(AX15*(cFollowingMacroalbuminuriaBaseCase))*'Time Discounting'!C12 -> 322.5006387 | BD15: 332.1380062 | BE15: =(0)*'Time Discounting'!C12 -> 0 | BF15: 332.1380062 | BG15: =(AX15*(INDEX(vQoLMacro_1,cycle+1)))*'Time Discounting'!E12 -> 0.03365732091 | BH15: 0.03466311108 | BI15: 0.03466311108 | BJ15: =(AX15*(1))*'Time Discounting'!G12 -> 0.04536027076 | BK15: 0.04671578312 | BL15: 0.04671578312 | BM15: =0 + '1. Strategy Calcs'!W14 + '1. Strategy Calcs'!BA14 + BN14 -> 0.02153187223 | BN15: 0.01692405158 | BO15: 0.004607820658 | BP15: =(BM15*(cFollowingRenalDiseaseBaseCase))*'Time Discounting'!C12 -> 558.6940158 | BQ15: 557.648449 | BR15: =(0)*'Time Discounting'!C12 -> 0 | BS15: 557.648449 | BT15: =(BM15*(INDEX(vQoLRenalDisease_1,cycle+1)))*'Time Discounting'!E12 -> 0.01076704026 | BU15: 0.0107468903 | BV15: 0.0107468903 | BW15: =(BM15*(1))*'Time Discounting'!G12 -> 0.01750738254 | BX15: 0.01747461838 | BY15: 0.01747461838 | BZ15: =0 + '1. Strategy Calcs'!X14 + '1. Strategy Calcs'!AM14 + '1. Strategy Calcs'!BB14 + '1. Strategy Calcs'!BO14 + CA14 -> 0.1239860227 | CA15: 0.1239860227 | CB15: =(BZ15*(vQoLDeath))*'Time Discounting'!E12 -> 0 | CC15: 0 | CD15: 0 | CF15: 0.05127423748 | CG15: 0.04774524138 | CH15: =IF(rGender=0,InterpolateTable(tGeneralMortWONephropathy_2023,rAge+cycle,1),InterpolateTable(tGeneralMortWONephropathy_2023,rAge+cycle,2)) -> 0.0207588006 | CI15: =IF(rGender=1,(0.742-(InterpolateTable(tQoL_AgeDecrements,VALUE(cycle),1)))-0.093,0.742-(InterpolateTable(tQoL_AgeDecrements,VALUE(cycle),1))) -> 0.742 | CJ15: =IF(rGender=1,(0.79-(InterpolateTable(tQoL_AgeDecrements,VALUE(cycle),1)))-0.093,0.79-(InterpolateTable(tQoL_AgeDecrements,VALUE(cycle),1))) -> 0.79 | CK15: =IF(rGender=1,(0.615-(InterpolateTable(tQoL_AgeDecrements,VALUE(cycle),1)))-0.093,0.615-(InterpolateTable(tQoL_AgeDecrements,VALUE(cycle),1))) -> 0.615 | CL15: =IF(rGender=1,(0.79-(InterpolateTable(tQoL_AgeDecrements,VALUE(cycle),1)))-0.093,0.79-(InterpolateTable(tQoL_AgeDecrements,VALUE(cycle),1))) -> 0.79
B16: 8 | D16: ='1. Strategy Calcs'!R16 -> 0.6906346154 | E16: ='1. Strategy Calcs'!AH16 -> 0.07637962983 | F16: ='1. Strategy Calcs'!AX16 -> 0.06089527889 | G16: ='1. Strategy Calcs'!BM16 -> 0.02209481909 | H16: ='1. Strategy Calcs'!BZ16 -> 0.1499956568 | I16: ='1. Strategy Calcs'!AA16 + '1. Strategy Calcs'!AQ16 + '1. Strategy Calcs'!BF16 + '1. Strategy Calcs'!BS16 -> 3305.62024 | J16: 33398.13738 | K16: ='1. Strategy Calcs'!AD16 + '1. Strategy Calcs'!AT16 + '1. Strategy Calcs'!BI16 + '1. Strategy Calcs'!BV16 + '1. Strategy Calcs'!CD16 -> 0.5085403695 | L16: 5.766660655 | M16: ='1. Strategy Calcs'!AG16 + '1. Strategy Calcs'!AW16 + '1. Strategy Calcs'!BL16 + '1. Strategy Calcs'!BY16 -> 0.6505288473 | N16: 7.343829426 | P16: 1 | R16: =0 + T15 + '1. Strategy Calcs'!AK15 -> 0.6906346154 | S16: 0.6748785416 | T16: 0.6508399601 | U16: 0.01342707867 | V16: 0.006930433914 | W16: 0.003681068952 | X16: 0.01575607375 | Y16: =(R16*(cT2DBaseCase))*'Time Discounting'!C13 -> 2056.730982 | Z16: 1976.387273 | AA16: 1976.387273 | AB16: =(R16*(INDEX(vQoLT2D_1,cycle+1)))*'Time Discounting'!E13 -> 0.4307027409 | AC16: 0.413877859 | AD16: 0.413877859 | AE16: =(R16*(1))*'Time Discounting'!G13 -> 0.5451933429 | AF16: 0.5238960241 | AG16: 0.5238960241 | AH16: =0 + '1. Strategy Calcs'!U15 + AJ15 -> 0.07637962983 | AI16: 0.07237183899 | AJ16: 0.06540807467 | AK16: 0.004937352833 | AL16: 0.002026411492 | AM16: 0.00400779084 | AN16: =(AH16*(cFollowingMicroalbuminuriaBaseCase))*'Time Discounting'!C13 -> 428.6814513 | AO16: 429.1286393 | AP16: =(0)*'Time Discounting'!C13 -> 0 | AQ16: 429.1286393 | AR16: =(AH16*(INDEX(vQoLMicro_1,cycle+1)))*'Time Discounting'!E13 -> 0.04763288023 | AS16: 0.04768256946 | AT16: 0.04768256946 | AU16: =(AH16*(1))*'Time Discounting'!G13 -> 0.0602947851 | AV16: 0.06035768286 | AW16: 0.06035768286 | AX16: =0 + '1. Strategy Calcs'!V15 + '1. Strategy Calcs'!AL15 + AZ15 -> 0.06089527889 | AY16: 0.05746380862 | AZ16: 0.05614214102 | BA16: 0.001321667598 | BB16: 0.003431470266 | BC16: =(AX16*(cFollowingMacroalbuminuriaBaseCase))*'Time Discounting'!C13 -> 341.7753738 | BD16: 348.2511457 | BE16: =(0)*'Time Discounting'!C13 -> 0 | BF16: 348.2511457 | BG16: =(AX16*(INDEX(vQoLMacro_1,cycle+1)))*'Time Discounting'!E13 -> 0.03566890125 | BH16: 0.03634473598 | BI16: 0.03634473598 | BJ16: =(AX16*(1))*'Time Discounting'!G13 -> 0.04807129548 | BK16: 0.04898212397 | BL16: 0.04898212397 | BM16: =0 + '1. Strategy Calcs'!W15 + '1. Strategy Calcs'!BA15 + BN15 -> 0.02209481909 | BN16: 0.01736652781 | BO16: 0.004728291286 | BP16: =(BM16*(cFollowingRenalDiseaseBaseCase))*'Time Discounting'!C13 -> 556.6028822 | BQ16: 551.8531817 | BR16: =(0)*'Time Discounting'!C13 -> 0 | BS16: 551.8531817 | BT16: =(BM16*(INDEX(vQoLRenalDisease_1,cycle+1)))*'Time Discounting'!E13 -> 0.01072674035 | BU16: 0.01063520506 | BV16: 0.01063520506 | BW16: =(BM16*(1))*'Time Discounting'!G13 -> 0.01744185422 | BX16: 0.01729301636 | BY16: 0.01729301636 | BZ16: =0 + '1. Strategy Calcs'!X15 + '1. Strategy Calcs'!AM15 + '1. Strategy Calcs'!BB15 + '1. Strategy Calcs'!BO15 + CA15 -> 0.1499956568 | CA16: 0.1499956568 | CB16: =(BZ16*(vQoLDeath))*'Time Discounting'!E13 -> 0 | CC16: 0 | CD16: 0 | CF16: 0.0563503498 | CG16: 0.05247198564 | CH16: =IF(rGender=0,InterpolateTable(tGeneralMortWONephropathy_2023,rAge+cycle,1),InterpolateTable(tGeneralMortWONephropathy_2023,rAge+cycle,2)) -> 0.0228139068 | CI16: =IF(rGender=1,(0.742-(InterpolateTable(tQoL_AgeDecrements,VALUE(cycle),1)))-0.093,0.742-(InterpolateTable(tQoL_AgeDecrements,VALUE(cycle),1))) -> 0.742 | CJ16: =IF(rGender=1,(0.79-(InterpolateTable(tQoL_AgeDecrements,VALUE(cycle),1)))-0.093,0.79-(InterpolateTable(tQoL_AgeDecrements,VALUE(cycle),1))) -> 0.79 | CK16: =IF(rGender=1,(0.615-(InterpolateTable(tQoL_AgeDecrements,VALUE(cycle),1)))-0.093,0.615-(InterpolateTable(tQoL_AgeDecrements,VALUE(cycle),1))) -> 0.615 | CL16: =IF(rGender=1,(0.79-(InterpolateTable(tQoL_AgeDecrements,VALUE(cycle),1)))-0.093,0.79-(InterpolateTable(tQoL_AgeDecrements,VALUE(cycle),1))) -> 0.79
B17: 9 | D17: ='1. Strategy Calcs'!R17 -> 0.6557773129 | E17: ='1. Strategy Calcs'!AH17 -> 0.07883515334 | F17: ='1. Strategy Calcs'!AX17 -> 0.06509898643 | G17: ='1. Strategy Calcs'!BM17 -> 0.02236926436 | H17: ='1. Strategy Calcs'!BZ17 -> 0.177919283 | I17: ='1. Strategy Calcs'!AA17 + '1. Strategy Calcs'!AQ17 + '1. Strategy Calcs'!BF17 + '1. Strategy Calcs'!BS17 -> 3144.697286 | J17: 36542.83466 | K17: ='1. Strategy Calcs'!AD17 + '1. Strategy Calcs'!AT17 + '1. Strategy Calcs'!BI17 + '1. Strategy Calcs'!BV17 + '1. Strategy Calcs'!CD17 -> 0.4694310731 | L17: 6.236091728 | M17: ='1. Strategy Calcs'!AG17 + '1. Strategy Calcs'!AW17 + '1. Strategy Calcs'!BL17 + '1. Strategy Calcs'!BY17 -> 0.6097913634 | N17: 7.95362079 | P17: 1 | R17: =0 + T16 + '1. Strategy Calcs'!AK16 -> 0.6557773129 | S17: 0.6393353581 | T17: 0.6163125124 | U17: 0.01298890993 | V17: 0.006613486135 | W17: 0.003420449667 | X17: 0.01644195477 | Y17: =(R17*(cT2DBaseCase))*'Time Discounting'!C14 -> 1896.043564 | Z17: 1820.115209 | AA17: 1820.115209 | AB17: =(R17*(INDEX(vQoLT2D_1,cycle+1)))*'Time Discounting'!E14 -> 0.3970529772 | AC17: 0.3757201681 | AD17: 0.3757201681 | AE17: =(R17*(1))*'Time Discounting'!G14 -> 0.5025987053 | AF17: 0.4824717981 | AG17: 0.4824717981 | AH17: =0 + '1. Strategy Calcs'!U16 + AJ16 -> 0.07883515334 | AI17: 0.07428899232 | AJ17: 0.06716854102 | AK17: 0.005040359516 | AL17: 0.002080091785 | AM17: 0.004546161023 | AN17: =(AH17*(cFollowingMicroalbuminuriaBaseCase))*'Time Discounting'!C14 -> 429.5758273 | AO17: 426.8175634 | AP17: =(0)*'Time Discounting'!C14 -> 0 | AQ17: 426.8175634 | AR17: =(AH17*(INDEX(vQoLMicro_1,cycle+1)))*'Time Discounting'!E14 -> 0.04773225869 | AS17: 0.04672494969 | AT17: 0.04672494969 | AU17: =(AH17*(1))*'Time Discounting'!G14 -> 0.06042058062 | AV17: 0.06003262605 | AW17: 0.06003262605 | AX17: =0 + '1. Strategy Calcs'!V16 + '1. Strategy Calcs'!AL16 + AZ16 -> 0.06509898643 | AY17: 0.06106747179 | AZ17: 0.05966291993 | BA17: 0.001404551851 | BB17: 0.004031514642 | BC17: =(AX17*(cFollowingMacroalbuminuriaBaseCase))*'Time Discounting'!C14 -> 354.7269177 | BD17: 358.1776455 | BE17: =(0)*'Time Discounting'!C14 -> 0 | BF17: 358.1776455 | BG17: =(AX17*(INDEX(vQoLMacro_1,cycle+1)))*'Time Discounting'!E14 -> 0.03702057072 | BH17: 0.0367830531 | BI17: 0.0367830531 | BJ17: =(AX17*(1))*'Time Discounting'!G14 -> 0.04989295246 | BK17: 0.05037830328 | BL17: 0.05037830328 | BM17: =0 + '1. Strategy Calcs'!W16 + '1. Strategy Calcs'!BA16 + BN16 -> 0.02236926436 | BN17: 0.01758224179 | BO17: 0.004787022573 | BP17: =(BM17*(cFollowingRenalDiseaseBaseCase))*'Time Discounting'!C14 -> 547.1034811 | BQ17: 539.5868684 | BR17: =(0)*'Time Discounting'!C14 -> 0 | BS17: 539.5868684 | BT17: =(BM17*(INDEX(vQoLRenalDisease_1,cycle+1)))*'Time Discounting'!E14 -> 0.01054366977 | BU17: 0.01020290226 | BV17: 0.01020290226 | BW17: =(BM17*(1))*'Time Discounting'!G14 -> 0.01714417849 | BX17: 0.01690863594 | BY17: 0.01690863594 | BZ17: =0 + '1. Strategy Calcs'!X16 + '1. Strategy Calcs'!AM16 + '1. Strategy Calcs'!BB16 + '1. Strategy Calcs'!BO16 + CA16 -> 0.177919283 | CA17: 0.177919283 | CB17: =(BZ17*(vQoLDeath))*'Time Discounting'!E14 -> 0 | CC17: 0 | CD17: 0 | CF17: 0.0619289925 | CG17: 0.05766667318 | CH17: =IF(rGender=0,InterpolateTable(tGeneralMortWONephropathy_2023,rAge+cycle,1),InterpolateTable(tGeneralMortWONephropathy_2023,rAge+cycle,2)) -> 0.0250724666 | CI17: =IF(rGender=1,(0.742-(InterpolateTable(tQoL_AgeDecrements,VALUE(cycle),1)))-0.093,0.742-(InterpolateTable(tQoL_AgeDecrements,VALUE(cycle),1))) -> 0.742 | CJ17: =IF(rGender=1,(0.79-(InterpolateTable(tQoL_AgeDecrements,VALUE(cycle),1)))-0.093,0.79-(InterpolateTable(tQoL_AgeDecrements,VALUE(cycle),1))) -> 0.79 | CK17: =IF(rGender=1,(0.615-(InterpolateTable(tQoL_AgeDecrements,VALUE(cycle),1)))-0.093,0.615-(InterpolateTable(tQoL_AgeDecrements,VALUE(cycle),1))) -> 0.615 | CL17: =IF(rGender=1,(0.79-(InterpolateTable(tQoL_AgeDecrements,VALUE(cycle),1)))-0.093,0.79-(InterpolateTable(tQoL_AgeDecrements,VALUE(cycle),1))) -> 0.79
B18: 10 | D18: ='1. Strategy Calcs'!R18 -> 0.6213528719 | E18: ='1. Strategy Calcs'!AH18 -> 0.08015745095 | F18: ='1. Strategy Calcs'!AX18 -> 0.06835649785 | G18: ='1. Strategy Calcs'!BM18 -> 0.0224072433 | H18: ='1. Strategy Calcs'!BZ18 -> 0.207725936 | I18: ='1. Strategy Calcs'!AA18 + '1. Strategy Calcs'!AQ18 + '1. Strategy Calcs'!BF18 + '1. Strategy Calcs'!BS18 -> 2975.707948 | J18: 39518.54261 | K18: ='1. Strategy Calcs'!AD18 + '1. Strategy Calcs'!AT18 + '1. Strategy Calcs'!BI18 + '1. Strategy Calcs'!BV18 + '1. Strategy Calcs'!CD18 -> 0.4312180774 | L18: 6.667309805 | M18: ='1. Strategy Calcs'!AG18 + '1. Strategy Calcs'!AW18 + '1. Strategy Calcs'!BL18 + '1. Strategy Calcs'!BY18 -> 0.5695091426 | N18: 8.523129932 | P18: 1 | R18: =0 + T17 + '1. Strategy Calcs'!AK17 -> 0.6213528719 | S18: 0.6042317284 | T18: 0.5822295924 | U18: 0.01253526726 | V18: 0.00629610622 | W18: 0.003170762532 | X18: 0.01712114351 | Y18: =(R18*(cT2DBaseCase))*'Time Discounting'!C15 -> 1744.186854 | Z18: 1672.373488 | AA18: 1672.373488 | AB18: =(R18*(INDEX(vQoLT2D_1,cycle+1)))*'Time Discounting'!E15 -> 0.3543873589 | AC18: 0.3397961761 | AD18: 0.3397961761 | AE18: =(R18*(1))*'Time Discounting'!G15 -> 0.462344891 | AF18: 0.443308775 | AG18: 0.443308775 | AH18: =0 + '1. Strategy Calcs'!U17 + AJ17 -> 0.08015745095 | AI18: 0.07507742195 | AJ18: 0.06791226144 | AK18: 0.005062992695 | AL18: 0.002102167815 | AM18: 0.005080029001 | AN18: =(AH18*(cFollowingMicroalbuminuriaBaseCase))*'Time Discounting'!C15 -> 424.0592995 | AO18: 418.6286334 | AP18: =(0)*'Time Discounting'!C15 -> 0 | AQ18: 418.6286334 | AR18: =(AH18*(INDEX(vQoLMicro_1,cycle+1)))*'Time Discounting'!E15 -> 0.04571764069 | AS18: 0.04513216304 | AT18: 0.04513216304 | AU18: =(AH18*(1))*'Time Discounting'!G15 -> 0.05964467149 | AV18: 0.05888083893 | AW18: 0.05888083893 | AX18: =0 + '1. Strategy Calcs'!V17 + '1. Strategy Calcs'!AL17 + AZ17 -> 0.06835649785 | AY18: 0.06370416033 | AZ18: 0.06223896464 | BA18: 0.001465195688 | BB18: 0.004652337525 | BC18: =(AX18*(cFollowingMacroalbuminuriaBaseCase))*'Time Discounting'!C15 -> 361.6283734 | BD18: 362.219159 | BE18: =(0)*'Time Discounting'!C15 -> 0 | BF18: 362.219159 | BG18: =(AX18*(INDEX(vQoLMacro_1,cycle+1)))*'Time Discounting'!E15 -> 0.03654553547 | BH18: 0.03660523924 | BI18: 0.03660523924 | BJ18: =(AX18*(1))*'Time Discounting'!G15 -> 0.0508636541 | BK18: 0.05094674912 | BL18: 0.05094674912 | BM18: =0 + '1. Strategy Calcs'!W17 + '1. Strategy Calcs'!BA17 + BN17 -> 0.0224072433 | BN18: 0.01761209324 | BO18: 0.004795150067 | BP18: =(BM18*(cFollowingRenalDiseaseBaseCase))*'Time Discounting'!C15 -> 532.0702557 | BQ18: 522.4866679 | BR18: =(0)*'Time Discounting'!C15 -> 0 | BS18: 522.4866679 | BT18: =(BM18*(INDEX(vQoLRenalDisease_1,cycle+1)))*'Time Discounting'!E15 -> 0.009862134741 | BU18: 0.009684499112 | BV18: 0.009684499112 | BW18: =(BM18*(1))*'Time Discounting'!G15 -> 0.01667309339 | BX18: 0.01637277956 | BY18: 0.01637277956 | BZ18: =0 + '1. Strategy Calcs'!X17 + '1. Strategy Calcs'!AM17 + '1. Strategy Calcs'!BB17 + '1. Strategy Calcs'!BO17 + CA17 -> 0.207725936 | CA18: 0.207725936 | CB18: =(BZ18*(vQoLDeath))*'Time Discounting'!E15 -> 0 | CC18: 0 | CD18: 0 | CF18: 0.06805991634 | CG18: 0.0633756306 | CH18: =IF(rGender=0,InterpolateTable(tGeneralMortWONephropathy_2023,rAge+cycle,1),InterpolateTable(tGeneralMortWONephropathy_2023,rAge+cycle,2)) -> 0.027554622 | CI18: =IF(rGender=1,(0.742-(InterpolateTable(tQoL_AgeDecrements,VALUE(cycle),1)))-0.093,0.742-(InterpolateTable(tQoL_AgeDecrements,VALUE(cycle),1))) -> 0.7185 | CJ18: =IF(rGender=1,(0.79-(InterpolateTable(tQoL_AgeDecrements,VALUE(cycle),1)))-0.093,0.79-(InterpolateTable(tQoL_AgeDecrements,VALUE(cycle),1))) -> 0.7665 | CK18: =IF(rGender=1,(0.615-(InterpolateTable(tQoL_AgeDecrements,VALUE(cycle),1)))-0.093,0.615-(InterpolateTable(tQoL_AgeDecrements,VALUE(cycle),1))) -> 0.5915 | CL18: =IF(rGender=1,(0.79-(InterpolateTable(tQoL_AgeDecrements,VALUE(cycle),1)))-0.093,0.79-(InterpolateTable(tQoL_AgeDecrements,VALUE(cycle),1))) -> 0.7665
B19: 11 | D19: ='1. Strategy Calcs'!R19 -> 0.5872925851 | E19: ='1. Strategy Calcs'!AH19 -> 0.0804475287 | F19: ='1. Strategy Calcs'!AX19 -> 0.07063723868 | G19: ='1. Strategy Calcs'!BM19 -> 0.02224805146 | H19: ='1. Strategy Calcs'!BZ19 -> 0.2393745961 | I19: ='1. Strategy Calcs'!AA19 + '1. Strategy Calcs'!AQ19 + '1. Strategy Calcs'!BF19 + '1. Strategy Calcs'!BS19 -> 2800.686143 | J19: 42319.22875 | K19: ='1. Strategy Calcs'!AD19 + '1. Strategy Calcs'!AT19 + '1. Strategy Calcs'!BI19 + '1. Strategy Calcs'!BV19 + '1. Strategy Calcs'!CD19 -> 0.4008779645 | L19: 7.06818777 | M19: ='1. Strategy Calcs'!AG19 + '1. Strategy Calcs'!AW19 + '1. Strategy Calcs'!BL19 + '1. Strategy Calcs'!BY19 -> 0.5297652454 | N19: 9.052895178 | P19: 1 | R19: =0 + T18 + '1. Strategy Calcs'!AK18 -> 0.5872925851 | S19: 0.5695078921 | T19: 0.5485342206 | U19: 0.01206462666 | V19: 0.005977711359 | W19: 0.002931333427 | X19: 0.01778469299 | Y19: =(R19*(cT2DBaseCase))*'Time Discounting'!C16 -> 1600.560121 | Z19: 1532.607479 | AA19: 1532.607479 | AB19: =(R19*(INDEX(vQoLT2D_1,cycle+1)))*'Time Discounting'!E16 -> 0.3252049932 | AC19: 0.3113982401 | AD19: 0.3113982401 | AE19: =(R19*(1))*'Time Discounting'!G16 -> 0.424272659 | AF19: 0.4062599349 | AG19: 0.4062599349 | AH19: =0 + '1. Strategy Calcs'!U18 + AJ18 -> 0.0804475287 | AI19: 0.07484437677 | AJ19: 0.06773526744 | AK19: 0.005013466783 | AL19: 0.00209564255 | AM19: 0.005603151927 | AN19: =(AH19*(cFollowingMicroalbuminuriaBaseCase))*'Time Discounting'!C16 -> 413.1979673 | AO19: 405.56576 | AP19: =(0)*'Time Discounting'!C16 -> 0 | AQ19: 405.56576 | AR19: =(AH19*(INDEX(vQoLMicro_1,cycle+1)))*'Time Discounting'!E16 -> 0.04454668539 | AS19: 0.04372386059 | AT19: 0.04372386059 | AU19: =(AH19*(1))*'Time Discounting'!G16 -> 0.05811700638 | AV19: 0.05704352327 | AW19: 0.05704352327 | AX19: =0 + '1. Strategy Calcs'!V18 + '1. Strategy Calcs'!AL18 + AZ18 -> 0.07063723868 | AY19: 0.06535372882 | AZ19: 0.06385059306 | BA19: 0.001503135763 | BB19: 0.005283509855 | BC19: =(AX19*(cFollowingMacroalbuminuriaBaseCase))*'Time Discounting'!C16 -> 362.8099447 | BD19: 360.7344819 | BE19: =(0)*'Time Discounting'!C16 -> 0 | BF19: 360.7344819 | BG19: =(AX19*(INDEX(vQoLMacro_1,cycle+1)))*'Time Discounting'!E16 -> 0.03666494301 | BH19: 0.03645520035 | BI19: 0.03645520035 | BJ19: =(AX19*(1))*'Time Discounting'!G16 -> 0.05102984414 | BK19: 0.05073792672 | BL19: 0.05073792672 | BM19: =0 + '1. Strategy Calcs'!W18 + '1. Strategy Calcs'!BA18 + BN18 -> 0.02224805146 | BN19: 0.01748696844 | BO19: 0.004761083012 | BP19: =(BM19*(cFollowingRenalDiseaseBaseCase))*'Time Discounting'!C16 -> 512.90308 | BQ19: 501.7784217 | BR19: =(0)*'Time Discounting'!C16 -> 0 | BS19: 501.7784217 | BT19: =(BM19*(INDEX(vQoLRenalDisease_1,cycle+1)))*'Time Discounting'!E16 -> 0.009506863482 | BU19: 0.009300663497 | BV19: 0.009300663497 | BW19: =(BM19*(1))*'Time Discounting'!G16 -> 0.01607246573 | BX19: 0.01572386052 | BY19: 0.01572386052 | BZ19: =0 + '1. Strategy Calcs'!X18 + '1. Strategy Calcs'!AM18 + '1. Strategy Calcs'!BB18 + '1. Strategy Calcs'!BO18 + CA18 -> 0.2393745961 | CA19: 0.2393745961 | CB19: =(BZ19*(vQoLDeath))*'Time Discounting'!E16 -> 0 | CC19: 0 | CD19: 0 | CF19: 0.07479779723 | CG19: 0.0696497707 | CH19: =IF(rGender=0,InterpolateTable(tGeneralMortWONephropathy_2023,rAge+cycle,1),InterpolateTable(tGeneralMortWONephropathy_2023,rAge+cycle,2)) -> 0.030282509 | CI19: =IF(rGender=1,(0.742-(InterpolateTable(tQoL_AgeDecrements,VALUE(cycle),1)))-0.093,0.742-(InterpolateTable(tQoL_AgeDecrements,VALUE(cycle),1))) -> 0.7185 | CJ19: =IF(rGender=1,(0.79-(InterpolateTable(tQoL_AgeDecrements,VALUE(cycle),1)))-0.093,0.79-(InterpolateTable(tQoL_AgeDecrements,VALUE(cycle),1))) -> 0.7665 | CK19: =IF(rGender=1,(0.615-(InterpolateTable(tQoL_AgeDecrements,VALUE(cycle),1)))-0.093,0.615-(InterpolateTable(tQoL_AgeDecrements,VALUE(cycle),1))) -> 0.5915 | CL19: =IF(rGender=1,(0.79-(InterpolateTable(tQoL_AgeDecrements,VALUE(cycle),1)))-0.093,0.79-(InterpolateTable(tQoL_AgeDecrements,VALUE(cycle),1))) -> 0.7665
B20: 12 | D20: ='1. Strategy Calcs'!R20 -> 0.5535476874 | E20: ='1. Strategy Calcs'!AH20 -> 0.0797998941 | F20: ='1. Strategy Calcs'!AX20 -> 0.07192394697 | G20: ='1. Strategy Calcs'!BM20 -> 0.02192143763 | H20: ='1. Strategy Calcs'!BZ20 -> 0.2728070339 | I20: ='1. Strategy Calcs'!AA20 + '1. Strategy Calcs'!AQ20 + '1. Strategy Calcs'!BF20 + '1. Strategy Calcs'!BS20 -> 2621.39553 | J20: 44940.62428 | K20: ='1. Strategy Calcs'!AD20 + '1. Strategy Calcs'!AT20 + '1. Strategy Calcs'!BI20 + '1. Strategy Calcs'!BV20 + '1. Strategy Calcs'!CD20 -> 0.3710677378 | L20: 7.439255508 | M20: ='1. Strategy Calcs'!AG20 + '1. Strategy Calcs'!AW20 + '1. Strategy Calcs'!BL20 + '1. Strategy Calcs'!BY20 -> 0.490648451 | N20: 9.543543629 | P20: 1 | R20: =0 + T19 + '1. Strategy Calcs'!AK19 -> 0.5535476874 | S20: 0.5351253684 | T20: 0.5151899942 | U20: 0.01157581791 | V20: 0.005657926291 | W20: 0.002701630034 | X20: 0.01842231901 | Y20: =(R20*(cT2DBaseCase))*'Time Discounting'!C17 -> 1464.654837 | Z20: 1400.350159 | AA20: 1400.350159 | AB20: =(R20*(INDEX(vQoLT2D_1,cycle+1)))*'Time Discounting'!E17 -> 0.297591487 | AC20: 0.2845259344 | AD20: 0.2845259344 | AE20: =(R20*(1))*'Time Discounting'!G17 -> 0.3882472107 | AF20: 0.3712014799 | AG20: 0.3712014799 | AH20: =0 + '1. Strategy Calcs'!U19 + AJ19 -> 0.0797998941 | AI20: 0.07369160746 | AJ20: 0.0667285791 | AK20: 0.004899663353 | AL20: 0.002063365009 | AM20: 0.006108286642 | AN20: =(AH20*(cFollowingMicroalbuminuriaBaseCase))*'Time Discounting'!C17 -> 397.9335528 | AO20: 388.5182537 | AP20: =(0)*'Time Discounting'!C17 -> 0 | AQ20: 388.5182537 | AR20: =(AH20*(INDEX(vQoLMicro_1,cycle+1)))*'Time Discounting'!E17 -> 0.04290103579 | AS20: 0.04188597666 | AT20: 0.04188597666 | AU20: =(AH20*(1))*'Time Discounting'!G17 -> 0.05597004017 | AV20: 0.05464576212 | AW20: 0.05464576212 | AX20: =0 + '1. Strategy Calcs'!V19 + '1. Strategy Calcs'!AL19 + AZ19 -> 0.07192394697 | AY20: 0.06601160258 | AZ20: 0.06449333572 | BA20: 0.001518266859 | BB20: 0.005912344386 | BC20: =(AX20*(cFollowingMacroalbuminuriaBaseCase))*'Time Discounting'!C17 -> 358.6590191 | BD20: 354.1394788 | BE20: =(0)*'Time Discounting'!C17 -> 0 | BF20: 354.1394788 | BG20: =(AX20*(INDEX(vQoLMacro_1,cycle+1)))*'Time Discounting'!E17 -> 0.03624545769 | BH20: 0.03578872079 | BI20: 0.03578872079 | BJ20: =(AX20*(1))*'Time Discounting'!G17 -> 0.05044600931 | BK20: 0.04981032817 | BL20: 0.04981032817 | BM20: =0 + '1. Strategy Calcs'!W19 + '1. Strategy Calcs'!BA19 + BN19 -> 0.02192143763 | BN20: 0.01723024998 | BO20: 0.004691187654 | BP20: =(BM20*(cFollowingRenalDiseaseBaseCase))*'Time Discounting'!C17 -> 490.6537634 | BQ20: 478.3876382 | BR20: =(0)*'Time Discounting'!C17 -> 0 | BS20: 478.3876382 | BT20: =(BM20*(INDEX(vQoLRenalDisease_1,cycle+1)))*'Time Discounting'!E17 -> 0.009094463511 | BU20: 0.008867105981 | BV20: 0.008867105981 | BW20: =(BM20*(1))*'Time Discounting'!G17 -> 0.0153752553 | BX20: 0.01499088078 | BY20: 0.01499088078 | BZ20: =0 + '1. Strategy Calcs'!X19 + '1. Strategy Calcs'!AM19 + '1. Strategy Calcs'!BB19 + '1. Strategy Calcs'!BO19 + CA19 -> 0.2728070339 | CA20: 0.2728070339 | CB20: =(BZ20*(vQoLDeath))*'Time Discounting'!E17 -> 0 | CC20: 0 | CD20: 0 | CF20: 0.08220272434 | CG20: 0.07654504696 | CH20: =IF(rGender=0,InterpolateTable(tGeneralMortWONephropathy_2023,rAge+cycle,1),InterpolateTable(tGeneralMortWONephropathy_2023,rAge+cycle,2)) -> 0.0332804552 | CI20: =IF(rGender=1,(0.742-(InterpolateTable(tQoL_AgeDecrements,VALUE(cycle),1)))-0.093,0.742-(InterpolateTable(tQoL_AgeDecrements,VALUE(cycle),1))) -> 0.7185 | CJ20: =IF(rGender=1,(0.79-(InterpolateTable(tQoL_AgeDecrements,VALUE(cycle),1)))-0.093,0.79-(InterpolateTable(tQoL_AgeDecrements,VALUE(cycle),1))) -> 0.7665 | CK20: =IF(rGender=1,(0.615-(InterpolateTable(tQoL_AgeDecrements,VALUE(cycle),1)))-0.093,0.615-(InterpolateTable(tQoL_AgeDecrements,VALUE(cycle),1))) -> 0.5915 | CL20: =IF(rGender=1,(0.79-(InterpolateTable(tQoL_AgeDecrements,VALUE(cycle),1)))-0.093,0.79-(InterpolateTable(tQoL_AgeDecrements,VALUE(cycle),1))) -> 0.7665
B21: 13 | D21: ='1. Strategy Calcs'!R21 -> 0.5200896575 | E21: ='1. Strategy Calcs'!AH21 -> 0.07830439701 | F21: ='1. Strategy Calcs'!AX21 -> 0.07221462702 | G21: ='1. Strategy Calcs'!BM21 -> 0.02145014687 | H21: ='1. Strategy Calcs'!BZ21 -> 0.3079411716 | I21: ='1. Strategy Calcs'!AA21 + '1. Strategy Calcs'!AQ21 + '1. Strategy Calcs'!BF21 + '1. Strategy Calcs'!BS21 -> 2439.421837 | J21: 47380.04612 | K21: ='1. Strategy Calcs'!AD21 + '1. Strategy Calcs'!AT21 + '1. Strategy Calcs'!BI21 + '1. Strategy Calcs'!BV21 + '1. Strategy Calcs'!CD21 -> 0.341854865 | L21: 7.781110373 | M21: ='1. Strategy Calcs'!AG21 + '1. Strategy Calcs'!AW21 + '1. Strategy Calcs'!BL21 + '1. Strategy Calcs'!BY21 -> 0.4522560109 | N21: 9.99579964 | P21: 1 | R21: =0 + T20 + '1. Strategy Calcs'!AK20 -> 0.5200896575 | S21: 0.5010672767 | T21: 0.4821813555 | U21: 0.01106807484 | V21: 0.005336594626 | W21: 0.002481251731 | X21: 0.01902238085 | Y21: =(R21*(cT2DBaseCase))*'Time Discounting'!C18 -> 1336.045481 | Z21: 1275.213349 | AA21: 1275.213349 | AB21: =(R21*(INDEX(vQoLT2D_1,cycle+1)))*'Time Discounting'!E18 -> 0.2714603818 | AC21: 0.259100388 | AD21: 0.259100388 | AE21: =(R21*(1))*'Time Discounting'!G18 -> 0.3541557492 | AF21: 0.3380305128 | AG21: 0.3380305128 | AH21: =0 + '1. Strategy Calcs'!U20 + AJ20 -> 0.07830439701 | AI21: 0.07171720018 | AJ21: 0.06497986065 | AK21: 0.00472925792 | AL21: 0.002008081605 | AM21: 0.006587196829 | AN21: =(AH21*(cFollowingMicroalbuminuriaBaseCase))*'Time Discounting'!C18 -> 379.1029546 | AO21: 368.2789144 | AP21: =(0)*'Time Discounting'!C18 -> 0 | AQ21: 368.2789144 | AR21: =(AH21*(INDEX(vQoLMicro_1,cycle+1)))*'Time Discounting'!E18 -> 0.04087091754 | AS21: 0.03970398268 | AT21: 0.03970398268 | AU21: =(AH21*(1))*'Time Discounting'!G18 -> 0.05332148407 | AV21: 0.05179906416 | AW21: 0.05179906416 | AX21: =0 + '1. Strategy Calcs'!V20 + '1. Strategy Calcs'!AL20 + AZ20 -> 0.07221462702 | AY21: 0.06569070471 | AZ21: 0.0641798185 | BA21: 0.001510886208 | BB21: 0.006523922312 | BC21: =(AX21*(cFollowingMacroalbuminuriaBaseCase))*'Time Discounting'!C18 -> 349.6199385 | BD21: 342.9064409 | BE21: =(0)*'Time Discounting'!C18 -> 0 | BF21: 342.9064409 | BG21: =(AX21*(INDEX(vQoLMacro_1,cycle+1)))*'Time Discounting'!E18 -> 0.0353319839 | BH21: 0.03465352949 | BI21: 0.03465352949 | BJ21: =(AX21*(1))*'Time Discounting'!G18 -> 0.04917464704 | BK21: 0.04823038203 | BL21: 0.04823038203 | BM21: =0 + '1. Strategy Calcs'!W20 + '1. Strategy Calcs'!BA20 + BN20 -> 0.02145014687 | BN21: 0.01685981544 | BO21: 0.004590331431 | BP21: =(BM21*(cFollowingRenalDiseaseBaseCase))*'Time Discounting'!C18 -> 466.1215131 | BQ21: 453.0231326 | BR21: =(0)*'Time Discounting'!C18 -> 0 | BS21: 453.0231326 | BT21: =(BM21*(INDEX(vQoLRenalDisease_1,cycle+1)))*'Time Discounting'!E18 -> 0.008639748451 | BU21: 0.008396964735 | BV21: 0.008396964735 | BW21: =(BM21*(1))*'Time Discounting'!G18 -> 0.01460650626 | BX21: 0.01419605196 | BY21: 0.01419605196 | BZ21: =0 + '1. Strategy Calcs'!X20 + '1. Strategy Calcs'!AM20 + '1. Strategy Calcs'!BB20 + '1. Strategy Calcs'!BO20 + CA20 -> 0.3079411716 | CA21: 0.3079411716 | CB21: =(BZ21*(vQoLDeath))*'Time Discounting'!E18 -> 0 | CC21: 0 | CD21: 0 | CF21: 0.09034073264 | CG21: 0.08412294942 | CH21: =IF(rGender=0,InterpolateTable(tGeneralMortWONephropathy_2023,rAge+cycle,1),InterpolateTable(tGeneralMortWONephropathy_2023,rAge+cycle,2)) -> 0.0365751954 | CI21: =IF(rGender=1,(0.742-(InterpolateTable(tQoL_AgeDecrements,VALUE(cycle),1)))-0.093,0.742-(InterpolateTable(tQoL_AgeDecrements,VALUE(cycle),1))) -> 0.7185 | CJ21: =IF(rGender=1,(0.79-(InterpolateTable(tQoL_AgeDecrements,VALUE(cycle),1)))-0.093,0.79-(InterpolateTable(tQoL_AgeDecrements,VALUE(cycle),1))) -> 0.7665 | CK21: =IF(rGender=1,(0.615-(InterpolateTable(tQoL_AgeDecrements,VALUE(cycle),1)))-0.093,0.615-(InterpolateTable(tQoL_AgeDecrements,VALUE(cycle),1))) -> 0.5915 | CL21: =IF(rGender=1,(0.79-(InterpolateTable(tQoL_AgeDecrements,VALUE(cycle),1)))-0.093,0.79-(InterpolateTable(tQoL_AgeDecrements,VALUE(cycle),1))) -> 0.7665
B22: 14 | D22: ='1. Strategy Calcs'!R22 -> 0.4869106134 | E22: ='1. Strategy Calcs'!AH22 -> 0.07604793549 | F22: ='1. Strategy Calcs'!AX22 -> 0.07152449473 | G22: ='1. Strategy Calcs'!BM22 -> 0.02085195338 | H22: ='1. Strategy Calcs'!BZ22 -> 0.344665003 | I22: ='1. Strategy Calcs'!AA22 + '1. Strategy Calcs'!AQ22 + '1. Strategy Calcs'!BF22 + '1. Strategy Calcs'!BS22 -> 2256.241164 | J22: 49636.28728 | K22: ='1. Strategy Calcs'!AD22 + '1. Strategy Calcs'!AT22 + '1. Strategy Calcs'!BI22 + '1. Strategy Calcs'!BV22 + '1. Strategy Calcs'!CD22 -> 0.3133151227 | L22: 8.094425495 | M22: ='1. Strategy Calcs'!AG22 + '1. Strategy Calcs'!AW22 + '1. Strategy Calcs'!BL22 + '1. Strategy Calcs'!BY22 -> 0.4146953974 | N22: 10.41049504 | P22: 1 | R22: =0 + T21 + '1. Strategy Calcs'!AK21 -> 0.4869106134 | S22: 0.4673386998 | T22: 0.4495138982 | U22: 0.01054109044 | V22: 0.005013790958 | W22: 0.002269920138 | X22: 0.01957191365 | Y22: =(R22*(cT2DBaseCase))*'Time Discounting'!C19 -> 1214.381217 | Z22: 1156.879713 | AA22: 1156.879713 | AB22: =(R22*(INDEX(vQoLT2D_1,cycle+1)))*'Time Discounting'!E19 -> 0.2467403943 | AC22: 0.2350571243 | AD22: 0.2350571243 | AE22: =(R22*(1))*'Time Discounting'!G19 -> 0.3219052764 | AF22: 0.3066629149 | AG22: 0.3066629149 | AH22: =0 + '1. Strategy Calcs'!U21 + AJ21 -> 0.07604793549 | AI22: 0.06901722339 | AJ22: 0.06257491256 | AK22: 0.004509828581 | AL22: 0.001932482255 | AM22: 0.0070307121 | AN22: =(AH22*(cFollowingMicroalbuminuriaBaseCase))*'Time Discounting'!C19 -> 357.4548742 | AO22: 345.5593066 | AP22: =(0)*'Time Discounting'!C19 -> 0 | AQ22: 345.5593066 | AR22: =(AH22*(INDEX(vQoLMicro_1,cycle+1)))*'Time Discounting'!E19 -> 0.03853704782 | AS22: 0.03725459207 | AT22: 0.03725459207 | AU22: =(AH22*(1))*'Time Discounting'!G19 -> 0.05027664425 | AV22: 0.04860351216 | AW22: 0.04860351216 | AX22: =0 + '1. Strategy Calcs'!V21 + '1. Strategy Calcs'!AL21 + AZ21 -> 0.07152449473 | AY22: 0.06442322839 | AZ22: 0.06294149414 | BA22: 0.001481734253 | BB22: 0.00710126634 | BC22: =(AX22*(cFollowingMacroalbuminuriaBaseCase))*'Time Discounting'!C19 -> 336.1929433 | BD22: 327.5623397 | BE22: =(0)*'Time Discounting'!C19 -> 0 | BF22: 327.5623397 | BG22: =(AX22*(INDEX(vQoLMacro_1,cycle+1)))*'Time Discounting'!E19 -> 0.03397507508 | BH22: 0.03310288126 | BI22: 0.03310288126 | BJ22: =(AX22*(1))*'Time Discounting'!G19 -> 0.04728611702 | BK22: 0.04607220774 | BL22: 0.04607220774 | BM22: =0 + '1. Strategy Calcs'!W21 + '1. Strategy Calcs'!BA21 + BN21 -> 0.02085195338 | BN22: 0.01638963536 | BO22: 0.004462318024 | BP22: =(BM22*(cFollowingRenalDiseaseBaseCase))*'Time Discounting'!C19 -> 439.924752 | BQ22: 426.2398048 | BR22: =(0)*'Time Discounting'!C19 -> 0 | BS22: 426.2398048 | BT22: =(BM22*(INDEX(vQoLRenalDisease_1,cycle+1)))*'Time Discounting'!E19 -> 0.00815418102 | BU22: 0.007900525057 | BV22: 0.007900525057 | BW22: =(BM22*(1))*'Time Discounting'!G19 -> 0.01378559767 | BX22: 0.01335676256 | BY22: 0.01335676256 | BZ22: =0 + '1. Strategy Calcs'!X21 + '1. Strategy Calcs'!AM21 + '1. Strategy Calcs'!BB21 + '1. Strategy Calcs'!BO21 + CA21 -> 0.344665003 | CA22: 0.344665003 | CB22: =(BZ22*(vQoLDeath))*'Time Discounting'!E19 -> 0 | CC22: 0 | CD22: 0 | CF22: 0.09928439713 | CG22: 0.09245105806 | CH22: =IF(rGender=0,InterpolateTable(tGeneralMortWONephropathy_2023,rAge+cycle,1),InterpolateTable(tGeneralMortWONephropathy_2023,rAge+cycle,2)) -> 0.0401961122 | CI22: =IF(rGender=1,(0.742-(InterpolateTable(tQoL_AgeDecrements,VALUE(cycle),1)))-0.093,0.742-(InterpolateTable(tQoL_AgeDecrements,VALUE(cycle),1))) -> 0.7185 | CJ22: =IF(rGender=1,(0.79-(InterpolateTable(tQoL_AgeDecrements,VALUE(cycle),1)))-0.093,0.79-(InterpolateTable(tQoL_AgeDecrements,VALUE(cycle),1))) -> 0.7665 | CK22: =IF(rGender=1,(0.615-(InterpolateTable(tQoL_AgeDecrements,VALUE(cycle),1)))-0.093,0.615-(InterpolateTable(tQoL_AgeDecrements,VALUE(cycle),1))) -> 0.5915 | CL22: =IF(rGender=1,(0.79-(InterpolateTable(tQoL_AgeDecrements,VALUE(cycle),1)))-0.093,0.79-(InterpolateTable(tQoL_AgeDecrements,VALUE(cycle),1))) -> 0.7665
B23: 15 | D23: ='1. Strategy Calcs'!R23 -> 0.4540237268 | E23: ='1. Strategy Calcs'!AH23 -> 0.073116003 | F23: ='1. Strategy Calcs'!AX23 -> 0.06988776735 | G23: ='1. Strategy Calcs'!BM23 -> 0.02014128975 | H23: ='1. Strategy Calcs'!BZ23 -> 0.3828312131 | I23: ='1. Strategy Calcs'!AA23 + '1. Strategy Calcs'!AQ23 + '1. Strategy Calcs'!BF23 + '1. Strategy Calcs'!BS23 -> 2073.268512 | J23: 51709.5558 | K23: ='1. Strategy Calcs'!AD23 + '1. Strategy Calcs'!AT23 + '1. Strategy Calcs'!BI23 + '1. Strategy Calcs'!BV23 + '1. Strategy Calcs'!CD23 -> 0.2855329592 | L23: 8.379958454 | M23: ='1. Strategy Calcs'!AG23 + '1. Strategy Calcs'!AW23 + '1. Strategy Calcs'!BL23 + '1. Strategy Calcs'!BY23 -> 0.3780850807 | N23: 10.78858012 | P23: 1 | R23: =0 + T22 + '1. Strategy Calcs'!AK22 -> 0.4540237268 | S23: 0.4339670026 | T23: 0.417214625 | U23: 0.009995074892 | V23: 0.004689832839 | W23: 0.002067469873 | X23: 0.02005672423 | Y23: =(R23*(cT2DBaseCase))*'Time Discounting'!C20 -> 1099.378209 | Z23: 1045.095256 | AA23: 1045.095256 | AB23: =(R23*(INDEX(vQoLT2D_1,cycle+1)))*'Time Discounting'!E20 -> 0.2233738542 | AC23: 0.2123445355 | AD23: 0.2123445355 | AE23: =(R23*(1))*'Time Discounting'!G20 -> 0.2914205534 | AF23: 0.2770313575 | AG23: 0.2770313575 | AH23: =0 + '1. Strategy Calcs'!U22 + AJ22 -> 0.073116003 | AI23: 0.06568715056 | AJ23: 0.05959896739 | AK23: 0.004248942956 | AL23: 0.001839240216 | AM23: 0.007428852442 | AN23: =(AH23*(cFollowingMicroalbuminuriaBaseCase))*'Time Discounting'!C20 -> 333.663739 | AO23: 321.0024162 | AP23: =(0)*'Time Discounting'!C20 -> 0 | AQ23: 321.0024162 | AR23: =(AH23*(INDEX(vQoLMicro_1,cycle+1)))*'Time Discounting'!E20 -> 0.03597213632 | AS23: 0.03460712486 | AT23: 0.03460712486 | AU23: =(AH23*(1))*'Time Discounting'!G20 -> 0.04693038007 | AV23: 0.04514954319 | AW23: 0.04514954319 | AX23: =0 + '1. Strategy Calcs'!V22 + '1. Strategy Calcs'!AL22 + AZ22 -> 0.06988776735 | AY23: 0.06226206984 | AZ23: 0.06083004224 | BA23: 0.001432027606 | BB23: 0.007625697509 | BC23: =(AX23*(cFollowingMacroalbuminuriaBaseCase))*'Time Discounting'!C20 -> 318.931736 | BD23: 308.6854174 | BE23: =(0)*'Time Discounting'!C20 -> 0 | BF23: 308.6854174 | BG23: =(AX23*(INDEX(vQoLMacro_1,cycle+1)))*'Time Discounting'!E20 -> 0.03223068744 | BH23: 0.03119521227 | BI23: 0.03119521227 | BJ23: =(AX23*(1))*'Time Discounting'!G20 -> 0.04485829845 | BK23: 0.04341713608 | BL23: 0.04341713608 | BM23: =0 + '1. Strategy Calcs'!W22 + '1. Strategy Calcs'!BA22 + BN22 -> 0.02014128975 | BN23: 0.01583105374 | BO23: 0.004310236006 | BP23: =(BM23*(cFollowingRenalDiseaseBaseCase))*'Time Discounting'!C20 -> 412.5548576 | BQ23: 398.4854227 | BR23: =(0)*'Time Discounting'!C20 -> 0 | BS23: 398.4854227 | BT23: =(BM23*(INDEX(vQoLRenalDisease_1,cycle+1)))*'Time Discounting'!E20 -> 0.007646869093 | BU23: 0.007386086496 | BV23: 0.007386086496 | BW23: =(BM23*(1))*'Time Discounting'!G20 -> 0.01292792746 | BX23: 0.01248704395 | BY23: 0.01248704395 | BZ23: =0 + '1. Strategy Calcs'!X22 + '1. Strategy Calcs'!AM22 + '1. Strategy Calcs'!BB22 + '1. Strategy Calcs'!BO22 + CA22 -> 0.3828312131 | CA23: 0.3828312131 | CB23: =(BZ23*(vQoLDeath))*'Time Discounting'!E20 -> 0 | CC23: 0 | CD23: 0 | CF23: 0.1091134801 | CG23: 0.1016036454 | CH23: =IF(rGender=0,InterpolateTable(tGeneralMortWONephropathy_2023,rAge+cycle,1),InterpolateTable(tGeneralMortWONephropathy_2023,rAge+cycle,2)) -> 0.044175498 | CI23: =IF(rGender=1,(0.742-(InterpolateTable(tQoL_AgeDecrements,VALUE(cycle),1)))-0.093,0.742-(InterpolateTable(tQoL_AgeDecrements,VALUE(cycle),1))) -> 0.7185 | CJ23: =IF(rGender=1,(0.79-(InterpolateTable(tQoL_AgeDecrements,VALUE(cycle),1)))-0.093,0.79-(InterpolateTable(tQoL_AgeDecrements,VALUE(cycle),1))) -> 0.7665 | CK23: =IF(rGender=1,(0.615-(InterpolateTable(tQoL_AgeDecrements,VALUE(cycle),1)))-0.093,0.615-(InterpolateTable(tQoL_AgeDecrements,VALUE(cycle),1))) -> 0.5915 | CL23: =IF(rGender=1,(0.79-(InterpolateTable(tQoL_AgeDecrements,VALUE(cycle),1)))-0.093,0.79-(InterpolateTable(tQoL_AgeDecrements,VALUE(cycle),1))) -> 0.7665
B24: 16 | D24: ='1. Strategy Calcs'!R24 -> 0.4214635679 | E24: ='1. Strategy Calcs'!AH24 -> 0.06959404228 | F24: ='1. Strategy Calcs'!AX24 -> 0.06735911529 | G24: ='1. Strategy Calcs'!BM24 -> 0.01933055122 | H24: ='1. Strategy Calcs'!BZ24 -> 0.4222527233 | I24: ='1. Strategy Calcs'!AA24 + '1. Strategy Calcs'!AQ24 + '1. Strategy Calcs'!BF24 + '1. Strategy Calcs'!BS24 -> 1891.889516 | J24: 53601.44531 | K24: ='1. Strategy Calcs'!AD24 + '1. Strategy Calcs'!AT24 + '1. Strategy Calcs'!BI24 + '1. Strategy Calcs'!BV24 + '1. Strategy Calcs'!CD24 -> 0.2586011894 | L24: 8.638559644 | M24: ='1. Strategy Calcs'!AG24 + '1. Strategy Calcs'!AW24 + '1. Strategy Calcs'!BL24 + '1. Strategy Calcs'!BY24 -> 0.3425543289 | N24: 11.13113445 | P24: 1 | R24: =0 + T23 + '1. Strategy Calcs'!AK23 -> 0.4214635679 | S24: 0.4010020008 | T24: 0.3853320561 | U24: 0.009430814239 | V24: 0.004365291464 | W24: 0.001873839034 | X24: 0.02046156707 | Y24: =(R24*(cT2DBaseCase))*'Time Discounting'!C21 -> 990.8123018 | Z24: 939.6620697 | AA24: 939.6620697 | AB24: =(R24*(INDEX(vQoLT2D_1,cycle+1)))*'Time Discounting'!E21 -> 0.2013152169 | AC24: 0.1909224108 | AD24: 0.1909224108 | AE24: =(R24*(1))*'Time Discounting'!G21 -> 0.2626421616 | AF24: 0.2490833801 | AG24: 0.2490833801 | AH24: =0 + '1. Strategy Calcs'!U23 + AJ23 -> 0.06959404228 | AI24: 0.06182300932 | AJ24: 0.05613774608 | AK24: 0.003954218977 | AL24: 0.001731044261 | AM24: 0.007771032958 | AN24: =(AH24*(cFollowingMicroalbuminuriaBaseCase))*'Time Discounting'!C21 -> 308.3410934 | AO24: 295.1928401 | AP24: =(0)*'Time Discounting'!C21 -> 0 | AQ24: 295.1928401 | AR24: =(AH24*(INDEX(vQoLMicro_1,cycle+1)))*'Time Discounting'!E21 -> 0.03324211339 | AS24: 0.03182460617 | AT24: 0.03182460617 | AU24: =(AH24*(1))*'Time Discounting'!G21 -> 0.04336870631 | AV24: 0.04151938182 | AW24: 0.04151938182 | AX24: =0 + '1. Strategy Calcs'!V23 + '1. Strategy Calcs'!AL23 + AZ23 -> 0.06735911529 | AY24: 0.05928170432 | AZ24: 0.05791822512 | BA24: 0.001363479199 | BB24: 0.00807741097 | BC24: =(AX24*(cFollowingMacroalbuminuriaBaseCase))*'Time Discounting'!C21 -> 298.4390988 | BD24: 286.8995615 | BE24: =(0)*'Time Discounting'!C21 -> 0 | BF24: 286.8995615 | BG24: =(AX24*(INDEX(vQoLMacro_1,cycle+1)))*'Time Discounting'!E21 -> 0.03015973711 | BH24: 0.02899357151 | BI24: 0.02899357151 | BJ24: =(AX24*(1))*'Time Discounting'!G21 -> 0.0419759737 | BK24: 0.04035291789 | BL24: 0.04035291789 | BM24: =0 + '1. Strategy Calcs'!W23 + '1. Strategy Calcs'!BA23 + BN23 -> 0.01933055122 | BN24: 0.01519381326 | BO24: 0.004136737961 | BP24: =(BM24*(cFollowingRenalDiseaseBaseCase))*'Time Discounting'!C21 -> 384.4159878 | BQ24: 370.1350447 | BR24: =(0)*'Time Discounting'!C21 -> 0 | BS24: 370.1350447 | BT24: =(BM24*(INDEX(vQoLRenalDisease_1,cycle+1)))*'Time Discounting'!E21 -> 0.007125303899 | BU24: 0.006860600915 | BV24: 0.006860600915 | BW24: =(BM24*(1))*'Time Discounting'!G21 -> 0.01204616044 | BX24: 0.01159864905 | BY24: 0.01159864905 | BZ24: =0 + '1. Strategy Calcs'!X23 + '1. Strategy Calcs'!AM23 + '1. Strategy Calcs'!BB23 + '1. Strategy Calcs'!BO23 + CA23 -> 0.4222527233 | CA24: 0.4222527233 | CB24: =(BZ24*(vQoLDeath))*'Time Discounting'!E21 -> 0 | CC24: 0 | CD24: 0 | CF24: 0.1199156333 | CG24: 0.1116623306 | CH24: =IF(rGender=0,InterpolateTable(tGeneralMortWONephropathy_2023,rAge+cycle,1),InterpolateTable(tGeneralMortWONephropathy_2023,rAge+cycle,2)) -> 0.0485488394 | CI24: =IF(rGender=1,(0.742-(InterpolateTable(tQoL_AgeDecrements,VALUE(cycle),1)))-0.093,0.742-(InterpolateTable(tQoL_AgeDecrements,VALUE(cycle),1))) -> 0.7185 | CJ24: =IF(rGender=1,(0.79-(InterpolateTable(tQoL_AgeDecrements,VALUE(cycle),1)))-0.093,0.79-(InterpolateTable(tQoL_AgeDecrements,VALUE(cycle),1))) -> 0.7665 | CK24: =IF(rGender=1,(0.615-(InterpolateTable(tQoL_AgeDecrements,VALUE(cycle),1)))-0.093,0.615-(InterpolateTable(tQoL_AgeDecrements,VALUE(cycle),1))) -> 0.5915 | CL24: =IF(rGender=1,(0.79-(InterpolateTable(tQoL_AgeDecrements,VALUE(cycle),1)))-0.093,0.79-(InterpolateTable(tQoL_AgeDecrements,VALUE(cycle),1))) -> 0.7665
B25: 17 | D25: ='1. Strategy Calcs'!R25 -> 0.3892862751 | E25: ='1. Strategy Calcs'!AH25 -> 0.06556856032 | F25: ='1. Strategy Calcs'!AX25 -> 0.06401456085 | G25: ='1. Strategy Calcs'!BM25 -> 0.01843113149 | H25: ='1. Strategy Calcs'!BZ25 -> 0.4626994723 | I25: ='1. Strategy Calcs'!AA25 + '1. Strategy Calcs'!AQ25 + '1. Strategy Calcs'!BF25 + '1. Strategy Calcs'!BS25 -> 1713.477472 | J25: 55314.92278 | K25: ='1. Strategy Calcs'!AD25 + '1. Strategy Calcs'!AT25 + '1. Strategy Calcs'!BI25 + '1. Strategy Calcs'!BV25 + '1. Strategy Calcs'!CD25 -> 0.2326199858 | L25: 8.87117963 | M25: ='1. Strategy Calcs'!AG25 + '1. Strategy Calcs'!AW25 + '1. Strategy Calcs'!BL25 + '1. Strategy Calcs'!BY25 -> 0.3082419937 | N25: 11.43937644 | P25: 1 | R25: =0 + T24 + '1. Strategy Calcs'!AK24 -> 0.3892862751 | S25: 0.3685158521 | T25: 0.3539360673 | U25: 0.008849726329 | V25: 0.00404099958 | W25: 0.001689058904 | X25: 0.02077042301 | Y25: =(R25*(cT2DBaseCase))*'Time Discounting'!C22 -> 888.5118376 | Z25: 840.4311113 | AA25: 840.4311113 | AB25: =(R25*(INDEX(vQoLT2D_1,cycle+1)))*'Time Discounting'!E22 -> 0.1805296048 | AC25: 0.1707604671 | AD25: 0.1707604671 | AE25: =(R25*(1))*'Time Discounting'!G22 -> 0.2355245986 | AF25: 0.2227794743 | AG25: 0.2227794743 | AH25: =0 + '1. Strategy Calcs'!U24 + AJ24 -> 0.06556856032 | AI25: 0.05752219525 | AJ25: 0.05227821946 | AK25: 0.003633354323 | AL25: 0.001610621467 | AM25: 0.008046365074 | AN25: =(AH25*(cFollowingMicroalbuminuriaBaseCase))*'Time Discounting'!C22 -> 282.0445868 | AO25: 268.6646171 | AP25: =(0)*'Time Discounting'!C22 -> 0 | AQ25: 268.6646171 | AR25: =(AH25*(INDEX(vQoLMicro_1,cycle+1)))*'Time Discounting'!E22 -> 0.03040709894 | AS25: 0.02896461048 | AT25: 0.02896461048 | AU25: =(AH25*(1))*'Time Discounting'!G22 -> 0.03967005733 | AV25: 0.03778814153 | AW25: 0.03778814153 | AX25: =0 + '1. Strategy Calcs'!V24 + '1. Strategy Calcs'!AL24 + AZ24 -> 0.06401456085 | AY25: 0.05557826167 | AZ25: 0.05429996165 | BA25: 0.001278300018 | BB25: 0.00843629918 | BC25: =(AX25*(cFollowingMacroalbuminuriaBaseCase))*'Time Discounting'!C22 -> 275.3600243 | BD25: 262.8659517 | BE25: =(0)*'Time Discounting'!C22 -> 0 | BF25: 262.8659517 | BG25: =(AX25*(INDEX(vQoLMacro_1,cycle+1)))*'Time Discounting'!E22 -> 0.02782740591 | BH25: 0.02656477663 | BI25: 0.02656477663 | BJ25: =(AX25*(1))*'Time Discounting'!G22 -> 0.03872986209 | BK25: 0.03697254924 | BL25: 0.03697254924 | BM25: =0 + '1. Strategy Calcs'!W24 + '1. Strategy Calcs'!BA24 + BN24 -> 0.01843113149 | BN25: 0.01448686935 | BO25: 0.00394426214 | BP25: =(BM25*(cFollowingRenalDiseaseBaseCase))*'Time Discounting'!C22 -> 355.8541017 | BQ25: 341.5157917 | BR25: =(0)*'Time Discounting'!C22 -> 0 | BS25: 341.5157917 | BT25: =(BM25*(INDEX(vQoLRenalDisease_1,cycle+1)))*'Time Discounting'!E22 -> 0.006595897931 | BU25: 0.006330131628 | BV25: 0.006330131628 | BW25: =(BM25*(1))*'Time Discounting'!G22 -> 0.01115113767 | BX25: 0.01070182862 | BY25: 0.01070182862 | BZ25: =0 + '1. Strategy Calcs'!X24 + '1. Strategy Calcs'!AM24 + '1. Strategy Calcs'!BB24 + '1. Strategy Calcs'!BO24 + CA24 -> 0.4626994723 | CA25: 0.4626994723 | CB25: =(BZ25*(vQoLDeath))*'Time Discounting'!E22 -> 0 | CC25: 0 | CD25: 0 | CF25: 0.1317871914 | CG25: 0.1227168179 | CH25: =IF(rGender=0,InterpolateTable(tGeneralMortWONephropathy_2023,rAge+cycle,1),InterpolateTable(tGeneralMortWONephropathy_2023,rAge+cycle,2)) -> 0.0533551382 | CI25: =IF(rGender=1,(0.742-(InterpolateTable(tQoL_AgeDecrements,VALUE(cycle),1)))-0.093,0.742-(InterpolateTable(tQoL_AgeDecrements,VALUE(cycle),1))) -> 0.7185 | CJ25: =IF(rGender=1,(0.79-(InterpolateTable(tQoL_AgeDecrements,VALUE(cycle),1)))-0.093,0.79-(InterpolateTable(tQoL_AgeDecrements,VALUE(cycle),1))) -> 0.7665 | CK25: =IF(rGender=1,(0.615-(InterpolateTable(tQoL_AgeDecrements,VALUE(cycle),1)))-0.093,0.615-(InterpolateTable(tQoL_AgeDecrements,VALUE(cycle),1))) -> 0.5915 | CL25: =IF(rGender=1,(0.79-(InterpolateTable(tQoL_AgeDecrements,VALUE(cycle),1)))-0.093,0.79-(InterpolateTable(tQoL_AgeDecrements,VALUE(cycle),1))) -> 0.7665
B26: 18 | D26: ='1. Strategy Calcs'!R26 -> 0.3575694216 | E26: ='1. Strategy Calcs'!AH26 -> 0.06112794579 | F26: ='1. Strategy Calcs'!AX26 -> 0.0599515827 | G26: ='1. Strategy Calcs'!BM26 -> 0.01745422828 | H26: ='1. Strategy Calcs'!BZ26 -> 0.5038968217 | I26: ='1. Strategy Calcs'!AA26 + '1. Strategy Calcs'!AQ26 + '1. Strategy Calcs'!BF26 + '1. Strategy Calcs'!BS26 -> 1539.397125 | J26: 56854.31991 | K26: ='1. Strategy Calcs'!AD26 + '1. Strategy Calcs'!AT26 + '1. Strategy Calcs'!BI26 + '1. Strategy Calcs'!BV26 + '1. Strategy Calcs'!CD26 -> 0.2076951277 | L26: 9.078874757 | M26: ='1. Strategy Calcs'!AG26 + '1. Strategy Calcs'!AW26 + '1. Strategy Calcs'!BL26 + '1. Strategy Calcs'!BY26 -> 0.2752942494 | N26: 11.71467069 | P26: 1 | R26: =0 + T25 + '1. Strategy Calcs'!AK25 -> 0.3575694216 | S26: 0.3366025314 | T26: 0.3231173242 | U26: 0.008253909826 | V26: 0.00371805496 | W26: 0.001513242409 | X26: 0.02096689014 | Y26: =(R26*(cT2DBaseCase))*'Time Discounting'!C23 -> 792.350385 | Z26: 747.2947799 | AA26: 747.2947799 | AB26: =(R26*(INDEX(vQoLT2D_1,cycle+1)))*'Time Discounting'!E23 -> 0.1609913293 | AC26: 0.1518368418 | AD26: 0.1518368418 | AE26: =(R26*(1))*'Time Discounting'!G23 -> 0.2100343501 | AF26: 0.1980911178 | AG26: 0.1980911178 | AH26: =0 + '1. Strategy Calcs'!U25 + AJ25 -> 0.06112794579 | AI26: 0.0528838831 | AJ26: 0.04810901474 | AK26: 0.003294119638 | AL26: 0.001480748727 | AM26: 0.008244062682 | AN26: =(AH26*(cFollowingMicroalbuminuriaBaseCase))*'Time Discounting'!C23 -> 255.2846474 | AO26: 241.90679 | AP26: =(0)*'Time Discounting'!C23 -> 0 | AQ26: 241.90679 | AR26: =(AH26*(INDEX(vQoLMicro_1,cycle+1)))*'Time Discounting'!E23 -> 0.02752212202 | AS26: 0.02607986128 | AT26: 0.02607986128 | AU26: =(AH26*(1))*'Time Discounting'!G23 -> 0.03590622573 | AV26: 0.03402460702 | AW26: 0.03402460702 | AX26: =0 + '1. Strategy Calcs'!V25 + '1. Strategy Calcs'!AL25 + AZ25 -> 0.0599515827 | AY26: 0.05126855365 | AZ26: 0.05008937692 | BA26: 0.001179176734 | BB26: 0.008683029044 | BC26: =(AX26*(cFollowingMacroalbuminuriaBaseCase))*'Time Discounting'!C23 -> 250.3718791 | BD26: 237.2715791 | BE26: =(0)*'Time Discounting'!C23 -> 0 | BF26: 237.2715791 | BG26: =(AX26*(INDEX(vQoLMacro_1,cycle+1)))*'Time Discounting'!E23 -> 0.02530214735 | BH26: 0.02397825378 | BI26: 0.02397825378 | BJ26: =(AX26*(1))*'Time Discounting'!G23 -> 0.03521523639 | BK26: 0.03337265662 | BL26: 0.03337265662 | BM26: =0 + '1. Strategy Calcs'!W25 + '1. Strategy Calcs'!BA25 + BN25 -> 0.01745422828 | BN26: 0.01371902342 | BO26: 0.003735204851 | BP26: =(BM26*(cFollowingRenalDiseaseBaseCase))*'Time Discounting'!C23 -> 327.1774818 | BQ26: 312.9239762 | BR26: =(0)*'Time Discounting'!C23 -> 0 | BS26: 312.9239762 | BT26: =(BM26*(INDEX(vQoLRenalDisease_1,cycle+1)))*'Time Discounting'!E23 -> 0.006064365325 | BU26: 0.005800170906 | BV26: 0.005800170906 | BW26: =(BM26*(1))*'Time Discounting'!G23 -> 0.01025251957 | BX26: 0.009805867973 | BY26: 0.009805867973 | BZ26: =0 + '1. Strategy Calcs'!X25 + '1. Strategy Calcs'!AM25 + '1. Strategy Calcs'!BB25 + '1. Strategy Calcs'!BO25 + CA25 -> 0.5038968217 | CA26: 0.5038968217 | CB26: =(BZ26*(vQoLDeath))*'Time Discounting'!E23 -> 0 | CC26: 0 | CD26: 0 | CF26: 0.1448340253 | CG26: 0.1348656916 | CH26: =IF(rGender=0,InterpolateTable(tGeneralMortWONephropathy_2023,rAge+cycle,1),InterpolateTable(tGeneralMortWONephropathy_2023,rAge+cycle,2)) -> 0.0586372572 | CI26: =IF(rGender=1,(0.742-(InterpolateTable(tQoL_AgeDecrements,VALUE(cycle),1)))-0.093,0.742-(InterpolateTable(tQoL_AgeDecrements,VALUE(cycle),1))) -> 0.7185 | CJ26: =IF(rGender=1,(0.79-(InterpolateTable(tQoL_AgeDecrements,VALUE(cycle),1)))-0.093,0.79-(InterpolateTable(tQoL_AgeDecrements,VALUE(cycle),1))) -> 0.7665 | CK26: =IF(rGender=1,(0.615-(InterpolateTable(tQoL_AgeDecrements,VALUE(cycle),1)))-0.093,0.615-(InterpolateTable(tQoL_AgeDecrements,VALUE(cycle),1))) -> 0.5915 | CL26: =IF(rGender=1,(0.79-(InterpolateTable(tQoL_AgeDecrements,VALUE(cycle),1)))-0.093,0.79-(InterpolateTable(tQoL_AgeDecrements,VALUE(cycle),1))) -> 0.7665
B27: 19 | D27: ='1. Strategy Calcs'!R27 -> 0.3264114439 | E27: ='1. Strategy Calcs'!AH27 -> 0.05636292456 | F27: ='1. Strategy Calcs'!AX27 -> 0.0552881806 | G27: ='1. Strategy Calcs'!BM27 -> 0.01641144257 | H27: ='1. Strategy Calcs'!BZ27 -> 0.5455260084 | I27: ='1. Strategy Calcs'!AA27 + '1. Strategy Calcs'!AQ27 + '1. Strategy Calcs'!BF27 + '1. Strategy Calcs'!BS27 -> 1370.996435 | J27: 58225.31634 | K27: ='1. Strategy Calcs'!AD27 + '1. Strategy Calcs'!AT27 + '1. Strategy Calcs'!BI27 + '1. Strategy Calcs'!BV27 + '1. Strategy Calcs'!CD27 -> 0.1812501167 | L27: 9.260124874 | M27: ='1. Strategy Calcs'!AG27 + '1. Strategy Calcs'!AW27 + '1. Strategy Calcs'!BL27 + '1. Strategy Calcs'!BY27 -> 0.2438612625 | N27: 11.95853195 | P27: 1 | R27: =0 + T26 + '1. Strategy Calcs'!AK26 -> 0.3264114439 | S27: 0.305376739 | T27: 0.2929861695 | U27: 0.007646181123 | V27: 0.003397817492 | W27: 0.001346570876 | X27: 0.02103470491 | Y27: =(R27*(cT2DBaseCase))*'Time Discounting'!C24 -> 702.2391749 | Z27: 660.1791284 | AA27: 660.1791284 | AB27: =(R27*(INDEX(vQoLT2D_1,cycle+1)))*'Time Discounting'!E24 -> 0.1426823542 | AC27: 0.1322112782 | AD27: 0.1322112782 | AE27: =(R27*(1))*'Time Discounting'!G24 -> 0.1861478854 | AF27: 0.1749987086 | AG27: 0.1749987086 | AH27: =0 + '1. Strategy Calcs'!U26 + AJ26 -> 0.05636292456 | AI27: 0.04800896434 | AJ27: 0.04372040255 | AK27: 0.002944310797 | AL27: 0.001344251002 | AM27: 0.008353960221 | AN27: =(AH27*(cFollowingMicroalbuminuriaBaseCase))*'Time Discounting'!C24 -> 228.5289326 | AO27: 215.366789 | AP27: =(0)*'Time Discounting'!C24 -> 0 | AQ27: 215.366789 | AR27: =(AH27*(INDEX(vQoLMicro_1,cycle+1)))*'Time Discounting'!E24 -> 0.02463760054 | AS27: 0.02288442074 | AT27: 0.02288442074 | AU27: =(AH27*(1))*'Time Discounting'!G24 -> 0.03214298831 | AV27: 0.03029171013 | AW27: 0.03029171013 | AX27: =0 + '1. Strategy Calcs'!V26 + '1. Strategy Calcs'!AL26 + AZ26 -> 0.0552881806 | AY27: 0.04648782343 | AZ27: 0.04541860349 | BA27: 0.001069219939 | BB27: 0.008800357177 | BC27: =(AX27*(cFollowingMacroalbuminuriaBaseCase))*'Time Discounting'!C24 -> 224.1712792 | BD27: 210.8144256 | BE27: =(0)*'Time Discounting'!C24 -> 0 | BF27: 210.8144256 | BG27: =(AX27*(INDEX(vQoLMacro_1,cycle+1)))*'Time Discounting'!E24 -> 0.02265436021 | BH27: 0.02097821 | BI27: 0.02097821 | BJ27: =(AX27*(1))*'Time Discounting'!G24 -> 0.03153007685 | BK27: 0.02965141237 | BL27: 0.02965141237 | BM27: =0 + '1. Strategy Calcs'!W26 + '1. Strategy Calcs'!BA26 + BN26 -> 0.01641144257 | BN27: 0.01289939386 | BO27: 0.003512048709 | BP27: =(BM27*(cFollowingRenalDiseaseBaseCase))*'Time Discounting'!C24 -> 298.6704707 | BQ27: 284.6360921 | BR27: =(0)*'Time Discounting'!C24 -> 0 | BS27: 284.6360921 | BT27: =(BM27*(INDEX(vQoLRenalDisease_1,cycle+1)))*'Time Discounting'!E24 -> 0.005535976486 | BU27: 0.005176207828 | BV27: 0.005176207828 | BW27: =(BM27*(1))*'Time Discounting'!G24 -> 0.009359216376 | BX27: 0.0089194314 | BY27: 0.0089194314 | BZ27: =0 + '1. Strategy Calcs'!X26 + '1. Strategy Calcs'!AM26 + '1. Strategy Calcs'!BB26 + '1. Strategy Calcs'!BO26 + CA26 -> 0.5455260084 | CA27: 0.5455260084 | CB27: =(BZ27*(vQoLDeath))*'Time Discounting'!E24 -> 0 | CC27: 0 | CD27: 0 | CF27: 0.1591724864 | CG27: 0.1482172951 | CH27: =IF(rGender=0,InterpolateTable(tGeneralMortWONephropathy_2023,rAge+cycle,1),InterpolateTable(tGeneralMortWONephropathy_2023,rAge+cycle,2)) -> 0.0644423022 | CI27: =IF(rGender=1,(0.742-(InterpolateTable(tQoL_AgeDecrements,VALUE(cycle),1)))-0.093,0.742-(InterpolateTable(tQoL_AgeDecrements,VALUE(cycle),1))) -> 0.7185 | CJ27: =IF(rGender=1,(0.79-(InterpolateTable(tQoL_AgeDecrements,VALUE(cycle),1)))-0.093,0.79-(InterpolateTable(tQoL_AgeDecrements,VALUE(cycle),1))) -> 0.7665 | CK27: =IF(rGender=1,(0.615-(InterpolateTable(tQoL_AgeDecrements,VALUE(cycle),1)))-0.093,0.615-(InterpolateTable(tQoL_AgeDecrements,VALUE(cycle),1))) -> 0.5915 | CL27: =IF(rGender=1,(0.79-(InterpolateTable(tQoL_AgeDecrements,VALUE(cycle),1)))-0.093,0.79-(InterpolateTable(tQoL_AgeDecrements,VALUE(cycle),1))) -> 0.7665
B28: 20 | D28: ='1. Strategy Calcs'!R28 -> 0.2959304803 | E28: ='1. Strategy Calcs'!AH28 -> 0.05136658367 | F28: ='1. Strategy Calcs'!AX28 -> 0.05016067198 | G28: ='1. Strategy Calcs'!BM28 -> 0.01531518467 | H28: ='1. Strategy Calcs'!BZ28 -> 0.5872270794 | I28: ='1. Strategy Calcs'!AA28 + '1. Strategy Calcs'!AQ28 + '1. Strategy Calcs'!BF28 + '1. Strategy Calcs'!BS28 -> 1209.587472 | J28: 59434.90382 | K28: ='1. Strategy Calcs'!AD28 + '1. Strategy Calcs'!AT28 + '1. Strategy Calcs'!BI28 + '1. Strategy Calcs'!BV28 + '1. Strategy Calcs'!CD28 -> 0.1564185944 | L28: 9.416543469 | M28: ='1. Strategy Calcs'!AG28 + '1. Strategy Calcs'!AW28 + '1. Strategy Calcs'!BL28 + '1. Strategy Calcs'!BY28 -> 0.2140928171 | N28: 12.17262477 | P28: 1 | R28: =0 + T27 + '1. Strategy Calcs'!AK27 -> 0.2959304803 | S28: 0.2749720793 | T28: 0.2636708098 | U28: 0.007030093031 | V28: 0.003081897777 | W28: 0.001189278698 | X28: 0.02095840102 | Y28: =(R28*(cT2DBaseCase))*'Time Discounting'!C25 -> 618.1190819 | Z28: 579.035556 | AA28: 579.035556 | AB28: =(R28*(INDEX(vQoLT2D_1,cycle+1)))*'Time Discounting'!E25 -> 0.1217402022 | AC28: 0.1140425975 | AD28: 0.1140425975 | AE28: =(R28*(1))*'Time Discounting'!G25 -> 0.1638495319 | AF28: 0.153489364 | AG28: 0.153489364 | AH28: =0 + '1. Strategy Calcs'!U27 + AJ27 -> 0.05136658367 | AI28: 0.04299944503 | AJ28: 0.03920380361 | AK28: 0.002591656951 | AL28: 0.001203984461 | AM28: 0.008367138643 | AN28: =(AH28*(cFollowingMicroalbuminuriaBaseCase))*'Time Discounting'!C25 -> 202.2046455 | AO28: 189.4517471 | AP28: =(0)*'Time Discounting'!C25 -> 0 | AQ28: 189.4517471 | AR28: =(AH28*(INDEX(vQoLMicro_1,cycle+1)))*'Time Discounting'!E25 -> 0.02113124094 | AS28: 0.0197985091 | AT28: 0.0197985091 | AU28: =(AH28*(1))*'Time Discounting'!G25 -> 0.02844043195 | AV28: 0.02664671481 | AW28: 0.02664671481 | AX28: =0 + '1. Strategy Calcs'!V27 + '1. Strategy Calcs'!AL27 + AZ27 -> 0.05016067198 | AY28: 0.04138604332 | AZ28: 0.04043416433 | BA28: 0.0009518789965 | BB28: 0.008774628658 | BC28: =(AX28*(cFollowingMacroalbuminuriaBaseCase))*'Time Discounting'!C25 -> 197.457572 | BD28: 184.1853592 | BE28: =(0)*'Time Discounting'!C25 -> 0 | BF28: 184.1853592 | BG28: =(AX28*(INDEX(vQoLMacro_1,cycle+1)))*'Time Discounting'!E25 -> 0.01930205978 | BH28: 0.01800466185 | BI28: 0.01800466185 | BJ28: =(AX28*(1))*'Time Discounting'!G25 -> 0.02777274789 | BK28: 0.02590598827 | BL28: 0.02590598827 | BM28: =0 + '1. Strategy Calcs'!W27 + '1. Strategy Calcs'!BA27 + BN27 -> 0.01531518467 | BN28: 0.01203773515 | BO28: 0.00327744952 | BP28: =(BM28*(cFollowingRenalDiseaseBaseCase))*'Time Discounting'!C25 -> 270.6017135 | BQ28: 256.9148096 | BR28: =(0)*'Time Discounting'!C25 -> 0 | BS28: 256.9148096 | BT28: =(BM28*(INDEX(vQoLRenalDisease_1,cycle+1)))*'Time Discounting'!E25 -> 0.004816439169 | BU28: 0.004572826002 | BV28: 0.004572826002 | BW28: =(BM28*(1))*'Time Discounting'!G25 -> 0.008479646424 | BX28: 0.008050750004 | BY28: 0.008050750004 | BZ28: =0 + '1. Strategy Calcs'!X27 + '1. Strategy Calcs'!AM27 + '1. Strategy Calcs'!BB27 + '1. Strategy Calcs'!BO27 + CA27 -> 0.5872270794 | CA28: 0.5872270794 | CB28: =(BZ28*(vQoLDeath))*'Time Discounting'!E25 -> 0 | CC28: 0 | CD28: 0 | CF28: 0.1749304447 | CG28: 0.1628906975 | CH28: =IF(rGender=0,InterpolateTable(tGeneralMortWONephropathy_2023,rAge+cycle,1),InterpolateTable(tGeneralMortWONephropathy_2023,rAge+cycle,2)) -> 0.0708220424 | CI28: =IF(rGender=1,(0.742-(InterpolateTable(tQoL_AgeDecrements,VALUE(cycle),1)))-0.093,0.742-(InterpolateTable(tQoL_AgeDecrements,VALUE(cycle),1))) -> 0.695 | CJ28: =IF(rGender=1,(0.79-(InterpolateTable(tQoL_AgeDecrements,VALUE(cycle),1)))-0.093,0.79-(InterpolateTable(tQoL_AgeDecrements,VALUE(cycle),1))) -> 0.743 | CK28: =IF(rGender=1,(0.615-(InterpolateTable(tQoL_AgeDecrements,VALUE(cycle),1)))-0.093,0.615-(InterpolateTable(tQoL_AgeDecrements,VALUE(cycle),1))) -> 0.568 | CL28: =IF(rGender=1,(0.79-(InterpolateTable(tQoL_AgeDecrements,VALUE(cycle),1)))-0.093,0.79-(InterpolateTable(tQoL_AgeDecrements,VALUE(cycle),1))) -> 0.743
B29: 21 | D29: ='1. Strategy Calcs'!R29 -> 0.2662624667 | E29: ='1. Strategy Calcs'!AH29 -> 0.04623389664 | F29: ='1. Strategy Calcs'!AX29 -> 0.04472004657 | G29: ='1. Strategy Calcs'!BM29 -> 0.01417889285 | H29: ='1. Strategy Calcs'!BZ29 -> 0.6286046972 | I29: ='1. Strategy Calcs'!AA29 + '1. Strategy Calcs'!AQ29 + '1. Strategy Calcs'!BF29 + '1. Strategy Calcs'!BS29 -> 1056.417864 | J29: 60491.32168 | K29: ='1. Strategy Calcs'!AD29 + '1. Strategy Calcs'!AT29 + '1. Strategy Calcs'!BI29 + '1. Strategy Calcs'!BV29 + '1. Strategy Calcs'!CD29 -> 0.1359684387 | L29: 9.552511907 | M29: ='1. Strategy Calcs'!AG29 + '1. Strategy Calcs'!AW29 + '1. Strategy Calcs'!BL29 + '1. Strategy Calcs'!BY29 -> 0.18613298 | N29: 12.35875775 | P29: 1 | R29: =0 + T28 + '1. Strategy Calcs'!AK28 -> 0.2662624667 | S29: 0.2455383611 | T29: 0.2353146619 | U29: 0.006409928448 | V29: 0.002772135093 | W29: 0.001041635614 | X29: 0.02072410562 | Y29: =(R29*(cT2DBaseCase))*'Time Discounting'!C26 -> 539.95203 | Z29: 503.8318974 | AA29: 503.8318974 | AB29: =(R29*(INDEX(vQoLT2D_1,cycle+1)))*'Time Discounting'!E26 -> 0.1063449928 | AC29: 0.09923103628 | AD29: 0.09923103628 | AE29: =(R29*(1))*'Time Discounting'!G26 -> 0.1431291962 | AF29: 0.1335545576 | AG29: 0.1335545576 | AH29: =0 + '1. Strategy Calcs'!U28 + AJ28 -> 0.04623389664 | AI29: 0.03795725447 | AJ29: 0.03465076791 | AK29: 0.002243683434 | AL29: 0.001062803125 | AM29: 0.008276642176 | AN29: =(AH29*(cFollowingMicroalbuminuriaBaseCase))*'Time Discounting'!C26 -> 176.6988487 | AO29: 164.5279059 | AP29: =(0)*'Time Discounting'!C26 -> 0 | AQ29: 164.5279059 | AR29: =(AH29*(INDEX(vQoLMicro_1,cycle+1)))*'Time Discounting'!E26 -> 0.01846577726 | AS29: 0.01719386225 | AT29: 0.01719386225 | AU29: =(AH29*(1))*'Time Discounting'!G26 -> 0.02485299766 | AV29: 0.02314113359 | AW29: 0.02314113359 | AX29: =0 + '1. Strategy Calcs'!V28 + '1. Strategy Calcs'!AL28 + AZ28 -> 0.04472004657 | AY29: 0.03612268788 | AZ29: 0.03529186605 | BA29: 0.0008308218211 | BB29: 0.00859735869 | BC29: =(AX29*(cFollowingMacroalbuminuriaBaseCase))*'Time Discounting'!C26 -> 170.9131463 | BD29: 158.047172 | BE29: =(0)*'Time Discounting'!C26 -> 0 | BF29: 158.047172 | BG29: =(AX29*(INDEX(vQoLMacro_1,cycle+1)))*'Time Discounting'!E26 -> 0.01670726391 | BH29: 0.015449577 | BI29: 0.015449577 | BJ29: =(AX29*(1))*'Time Discounting'!G26 -> 0.02403922865 | BK29: 0.02222960719 | BL29: 0.02222960719 | BM29: =0 + '1. Strategy Calcs'!W28 + '1. Strategy Calcs'!BA28 + BN28 -> 0.01417889285 | BN29: 0.01114460978 | BO29: 0.003034283069 | BP29: =(BM29*(cFollowingRenalDiseaseBaseCase))*'Time Discounting'!C26 -> 243.2279056 | BQ29: 230.0108889 | BR29: =(0)*'Time Discounting'!C26 -> 0 | BS29: 230.0108889 | BT29: =(BM29*(INDEX(vQoLRenalDisease_1,cycle+1)))*'Time Discounting'!E26 -> 0.004329212835 | BU29: 0.00409396319 | BV29: 0.00409396319 | BW29: =(BM29*(1))*'Time Discounting'!G26 -> 0.007621853584 | BX29: 0.007207681673 | BY29: 0.007207681673 | BZ29: =0 + '1. Strategy Calcs'!X28 + '1. Strategy Calcs'!AM28 + '1. Strategy Calcs'!BB28 + '1. Strategy Calcs'!BO28 + CA28 -> 0.6286046972 | CA29: 0.6286046972 | CB29: =(BZ29*(vQoLDeath))*'Time Discounting'!E26 -> 0 | CC29: 0 | CD29: 0 | CF29: 0.1922484288 | CG29: 0.1790167556 | CH29: =IF(rGender=0,InterpolateTable(tGeneralMortWONephropathy_2023,rAge+cycle,1),InterpolateTable(tGeneralMortWONephropathy_2023,rAge+cycle,2)) -> 0.077833372 | CI29: =IF(rGender=1,(0.742-(InterpolateTable(tQoL_AgeDecrements,VALUE(cycle),1)))-0.093,0.742-(InterpolateTable(tQoL_AgeDecrements,VALUE(cycle),1))) -> 0.695 | CJ29: =IF(rGender=1,(0.79-(InterpolateTable(tQoL_AgeDecrements,VALUE(cycle),1)))-0.093,0.79-(InterpolateTable(tQoL_AgeDecrements,VALUE(cycle),1))) -> 0.743 | CK29: =IF(rGender=1,(0.615-(InterpolateTable(tQoL_AgeDecrements,VALUE(cycle),1)))-0.093,0.615-(InterpolateTable(tQoL_AgeDecrements,VALUE(cycle),1))) -> 0.568 | CL29: =IF(rGender=1,(0.79-(InterpolateTable(tQoL_AgeDecrements,VALUE(cycle),1)))-0.093,0.79-(InterpolateTable(tQoL_AgeDecrements,VALUE(cycle),1))) -> 0.743
B30: 22 | D30: ='1. Strategy Calcs'!R30 -> 0.2375583454 | E30: ='1. Strategy Calcs'!AH30 -> 0.04106069636 | F30: ='1. Strategy Calcs'!AX30 -> 0.03912680427 | G30: ='1. Strategy Calcs'!BM30 -> 0.01301706721 | H30: ='1. Strategy Calcs'!BZ30 -> 0.6692370868 | I30: ='1. Strategy Calcs'!AA30 + '1. Strategy Calcs'!AQ30 + '1. Strategy Calcs'!BF30 + '1. Strategy Calcs'!BS30 -> 912.6346741 | J30: 61403.95635 | K30: ='1. Strategy Calcs'!AD30 + '1. Strategy Calcs'!AT30 + '1. Strategy Calcs'!BI30 + '1. Strategy Calcs'!BV30 + '1. Strategy Calcs'!CD30 -> 0.1169471002 | L30: 9.669459007 | M30: ='1. Strategy Calcs'!AG30 + '1. Strategy Calcs'!AW30 + '1. Strategy Calcs'!BL30 + '1. Strategy Calcs'!BY30 -> 0.1601139855 | N30: 12.51887173 | P30: 1 | R30: =0 + T29 + '1. Strategy Calcs'!AK29 -> 0.2375583454 | S30: 0.2172378853 | T30: 0.2080727343 | U30: 0.00579066186 | V30: 0.002470562691 | W30: 0.0009039264887 | X30: 0.02032046002 | Y30: =(R30*(cT2DBaseCase))*'Time Discounting'!C27 -> 467.7117647 | Z30: 434.5428933 | AA30: 434.5428933 | AB30: =(R30*(INDEX(vQoLT2D_1,cycle+1)))*'Time Discounting'!E27 -> 0.09211707979 | AC30: 0.08558438209 | AD30: 0.08558438209 | AE30: =(R30*(1))*'Time Discounting'!G27 -> 0.123979919 | AF30: 0.1151875937 | AG30: 0.1151875937 | AH30: =0 + '1. Strategy Calcs'!U29 + AJ29 -> 0.04106069636 | AI30: 0.03298244448 | AJ30: 0.03015140389 | AK30: 0.001907532149 | AL30: 0.0009235084455 | AM30: 0.008078251876 | AN30: =(AH30*(cFollowingMicroalbuminuriaBaseCase))*'Time Discounting'!C27 -> 152.3569632 | AO30: 140.9183498 | AP30: =(0)*'Time Discounting'!C27 -> 0 | AQ30: 140.9183498 | AR30: =(AH30*(INDEX(vQoLMicro_1,cycle+1)))*'Time Discounting'!E27 -> 0.01592194725 | AS30: 0.01472656376 | AT30: 0.01472656376 | AU30: =(AH30*(1))*'Time Discounting'!G27 -> 0.02142926951 | AV30: 0.01982040882 | AW30: 0.01982040882 | AX30: =0 + '1. Strategy Calcs'!V29 + '1. Strategy Calcs'!AL29 + AZ29 -> 0.03912680427 | AY30: 0.03086005864 | AZ30: 0.03015027729 | BA30: 0.0007097813486 | BB30: 0.008266745637 | BC30: =(AX30*(cFollowingMacroalbuminuriaBaseCase))*'Time Discounting'!C27 -> 145.1811978 | BD30: 133.0116307 | BE30: =(0)*'Time Discounting'!C27 -> 0 | BF30: 133.0116307 | BG30: =(AX30*(INDEX(vQoLMacro_1,cycle+1)))*'Time Discounting'!E27 -> 0.01419189008 | BH30: 0.01300227902 | BI30: 0.01300227902 | BJ30: =(AX30*(1))*'Time Discounting'!G27 -> 0.02041998573 | BK30: 0.01870831514 | BL30: 0.01870831514 | BM30: =0 + '1. Strategy Calcs'!W29 + '1. Strategy Calcs'!BA29 + BN29 -> 0.01301706721 | BN30: 0.01023141483 | BO30: 0.002785652384 | BP30: =(BM30*(cFollowingRenalDiseaseBaseCase))*'Time Discounting'!C27 -> 216.7938721 | BQ30: 204.1618003 | BR30: =(0)*'Time Discounting'!C27 -> 0 | BS30: 204.1618003 | BT30: =(BM30*(INDEX(vQoLRenalDisease_1,cycle+1)))*'Time Discounting'!E27 -> 0.003858713545 | BU30: 0.003633875332 | BV30: 0.003633875332 | BW30: =(BM30*(1))*'Time Discounting'!G27 -> 0.006793509762 | BX30: 0.006397667839 | BY30: 0.006397667839 | BZ30: =0 + '1. Strategy Calcs'!X29 + '1. Strategy Calcs'!AM29 + '1. Strategy Calcs'!BB29 + '1. Strategy Calcs'!BO29 + CA29 -> 0.6692370868 | CA30: 0.6692370868 | CB30: =(BZ30*(vQoLDeath))*'Time Discounting'!E27 -> 0 | CC30: 0 | CD30: 0 | CF30: 0.21128088 | CG30: 0.1967392809 | CH30: =IF(rGender=0,InterpolateTable(tGeneralMortWONephropathy_2023,rAge+cycle,1),InterpolateTable(tGeneralMortWONephropathy_2023,rAge+cycle,2)) -> 0.0855388178 | CI30: =IF(rGender=1,(0.742-(InterpolateTable(tQoL_AgeDecrements,VALUE(cycle),1)))-0.093,0.742-(InterpolateTable(tQoL_AgeDecrements,VALUE(cycle),1))) -> 0.695 | CJ30: =IF(rGender=1,(0.79-(InterpolateTable(tQoL_AgeDecrements,VALUE(cycle),1)))-0.093,0.79-(InterpolateTable(tQoL_AgeDecrements,VALUE(cycle),1))) -> 0.743 | CK30: =IF(rGender=1,(0.615-(InterpolateTable(tQoL_AgeDecrements,VALUE(cycle),1)))-0.093,0.615-(InterpolateTable(tQoL_AgeDecrements,VALUE(cycle),1))) -> 0.568 | CL30: =IF(rGender=1,(0.79-(InterpolateTable(tQoL_AgeDecrements,VALUE(cycle),1)))-0.093,0.79-(InterpolateTable(tQoL_AgeDecrements,VALUE(cycle),1))) -> 0.743
B31: 23 | D31: ='1. Strategy Calcs'!R31 -> 0.2099802665 | E31: ='1. Strategy Calcs'!AH31 -> 0.03594206575 | F31: ='1. Strategy Calcs'!AX31 -> 0.03354434842 | G31: ='1. Strategy Calcs'!BM31 -> 0.01184512267 | H31: ='1. Strategy Calcs'!BZ31 -> 0.7086881967 | I31: ='1. Strategy Calcs'!AA31 + '1. Strategy Calcs'!AQ31 + '1. Strategy Calcs'!BF31 + '1. Strategy Calcs'!BS31 -> 779.2432255 | J31: 62183.19958 | K31: ='1. Strategy Calcs'!AD31 + '1. Strategy Calcs'!AT31 + '1. Strategy Calcs'!BI31 + '1. Strategy Calcs'!BV31 + '1. Strategy Calcs'!CD31 -> 0.09943428835 | L31: 9.768893296 | M31: ='1. Strategy Calcs'!AG31 + '1. Strategy Calcs'!AW31 + '1. Strategy Calcs'!BL31 + '1. Strategy Calcs'!BY31 -> 0.1361496206 | N31: 12.65502136 | P31: 1 | R31: =0 + T30 + '1. Strategy Calcs'!AK30 -> 0.2099802665 | S31: 0.190240631 | T31: 0.1821069618 | U31: 0.005177881754 | V31: 0.002179358773 | W31: 0.0007764286703 | X31: 0.01973963544 | Y31: =(R31*(cT2DBaseCase))*'Time Discounting'!C28 -> 401.3740219 | Z31: 371.140122 | AA31: 371.140122 | AB31: =(R31*(INDEX(vQoLT2D_1,cycle+1)))*'Time Discounting'!E28 -> 0.07905168438 | AC31: 0.07309703714 | AD31: 0.07309703714 | AE31: =(R31*(1))*'Time Discounting'!G28 -> 0.1063952683 | AF31: 0.09838093828 | AG31: 0.09838093828 | AH31: =0 + '1. Strategy Calcs'!U30 + AJ30 -> 0.03594206575 | AI31: 0.02817080438 | AJ31: 0.02579227506 | AK31: 0.001589746794 | AL31: 0.0007887825226 | AM31: 0.007771261366 | AN31: =(AH31*(cFollowingMicroalbuminuriaBaseCase))*'Time Discounting'!C28 -> 129.4797365 | AO31: 118.8994069 | AP31: =(0)*'Time Discounting'!C28 -> 0 | AQ31: 118.8994069 | AR31: =(AH31*(INDEX(vQoLMicro_1,cycle+1)))*'Time Discounting'!E28 -> 0.01353118026 | AS31: 0.01242549106 | AT31: 0.01242549106 | AU31: =(AH31*(1))*'Time Discounting'!G28 -> 0.01821154814 | AV31: 0.01672340655 | AW31: 0.01672340655 | AX31: =0 + '1. Strategy Calcs'!V30 + '1. Strategy Calcs'!AL30 + AZ30 -> 0.03354434842 | AY31: 0.02575543352 | AZ31: 0.02516305855 | BA31: 0.000592374971 | BB31: 0.007788914902 | BC31: =(AX31*(cFollowingMacroalbuminuriaBaseCase))*'Time Discounting'!C28 -> 120.8420636 | BD31: 109.6159008 | BE31: =(0)*'Time Discounting'!C28 -> 0 | BF31: 109.6159008 | BG31: =(AX31*(INDEX(vQoLMacro_1,cycle+1)))*'Time Discounting'!E28 -> 0.01181266796 | BH31: 0.01071527745 | BI31: 0.01071527745 | BJ31: =(AX31*(1))*'Time Discounting'!G28 -> 0.01699664455 | BK31: 0.0154176654 | BL31: 0.0154176654 | BM31: =0 + '1. Strategy Calcs'!W30 + '1. Strategy Calcs'!BA30 + BN30 -> 0.01184512267 | BN31: 0.009310266417 | BO31: 0.002534856251 | BP31: =(BM31*(cFollowingRenalDiseaseBaseCase))*'Time Discounting'!C28 -> 191.5297284 | BQ31: 179.5877958 | BR31: =(0)*'Time Discounting'!C28 -> 0 | BS31: 179.5877958 | BT31: =(BM31*(INDEX(vQoLRenalDisease_1,cycle+1)))*'Time Discounting'!E28 -> 0.00340903712 | BU31: 0.003196482693 | BV31: 0.003196482693 | BW31: =(BM31*(1))*'Time Discounting'!G28 -> 0.006001825915 | BX31: 0.005627610374 | BY31: 0.005627610374 | BZ31: =0 + '1. Strategy Calcs'!X30 + '1. Strategy Calcs'!AM30 + '1. Strategy Calcs'!BB30 + '1. Strategy Calcs'!BO30 + CA30 -> 0.7086881967 | CA31: 0.7086881967 | CB31: =(BZ31*(vQoLDeath))*'Time Discounting'!E28 -> 0 | CC31: 0 | CD31: 0 | CF31: 0.2321975316 | CG31: 0.2162163249 | CH31: =IF(rGender=0,InterpolateTable(tGeneralMortWONephropathy_2023,rAge+cycle,1),InterpolateTable(tGeneralMortWONephropathy_2023,rAge+cycle,2)) -> 0.0940070978 | CI31: =IF(rGender=1,(0.742-(InterpolateTable(tQoL_AgeDecrements,VALUE(cycle),1)))-0.093,0.742-(InterpolateTable(tQoL_AgeDecrements,VALUE(cycle),1))) -> 0.695 | CJ31: =IF(rGender=1,(0.79-(InterpolateTable(tQoL_AgeDecrements,VALUE(cycle),1)))-0.093,0.79-(InterpolateTable(tQoL_AgeDecrements,VALUE(cycle),1))) -> 0.743 | CK31: =IF(rGender=1,(0.615-(InterpolateTable(tQoL_AgeDecrements,VALUE(cycle),1)))-0.093,0.615-(InterpolateTable(tQoL_AgeDecrements,VALUE(cycle),1))) -> 0.568 | CL31: =IF(rGender=1,(0.79-(InterpolateTable(tQoL_AgeDecrements,VALUE(cycle),1)))-0.093,0.79-(InterpolateTable(tQoL_AgeDecrements,VALUE(cycle),1))) -> 0.743
B32: 24 | D32: ='1. Strategy Calcs'!R32 -> 0.1836967086 | E32: ='1. Strategy Calcs'!AH32 -> 0.03097015682 | F32: ='1. Strategy Calcs'!AX32 -> 0.02813119985 | G32: ='1. Strategy Calcs'!BM32 -> 0.01067907006 | H32: ='1. Strategy Calcs'!BZ32 -> 0.7465228647 | I32: ='1. Strategy Calcs'!AA32 + '1. Strategy Calcs'!AQ32 + '1. Strategy Calcs'!BF32 + '1. Strategy Calcs'!BS32 -> 660.2353707 | J32: 62843.43495 | K32: ='1. Strategy Calcs'!AD32 + '1. Strategy Calcs'!AT32 + '1. Strategy Calcs'!BI32 + '1. Strategy Calcs'!BV32 + '1. Strategy Calcs'!CD32 -> 0.08392122181 | L32: 9.852814518 | M32: ='1. Strategy Calcs'!AG32 + '1. Strategy Calcs'!AW32 + '1. Strategy Calcs'!BL32 + '1. Strategy Calcs'!BY32 -> 0.1149158874 | N32: 12.76993724 | P32: 1 | R32: =0 + T31 + '1. Strategy Calcs'!AK31 -> 0.1836967086 | S32: 0.1661110871 | T32: 0.1589128957 | U32: 0.004616374455 | V32: 0.001916854201 | W32: 0.0006649627423 | X32: 0.01758562153 | Y32: =(R32*(cT2DBaseCase))*'Time Discounting'!C29 -> 340.9062222 | Z32: 314.835954 | AA32: 314.835954 | AB32: =(R32*(INDEX(vQoLT2D_1,cycle+1)))*'Time Discounting'!E29 -> 0.06714238991 | AC32: 0.06200778104 | AD32: 0.06200778104 | AE32: =(R32*(1))*'Time Discounting'!G29 -> 0.09036660822 | AF32: 0.08345596372 | AG32: 0.08345596372 | AH32: =0 + '1. Strategy Calcs'!U31 + AJ31 -> 0.03097015682 | AI32: 0.02415104852 | AJ32: 0.02211881484 | AK32: 0.001356004319 | AL32: 0.0006762293585 | AM32: 0.006819108298 | AN32: =(AH32*(cFollowingMicroalbuminuriaBaseCase))*'Time Discounting'!C29 -> 108.3190774 | AO32: 99.55135813 | AP32: =(0)*'Time Discounting'!C29 -> 0 | AQ32: 99.55135813 | AR32: =(AH32*(INDEX(vQoLMicro_1,cycle+1)))*'Time Discounting'!E29 -> 0.01131980186 | AS32: 0.01040353811 | AT32: 0.01040353811 | AU32: =(AH32*(1))*'Time Discounting'!G29 -> 0.01523526496 | AV32: 0.01400207013 | AW32: 0.01400207013 | AX32: =0 + '1. Strategy Calcs'!V31 + '1. Strategy Calcs'!AL31 + AZ31 -> 0.02813119985 | AY32: 0.02147936349 | AZ32: 0.02098533813 | BA32: 0.0004940253602 | BB32: 0.006651836358 | BC32: =(AX32*(cFollowingMacroalbuminuriaBaseCase))*'Time Discounting'!C29 -> 98.38973794 | BD32: 89.22703213 | BE32: =(0)*'Time Discounting'!C29 -> 0 | BF32: 89.22703213 | BG32: =(AX32*(INDEX(vQoLMacro_1,cycle+1)))*'Time Discounting'!E29 -> 0.009617886943 | BH32: 0.008722205437 | BI32: 0.008722205437 | BJ32: =(AX32*(1))*'Time Discounting'!G29 -> 0.01383868625 | BK32: 0.01254993588 | BL32: 0.01254993588 | BM32: =0 + '1. Strategy Calcs'!W31 + '1. Strategy Calcs'!BA31 + BN31 -> 0.01067907006 | BN32: 0.008393749066 | BO32: 0.002285320992 | BP32: =(BM32*(cFollowingRenalDiseaseBaseCase))*'Time Discounting'!C29 -> 167.6458631 | BQ32: 156.6210265 | BR32: =(0)*'Time Discounting'!C29 -> 0 | BS32: 156.6210265 | BT32: =(BM32*(INDEX(vQoLRenalDisease_1,cycle+1)))*'Time Discounting'!E29 -> 0.002983928266 | BU32: 0.002787697227 | BV32: 0.002787697227 | BW32: =(BM32*(1))*'Time Discounting'!G29 -> 0.005253394834 | BX32: 0.004907917654 | BY32: 0.004907917654 | BZ32: =0 + '1. Strategy Calcs'!X31 + '1. Strategy Calcs'!AM31 + '1. Strategy Calcs'!BB31 + '1. Strategy Calcs'!BO31 + CA31 -> 0.7465228647 | CA32: 0.7465228647 | CB32: =(BZ32*(vQoLDeath))*'Time Discounting'!E29 -> 0 | CC32: 0 | CD32: 0 | CF32: 0.2364576127 | CG32: 0.2201832021 | CH32: =IF(rGender=0,InterpolateTable(tGeneralMortWONephropathy_2023,rAge+cycle,1),InterpolateTable(tGeneralMortWONephropathy_2023,rAge+cycle,2)) -> 0.095731827 | CI32: =IF(rGender=1,(0.742-(InterpolateTable(tQoL_AgeDecrements,VALUE(cycle),1)))-0.093,0.742-(InterpolateTable(tQoL_AgeDecrements,VALUE(cycle),1))) -> 0.695 | CJ32: =IF(rGender=1,(0.79-(InterpolateTable(tQoL_AgeDecrements,VALUE(cycle),1)))-0.093,0.79-(InterpolateTable(tQoL_AgeDecrements,VALUE(cycle),1))) -> 0.743 | CK32: =IF(rGender=1,(0.615-(InterpolateTable(tQoL_AgeDecrements,VALUE(cycle),1)))-0.093,0.615-(InterpolateTable(tQoL_AgeDecrements,VALUE(cycle),1))) -> 0.568 | CL32: =IF(rGender=1,(0.79-(InterpolateTable(tQoL_AgeDecrements,VALUE(cycle),1)))-0.093,0.79-(InterpolateTable(tQoL_AgeDecrements,VALUE(cycle),1))) -> 0.743
B33: 25 | D33: ='1. Strategy Calcs'!R33 -> 0.1602689 | E33: ='1. Strategy Calcs'!AH33 -> 0.0267351893 | F33: ='1. Strategy Calcs'!AX33 -> 0.02357842169 | G33: ='1. Strategy Calcs'!BM33 -> 0.009552737168 | H33: ='1. Strategy Calcs'!BZ33 -> 0.7798647518 | I33: ='1. Strategy Calcs'!AA33 + '1. Strategy Calcs'!AQ33 + '1. Strategy Calcs'!BF33 + '1. Strategy Calcs'!BS33 -> 558.6311999 | J33: 63402.06615 | K33: ='1. Strategy Calcs'!AD33 + '1. Strategy Calcs'!AT33 + '1. Strategy Calcs'!BI33 + '1. Strategy Calcs'!BV33 + '1. Strategy Calcs'!CD33 -> 0.07077515559 | L33: 9.923589673 | M33: ='1. Strategy Calcs'!AG33 + '1. Strategy Calcs'!AW33 + '1. Strategy Calcs'!BL33 + '1. Strategy Calcs'!BY33 -> 0.09691810933 | N33: 12.86685535 | P33: 1 | R33: =0 + T32 + '1. Strategy Calcs'!AK32 -> 0.1602689 | S33: 0.1449260654 | T33: 0.1385599609 | U33: 0.004112441748 | V33: 0.001684619544 | W33: 0.0005690432465 | X33: 0.01534283461 | Y33: =(R33*(cT2DBaseCase))*'Time Discounting'!C30 -> 288.7656858 | Z33: 266.5966989 | AA33: 266.5966989 | AB33: =(R33*(INDEX(vQoLT2D_1,cycle+1)))*'Time Discounting'!E30 -> 0.05687317218 | AC33: 0.05250693105 | AD33: 0.05250693105 | AE33: =(R33*(1))*'Time Discounting'!G30 -> 0.07654531922 | AF33: 0.07066881703 | AG33: 0.07066881703 | AH33: =0 + '1. Strategy Calcs'!U32 + AJ32 -> 0.0267351893 | AI33: 0.02084854971 | AJ33: 0.01909421077 | AK33: 0.001170579548 | AL33: 0.0005837593919 | AM33: 0.005886639588 | AN33: =(AH33*(cFollowingMicroalbuminuriaBaseCase))*'Time Discounting'!C30 -> 90.78363888 | AO33: 83.64518072 | AP33: =(0)*'Time Discounting'!C30 -> 0 | AQ33: 83.64518072 | AR33: =(AH33*(INDEX(vQoLMicro_1,cycle+1)))*'Time Discounting'!E30 -> 0.009487274351 | AS33: 0.008741275272 | AT33: 0.008741275272 | AU33: =(AH33*(1))*'Time Discounting'!G30 -> 0.0127688753 | AV33: 0.01176483886 | AW33: 0.01176483886 | AX33: =0 + '1. Strategy Calcs'!V32 + '1. Strategy Calcs'!AL32 + AZ32 -> 0.02357842169 | AY33: 0.01800312439 | AZ33: 0.01758905252 | BA33: 0.0004140718609 | BB33: 0.005575297304 | BC33: =(AX33*(cFollowingMacroalbuminuriaBaseCase))*'Time Discounting'!C30 -> 80.06432631 | BD33: 72.76473841 | BE33: =(0)*'Time Discounting'!C30 -> 0 | BF33: 72.76473841 | BG33: =(AX33*(INDEX(vQoLMacro_1,cycle+1)))*'Time Discounting'!E30 -> 0.007826523931 | BH33: 0.007112967694 | BI33: 0.007112967694 | BJ33: =(AX33*(1))*'Time Discounting'!G30 -> 0.01126118551 | BK33: 0.01023448589 | BL33: 0.01023448589 | BM33: =0 + '1. Strategy Calcs'!W32 + '1. Strategy Calcs'!BA32 + BN32 -> 0.009552737168 | BN33: 0.007508451414 | BO33: 0.002044285754 | BP33: =(BM33*(cFollowingRenalDiseaseBaseCase))*'Time Discounting'!C30 -> 145.5961898 | BQ33: 135.6245819 | BR33: =(0)*'Time Discounting'!C30 -> 0 | BS33: 135.6245819 | BT33: =(BM33*(INDEX(vQoLRenalDisease_1,cycle+1)))*'Time Discounting'!E30 -> 0.002591466189 | BU33: 0.002413981568 | BV33: 0.002413981568 | BW33: =(BM33*(1))*'Time Discounting'!G30 -> 0.004562440473 | BX33: 0.004249967548 | BY33: 0.004249967548 | BZ33: =0 + '1. Strategy Calcs'!X32 + '1. Strategy Calcs'!AM32 + '1. Strategy Calcs'!BB32 + '1. Strategy Calcs'!BO32 + CA32 -> 0.7798647518 | CA33: 0.7798647518 | CB33: =(BZ33*(vQoLDeath))*'Time Discounting'!E30 -> 0 | CC33: 0 | CD33: 0 | CF33: 0.2364576127 | CG33: 0.2201832021 | CH33: =IF(rGender=0,InterpolateTable(tGeneralMortWONephropathy_2023,rAge+cycle,1),InterpolateTable(tGeneralMortWONephropathy_2023,rAge+cycle,2)) -> 0.095731827 | CI33: =IF(rGender=1,(0.742-(InterpolateTable(tQoL_AgeDecrements,VALUE(cycle),1)))-0.093,0.742-(InterpolateTable(tQoL_AgeDecrements,VALUE(cycle),1))) -> 0.695 | CJ33: =IF(rGender=1,(0.79-(InterpolateTable(tQoL_AgeDecrements,VALUE(cycle),1)))-0.093,0.79-(InterpolateTable(tQoL_AgeDecrements,VALUE(cycle),1))) -> 0.743 | CK33: =IF(rGender=1,(0.615-(InterpolateTable(tQoL_AgeDecrements,VALUE(cycle),1)))-0.093,0.615-(InterpolateTable(tQoL_AgeDecrements,VALUE(cycle),1))) -> 0.568 | CL33: =IF(rGender=1,(0.79-(InterpolateTable(tQoL_AgeDecrements,VALUE(cycle),1)))-0.093,0.79-(InterpolateTable(tQoL_AgeDecrements,VALUE(cycle),1))) -> 0.743
B34: 26 | D34: ='1. Strategy Calcs'!R34 -> 0.1397305404 | E34: ='1. Strategy Calcs'!AH34 -> 0.02320665252 | F34: ='1. Strategy Calcs'!AX34 -> 0.01985743146 | G34: ='1. Strategy Calcs'!BM34 -> 0.008491566521 | H34: ='1. Strategy Calcs'!BZ34 -> 0.8087138091 | I34: ='1. Strategy Calcs'!AA34 + '1. Strategy Calcs'!AQ34 + '1. Strategy Calcs'!BF34 + '1. Strategy Calcs'!BS34 -> 472.6186871 | J34: 63874.68484 | K34: ='1. Strategy Calcs'!AD34 + '1. Strategy Calcs'!AT34 + '1. Strategy Calcs'!BI34 + '1. Strategy Calcs'!BV34 + '1. Strategy Calcs'!CD34 -> 0.05971934602 | L34: 9.983309019 | M34: ='1. Strategy Calcs'!AG34 + '1. Strategy Calcs'!AW34 + '1. Strategy Calcs'!BL34 + '1. Strategy Calcs'!BY34 -> 0.08177953332 | N34: 12.94863489 | P34: 1 | R34: =0 + T33 + '1. Strategy Calcs'!AK33 -> 0.1397305404 | S34: 0.1263538805 | T34: 0.1207268678 | U34: 0.003660917346 | V34: 0.001479478485 | W34: 0.0004866168185 | X34: 0.01337665992 | Y34: =(R34*(cT2DBaseCase))*'Time Discounting'!C31 -> 244.4277119 | Z34: 225.5936626 | AA34: 225.5936626 | AB34: =(R34*(INDEX(vQoLT2D_1,cycle+1)))*'Time Discounting'!E31 -> 0.04814068993 | AC34: 0.04443127368 | AD34: 0.04443127368 | AE34: =(R34*(1))*'Time Discounting'!G31 -> 0.06479231484 | AF34: 0.05979982998 | AG34: 0.05979982998 | AH34: =0 + '1. Strategy Calcs'!U33 + AJ33 -> 0.02320665252 | AI34: 0.01809693746 | AJ34: 0.01657413791 | AK34: 0.001016085299 | AL34: 0.0005067142488 | AM34: 0.005109715061 | AN34: =(AH34*(cFollowingMicroalbuminuriaBaseCase))*'Time Discounting'!C31 -> 76.50672257 | AO34: 70.63689762 | AP34: =(0)*'Time Discounting'!C31 -> 0 | AQ34: 70.63689762 | AR34: =(AH34*(INDEX(vQoLMicro_1,cycle+1)))*'Time Discounting'!E31 -> 0.007995276193 | AS34: 0.007381854652 | AT34: 0.007381854652 | AU34: =(AH34*(1))*'Time Discounting'!G31 -> 0.01076080241 | AV34: 0.009935201416 | AW34: 0.009935201416 | AX34: =0 + '1. Strategy Calcs'!V33 + '1. Strategy Calcs'!AL33 + AZ33 -> 0.01985743146 | AY34: 0.01516199062 | AZ34: 0.01481326484 | BA34: 0.0003487257843 | BB34: 0.004695440837 | BC34: =(AX34*(cFollowingMacroalbuminuriaBaseCase))*'Time Discounting'!C31 -> 65.4651505 | BD34: 59.61789075 | BE34: =(0)*'Time Discounting'!C31 -> 0 | BF34: 59.61789075 | BG34: =(AX34*(INDEX(vQoLMacro_1,cycle+1)))*'Time Discounting'!E31 -> 0.006399411457 | BH34: 0.005827824578 | BI34: 0.005827824578 | BJ34: =(AX34*(1))*'Time Discounting'!G31 -> 0.009207786269 | BK34: 0.008385359105 | BL34: 0.008385359105 | BM34: =0 + '1. Strategy Calcs'!W33 + '1. Strategy Calcs'!BA33 + BN33 -> 0.008491566521 | BN34: 0.006674371286 | BO34: 0.001817195236 | BP34: =(BM34*(cFollowingRenalDiseaseBaseCase))*'Time Discounting'!C31 -> 125.6529741 | BQ34: 116.7702362 | BR34: =(0)*'Time Discounting'!C31 -> 0 | BS34: 116.7702362 | BT34: =(BM34*(INDEX(vQoLRenalDisease_1,cycle+1)))*'Time Discounting'!E31 -> 0.002236496946 | BU34: 0.002078393118 | BV34: 0.002078393118 | BW34: =(BM34*(1))*'Time Discounting'!G31 -> 0.003937494624 | BX34: 0.003659142814 | BY34: 0.003659142814 | BZ34: =0 + '1. Strategy Calcs'!X33 + '1. Strategy Calcs'!AM33 + '1. Strategy Calcs'!BB33 + '1. Strategy Calcs'!BO33 + CA33 -> 0.8087138091 | CA34: 0.8087138091 | CB34: =(BZ34*(vQoLDeath))*'Time Discounting'!E31 -> 0 | CC34: 0 | CD34: 0 | CF34: 0.2364576127 | CG34: 0.2201832021 | CH34: =IF(rGender=0,InterpolateTable(tGeneralMortWONephropathy_2023,rAge+cycle,1),InterpolateTable(tGeneralMortWONephropathy_2023,rAge+cycle,2)) -> 0.095731827 | CI34: =IF(rGender=1,(0.742-(InterpolateTable(tQoL_AgeDecrements,VALUE(cycle),1)))-0.093,0.742-(InterpolateTable(tQoL_AgeDecrements,VALUE(cycle),1))) -> 0.695 | CJ34: =IF(rGender=1,(0.79-(InterpolateTable(tQoL_AgeDecrements,VALUE(cycle),1)))-0.093,0.79-(InterpolateTable(tQoL_AgeDecrements,VALUE(cycle),1))) -> 0.743 | CK34: =IF(rGender=1,(0.615-(InterpolateTable(tQoL_AgeDecrements,VALUE(cycle),1)))-0.093,0.615-(InterpolateTable(tQoL_AgeDecrements,VALUE(cycle),1))) -> 0.568 | CL34: =IF(rGender=1,(0.79-(InterpolateTable(tQoL_AgeDecrements,VALUE(cycle),1)))-0.093,0.79-(InterpolateTable(tQoL_AgeDecrements,VALUE(cycle),1))) -> 0.743
B35: 27 | D35: ='1. Strategy Calcs'!R35 -> 0.1217429531 | E35: ='1. Strategy Calcs'!AH35 -> 0.02023505525 | F35: ='1. Strategy Calcs'!AX35 -> 0.01679945757 | G35: ='1. Strategy Calcs'!BM35 -> 0.007509713889 | H35: ='1. Strategy Calcs'!BZ35 -> 0.8337128202 | I35: ='1. Strategy Calcs'!AA35 + '1. Strategy Calcs'!AQ35 + '1. Strategy Calcs'!BF35 + '1. Strategy Calcs'!BS35 -> 399.7978424 | J35: 64274.48268 | K35: ='1. Strategy Calcs'!AD35 + '1. Strategy Calcs'!AT35 + '1. Strategy Calcs'!BI35 + '1. Strategy Calcs'!BV35 + '1. Strategy Calcs'!CD35 -> 0.05040966578 | L35: 10.03371868 | M35: ='1. Strategy Calcs'!AG35 + '1. Strategy Calcs'!AW35 + '1. Strategy Calcs'!BL35 + '1. Strategy Calcs'!BY35 -> 0.06903046924 | N35: 13.01766535 | P35: 1 | R35: =0 + T34 + '1. Strategy Calcs'!AK34 -> 0.1217429531 | S35: 0.1100882778 | T35: 0.1051171996 | U35: 0.003256774387 | V35: 0.001298451544 | W35: 0.0004158522479 | X35: 0.01165467533 | Y35: =(R35*(cT2DBaseCase))*'Time Discounting'!C32 -> 206.7596133 | Z35: 190.7721803 | AA35: 190.7721803 | AB35: =(R35*(INDEX(vQoLT2D_1,cycle+1)))*'Time Discounting'!E32 -> 0.04072185742 | AC35: 0.03757308985 | AD35: 0.03757308985 | AE35: =(R35*(1))*'Time Discounting'!G32 -> 0.05480734511 | AF35: 0.05056943452 | AG35: 0.05056943452 | AH35: =0 + '1. Strategy Calcs'!U34 + AJ34 -> 0.02023505525 | AI35: 0.01577963599 | AJ35: 0.01445182997 | AK35: 0.0008859762153 | AL35: 0.0004418298078 | AM35: 0.00445541926 | AN35: =(AH35*(cFollowingMicroalbuminuriaBaseCase))*'Time Discounting'!C32 -> 64.76707267 | AO35: 59.89837613 | AP35: =(0)*'Time Discounting'!C32 -> 0 | AQ35: 59.89837613 | AR35: =(AH35*(INDEX(vQoLMicro_1,cycle+1)))*'Time Discounting'!E32 -> 0.006768433111 | AS35: 0.006259633724 | AT35: 0.006259633724 | AU35: =(AH35*(1))*'Time Discounting'!G32 -> 0.009109600418 | AV35: 0.008424809857 | AW35: 0.008424809857 | AX35: =0 + '1. Strategy Calcs'!V34 + '1. Strategy Calcs'!AL34 + AZ34 -> 0.01679945757 | AY35: 0.01282709794 | AZ35: 0.01253207469 | BA35: 0.0002950232526 | BB35: 0.003972359632 | BC35: =(AX35*(cFollowingMacroalbuminuriaBaseCase))*'Time Discounting'!C32 -> 53.770631 | BD35: 49.06106589 | BE35: =(0)*'Time Discounting'!C32 -> 0 | BF35: 49.06106589 | BG35: =(AX35*(INDEX(vQoLMacro_1,cycle+1)))*'Time Discounting'!E32 -> 0.0052562377 | BH35: 0.004795863825 | BI35: 0.004795863825 | BJ35: =(AX35*(1))*'Time Discounting'!G32 -> 0.007562931942 | BK35: 0.00690052349 | BL35: 0.00690052349 | BM35: =0 + '1. Strategy Calcs'!W34 + '1. Strategy Calcs'!BA34 + BN34 -> 0.007509713889 | BN35: 0.005902635117 | BO35: 0.001607078772 | BP35: =(BM35*(cFollowingRenalDiseaseBaseCase))*'Time Discounting'!C32 -> 107.8874983 | BQ35: 100.0662201 | BR35: =(0)*'Time Discounting'!C32 -> 0 | BS35: 100.0662201 | BT35: =(BM35*(INDEX(vQoLRenalDisease_1,cycle+1)))*'Time Discounting'!E32 -> 0.001920289291 | BU35: 0.001781078382 | BV35: 0.001781078382 | BW35: =(BM35*(1))*'Time Discounting'!G32 -> 0.003380791005 | BX35: 0.003135701376 | BY35: 0.003135701376 | BZ35: =0 + '1. Strategy Calcs'!X34 + '1. Strategy Calcs'!AM34 + '1. Strategy Calcs'!BB34 + '1. Strategy Calcs'!BO34 + CA34 -> 0.8337128202 | CA35: 0.8337128202 | CB35: =(BZ35*(vQoLDeath))*'Time Discounting'!E32 -> 0 | CC35: 0 | CD35: 0 | CF35: 0.2364576127 | CG35: 0.2201832021 | CH35: =IF(rGender=0,InterpolateTable(tGeneralMortWONephropathy_2023,rAge+cycle,1),InterpolateTable(tGeneralMortWONephropathy_2023,rAge+cycle,2)) -> 0.095731827 | CI35: =IF(rGender=1,(0.742-(InterpolateTable(tQoL_AgeDecrements,VALUE(cycle),1)))-0.093,0.742-(InterpolateTable(tQoL_AgeDecrements,VALUE(cycle),1))) -> 0.695 | CJ35: =IF(rGender=1,(0.79-(InterpolateTable(tQoL_AgeDecrements,VALUE(cycle),1)))-0.093,0.79-(InterpolateTable(tQoL_AgeDecrements,VALUE(cycle),1))) -> 0.743 | CK35: =IF(rGender=1,(0.615-(InterpolateTable(tQoL_AgeDecrements,VALUE(cycle),1)))-0.093,0.615-(InterpolateTable(tQoL_AgeDecrements,VALUE(cycle),1))) -> 0.568 | CL35: =IF(rGender=1,(0.79-(InterpolateTable(tQoL_AgeDecrements,VALUE(cycle),1)))-0.093,0.79-(InterpolateTable(tQoL_AgeDecrements,VALUE(cycle),1))) -> 0.743
B36: 28 | D36: ='1. Strategy Calcs'!R36 -> 0.1060031758 | E36: ='1. Strategy Calcs'!AH36 -> 0.01770860436 | F36: ='1. Strategy Calcs'!AX36 -> 0.01427235604 | G36: ='1. Strategy Calcs'!BM36 -> 0.006613510617 | H36: ='1. Strategy Calcs'!BZ36 -> 0.8554023531 | I36: ='1. Strategy Calcs'!AA36 + '1. Strategy Calcs'!AQ36 + '1. Strategy Calcs'!BF36 + '1. Strategy Calcs'!BS36 -> 338.1436818 | J36: 64612.62636 | K36: ='1. Strategy Calcs'!AD36 + '1. Strategy Calcs'!AT36 + '1. Strategy Calcs'!BI36 + '1. Strategy Calcs'!BV36 + '1. Strategy Calcs'!CD36 -> 0.04256226274 | L36: 10.07628095 | M36: ='1. Strategy Calcs'!AG36 + '1. Strategy Calcs'!AW36 + '1. Strategy Calcs'!BL36 + '1. Strategy Calcs'!BY36 -> 0.05828314744 | N36: 13.0759485 | P36: 1 | R36: =0 + T35 + '1. Strategy Calcs'!AK35 -> 0.1060031758 | S36: 0.09585529815 | T36: 0.09146592353 | U36: 0.002895376799 | V36: 0.001138846663 | W36: 0.0003551511576 | X36: 0.01014787769 | Y36: =(R36*(cT2DBaseCase))*'Time Discounting'!C33 -> 174.7847474 | Z36: 161.2240552 | AA36: 161.2240552 | AB36: =(R36*(INDEX(vQoLT2D_1,cycle+1)))*'Time Discounting'!E33 -> 0.03442432227 | AC36: 0.03175350778 | AD36: 0.03175350778 | AE36: =(R36*(1))*'Time Discounting'!G33 -> 0.04633152392 | AF36: 0.04273688799 | AG36: 0.04273688799 | AH36: =0 + '1. Strategy Calcs'!U35 + AJ35 -> 0.01770860436 | AI36: 0.01380946715 | AJ36: 0.01264744454 | AK36: 0.0007753575204 | AL36: 0.0003866650801 | AM36: 0.003899137212 | AN36: =(AH36*(cFollowingMicroalbuminuriaBaseCase))*'Time Discounting'!C33 -> 55.02967959 | AO36: 50.96119195 | AP36: =(0)*'Time Discounting'!C33 -> 0 | AQ36: 50.96119195 | AR36: =(AH36*(INDEX(vQoLMicro_1,cycle+1)))*'Time Discounting'!E33 -> 0.005750834337 | AS36: 0.005325660166 | AT36: 0.005325660166 | AU36: =(AH36*(1))*'Time Discounting'!G33 -> 0.007740019296 | AV36: 0.007167779496 | AW36: 0.007167779496 | AX36: =0 + '1. Strategy Calcs'!V35 + '1. Strategy Calcs'!AL35 + AZ35 -> 0.01427235604 | AY36: 0.0108975488 | AZ36: 0.01064690518 | BA36: 0.0002506436225 | BB36: 0.003374807237 | BC36: =(AX36*(cFollowingMacroalbuminuriaBaseCase))*'Time Discounting'!C33 -> 44.35150077 | BD36: 40.53784614 | BE36: =(0)*'Time Discounting'!C33 -> 0 | BF36: 40.53784614 | BG36: =(AX36*(INDEX(vQoLMacro_1,cycle+1)))*'Time Discounting'!E33 -> 0.004335489951 | BH36: 0.003962693968 | BI36: 0.003962693968 | BJ36: =(AX36*(1))*'Time Discounting'!G33 -> 0.006238115038 | BK36: 0.00570171794 | BL36: 0.00570171794 | BM36: =0 + '1. Strategy Calcs'!W35 + '1. Strategy Calcs'!BA35 + BN35 -> 0.006613510617 | BN36: 0.005198219345 | BO36: 0.001415291272 | BP36: =(BM36*(cFollowingRenalDiseaseBaseCase))*'Time Discounting'!C33 -> 92.24494193 | BQ36: 85.42058849 | BR36: =(0)*'Time Discounting'!C33 -> 0 | BS36: 85.42058849 | BT36: =(BM36*(INDEX(vQoLRenalDisease_1,cycle+1)))*'Time Discounting'!E33 -> 0.001641867473 | BU36: 0.001520400824 | BV36: 0.001520400824 | BW36: =(BM36*(1))*'Time Discounting'!G33 -> 0.002890611748 | BX36: 0.002676762014 | BY36: 0.002676762014 | BZ36: =0 + '1. Strategy Calcs'!X35 + '1. Strategy Calcs'!AM35 + '1. Strategy Calcs'!BB35 + '1. Strategy Calcs'!BO35 + CA35 -> 0.8554023531 | CA36: 0.8554023531 | CB36: =(BZ36*(vQoLDeath))*'Time Discounting'!E33 -> 0 | CC36: 0 | CD36: 0 | CF36: 0.2364576127 | CG36: 0.2201832021 | CH36: =IF(rGender=0,InterpolateTable(tGeneralMortWONephropathy_2023,rAge+cycle,1),InterpolateTable(tGeneralMortWONephropathy_2023,rAge+cycle,2)) -> 0.095731827 | CI36: =IF(rGender=1,(0.742-(InterpolateTable(tQoL_AgeDecrements,VALUE(cycle),1)))-0.093,0.742-(InterpolateTable(tQoL_AgeDecrements,VALUE(cycle),1))) -> 0.695 | CJ36: =IF(rGender=1,(0.79-(InterpolateTable(tQoL_AgeDecrements,VALUE(cycle),1)))-0.093,0.79-(InterpolateTable(tQoL_AgeDecrements,VALUE(cycle),1))) -> 0.743 | CK36: =IF(rGender=1,(0.615-(InterpolateTable(tQoL_AgeDecrements,VALUE(cycle),1)))-0.093,0.615-(InterpolateTable(tQoL_AgeDecrements,VALUE(cycle),1))) -> 0.568 | CL36: =IF(rGender=1,(0.79-(InterpolateTable(tQoL_AgeDecrements,VALUE(cycle),1)))-0.093,0.79-(InterpolateTable(tQoL_AgeDecrements,VALUE(cycle),1))) -> 0.743
B37: 29 | D37: ='1. Strategy Calcs'!R37 -> 0.09224128105 | E37: ='1. Strategy Calcs'!AH37 -> 0.01554282134 | F37: ='1. Strategy Calcs'!AX37 -> 0.01217241692 | G37: ='1. Strategy Calcs'!BM37 -> 0.005804014125 | H37: ='1. Strategy Calcs'!BZ37 -> 0.8742394666 | I37: ='1. Strategy Calcs'!AA37 + '1. Strategy Calcs'!AQ37 + '1. Strategy Calcs'!BF37 + '1. Strategy Calcs'!BS37 -> 285.9452643 | J37: 64898.57163 | K37: ='1. Strategy Calcs'!AD37 + '1. Strategy Calcs'!AT37 + '1. Strategy Calcs'!BI37 + '1. Strategy Calcs'!BV37 + '1. Strategy Calcs'!CD37 -> 0.03541247824 | L37: 10.11169343 | M37: ='1. Strategy Calcs'!AG37 + '1. Strategy Calcs'!AW37 + '1. Strategy Calcs'!BL37 + '1. Strategy Calcs'!BY37 -> 0.04921611723 | N37: 13.12516462 | P37: 1 | R37: =0 + T36 + '1. Strategy Calcs'!AK36 -> 0.09224128105 | S37: 0.08341085469 | T37: 0.07953701569 | U37: 0.002572473824 | V37: 0.0009982424298 | W37: 0.0003031227398 | X37: 0.008830426359 | Y37: =(R37*(cT2DBaseCase))*'Time Discounting'!C34 -> 147.6633631 | Z37: 136.1692103 | AA37: 136.1692103 | AB37: =(R37*(INDEX(vQoLT2D_1,cycle+1)))*'Time Discounting'!E34 -> 0.02908269329 | AC37: 0.02643056857 | AD37: 0.02643056857 | AE37: =(R37*(1))*'Time Discounting'!G34 -> 0.03914225207 | AF37: 0.03609540947 | AG37: 0.03609540947 | AH37: =0 + '1. Strategy Calcs'!U36 + AJ36 -> 0.01554282134 | AI37: 0.01212055317 | AJ37: 0.01110064729 | AK37: 0.0006805303893 | AL37: 0.0003393754888 | AM37: 0.003422268173 | AN37: =(AH37*(cFollowingMicroalbuminuriaBaseCase))*'Time Discounting'!C34 -> 46.89270432 | AO37: 43.47150616 | AP37: =(0)*'Time Discounting'!C34 -> 0 | AQ37: 43.47150616 | AR37: =(AH37*(INDEX(vQoLMicro_1,cycle+1)))*'Time Discounting'!E34 -> 0.004900485995 | AS37: 0.004476766861 | AT37: 0.004476766861 | AU37: =(AH37*(1))*'Time Discounting'!G34 -> 0.006595539697 | AV37: 0.006114342279 | AW37: 0.006114342279 | AX37: =0 + '1. Strategy Calcs'!V36 + '1. Strategy Calcs'!AL36 + AZ36 -> 0.01217241692 | AY37: 0.009294156277 | AZ37: 0.009080390683 | BA37: 0.0002137655944 | BB37: 0.002878260646 | BC37: =(AX37*(cFollowingMacroalbuminuriaBaseCase))*'Time Discounting'!C34 -> 36.72419151 | BD37: 33.61993081 | BE37: =(0)*'Time Discounting'!C34 -> 0 | BF37: 33.61993081 | BG37: =(AX37*(INDEX(vQoLMacro_1,cycle+1)))*'Time Discounting'!E34 -> 0.003589897985 | BH37: 0.003236015391 | BI37: 0.003236015391 | BJ37: =(AX37*(1))*'Time Discounting'!G34 -> 0.005165320842 | BK37: 0.004728701223 | BL37: 0.004728701223 | BM37: =0 + '1. Strategy Calcs'!W36 + '1. Strategy Calcs'!BA36 + BN36 -> 0.005804014125 | BN37: 0.004561955102 | BO37: 0.001242059023 | BP37: =(BM37*(cFollowingRenalDiseaseBaseCase))*'Time Discounting'!C34 -> 78.59623504 | BQ37: 72.68461704 | BR37: =(0)*'Time Discounting'!C34 -> 0 | BS37: 72.68461704 | BT37: =(BM37*(INDEX(vQoLRenalDisease_1,cycle+1)))*'Time Discounting'!E34 -> 0.001398934175 | BU37: 0.001269127412 | BV37: 0.001269127412 | BW37: =(BM37*(1))*'Time Discounting'!G34 -> 0.002462912281 | BX37: 0.002277664265 | BY37: 0.002277664265 | BZ37: =0 + '1. Strategy Calcs'!X36 + '1. Strategy Calcs'!AM36 + '1. Strategy Calcs'!BB36 + '1. Strategy Calcs'!BO36 + CA36 -> 0.8742394666 | CA37: 0.8742394666 | CB37: =(BZ37*(vQoLDeath))*'Time Discounting'!E34 -> 0 | CC37: 0 | CD37: 0 | CF37: 0.2364576127 | CG37: 0.2201832021 | CH37: =IF(rGender=0,InterpolateTable(tGeneralMortWONephropathy_2023,rAge+cycle,1),InterpolateTable(tGeneralMortWONephropathy_2023,rAge+cycle,2)) -> 0.095731827 | CI37: =IF(rGender=1,(0.742-(InterpolateTable(tQoL_AgeDecrements,VALUE(cycle),1)))-0.093,0.742-(InterpolateTable(tQoL_AgeDecrements,VALUE(cycle),1))) -> 0.695 | CJ37: =IF(rGender=1,(0.79-(InterpolateTable(tQoL_AgeDecrements,VALUE(cycle),1)))-0.093,0.79-(InterpolateTable(tQoL_AgeDecrements,VALUE(cycle),1))) -> 0.743 | CK37: =IF(rGender=1,(0.615-(InterpolateTable(tQoL_AgeDecrements,VALUE(cycle),1)))-0.093,0.615-(InterpolateTable(tQoL_AgeDecrements,VALUE(cycle),1))) -> 0.568 | CL37: =IF(rGender=1,(0.79-(InterpolateTable(tQoL_AgeDecrements,VALUE(cycle),1)))-0.093,0.79-(InterpolateTable(tQoL_AgeDecrements,VALUE(cycle),1))) -> 0.743
B38: 30 | D38: ='1. Strategy Calcs'!R38 -> 0.08021754608 | E38: ='1. Strategy Calcs'!AH38 -> 0.01367312112 | F38: ='1. Strategy Calcs'!AX38 -> 0.0104180086 | G38: ='1. Strategy Calcs'!BM38 -> 0.005078843436 | H38: ='1. Strategy Calcs'!BZ38 -> 0.8906124808 | I38: ='1. Strategy Calcs'!AA38 + '1. Strategy Calcs'!AQ38 + '1. Strategy Calcs'!BF38 + '1. Strategy Calcs'!BS38 -> 241.7555184 | J38: 65140.32714 | K38: ='1. Strategy Calcs'!AD38 + '1. Strategy Calcs'!AT38 + '1. Strategy Calcs'!BI38 + '1. Strategy Calcs'!BV38 + '1. Strategy Calcs'!CD38 -> 0.02937669104 | L38: 10.14107012 | M38: ='1. Strategy Calcs'!AG38 + '1. Strategy Calcs'!AW38 + '1. Strategy Calcs'!BL38 + '1. Strategy Calcs'!BY38 -> 0.04156194633 | N38: 13.16672657 | P38: 1 | R38: =0 + T37 + '1. Strategy Calcs'!AK37 -> 0.08021754608 | S38: 0.07253817384 | T38: 0.06912095951 | U38: 0.002284185803 | V38: 0.0008744686712 | W38: 0.0002585598587 | X38: 0.007679372244 | Y38: =(R38*(cT2DBaseCase))*'Time Discounting'!C35 -> 124.6750575 | Z38: 114.9390176 | AA38: 114.9390176 | AB38: =(R38*(INDEX(vQoLT2D_1,cycle+1)))*'Time Discounting'!E35 -> 0.02377844386 | AC38: 0.02192155377 | AD38: 0.02192155377 | AE38: =(R38*(1))*'Time Discounting'!G35 -> 0.03304856687 | AF38: 0.03046776062 | AG38: 0.03046776062 | AH38: =0 + '1. Strategy Calcs'!U37 + AJ37 -> 0.01367312112 | AI38: 0.01066252953 | AJ38: 0.009765311686 | AK38: 0.0005986670136 | AL38: 0.0002985508267 | AM38: 0.00301059159 | AN38: =(AH38*(cFollowingMicroalbuminuriaBaseCase))*'Time Discounting'!C35 -> 40.05030801 | AO38: 37.15841043 | AP38: =(0)*'Time Discounting'!C35 -> 0 | AQ38: 37.15841043 | AR38: =(AH38*(INDEX(vQoLMicro_1,cycle+1)))*'Time Discounting'!E35 -> 0.004053047728 | AS38: 0.003760390829 | AT38: 0.003760390829 | AU38: =(AH38*(1))*'Time Discounting'!G35 -> 0.005633144861 | AV38: 0.005226394481 | AW38: 0.005226394481 | AX38: =0 + '1. Strategy Calcs'!V37 + '1. Strategy Calcs'!AL37 + AZ37 -> 0.0104180086 | AY38: 0.007954591158 | AZ38: 0.007771635562 | BA38: 0.0001829555966 | BB38: 0.002463417443 | BC38: =(AX38*(cFollowingMacroalbuminuriaBaseCase))*'Time Discounting'!C35 -> 30.51567011 | BD38: 27.97629646 | BE38: =(0)*'Time Discounting'!C35 -> 0 | BF38: 27.97629646 | BG38: =(AX38*(INDEX(vQoLMacro_1,cycle+1)))*'Time Discounting'!E35 -> 0.002882132797 | BH38: 0.002642294968 | BI38: 0.002642294968 | BJ38: =(AX38*(1))*'Time Discounting'!G35 -> 0.004292081604 | BK38: 0.003934914323 | BL38: 0.003934914323 | BM38: =0 + '1. Strategy Calcs'!W37 + '1. Strategy Calcs'!BA37 + BN37 -> 0.005078843436 | BN38: 0.003991970941 | BO38: 0.001086872495 | BP38: =(BM38*(cFollowingRenalDiseaseBaseCase))*'Time Discounting'!C35 -> 66.77299904 | BQ38: 61.68179393 | BR38: =(0)*'Time Discounting'!C35 -> 0 | BS38: 61.68179393 | BT38: =(BM38*(INDEX(vQoLRenalDisease_1,cycle+1)))*'Time Discounting'!E35 -> 0.001139320648 | BU38: 0.001052451476 | BV38: 0.001052451476 | BW38: =(BM38*(1))*'Time Discounting'!G35 -> 0.002092416249 | BX38: 0.001932876908 | BY38: 0.001932876908 | BZ38: =0 + '1. Strategy Calcs'!X37 + '1. Strategy Calcs'!AM37 + '1. Strategy Calcs'!BB37 + '1. Strategy Calcs'!BO37 + CA37 -> 0.8906124808 | CA38: 0.8906124808 | CB38: =(BZ38*(vQoLDeath))*'Time Discounting'!E35 -> 0 | CC38: 0 | CD38: 0 | CF38: 0.2364576127 | CG38: 0.2201832021 | CH38: =IF(rGender=0,InterpolateTable(tGeneralMortWONephropathy_2023,rAge+cycle,1),InterpolateTable(tGeneralMortWONephropathy_2023,rAge+cycle,2)) -> 0.095731827 | CI38: =IF(rGender=1,(0.742-(InterpolateTable(tQoL_AgeDecrements,VALUE(cycle),1)))-0.093,0.742-(InterpolateTable(tQoL_AgeDecrements,VALUE(cycle),1))) -> 0.6715 | CJ38: =IF(rGender=1,(0.79-(InterpolateTable(tQoL_AgeDecrements,VALUE(cycle),1)))-0.093,0.79-(InterpolateTable(tQoL_AgeDecrements,VALUE(cycle),1))) -> 0.7195 | CK38: =IF(rGender=1,(0.615-(InterpolateTable(tQoL_AgeDecrements,VALUE(cycle),1)))-0.093,0.615-(InterpolateTable(tQoL_AgeDecrements,VALUE(cycle),1))) -> 0.5445 | CL38: =IF(rGender=1,(0.79-(InterpolateTable(tQoL_AgeDecrements,VALUE(cycle),1)))-0.093,0.79-(InterpolateTable(tQoL_AgeDecrements,VALUE(cycle),1))) -> 0.7195
B39: 31 | D39: ='1. Strategy Calcs'!R39 -> 0.06971962652 | E39: ='1. Strategy Calcs'!AH39 -> 0.01204949749 | F39: ='1. Strategy Calcs'!AX39 -> 0.00894465506 | G39: ='1. Strategy Calcs'!BM39 -> 0.004433486396 | H39: ='1. Strategy Calcs'!BZ39 -> 0.9048527345 | I39: ='1. Strategy Calcs'!AA39 + '1. Strategy Calcs'!AQ39 + '1. Strategy Calcs'!BF39 + '1. Strategy Calcs'!BS39 -> 204.3496478 | J39: 65344.67679 | K39: ='1. Strategy Calcs'!AD39 + '1. Strategy Calcs'!AT39 + '1. Strategy Calcs'!BI39 + '1. Strategy Calcs'!BV39 + '1. Strategy Calcs'!CD39 -> 0.02480856862 | L39: 10.16587869 | M39: ='1. Strategy Calcs'!AG39 + '1. Strategy Calcs'!AW39 + '1. Strategy Calcs'!BL39 + '1. Strategy Calcs'!BY39 -> 0.03509744812 | N39: 13.20182401 | P39: 1 | R39: =0 + T38 + '1. Strategy Calcs'!AK38 -> 0.06971962652 | S39: 0.0630452393 | T39: 0.06003225172 | U39: 0.002026984616 | V39: 0.0007655859887 | W39: 0.00022041697 | X39: 0.006674387225 | Y39: =(R39*(cT2DBaseCase))*'Time Discounting'!C36 -> 105.2029776 | Z39: 96.96137309 | AA39: 96.96137309 | AB39: =(R39*(INDEX(vQoLT2D_1,cycle+1)))*'Time Discounting'!E36 -> 0.02006466367 | AC39: 0.0184927973 | AD39: 0.0184927973 | AE39: =(R39*(1))*'Time Discounting'!G36 -> 0.02788695437 | AF39: 0.0257022895 | AG39: 0.0257022895 | AH39: =0 + '1. Strategy Calcs'!U38 + AJ38 -> 0.01204949749 | AI39: 0.009396400549 | AJ39: 0.008605723422 | AK39: 0.0005275779111 | AL39: 0.0002630992154 | AM39: 0.002653096941 | AN39: =(AH39*(cFollowingMicroalbuminuriaBaseCase))*'Time Discounting'!C36 -> 34.26651285 | AO39: 31.81162009 | AP39: =(0)*'Time Discounting'!C36 -> 0 | AQ39: 31.81162009 | AR39: =(AH39*(INDEX(vQoLMicro_1,cycle+1)))*'Time Discounting'!E36 -> 0.003467733931 | AS39: 0.003219301446 | AT39: 0.003219301446 | AU39: =(AH39*(1))*'Time Discounting'!G36 -> 0.004819644101 | AV39: 0.004474359203 | AW39: 0.004474359203 | AX39: =0 + '1. Strategy Calcs'!V38 + '1. Strategy Calcs'!AL38 + AZ38 -> 0.00894465506 | AY39: 0.006829623278 | AZ39: 0.006672541943 | BA39: 0.0001570813354 | BB39: 0.002115031782 | BC39: =(AX39*(cFollowingMacroalbuminuriaBaseCase))*'Time Discounting'!C36 -> 25.43692281 | BD39: 23.34994045 | BE39: =(0)*'Time Discounting'!C36 -> 0 | BF39: 23.34994045 | BG39: =(AX39*(INDEX(vQoLMacro_1,cycle+1)))*'Time Discounting'!E36 -> 0.002402457139 | BH39: 0.002205346596 | BI39: 0.002205346596 | BJ39: =(AX39*(1))*'Time Discounting'!G36 -> 0.003577747042 | BK39: 0.003284209376 | BL39: 0.003284209376 | BM39: =0 + '1. Strategy Calcs'!W38 + '1. Strategy Calcs'!BA38 + BN38 -> 0.004433486396 | BN39: 0.003484720308 | BO39: 0.0009487660888 | BP39: =(BM39*(cFollowingRenalDiseaseBaseCase))*'Time Discounting'!C36 -> 56.59058883 | BQ39: 52.22671419 | BR39: =(0)*'Time Discounting'!C36 -> 0 | BS39: 52.22671419 | BT39: =(BM39*(INDEX(vQoLRenalDisease_1,cycle+1)))*'Time Discounting'!E36 -> 0.0009655823051 | BU39: 0.000891123279 | BV39: 0.000891123279 | BW39: =(BM39*(1))*'Time Discounting'!G36 -> 0.001773337567 | BX39: 0.001636590044 | BY39: 0.001636590044 | BZ39: =0 + '1. Strategy Calcs'!X38 + '1. Strategy Calcs'!AM38 + '1. Strategy Calcs'!BB38 + '1. Strategy Calcs'!BO38 + CA38 -> 0.9048527345 | CA39: 0.9048527345 | CB39: =(BZ39*(vQoLDeath))*'Time Discounting'!E36 -> 0 | CC39: 0 | CD39: 0 | CF39: 0.2364576127 | CG39: 0.2201832021 | CH39: =IF(rGender=0,InterpolateTable(tGeneralMortWONephropathy_2023,rAge+cycle,1),InterpolateTable(tGeneralMortWONephropathy_2023,rAge+cycle,2)) -> 0.095731827 | CI39: =IF(rGender=1,(0.742-(InterpolateTable(tQoL_AgeDecrements,VALUE(cycle),1)))-0.093,0.742-(InterpolateTable(tQoL_AgeDecrements,VALUE(cycle),1))) -> 0.6715 | CJ39: =IF(rGender=1,(0.79-(InterpolateTable(tQoL_AgeDecrements,VALUE(cycle),1)))-0.093,0.79-(InterpolateTable(tQoL_AgeDecrements,VALUE(cycle),1))) -> 0.7195 | CK39: =IF(rGender=1,(0.615-(InterpolateTable(tQoL_AgeDecrements,VALUE(cycle),1)))-0.093,0.615-(InterpolateTable(tQoL_AgeDecrements,VALUE(cycle),1))) -> 0.5445 | CL39: =IF(rGender=1,(0.79-(InterpolateTable(tQoL_AgeDecrements,VALUE(cycle),1)))-0.093,0.79-(InterpolateTable(tQoL_AgeDecrements,VALUE(cycle),1))) -> 0.7195
B40: 32 | D40: ='1. Strategy Calcs'!R40 -> 0.06055982963 | E40: ='1. Strategy Calcs'!AH40 -> 0.01063270804 | F40: ='1. Strategy Calcs'!AX40 -> 0.007701227147 | G40: ='1. Strategy Calcs'!BM40 -> 0.003862218613 | H40: ='1. Strategy Calcs'!BZ40 -> 0.9172440166 | I40: ='1. Strategy Calcs'!AA40 + '1. Strategy Calcs'!AQ40 + '1. Strategy Calcs'!BF40 + '1. Strategy Calcs'!BS40 -> 172.6904521 | J40: 65517.36724 | K40: ='1. Strategy Calcs'!AD40 + '1. Strategy Calcs'!AT40 + '1. Strategy Calcs'!BI40 + '1. Strategy Calcs'!BV40 + '1. Strategy Calcs'!CD40 -> 0.02094903851 | L40: 10.18682772 | M40: ='1. Strategy Calcs'!AG40 + '1. Strategy Calcs'!AW40 + '1. Strategy Calcs'!BL40 + '1. Strategy Calcs'!BY40 -> 0.02963585988 | N40: 13.23145987 | P40: =SUM(D40:H40) -> 1 | R40: =0 + T39 + '1. Strategy Calcs'!AK39 -> 0.06055982963 | S40: =R40*(1-(INDEX(pT2DToDeath_1,cycle+1))) -> 0.0547623265 | T40: =S40*(1-((1-(0.78^(EXP(((((((((((((((0.02114*(rAge+cycle))+(0.16956*rGender))-(0.00804*risBlack))+(0.17342*risHispanic))+(0.28362*rSmoker))+(0.00334*rSBP))+(0.22312*rCVDHistory))+(0.28372*rAntiHypertensiveDrugs))+(0.06584*rOralT2DDrugs))+(0.42199*rAnticoagulants))+(0.13847*rHbA1c))+(0.00034*rTotalCholesterol))-(0.0097*rHDL))+(0.67026*rSerumCreatinine))-3.64)/10))))-((1-(0.94^(EXP((((((((((((((((0.00733*(rAge+cycle))+(0.2738*rGender))-(0.00556*risBlack))+(0.3563*risHispanic))+(0.1001*rSmoker))+((-0.00101)*rSBP))+(0.2557*rCVDHistory))+(0.2418*rAntiHypertensiveDrugs))+(0.09015*rOralT2DDrugs))+(0.01091*rAnticoagulants))+(0.09639*rHbA1c))+(0.00009*rTotalCholesterol))-(0.01135*rHDL))+(1.149*rSerumCreatinine))+(0.01335*rUrinAlbumin_Creatinine))-2.66)/10))))-((1-(0.973^(EXP(((((((((((((((((-0.01938)*(rAge+cycle))+((-0.01129)*rGender))+(0.08812*risBlack))+(0.2338*risHispanic))+(0.1483*rSmoker))+(0.00303*rSBP))+((-0.02164)*rCVDHistory))+((-0.07952)*rAntiHypertensiveDrugs))-(0.1256*rOralT2DDrugs))+(0.03199*rAnticoagulants))+(0.1369*rHbA1c))-(0.00111*rTotalCholesterol))+(0.00629*rHDL))+(0.8609*rSerumCreatinine))+(0.00036*rUrinAlbumin_Creatinine))-0.23)/10))))) -> 0.052107 | U40: =S40*((1-(0.78^(EXP(((((((((((((((0.02114*(rAge+cycle))+(0.16956*rGender))-(0.00804*risBlack))+(0.17342*risHispanic))+(0.28362*rSmoker))+(0.00334*rSBP))+(0.22312*rCVDHistory))+(0.28372*rAntiHypertensiveDrugs))+(0.06584*rOralT2DDrugs))+(0.42199*rAnticoagulants))+(0.13847*rHbA1c))+(0.00034*rTotalCholesterol))-(0.0097*rHDL))+(0.67026*rSerumCreatinine))-3.64)/10)))) -> 0.001797671169 | V40: =S40*((1-(0.94^(EXP((((((((((((((((0.00733*(rAge+cycle))+(0.2738*rGender))-(0.00556*risBlack))+(0.3563*risHispanic))+(0.1001*rSmoker))+((-0.00101)*rSBP))+(0.2557*rCVDHistory))+(0.2418*rAntiHypertensiveDrugs))+(0.09015*rOralT2DDrugs))+(0.01091*rAnticoagulants))+(0.09639*rHbA1c))+(0.00009*rTotalCholesterol))-(0.01135*rHDL))+(1.149*rSerumCreatinine))+(0.01335*rUrinAlbumin_Creatinine))-2.66)/10)))) -> 0.0006698652818 | W40: =S40*((1-(0.973^(EXP(((((((((((((((((-0.01938)*(rAge+cycle))+((-0.01129)*rGender))+(0.08812*risBlack))+(0.2338*risHispanic))+(0.1483*rSmoker))+(0.00303*rSBP))+((-0.02164)*rCVDHistory))+((-0.07952)*rAntiHypertensiveDrugs))-(0.1256*rOralT2DDrugs))+(0.03199*rAnticoagulants))+(0.1369*rHbA1c))-(0.00111*rTotalCholesterol))+(0.00629*rHDL))+(0.8609*rSerumCreatinine))+(0.00036*rUrinAlbumin_Creatinine))-0.23)/10)))) -> 0.000187790052 | X40: =R40*(INDEX(pT2DToDeath_1,cycle+1)) -> 0.005797503133 | Y40: =(R40*(cT2DBaseCase))*'Time Discounting'!C37 -> 88.71976855 | Z40: =(Y40 + Y41)/2 -> 81.74747979 | AA40: =SUM(Z40:Z40) -> 81.74747979 | AB40: =(R40*(INDEX(vQoLT2D_1,cycle+1)))*'Time Discounting'!E37 -> 0.01692093092 | AC40: =(AB40 + AB41)/2 -> 0.01559115269 | AD40: =SUM(AC40:AC40) -> 0.01559115269 | AE40: =(R40*(1))*'Time Discounting'!G37 -> 0.02351762463 | AF40: =(AE40 + AE41)/2 -> 0.02166942695 | AG40: =SUM(AF40:AF40) -> 0.02166942695 | AH40: =0 + '1. Strategy Calcs'!U39 + AJ39 -> 0.01063270804 | AI40: =AH40*(1-(INDEX(pMicroalbuminuriaToDeath_1,cycle+1))) -> 0.008291564335 | AJ40: =AI40*(1-(((((1-INDEX(pMicroalbuminuriaToDeath_1,cycle+1))*0.072)*vFactorHbA1cChange_Node3)*1))-((0.028*vHR_Intervention_MicroMacro_Node3))) -> 0.007593855651 | AK40: =AI40*(((((1-INDEX(pMicroalbuminuriaToDeath_1,cycle+1))*0.072)*vFactorHbA1cChange_Node3)*1)) -> 0.0004655448827 | AL40: =AI40*((0.028*vHR_Intervention_MicroMacro_Node3)) -> 0.0002321638014 | AM40: =AH40*(INDEX(pMicroalbuminuriaToDeath_1,cycle+1)) -> 0.002341143703 | AN40: =(AH40*(cFollowingMicroalbuminuriaBaseCase))*'Time Discounting'!C37 -> 29.35672733 | AO40: =(AN40 + AN41)/2 -> 27.265668 | AP40: =(0)*'Time Discounting'!C37 -> 0 | AQ40: =SUM(AO40:AP40) -> 27.265668 | AR40: =(AH40*(INDEX(vQoLMicro_1,cycle+1)))*'Time Discounting'!E37 -> 0.002970868962 | AS40: =(AR40 + AR41)/2 -> 0.002759256027 | AT40: =SUM(AS40:AS40) -> 0.002759256027 | AU40: =(AH40*(1))*'Time Discounting'!G37 -> 0.004129074304 | AV40: =(AU40 + AU41)/2 -> 0.003834963206 | AW40: =SUM(AV40:AV40) -> 0.003834963206 | AX40: =0 + '1. Strategy Calcs'!V39 + '1. Strategy Calcs'!AL39 + AZ39 -> 0.007701227147 | AY40: =AX40*(1-(INDEX(pMacroalbuminuriaToDeath_1,cycle+1))) -> 0.005880213361 | AZ40: =AY40*(1-((0.023*vHR_Intervention_MacroRenal_Node3))) -> 0.005744968453 | BA40: =AY40*((0.023*vHR_Intervention_MacroRenal_Node3)) -> 0.0001352449073 | BB40: =AX40*(INDEX(pMacroalbuminuriaToDeath_1,cycle+1)) -> 0.001821013786 | BC40: =(AX40*(cFollowingMacroalbuminuriaBaseCase))*'Time Discounting'!C37 -> 21.26295809 | BD40: =(BC40 + BC41)/2 -> 19.54033727 | BE40: =(0)*'Time Discounting'!C37 -> 0 | BF40: =SUM(BD40:BE40) -> 19.54033727 | BG40: =(AX40*(INDEX(vQoLMacro_1,cycle+1)))*'Time Discounting'!E37 -> 0.002008236053 | BH40: =(BG40 + BG41)/2 -> 0.001845538594 | BI40: =SUM(BH40:BH40) -> 0.001845538594 | BJ40: =(AX40*(1))*'Time Discounting'!G37 -> 0.002990671709 | BK40: =(BJ40 + BJ41)/2 -> 0.002748382121 | BL40: =SUM(BK40:BK40) -> 0.002748382121 | BM40: =0 + '1. Strategy Calcs'!W39 + '1. Strategy Calcs'!BA39 + BN39 -> 0.003862218613 | BN40: =BM40*(1-((IF(rAge<64,0.214,0.365)*vHR_Intervention_RenalDeath_Node3))) -> 0.00303570383 | BO40: =BM40*((IF(rAge<64,0.214,0.365)*vHR_Intervention_RenalDeath_Node3)) -> 0.0008265147832 | BP40: =(BM40*(cFollowingRenalDiseaseBaseCase))*'Time Discounting'!C37 -> 47.86283956 | BQ40: =(BP40 + BP41)/2 -> 44.13696703 | BR40: =(0)*'Time Discounting'!C37 -> 0 | BS40: =SUM(BQ40:BR40) -> 44.13696703 | BT40: =(BM40*(INDEX(vQoLRenalDisease_1,cycle+1)))*'Time Discounting'!E37 -> 0.0008166642529 | BU40: =(BT40 + BT41)/2 -> 0.0007530911984 | BV40: =SUM(BU40:BU40) -> 0.0007530911984 | BW40: =(BM40*(1))*'Time Discounting'!G37 -> 0.001499842521 | BX40: =(BW40 + BW41)/2 -> 0.0013830876 | BY40: =SUM(BX40:BX40) -> 0.0013830876 | BZ40: =0 + '1. Strategy Calcs'!X39 + '1. Strategy Calcs'!AM39 + '1. Strategy Calcs'!BB39 + '1. Strategy Calcs'!BO39 + CA39 -> 0.9172440166 | CA40: =BZ40*(1) -> 0.9172440166 | CB40: =(BZ40*(vQoLDeath))*'Time Discounting'!E37 -> 0 | CC40: =(CB40 + CB41)/2 -> 0 | CD40: =SUM(CC40:CC40) -> 0 | CF40: =INDEX(pT2DToDeath_1,cycle+1)*2.47 -> 0.2364576127 | CG40: =IF(rAge<64,INDEX(pT2DToDeath_1,cycle+1)*2.3,INDEX(pT2DToDeath_1,cycle+1)*1.7) -> 0.2201832021 | CH40: =IF(rGender=0,InterpolateTable(tGeneralMortWONephropathy_2023,rAge+cycle,1),InterpolateTable(tGeneralMortWONephropathy_2023,rAge+cycle,2)) -> 0.095731827 | CI40: =IF(rGender=1,(0.742-(InterpolateTable(tQoL_AgeDecrements,VALUE(cycle),1)))-0.093,0.742-(InterpolateTable(tQoL_AgeDecrements,VALUE(cycle),1))) -> 0.6715 | CJ40: =IF(rGender=1,(0.79-(InterpolateTable(tQoL_AgeDecrements,VALUE(cycle),1)))-0.093,0.79-(InterpolateTable(tQoL_AgeDecrements,VALUE(cycle),1))) -> 0.7195 | CK40: =IF(rGender=1,(0.615-(InterpolateTable(tQoL_AgeDecrements,VALUE(cycle),1)))-0.093,0.615-(InterpolateTable(tQoL_AgeDecrements,VALUE(cycle),1))) -> 0.5445 | CL40: =IF(rGender=1,(0.79-(InterpolateTable(tQoL_AgeDecrements,VALUE(cycle),1)))-0.093,0.79-(InterpolateTable(tQoL_AgeDecrements,VALUE(cycle),1))) -> 0.7195
B41: 33 | D41: ='1. Strategy Calcs'!R41 -> 0.05257254488 | E41: ='1. Strategy Calcs'!AH41 -> 0.00939152682 | F41: ='1. Strategy Calcs'!AX41 -> 0.006646997537 | G41: ='1. Strategy Calcs'!BM41 -> 0.003358738789 | H41: ='1. Strategy Calcs'!BZ41 -> 0.928030192 | I41: ='1. Strategy Calcs'!AA41 + '1. Strategy Calcs'!AQ41 + '1. Strategy Calcs'!BF41 + '1. Strategy Calcs'!BS41 -> 145.8992821 | J41: =J40 + I41 -> 65663.26653 | K41: ='1. Strategy Calcs'!AD41 + '1. Strategy Calcs'!AT41 + '1. Strategy Calcs'!BI41 + '1. Strategy Calcs'!BV41 + '1. Strategy Calcs'!CD41 -> 0.0176874032 | L41: =L40 + K41 -> 10.20451513 | M41: ='1. Strategy Calcs'!AG41 + '1. Strategy Calcs'!AW41 + '1. Strategy Calcs'!BL41 + '1. Strategy Calcs'!BY41 -> 0.02502053878 | N41: =N40 + M41 -> 13.25648041 | P41: 1 | R41: =0 + T40 + '1. Strategy Calcs'!AK40 -> 0.05257254488 | S41: 0.04753967911 | T41: 0.04520066103 | U41: 0.001593351575 | V41: 0.0005857679182 | W41: 0.0001598985846 | X41: 0.005032865771 | Y41: =(R41*(cT2DBaseCase))*'Time Discounting'!C38 -> 74.77519102 | Z41: 68.88023849 | AA41: 68.88023849 | AB41: =(R41*(INDEX(vQoLT2D_1,cycle+1)))*'Time Discounting'!E38 -> 0.01426137446 | AC41: 0.01313706941 | AD41: 0.01313706941 | AE41: =(R41*(1))*'Time Discounting'!G38 -> 0.01982122928 | AF41: 0.01825860932 | AG41: 0.01825860932 | AH41: =0 + '1. Strategy Calcs'!U40 + AJ40 -> 0.00939152682 | AI41: 0.007323670372 | AJ41: 0.006707406877 | AK41: 0.0004112007249 | AL41: 0.0002050627704 | AM41: 0.002067856448 | AN41: =(AH41*(cFollowingMicroalbuminuriaBaseCase))*'Time Discounting'!C38 -> 25.17460868 | AO41: 23.38863053 | AP41: =(0)*'Time Discounting'!C38 -> 0 | AQ41: 23.38863053 | AR41: =(AH41*(INDEX(vQoLMicro_1,cycle+1)))*'Time Discounting'!E38 -> 0.002547643092 | AS41: 0.00236690404 | AT41: 0.00236690404 | AU41: =(AH41*(1))*'Time Discounting'!G38 -> 0.003540852108 | AV41: 0.003289651202 | AW41: 0.003289651202 | AX41: =0 + '1. Strategy Calcs'!V40 + '1. Strategy Calcs'!AL40 + AZ40 -> 0.006646997537 | AY41: 0.005075264368 | AZ41: 0.004958533287 | BA41: 0.0001167310805 | BB41: 0.001571733169 | BC41: =(AX41*(cFollowingMacroalbuminuriaBaseCase))*'Time Discounting'!C38 -> 17.81771645 | BD41: 16.39019334 | BE41: =(0)*'Time Discounting'!C38 -> 0 | BF41: 16.39019334 | BG41: =(AX41*(INDEX(vQoLMacro_1,cycle+1)))*'Time Discounting'!E38 -> 0.001682841136 | BH41: 0.001548014958 | BI41: 0.001548014958 | BJ41: =(AX41*(1))*'Time Discounting'!G38 -> 0.002506092533 | BK41: 0.002305308947 | BL41: 0.002305308947 | BM41: =0 + '1. Strategy Calcs'!W40 + '1. Strategy Calcs'!BA40 + BN40 -> 0.003358738789 | BN41: 0.002639968688 | BO41: 0.0007187701009 | BP41: =(BM41*(cFollowingRenalDiseaseBaseCase))*'Time Discounting'!C38 -> 40.4110945 | BQ41: 37.24021977 | BR41: =(0)*'Time Discounting'!C38 -> 0 | BS41: 37.24021977 | BT41: =(BM41*(INDEX(vQoLRenalDisease_1,cycle+1)))*'Time Discounting'!E38 -> 0.0006895181439 | BU41: 0.0006354147923 | BV41: 0.0006354147923 | BW41: =(BM41*(1))*'Time Discounting'!G38 -> 0.001266332679 | BX41: 0.001166969316 | BY41: 0.001166969316 | BZ41: =0 + '1. Strategy Calcs'!X40 + '1. Strategy Calcs'!AM40 + '1. Strategy Calcs'!BB40 + '1. Strategy Calcs'!BO40 + CA40 -> 0.928030192 | CA41: 0.928030192 | CB41: =(BZ41*(vQoLDeath))*'Time Discounting'!E38 -> 0 | CC41: 0 | CD41: 0 | CF41: 0.2364576127 | CG41: 0.2201832021 | CH41: =IF(rGender=0,InterpolateTable(tGeneralMortWONephropathy_2023,rAge+cycle,1),InterpolateTable(tGeneralMortWONephropathy_2023,rAge+cycle,2)) -> 0.095731827 | CI41: =IF(rGender=1,(0.742-(InterpolateTable(tQoL_AgeDecrements,VALUE(cycle),1)))-0.093,0.742-(InterpolateTable(tQoL_AgeDecrements,VALUE(cycle),1))) -> 0.6715 | CJ41: =IF(rGender=1,(0.79-(InterpolateTable(tQoL_AgeDecrements,VALUE(cycle),1)))-0.093,0.79-(InterpolateTable(tQoL_AgeDecrements,VALUE(cycle),1))) -> 0.7195 | CK41: =IF(rGender=1,(0.615-(InterpolateTable(tQoL_AgeDecrements,VALUE(cycle),1)))-0.093,0.615-(InterpolateTable(tQoL_AgeDecrements,VALUE(cycle),1))) -> 0.5445 | CL41: =IF(rGender=1,(0.79-(InterpolateTable(tQoL_AgeDecrements,VALUE(cycle),1)))-0.093,0.79-(InterpolateTable(tQoL_AgeDecrements,VALUE(cycle),1))) -> 0.7195
B42: 34 | D42: ='1. Strategy Calcs'!R42 -> 0.04561186175 | E42: ='1. Strategy Calcs'!AH42 -> 0.008300758452 | F42: ='1. Strategy Calcs'!AX42 -> 0.005749363976 | G42: ='1. Strategy Calcs'!BM42 -> 0.002916598353 | H42: ='1. Strategy Calcs'!BZ42 -> 0.9374214175 | I42: ='1. Strategy Calcs'!AA42 + '1. Strategy Calcs'!AQ42 + '1. Strategy Calcs'!BF42 + '1. Strategy Calcs'!BS42 -> 123.2316317 | J42: 65786.49816 | K42: ='1. Strategy Calcs'!AD42 + '1. Strategy Calcs'!AT42 + '1. Strategy Calcs'!BI42 + '1. Strategy Calcs'!BV42 + '1. Strategy Calcs'!CD42 -> 0.01493065641 | L42: 10.21944578 | M42: ='1. Strategy Calcs'!AG42 + '1. Strategy Calcs'!AW42 + '1. Strategy Calcs'!BL42 + '1. Strategy Calcs'!BY42 -> 0.02111984809 | N42: 13.27760026 | P42: 1 | R42: =0 + T41 + '1. Strategy Calcs'!AK41 -> 0.04561186175 | S42: 0.0412453549 | T42: 0.03918594532 | U42: 0.00141141311 | V42: 0.0005119269511 | W42: 0.0001360695114 | X42: 0.004366506859 | Y42: =(R42*(cT2DBaseCase))*'Time Discounting'!C39 -> 62.98528595 | Z42: 58.0041154 | AA42: 58.0041154 | AB42: =(R42*(INDEX(vQoLT2D_1,cycle+1)))*'Time Discounting'!E39 -> 0.01201276435 | AC42: 0.01106273884 | AD42: 0.01106273884 | AE42: =(R42*(1))*'Time Discounting'!G39 -> 0.01669598936 | AF42: 0.01537559255 | AG42: 0.01537559255 | AH42: =0 + '1. Strategy Calcs'!U41 + AJ41 -> 0.008300758452 | AI42: 0.006473070876 | AJ42: 0.005928382615 | AK42: 0.0003634422771 | AL42: 0.0001812459845 | AM42: 0.001827687576 | AN42: =(AH42*(cFollowingMicroalbuminuriaBaseCase))*'Time Discounting'!C39 -> 21.60265237 | AO42: 20.07402286 | AP42: =(0)*'Time Discounting'!C39 -> 0 | AQ42: 20.07402286 | AR42: =(AH42*(INDEX(vQoLMicro_1,cycle+1)))*'Time Discounting'!E39 -> 0.002186164988 | AS42: 0.002031469339 | AT42: 0.002031469339 | AU42: =(AH42*(1))*'Time Discounting'!G39 -> 0.003038450295 | AV42: 0.00282344592 | AW42: 0.00282344592 | AX42: =0 + '1. Strategy Calcs'!V41 + '1. Strategy Calcs'!AL41 + AZ41 -> 0.005749363976 | AY42: 0.004389883096 | AZ42: 0.004288915784 | BA42: 0.0001009673112 | BB42: 0.00135948088 | BC42: =(AX42*(cFollowingMacroalbuminuriaBaseCase))*'Time Discounting'!C39 -> 14.96267022 | BD42: 13.77543365 | BE42: =(0)*'Time Discounting'!C39 -> 0 | BF42: 13.77543365 | BG42: =(AX42*(INDEX(vQoLMacro_1,cycle+1)))*'Time Discounting'!E39 -> 0.001413188779 | BH42: 0.001301057095 | BI42: 0.001301057095 | BJ42: =(AX42*(1))*'Time Discounting'!G39 -> 0.00210452536 | BK42: 0.001937538489 | BL42: 0.001937538489 | BM42: =0 + '1. Strategy Calcs'!W41 + '1. Strategy Calcs'!BA41 + BN41 -> 0.002916598353 | BN42: 0.002292446306 | BO42: 0.0006241520476 | BP42: =(BM42*(cFollowingRenalDiseaseBaseCase))*'Time Discounting'!C39 -> 34.06934505 | BQ42: 31.37805982 | BR42: =(0)*'Time Discounting'!C39 -> 0 | BS42: 31.37805982 | BT42: =(BM42*(INDEX(vQoLRenalDisease_1,cycle+1)))*'Time Discounting'!E39 -> 0.0005813114408 | BU42: 0.0005353911305 | BV42: 0.0005353911305 | BW42: =(BM42*(1))*'Time Discounting'!G39 -> 0.001067605952 | BX42: 0.0009832711303 | BY42: 0.0009832711303 | BZ42: =0 + '1. Strategy Calcs'!X41 + '1. Strategy Calcs'!AM41 + '1. Strategy Calcs'!BB41 + '1. Strategy Calcs'!BO41 + CA41 -> 0.9374214175 | CA42: 0.9374214175 | CB42: =(BZ42*(vQoLDeath))*'Time Discounting'!E39 -> 0 | CC42: 0 | CD42: 0 | CF42: 0.2364576127 | CG42: 0.2201832021 | CH42: =IF(rGender=0,InterpolateTable(tGeneralMortWONephropathy_2023,rAge+cycle,1),InterpolateTable(tGeneralMortWONephropathy_2023,rAge+cycle,2)) -> 0.095731827 | CI42: =IF(rGender=1,(0.742-(InterpolateTable(tQoL_AgeDecrements,VALUE(cycle),1)))-0.093,0.742-(InterpolateTable(tQoL_AgeDecrements,VALUE(cycle),1))) -> 0.6715 | CJ42: =IF(rGender=1,(0.79-(InterpolateTable(tQoL_AgeDecrements,VALUE(cycle),1)))-0.093,0.79-(InterpolateTable(tQoL_AgeDecrements,VALUE(cycle),1))) -> 0.7195 | CK42: =IF(rGender=1,(0.615-(InterpolateTable(tQoL_AgeDecrements,VALUE(cycle),1)))-0.093,0.615-(InterpolateTable(tQoL_AgeDecrements,VALUE(cycle),1))) -> 0.5445 | CL42: =IF(rGender=1,(0.79-(InterpolateTable(tQoL_AgeDecrements,VALUE(cycle),1)))-0.093,0.79-(InterpolateTable(tQoL_AgeDecrements,VALUE(cycle),1))) -> 0.7195
B43: 35 | D43: ='1. Strategy Calcs'!R43 -> 0.0395493876 | E43: ='1. Strategy Calcs'!AH43 -> 0.007339795725 | F43: ='1. Strategy Calcs'!AX43 -> 0.00498208872 | G43: ='1. Strategy Calcs'!BM43 -> 0.002529483128 | H43: ='1. Strategy Calcs'!BZ43 -> 0.9455992448 | I43: ='1. Strategy Calcs'!AA43 + '1. Strategy Calcs'!AQ43 + '1. Strategy Calcs'!BF43 + '1. Strategy Calcs'!BS43 -> 104.0565715 | J43: 65890.55473 | K43: ='1. Strategy Calcs'!AD43 + '1. Strategy Calcs'!AT43 + '1. Strategy Calcs'!BI43 + '1. Strategy Calcs'!BV43 + '1. Strategy Calcs'!CD43 -> 0.0126005224 | L43: 10.23204631 | M43: ='1. Strategy Calcs'!AG43 + '1. Strategy Calcs'!AW43 + '1. Strategy Calcs'!BL43 + '1. Strategy Calcs'!BY43 -> 0.0178229839 | N43: 13.29542324 | P43: 1 | R43: =0 + T42 + '1. Strategy Calcs'!AK42 -> 0.0395493876 | S43: 0.03576325247 | T43: 0.03395089909 | U43: 0.001249500704 | V43: 0.0004471296049 | W43: 0.0001157230648 | X43: 0.003786135132 | Y43: =(R43*(cT2DBaseCase))*'Time Discounting'!C40 -> 53.02294485 | Z43: 48.81634186 | AA43: 48.81634186 | AB43: =(R43*(INDEX(vQoLT2D_1,cycle+1)))*'Time Discounting'!E40 -> 0.01011271334 | AC43: 0.009310415952 | AD43: 0.009310415952 | AE43: =(R43*(1))*'Time Discounting'!G40 -> 0.01405519575 | AF43: 0.01294011946 | AG43: 0.01294011946 | AH43: =0 + '1. Strategy Calcs'!U42 + AJ42 -> 0.007339795725 | AI43: 0.005723696 | AJ43: 0.005242065243 | AK43: 0.0003213672686 | AL43: 0.000160263488 | AM43: 0.001616099726 | AN43: =(AH43*(cFollowingMicroalbuminuriaBaseCase))*'Time Discounting'!C40 -> 18.54539335 | AO43: 17.23491953 | AP43: =(0)*'Time Discounting'!C40 -> 0 | AQ43: 17.23491953 | AR43: =(AH43*(INDEX(vQoLMicro_1,cycle+1)))*'Time Discounting'!E40 -> 0.001876773691 | AS43: 0.001744155162 | AT43: 0.001744155162 | AU43: =(AH43*(1))*'Time Discounting'!G40 -> 0.002608441544 | AV43: 0.002424121143 | AW43: 0.002424121143 | AX43: =0 + '1. Strategy Calcs'!V42 + '1. Strategy Calcs'!AL42 + AZ42 -> 0.00498208872 | AY43: 0.003804035915 | AZ43: 0.003716543089 | BA43: 8.749282605e-05 | BB43: 0.001178052805 | BC43: =(AX43*(cFollowingMacroalbuminuriaBaseCase))*'Time Discounting'!C40 -> 12.58819707 | BD43: 11.59761756 | BE43: =(0)*'Time Discounting'!C40 -> 0 | BF43: 11.59761756 | BG43: =(AX43*(INDEX(vQoLMacro_1,cycle+1)))*'Time Discounting'!E40 -> 0.001188925411 | BH43: 0.001095367522 | BI43: 0.001095367522 | BJ43: =(AX43*(1))*'Time Discounting'!G40 -> 0.001770551618 | BK43: 0.001631224902 | BL43: 0.001631224902 | BM43: =0 + '1. Strategy Calcs'!W42 + '1. Strategy Calcs'!BA42 + BN42 -> 0.002529483128 | BN43: 0.001988173739 | BO43: 0.0005413093894 | BP43: =(BM43*(cFollowingRenalDiseaseBaseCase))*'Time Discounting'!C40 -> 28.68677458 | BQ43: 26.4076925 | BR43: =(0)*'Time Discounting'!C40 -> 0 | BS43: 26.4076925 | BT43: =(BM43*(INDEX(vQoLRenalDisease_1,cycle+1)))*'Time Discounting'!E40 -> 0.0004894708202 | BU43: 0.0004505837653 | BV43: 0.0004505837653 | BW43: =(BM43*(1))*'Time Discounting'!G40 -> 0.0008989363088 | BX43: 0.0008275183935 | BY43: 0.0008275183935 | BZ43: =0 + '1. Strategy Calcs'!X42 + '1. Strategy Calcs'!AM42 + '1. Strategy Calcs'!BB42 + '1. Strategy Calcs'!BO42 + CA42 -> 0.9455992448 | CA43: 0.9455992448 | CB43: =(BZ43*(vQoLDeath))*'Time Discounting'!E40 -> 0 | CC43: 0 | CD43: 0 | CF43: 0.2364576127 | CG43: 0.2201832021 | CH43: =IF(rGender=0,InterpolateTable(tGeneralMortWONephropathy_2023,rAge+cycle,1),InterpolateTable(tGeneralMortWONephropathy_2023,rAge+cycle,2)) -> 0.095731827 | CI43: =IF(rGender=1,(0.742-(InterpolateTable(tQoL_AgeDecrements,VALUE(cycle),1)))-0.093,0.742-(InterpolateTable(tQoL_AgeDecrements,VALUE(cycle),1))) -> 0.6715 | CJ43: =IF(rGender=1,(0.79-(InterpolateTable(tQoL_AgeDecrements,VALUE(cycle),1)))-0.093,0.79-(InterpolateTable(tQoL_AgeDecrements,VALUE(cycle),1))) -> 0.7195 | CK43: =IF(rGender=1,(0.615-(InterpolateTable(tQoL_AgeDecrements,VALUE(cycle),1)))-0.093,0.615-(InterpolateTable(tQoL_AgeDecrements,VALUE(cycle),1))) -> 0.5445 | CL43: =IF(rGender=1,(0.79-(InterpolateTable(tQoL_AgeDecrements,VALUE(cycle),1)))-0.093,0.79-(InterpolateTable(tQoL_AgeDecrements,VALUE(cycle),1))) -> 0.7195
B44: 36 | D44: ='1. Strategy Calcs'!R44 -> 0.03427226636 | E44: ='1. Strategy Calcs'!AH44 -> 0.006491565947 | F44: ='1. Strategy Calcs'!AX44 -> 0.004323936182 | G44: ='1. Strategy Calcs'!BM44 -> 0.00219138963 | H44: ='1. Strategy Calcs'!BZ44 -> 0.9527208419 | I44: ='1. Strategy Calcs'!AA44 + '1. Strategy Calcs'!AQ44 + '1. Strategy Calcs'!BF44 + '1. Strategy Calcs'!BS44 -> 87.83938639 | J44: 65978.39412 | K44: ='1. Strategy Calcs'!AD44 + '1. Strategy Calcs'!AT44 + '1. Strategy Calcs'!BI44 + '1. Strategy Calcs'!BV44 + '1. Strategy Calcs'!CD44 -> 0.0106310293 | L44: 10.24267734 | M44: ='1. Strategy Calcs'!AG44 + '1. Strategy Calcs'!AW44 + '1. Strategy Calcs'!BL44 + '1. Strategy Calcs'!BY44 -> 0.01503655086 | N44: 13.3104598 | P44: 1 | R44: =0 + T43 + '1. Strategy Calcs'!AK43 -> 0.03427226636 | S44: 0.03099131969 | T44: 0.02939716384 | U44: 0.001105494409 | V44: 0.0003903011304 | W44: 9.836030395e-05 | X44: 0.003280946674 | Y44: =(R44*(cT2DBaseCase))*'Time Discounting'!C41 -> 44.60973888 | Z44: 41.05930083 | AA44: 41.05930083 | AB44: =(R44*(INDEX(vQoLT2D_1,cycle+1)))*'Time Discounting'!E41 -> 0.008508118565 | AC44: 0.007830967147 | AD44: 0.007830967147 | AE44: =(R44*(1))*'Time Discounting'!G41 -> 0.01182504318 | AF44: 0.01088390153 | AG44: 0.01088390153 | AH44: =0 + '1. Strategy Calcs'!U43 + AJ43 -> 0.006491565947 | AI44: 0.00506223217 | AJ44: 0.004636261485 | AK44: 0.0002842281851 | AL44: 0.0001417425008 | AM44: 0.001429333777 | AN44: =(AH44*(cFollowingMicroalbuminuriaBaseCase))*'Time Discounting'!C41 -> 15.92444572 | AO44: 14.7996444 | AP44: =(0)*'Time Discounting'!C41 -> 0 | AQ44: 14.7996444 | AR44: =(AH44*(INDEX(vQoLMicro_1,cycle+1)))*'Time Discounting'!E41 -> 0.001611536633 | AS44: 0.00149770796 | AT44: 0.00149770796 | AU44: =(AH44*(1))*'Time Discounting'!G41 -> 0.002239800741 | AV44: 0.002081595497 | AW44: 0.002081595497 | AX44: =0 + '1. Strategy Calcs'!V43 + '1. Strategy Calcs'!AL43 + AZ43 -> 0.004323936182 | AY44: 0.003301508555 | AZ44: 0.003225573858 | BA44: 7.593469676e-05 | BB44: 0.001022427627 | BC44: =(AX44*(cFollowingMacroalbuminuriaBaseCase))*'Time Discounting'!C41 -> 10.60703805 | BD44: 9.778180652 | BE44: =(0)*'Time Discounting'!C41 -> 0 | BF44: 9.778180652 | BG44: =(AX44*(INDEX(vQoLMacro_1,cycle+1)))*'Time Discounting'!E41 -> 0.001001809632 | BH44: 0.0009235260132 | BI44: 0.0009235260132 | BJ44: =(AX44*(1))*'Time Discounting'!G41 -> 0.001491898187 | BK44: 0.001375317965 | BL44: 0.001375317965 | BM44: =0 + '1. Strategy Calcs'!W43 + '1. Strategy Calcs'!BA43 + BN43 -> 0.00219138963 | BN44: 0.001722432249 | BO44: 0.0004689573807 | BP44: =(BM44*(cFollowingRenalDiseaseBaseCase))*'Time Discounting'!C41 -> 24.12861041 | BQ44: 22.20226051 | BR44: =(0)*'Time Discounting'!C41 -> 0 | BS44: 22.20226051 | BT44: =(BM44*(INDEX(vQoLRenalDisease_1,cycle+1)))*'Time Discounting'!E41 -> 0.0004116967104 | BU44: 0.000378828182 | BV44: 0.000378828182 | BW44: =(BM44*(1))*'Time Discounting'!G41 -> 0.0007561004782 | BX44: 0.0006957358714 | BY44: 0.0006957358714 | BZ44: =0 + '1. Strategy Calcs'!X43 + '1. Strategy Calcs'!AM43 + '1. Strategy Calcs'!BB43 + '1. Strategy Calcs'!BO43 + CA43 -> 0.9527208419 | CA44: 0.9527208419 | CB44: =(BZ44*(vQoLDeath))*'Time Discounting'!E41 -> 0 | CC44: 0 | CD44: 0 | CF44: 0.2364576127 | CG44: 0.2201832021 | CH44: =IF(rGender=0,InterpolateTable(tGeneralMortWONephropathy_2023,rAge+cycle,1),InterpolateTable(tGeneralMortWONephropathy_2023,rAge+cycle,2)) -> 0.095731827 | CI44: =IF(rGender=1,(0.742-(InterpolateTable(tQoL_AgeDecrements,VALUE(cycle),1)))-0.093,0.742-(InterpolateTable(tQoL_AgeDecrements,VALUE(cycle),1))) -> 0.6715 | CJ44: =IF(rGender=1,(0.79-(InterpolateTable(tQoL_AgeDecrements,VALUE(cycle),1)))-0.093,0.79-(InterpolateTable(tQoL_AgeDecrements,VALUE(cycle),1))) -> 0.7195 | CK44: =IF(rGender=1,(0.615-(InterpolateTable(tQoL_AgeDecrements,VALUE(cycle),1)))-0.093,0.615-(InterpolateTable(tQoL_AgeDecrements,VALUE(cycle),1))) -> 0.5445 | CL44: =IF(rGender=1,(0.79-(InterpolateTable(tQoL_AgeDecrements,VALUE(cycle),1)))-0.093,0.79-(InterpolateTable(tQoL_AgeDecrements,VALUE(cycle),1))) -> 0.7195
B45: 37 | D45: ='1. Strategy Calcs'!R45 -> 0.02968139203 | E45: ='1. Strategy Calcs'!AH45 -> 0.005741755894 | F45: ='1. Strategy Calcs'!AX45 -> 0.003757617489 | G45: ='1. Strategy Calcs'!BM45 -> 0.00189672725 | H45: ='1. Strategy Calcs'!BZ45 -> 0.9589225073 | I45: ='1. Strategy Calcs'!AA45 + '1. Strategy Calcs'!AQ45 + '1. Strategy Calcs'!BF45 + '1. Strategy Calcs'!BS45 -> 74.12689757 | J45: 66052.52101 | K45: ='1. Strategy Calcs'!AD45 + '1. Strategy Calcs'!AT45 + '1. Strategy Calcs'!BI45 + '1. Strategy Calcs'!BV45 + '1. Strategy Calcs'!CD45 -> 0.00896651011 | L45: 10.25164385 | M45: ='1. Strategy Calcs'!AG45 + '1. Strategy Calcs'!AW45 + '1. Strategy Calcs'!BL45 + '1. Strategy Calcs'!BY45 -> 0.01268173868 | N45: 13.32314153 | P45: 1 | R45: =0 + T44 + '1. Strategy Calcs'!AK44 -> 0.02968139203 | S45: 0.02683993814 | T45: 0.02543840776 | U45: 0.0009774881313 | V45: 0.0003404900492 | W45: 8.355220534e-05 | X45: 0.002841453887 | Y45: =(R45*(cT2DBaseCase))*'Time Discounting'!C42 -> 37.50886277 | Z45: 34.51396053 | AA45: 34.51396053 | AB45: =(R45*(INDEX(vQoLT2D_1,cycle+1)))*'Time Discounting'!E42 -> 0.00715381573 | AC45: 0.00658261796 | AD45: 0.00658261796 | AE45: =(R45*(1))*'Time Discounting'!G42 -> 0.009942759875 | AF45: 0.009148878332 | AG45: 0.009148878332 | AH45: =0 + '1. Strategy Calcs'!U44 + AJ44 -> 0.005741755894 | AI45: 0.004477517695 | AJ45: 0.004100748867 | AK45: 0.0002513983328 | AL45: 0.0001253704955 | AM45: 0.001264238198 | AN45: =(AH45*(cFollowingMicroalbuminuriaBaseCase))*'Time Discounting'!C42 -> 13.67484308 | AO45: 12.70857418 | AP45: =(0)*'Time Discounting'!C42 -> 0 | AQ45: 12.70857418 | AR45: =(AH45*(INDEX(vQoLMicro_1,cycle+1)))*'Time Discounting'!E42 -> 0.001383879287 | AS45: 0.001286093922 | AT45: 0.001286093922 | AU45: =(AH45*(1))*'Time Discounting'!G42 -> 0.001923390253 | AV45: 0.001787482866 | AW45: 0.001787482866 | AX45: =0 + '1. Strategy Calcs'!V44 + '1. Strategy Calcs'!AL44 + AZ44 -> 0.003757617489 | AY45: 0.002869100228 | AZ45: 0.002803110923 | BA45: 6.598930525e-05 | BB45: 0.0008885172609 | BC45: =(AX45*(cFollowingMacroalbuminuriaBaseCase))*'Time Discounting'!C42 -> 8.949323252 | BD45: 8.254050117 | BE45: =(0)*'Time Discounting'!C42 -> 0 | BF45: 8.254050117 | BG45: =(AX45*(INDEX(vQoLMacro_1,cycle+1)))*'Time Discounting'!E42 -> 0.0008452423941 | BH45: 0.0007795754925 | BI45: 0.0007795754925 | BJ45: =(AX45*(1))*'Time Discounting'!G42 -> 0.001258737742 | BK45: 0.001160946378 | BL45: 0.001160946378 | BM45: =0 + '1. Strategy Calcs'!W44 + '1. Strategy Calcs'!BA44 + BN44 -> 0.00189672725 | BN45: 0.001490827618 | BO45: 0.0004058996314 | BP45: =(BM45*(cFollowingRenalDiseaseBaseCase))*'Time Discounting'!C42 -> 20.27591061 | BQ45: 18.65031274 | BR45: =(0)*'Time Discounting'!C42 -> 0 | BS45: 18.65031274 | BT45: =(BM45*(INDEX(vQoLRenalDisease_1,cycle+1)))*'Time Discounting'!E42 -> 0.0003459596536 | BU45: 0.0003182227353 | BV45: 0.0003182227353 | BW45: =(BM45*(1))*'Time Discounting'!G42 -> 0.0006353712647 | BX45: 0.0005844311024 | BY45: 0.0005844311024 | BZ45: =0 + '1. Strategy Calcs'!X44 + '1. Strategy Calcs'!AM44 + '1. Strategy Calcs'!BB44 + '1. Strategy Calcs'!BO44 + CA44 -> 0.9589225073 | CA45: 0.9589225073 | CB45: =(BZ45*(vQoLDeath))*'Time Discounting'!E42 -> 0 | CC45: 0 | CD45: 0 | CF45: 0.2364576127 | CG45: 0.2201832021 | CH45: =IF(rGender=0,InterpolateTable(tGeneralMortWONephropathy_2023,rAge+cycle,1),InterpolateTable(tGeneralMortWONephropathy_2023,rAge+cycle,2)) -> 0.095731827 | CI45: =IF(rGender=1,(0.742-(InterpolateTable(tQoL_AgeDecrements,VALUE(cycle),1)))-0.093,0.742-(InterpolateTable(tQoL_AgeDecrements,VALUE(cycle),1))) -> 0.6715 | CJ45: =IF(rGender=1,(0.79-(InterpolateTable(tQoL_AgeDecrements,VALUE(cycle),1)))-0.093,0.79-(InterpolateTable(tQoL_AgeDecrements,VALUE(cycle),1))) -> 0.7195 | CK45: =IF(rGender=1,(0.615-(InterpolateTable(tQoL_AgeDecrements,VALUE(cycle),1)))-0.093,0.615-(InterpolateTable(tQoL_AgeDecrements,VALUE(cycle),1))) -> 0.5445 | CL45: =IF(rGender=1,(0.79-(InterpolateTable(tQoL_AgeDecrements,VALUE(cycle),1)))-0.093,0.79-(InterpolateTable(tQoL_AgeDecrements,VALUE(cycle),1))) -> 0.7195
B46: 38 | D46: ='1. Strategy Calcs'!R46 -> 0.02568980609 | E46: ='1. Strategy Calcs'!AH46 -> 0.005078236998 | F46: ='1. Strategy Calcs'!AX46 -> 0.003268971468 | G46: ='1. Strategy Calcs'!BM46 -> 0.001640369129 | H46: ='1. Strategy Calcs'!BZ46 -> 0.9643226163 | I46: ='1. Strategy Calcs'!AA46 + '1. Strategy Calcs'!AQ46 + '1. Strategy Calcs'!BF46 + '1. Strategy Calcs'!BS46 -> 62.53503944 | J46: 66115.05605 | K46: ='1. Strategy Calcs'!AD46 + '1. Strategy Calcs'!AT46 + '1. Strategy Calcs'!BI46 + '1. Strategy Calcs'!BV46 + '1. Strategy Calcs'!CD46 -> 0.00755994847 | L46: 10.25920379 | M46: ='1. Strategy Calcs'!AG46 + '1. Strategy Calcs'!AW46 + '1. Strategy Calcs'!BL46 + '1. Strategy Calcs'!BY46 -> 0.01069198376 | N46: 13.33383352 | P46: 1 | R46: =0 + T45 + '1. Strategy Calcs'!AK45 -> 0.02568980609 | S46: 0.02323047402 | T46: 0.02199891935 | U46: 0.0008637697683 | V46: 0.0002968547561 | W46: 7.093014364e-05 | X46: 0.002459332072 | Y46: =(R46*(cT2DBaseCase))*'Time Discounting'!C43 -> 31.51905829 | Z46: 28.99422561 | AA46: 28.99422561 | AB46: =(R46*(INDEX(vQoLT2D_1,cycle+1)))*'Time Discounting'!E43 -> 0.00601142019 | AC46: 0.00552987566 | AD46: 0.00552987566 | AE46: =(R46*(1))*'Time Discounting'!G43 -> 0.00835499679 | AF46: 0.007685720166 | AG46: 0.007685720166 | AH46: =0 + '1. Strategy Calcs'!U45 + AJ45 -> 0.005078236998 | AI46: 0.003960094515 | AJ46: 0.003626865196 | AK46: 0.0002223466721 | AL46: 0.0001108826464 | AM46: 0.001118142483 | AN46: =(AH46*(cFollowingMicroalbuminuriaBaseCase))*'Time Discounting'!C43 -> 11.74230528 | AO46: 10.91173755 | AP46: =(0)*'Time Discounting'!C43 -> 0 | AQ46: 10.91173755 | AR46: =(AH46*(INDEX(vQoLMicro_1,cycle+1)))*'Time Discounting'!E43 -> 0.001188308558 | AS46: 0.001104256004 | AT46: 0.001104256004 | AU46: =(AH46*(1))*'Time Discounting'!G43 -> 0.00165157548 | AV46: 0.001534754697 | AW46: 0.001534754697 | AX46: =0 + '1. Strategy Calcs'!V45 + '1. Strategy Calcs'!AL45 + AZ45 -> 0.003268971468 | AY46: 0.002495998279 | AZ46: 0.002438590318 | BA46: 5.740796041e-05 | BB46: 0.0007729731892 | BC46: =(AX46*(cFollowingMacroalbuminuriaBaseCase))*'Time Discounting'!C43 -> 7.558776983 | BD46: 6.974294485 | BE46: =(0)*'Time Discounting'!C43 -> 0 | BF46: 6.974294485 | BG46: =(AX46*(INDEX(vQoLMacro_1,cycle+1)))*'Time Discounting'!E43 -> 0.000713908591 | BH46: 0.0006587056028 | BI46: 0.0006587056028 | BJ46: =(AX46*(1))*'Time Discounting'!G43 -> 0.001063155013 | BK46: 0.0009809465418 | BL46: 0.0009809465418 | BM46: =0 + '1. Strategy Calcs'!W45 + '1. Strategy Calcs'!BA45 + BN45 -> 0.001640369129 | BN46: 0.001289330135 | BO46: 0.0003510389936 | BP46: =(BM46*(cFollowingRenalDiseaseBaseCase))*'Time Discounting'!C43 -> 17.02471487 | BQ46: 15.65478178 | BR46: =(0)*'Time Discounting'!C43 -> 0 | BS46: 15.65478178 | BT46: =(BM46*(INDEX(vQoLRenalDisease_1,cycle+1)))*'Time Discounting'!E43 -> 0.000290485817 | BU46: 0.0002671112033 | BV46: 0.0002671112033 | BW46: =(BM46*(1))*'Time Discounting'!G43 -> 0.0005334909402 | BX46: 0.0004905623569 | BY46: 0.0004905623569 | BZ46: =0 + '1. Strategy Calcs'!X45 + '1. Strategy Calcs'!AM45 + '1. Strategy Calcs'!BB45 + '1. Strategy Calcs'!BO45 + CA45 -> 0.9643226163 | CA46: 0.9643226163 | CB46: =(BZ46*(vQoLDeath))*'Time Discounting'!E43 -> 0 | CC46: 0 | CD46: 0 | CF46: 0.2364576127 | CG46: 0.2201832021 | CH46: =IF(rGender=0,InterpolateTable(tGeneralMortWONephropathy_2023,rAge+cycle,1),InterpolateTable(tGeneralMortWONephropathy_2023,rAge+cycle,2)) -> 0.095731827 | CI46: =IF(rGender=1,(0.742-(InterpolateTable(tQoL_AgeDecrements,VALUE(cycle),1)))-0.093,0.742-(InterpolateTable(tQoL_AgeDecrements,VALUE(cycle),1))) -> 0.6715 | CJ46: =IF(rGender=1,(0.79-(InterpolateTable(tQoL_AgeDecrements,VALUE(cycle),1)))-0.093,0.79-(InterpolateTable(tQoL_AgeDecrements,VALUE(cycle),1))) -> 0.7195 | CK46: =IF(rGender=1,(0.615-(InterpolateTable(tQoL_AgeDecrements,VALUE(cycle),1)))-0.093,0.615-(InterpolateTable(tQoL_AgeDecrements,VALUE(cycle),1))) -> 0.5445 | CL46: =IF(rGender=1,(0.79-(InterpolateTable(tQoL_AgeDecrements,VALUE(cycle),1)))-0.093,0.79-(InterpolateTable(tQoL_AgeDecrements,VALUE(cycle),1))) -> 0.7195
B47: 39 | D47: ='1. Strategy Calcs'!R47 -> 0.02222126602 | E47: ='1. Strategy Calcs'!AH47 -> 0.004490634965 | F47: ='1. Strategy Calcs'!AX47 -> 0.002846327721 | G47: ='1. Strategy Calcs'!BM47 -> 0.001417668239 | H47: ='1. Strategy Calcs'!BZ47 -> 0.9690241031 | I47: ='1. Strategy Calcs'!AA47 + '1. Strategy Calcs'!AQ47 + '1. Strategy Calcs'!BF47 + '1. Strategy Calcs'!BS47 -> 52.73833856 | J47: 66167.79439 | K47: ='1. Strategy Calcs'!AD47 + '1. Strategy Calcs'!AT47 + '1. Strategy Calcs'!BI47 + '1. Strategy Calcs'!BV47 + '1. Strategy Calcs'!CD47 -> 0.006274768979 | L47: 10.26547856 | M47: ='1. Strategy Calcs'!AG47 + '1. Strategy Calcs'!AW47 + '1. Strategy Calcs'!BL47 + '1. Strategy Calcs'!BY47 -> 0.009011025149 | N47: 13.34284454 | P47: 1 | R47: =0 + T46 + '1. Strategy Calcs'!AK46 -> 0.02222126602 | S47: 0.02009398363 | T47: 0.01901235179 | U47: 0.0007628028152 | V47: 0.0002586514162 | W47: 6.017760832e-05 | X47: 0.002127282395 | Y47: =(R47*(cT2DBaseCase))*'Time Discounting'!C44 -> 26.46939294 | Z47: 24.34208741 | AA47: 24.34208741 | AB47: =(R47*(INDEX(vQoLT2D_1,cycle+1)))*'Time Discounting'!E44 -> 0.005048331129 | AC47: 0.004573412769 | AD47: 0.004573412769 | AE47: =(R47*(1))*'Time Discounting'!G44 -> 0.007016443543 | AF47: 0.006452542467 | AG47: 0.006452542467 | AH47: =0 + '1. Strategy Calcs'!U46 + AJ46 -> 0.004490634965 | AI47: 0.003501872579 | AJ47: 0.003207201174 | AK47: 0.0001966189724 | AL47: 9.80524322e-05 | AM47: 0.000988762386 | AN47: =(AH47*(cFollowingMicroalbuminuriaBaseCase))*'Time Discounting'!C44 -> 10.08116982 | AO47: 9.366987204 | AP47: =(0)*'Time Discounting'!C44 -> 0 | AQ47: 9.366987204 | AR47: =(AH47*(INDEX(vQoLMicro_1,cycle+1)))*'Time Discounting'!E44 -> 0.001020203451 | AS47: 0.0009336288201 | AT47: 0.0009336288201 | AU47: =(AH47*(1))*'Time Discounting'!G44 -> 0.001417933914 | AV47: 0.001317482897 | AW47: 0.001317482897 | AX47: =0 + '1. Strategy Calcs'!V46 + '1. Strategy Calcs'!AL46 + AZ46 -> 0.002846327721 | AY47: 0.002173291863 | AZ47: 0.00212330615 | BA47: 4.998571285e-05 | BB47: 0.0006730358578 | BC47: =(AX47*(cFollowingMacroalbuminuriaBaseCase))*'Time Discounting'!C44 -> 6.389811987 | BD47: 5.897553389 | BE47: =(0)*'Time Discounting'!C44 -> 0 | BF47: 5.897553389 | BG47: =(AX47*(INDEX(vQoLMacro_1,cycle+1)))*'Time Discounting'!E44 -> 0.0006035026146 | BH47: 0.0005480768531 | BI47: 0.0005480768531 | BJ47: =(AX47*(1))*'Time Discounting'!G44 -> 0.0008987380709 | BK47: 0.0008295010505 | BL47: 0.0008295010505 | BM47: =0 + '1. Strategy Calcs'!W46 + '1. Strategy Calcs'!BA46 + BN46 -> 0.001417668239 | BN47: 0.001114287236 | BO47: 0.0003033810032 | BP47: =(BM47*(cFollowingRenalDiseaseBaseCase))*'Time Discounting'!C44 -> 14.2848487 | BQ47: 13.13171057 | BR47: =(0)*'Time Discounting'!C44 -> 0 | BS47: 13.13171057 | BT47: =(BM47*(INDEX(vQoLRenalDisease_1,cycle+1)))*'Time Discounting'!E44 -> 0.0002437365897 | BU47: 0.0002196505373 | BV47: 0.0002196505373 | BW47: =(BM47*(1))*'Time Discounting'!G44 -> 0.0004476337736 | BX47: 0.0004114987341 | BY47: 0.0004114987341 | BZ47: =0 + '1. Strategy Calcs'!X46 + '1. Strategy Calcs'!AM46 + '1. Strategy Calcs'!BB46 + '1. Strategy Calcs'!BO46 + CA46 -> 0.9690241031 | CA47: 0.9690241031 | CB47: =(BZ47*(vQoLDeath))*'Time Discounting'!E44 -> 0 | CC47: 0 | CD47: 0 | CF47: 0.2364576127 | CG47: 0.2201832021 | CH47: =IF(rGender=0,InterpolateTable(tGeneralMortWONephropathy_2023,rAge+cycle,1),InterpolateTable(tGeneralMortWONephropathy_2023,rAge+cycle,2)) -> 0.095731827 | CI47: =IF(rGender=1,(0.742-(InterpolateTable(tQoL_AgeDecrements,VALUE(cycle),1)))-0.093,0.742-(InterpolateTable(tQoL_AgeDecrements,VALUE(cycle),1))) -> 0.6715 | CJ47: =IF(rGender=1,(0.79-(InterpolateTable(tQoL_AgeDecrements,VALUE(cycle),1)))-0.093,0.79-(InterpolateTable(tQoL_AgeDecrements,VALUE(cycle),1))) -> 0.7195 | CK47: =IF(rGender=1,(0.615-(InterpolateTable(tQoL_AgeDecrements,VALUE(cycle),1)))-0.093,0.615-(InterpolateTable(tQoL_AgeDecrements,VALUE(cycle),1))) -> 0.5445 | CL47: =IF(rGender=1,(0.79-(InterpolateTable(tQoL_AgeDecrements,VALUE(cycle),1)))-0.093,0.79-(InterpolateTable(tQoL_AgeDecrements,VALUE(cycle),1))) -> 0.7195
B48: 40 | D48: ='1. Strategy Calcs'!R48 -> 0.01920897076 | E48: ='1. Strategy Calcs'!AH48 -> 0.003970003989 | F48: ='1. Strategy Calcs'!AX48 -> 0.002480009998 | G48: ='1. Strategy Calcs'!BM48 -> 0.001224450557 | H48: ='1. Strategy Calcs'!BZ48 -> 0.9731165647 | I48: ='1. Strategy Calcs'!AA48 + '1. Strategy Calcs'!AQ48 + '1. Strategy Calcs'!BF48 + '1. Strategy Calcs'!BS48 -> 44.46099818 | J48: 66212.25539 | K48: ='1. Strategy Calcs'!AD48 + '1. Strategy Calcs'!AT48 + '1. Strategy Calcs'!BI48 + '1. Strategy Calcs'!BV48 + '1. Strategy Calcs'!CD48 -> 0.005189472523 | L48: 10.27066804 | M48: ='1. Strategy Calcs'!AG48 + '1. Strategy Calcs'!AW48 + '1. Strategy Calcs'!BL48 + '1. Strategy Calcs'!BY48 -> 0.007591282815 | N48: 13.35043583 | P48: 1 | R48: =0 + T47 + '1. Strategy Calcs'!AK47 -> 0.01920897076 | S48: 0.01737006089 | T48: 0.01642060538 | U48: 0.0006732094316 | V48: 0.0002252230751 | W48: 5.102301142e-05 | X48: 0.001838909866 | Y48: =(R48*(cT2DBaseCase))*'Time Discounting'!C45 -> 22.21478187 | Z48: 20.42346749 | AA48: 20.42346749 | AB48: =(R48*(INDEX(vQoLT2D_1,cycle+1)))*'Time Discounting'!E45 -> 0.004098494408 | AC48: 0.003768007617 | AD48: 0.003768007617 | AE48: =(R48*(1))*'Time Discounting'!G45 -> 0.005888641391 | AF48: 0.005413804048 | AG48: 0.005413804048 | AH48: =0 + '1. Strategy Calcs'!U47 + AJ47 -> 0.003970003989 | AI48: 0.003095875799 | AJ48: 0.002835367728 | AK48: 0.0001738235485 | AL48: 8.668452236e-05 | AM48: 0.0008741281907 | AN48: =(AH48*(cFollowingMicroalbuminuriaBaseCase))*'Time Discounting'!C45 -> 8.652804585 | AO48: 8.038588596 | AP48: =(0)*'Time Discounting'!C45 -> 0 | AQ48: 8.038588596 | AR48: =(AH48*(INDEX(vQoLMicro_1,cycle+1)))*'Time Discounting'!E45 -> 0.0008470541891 | AS48: 0.0007869263748 | AT48: 0.0007869263748 | AU48: =(AH48*(1))*'Time Discounting'!G45 -> 0.001217031881 | AV48: 0.001130641343 | AW48: 0.001130641343 | AX48: =0 + '1. Strategy Calcs'!V47 + '1. Strategy Calcs'!AL47 + AZ47 -> 0.002480009998 | AY48: 0.001893592755 | AZ48: 0.001850040121 | BA48: 4.355263336e-05 | BB48: 0.0005864172437 | BC48: =(AX48*(cFollowingMacroalbuminuriaBaseCase))*'Time Discounting'!C45 -> 5.405294791 | BD48: 4.990056891 | BE48: =(0)*'Time Discounting'!C45 -> 0 | BF48: 4.990056891 | BG48: =(AX48*(INDEX(vQoLMacro_1,cycle+1)))*'Time Discounting'!E45 -> 0.0004926510916 | BH48: 0.0004548053472 | BI48: 0.0004548053472 | BJ48: =(AX48*(1))*'Time Discounting'!G45 -> 0.0007602640302 | BK48: 0.0007018601037 | BL48: 0.0007018601037 | BM48: =0 + '1. Strategy Calcs'!W47 + '1. Strategy Calcs'!BA47 + BN47 -> 0.001224450557 | BN48: 0.000962418138 | BO48: 0.0002620324192 | BP48: =(BM48*(cFollowingRenalDiseaseBaseCase))*'Time Discounting'!C45 -> 11.97857244 | BQ48: 11.0088852 | BR48: =(0)*'Time Discounting'!C45 -> 0 | BS48: 11.0088852 | BT48: =(BM48*(INDEX(vQoLRenalDisease_1,cycle+1)))*'Time Discounting'!E45 -> 0.0001955644848 | BU48: 0.0001797331839 | BV48: 0.0001797331839 | BW48: =(BM48*(1))*'Time Discounting'!G45 -> 0.0003753636945 | BX48: 0.0003449773204 | BY48: 0.0003449773204 | BZ48: =0 + '1. Strategy Calcs'!X47 + '1. Strategy Calcs'!AM47 + '1. Strategy Calcs'!BB47 + '1. Strategy Calcs'!BO47 + CA47 -> 0.9731165647 | CA48: 0.9731165647 | CB48: =(BZ48*(vQoLDeath))*'Time Discounting'!E45 -> 0 | CC48: 0 | CD48: 0 | CF48: 0.2364576127 | CG48: 0.2201832021 | CH48: =IF(rGender=0,InterpolateTable(tGeneralMortWONephropathy_2023,rAge+cycle,1),InterpolateTable(tGeneralMortWONephropathy_2023,rAge+cycle,2)) -> 0.095731827 | CI48: =IF(rGender=1,(0.742-(InterpolateTable(tQoL_AgeDecrements,VALUE(cycle),1)))-0.093,0.742-(InterpolateTable(tQoL_AgeDecrements,VALUE(cycle),1))) -> 0.648 | CJ48: =IF(rGender=1,(0.79-(InterpolateTable(tQoL_AgeDecrements,VALUE(cycle),1)))-0.093,0.79-(InterpolateTable(tQoL_AgeDecrements,VALUE(cycle),1))) -> 0.696 | CK48: =IF(rGender=1,(0.615-(InterpolateTable(tQoL_AgeDecrements,VALUE(cycle),1)))-0.093,0.615-(InterpolateTable(tQoL_AgeDecrements,VALUE(cycle),1))) -> 0.521 | CL48: =IF(rGender=1,(0.79-(InterpolateTable(tQoL_AgeDecrements,VALUE(cycle),1)))-0.093,0.79-(InterpolateTable(tQoL_AgeDecrements,VALUE(cycle),1))) -> 0.696
B49: 41 | D49: ='1. Strategy Calcs'!R49 -> 0.01659442892 | E49: ='1. Strategy Calcs'!AH49 -> 0.003508577159 | F49: ='1. Strategy Calcs'!AX49 -> 0.002161947719 | G49: ='1. Strategy Calcs'!BM49 -> 0.001056993783 | H49: ='1. Strategy Calcs'!BZ49 -> 0.9766780524 | I49: ='1. Strategy Calcs'!AA49 + '1. Strategy Calcs'!AQ49 + '1. Strategy Calcs'!BF49 + '1. Strategy Calcs'!BS49 -> 37.46934048 | J49: 66249.72473 | K49: ='1. Strategy Calcs'!AD49 + '1. Strategy Calcs'!AT49 + '1. Strategy Calcs'!BI49 + '1. Strategy Calcs'!BV49 + '1. Strategy Calcs'!CD49 -> 0.004370076993 | L49: 10.27503811 | M49: ='1. Strategy Calcs'!AG49 + '1. Strategy Calcs'!AW49 + '1. Strategy Calcs'!BL49 + '1. Strategy Calcs'!BY49 -> 0.006392500893 | N49: 13.35682833 | P49: 1 | R49: =0 + T48 + '1. Strategy Calcs'!AK48 -> 0.01659442892 | S49: 0.01500581393 | T49: 0.01417283565 | U49: 0.0005937549317 | V49: 0.0001959898923 | W49: 4.323345374e-05 | X49: 0.001588614999 | Y49: =(R49*(cT2DBaseCase))*'Time Discounting'!C46 -> 18.63215311 | Z49: 17.12466048 | AA49: 17.12466048 | AB49: =(R49*(INDEX(vQoLT2D_1,cycle+1)))*'Time Discounting'!E46 -> 0.003437520826 | AC49: 0.003159397451 | AD49: 0.003159397451 | AE49: =(R49*(1))*'Time Discounting'!G46 -> 0.004938966704 | AF49: 0.004539364154 | AG49: 0.004539364154 | AH49: =0 + '1. Strategy Calcs'!U48 + AJ48 -> 0.003508577159 | AI49: 0.002736047406 | AJ49: 0.002505817746 | AK49: 0.0001536203323 | AL49: 7.660932736e-05 | AM49: 0.0007725297538 | AN49: =(AH49*(cFollowingMicroalbuminuriaBaseCase))*'Time Discounting'!C46 -> 7.424372606 | AO49: 6.896114987 | AP49: =(0)*'Time Discounting'!C46 -> 0 | AQ49: 6.896114987 | AR49: =(AH49*(INDEX(vQoLMicro_1,cycle+1)))*'Time Discounting'!E46 -> 0.0007267985606 | AS49: 0.0006750855206 | AT49: 0.0006750855206 | AU49: =(AH49*(1))*'Time Discounting'!G46 -> 0.001044250805 | AV49: 0.0009699504606 | AW49: 0.0009699504606 | AX49: =0 + '1. Strategy Calcs'!V48 + '1. Strategy Calcs'!AL48 + AZ48 -> 0.002161947719 | AY49: 0.001650738722 | AZ49: 0.001612771732 | BA49: 3.796699062e-05 | BB49: 0.0005112089964 | BC49: =(AX49*(cFollowingMacroalbuminuriaBaseCase))*'Time Discounting'!C46 -> 4.574818991 | BD49: 4.224091508 | BE49: =(0)*'Time Discounting'!C46 -> 0 | BF49: 4.224091508 | BG49: =(AX49*(INDEX(vQoLMacro_1,cycle+1)))*'Time Discounting'!E46 -> 0.0004169596029 | BH49: 0.0003849934874 | BI49: 0.0003849934874 | BJ49: =(AX49*(1))*'Time Discounting'!G46 -> 0.0006434561773 | BK49: 0.0005941257522 | BL49: 0.0005941257522 | BM49: =0 + '1. Strategy Calcs'!W48 + '1. Strategy Calcs'!BA48 + BN48 -> 0.001056993783 | BN49: 0.0008307971133 | BO49: 0.0002261966695 | BP49: =(BM49*(cFollowingRenalDiseaseBaseCase))*'Time Discounting'!C46 -> 10.03919797 | BQ49: 9.224473505 | BR49: =(0)*'Time Discounting'!C46 -> 0 | BS49: 9.224473505 | BT49: =(BM49*(INDEX(vQoLRenalDisease_1,cycle+1)))*'Time Discounting'!E46 -> 0.0001639018831 | BU49: 0.0001506005343 | BV49: 0.0001506005343 | BW49: =(BM49*(1))*'Time Discounting'!G46 -> 0.0003145909464 | BX49: 0.0002890605265 | BY49: 0.0002890605265 | BZ49: =0 + '1. Strategy Calcs'!X48 + '1. Strategy Calcs'!AM48 + '1. Strategy Calcs'!BB48 + '1. Strategy Calcs'!BO48 + CA48 -> 0.9766780524 | CA49: 0.9766780524 | CB49: =(BZ49*(vQoLDeath))*'Time Discounting'!E46 -> 0 | CC49: 0 | CD49: 0 | CF49: 0.2364576127 | CG49: 0.2201832021 | CH49: =IF(rGender=0,InterpolateTable(tGeneralMortWONephropathy_2023,rAge+cycle,1),InterpolateTable(tGeneralMortWONephropathy_2023,rAge+cycle,2)) -> 0.095731827 | CI49: =IF(rGender=1,(0.742-(InterpolateTable(tQoL_AgeDecrements,VALUE(cycle),1)))-0.093,0.742-(InterpolateTable(tQoL_AgeDecrements,VALUE(cycle),1))) -> 0.648 | CJ49: =IF(rGender=1,(0.79-(InterpolateTable(tQoL_AgeDecrements,VALUE(cycle),1)))-0.093,0.79-(InterpolateTable(tQoL_AgeDecrements,VALUE(cycle),1))) -> 0.696 | CK49: =IF(rGender=1,(0.615-(InterpolateTable(tQoL_AgeDecrements,VALUE(cycle),1)))-0.093,0.615-(InterpolateTable(tQoL_AgeDecrements,VALUE(cycle),1))) -> 0.521 | CL49: =IF(rGender=1,(0.79-(InterpolateTable(tQoL_AgeDecrements,VALUE(cycle),1)))-0.093,0.79-(InterpolateTable(tQoL_AgeDecrements,VALUE(cycle),1))) -> 0.696
B50: 42 | D50: ='1. Strategy Calcs'!R50 -> 0.01432645598 | E50: ='1. Strategy Calcs'!AH50 -> 0.003099572678 | F50: ='1. Strategy Calcs'!AX50 -> 0.001885370952 | G50: ='1. Strategy Calcs'!BM50 -> 0.0009119975576 | H50: ='1. Strategy Calcs'!BZ50 -> 0.9797766028 | I50: ='1. Strategy Calcs'!AA50 + '1. Strategy Calcs'!AQ50 + '1. Strategy Calcs'!BF50 + '1. Strategy Calcs'!BS50 -> 31.56539852 | J50: 66281.29013 | K50: ='1. Strategy Calcs'!AD50 + '1. Strategy Calcs'!AT50 + '1. Strategy Calcs'!BI50 + '1. Strategy Calcs'!BV50 + '1. Strategy Calcs'!CD50 -> 0.003678389595 | L50: 10.2787165 | M50: ='1. Strategy Calcs'!AG50 + '1. Strategy Calcs'!AW50 + '1. Strategy Calcs'!BL50 + '1. Strategy Calcs'!BY50 -> 0.005380609671 | N50: 13.36220894 | P50: 1 | R50: =0 + T49 + '1. Strategy Calcs'!AK49 -> 0.01432645598 | S50: 0.01295495817 | T50: 0.01222457481 | U50: 0.0005233336315 | V50: 0.0001704404039 | W50: 3.660933007e-05 | X50: 0.001371497805 | Y50: =(R50*(cT2DBaseCase))*'Time Discounting'!C47 -> 15.61716785 | Z50: 14.34929326 | AA50: 14.34929326 | AB50: =(R50*(INDEX(vQoLT2D_1,cycle+1)))*'Time Discounting'!E47 -> 0.002881274076 | AC50: 0.002647358796 | AD50: 0.002647358796 | AE50: =(R50*(1))*'Time Discounting'!G47 -> 0.004139761603 | AF50: 0.003803676431 | AG50: 0.003803676431 | AH50: =0 + '1. Strategy Calcs'!U49 + AJ49 -> 0.003099572678 | AI50: 0.00241709884 | AJ50: 0.002213707685 | AK50: 0.000135712388 | AL50: 6.767876753e-05 | AM50: 0.0006824738373 | AN50: =(AH50*(cFollowingMicroalbuminuriaBaseCase))*'Time Discounting'!C47 -> 6.367857367 | AO50: 5.913570332 | AP50: =(0)*'Time Discounting'!C47 -> 0 | AQ50: 5.913570332 | AR50: =(AH50*(INDEX(vQoLMicro_1,cycle+1)))*'Time Discounting'!E47 -> 0.0006233724806 | AS50: 0.0005789006874 | AT50: 0.0005789006874 | AU50: =(AH50*(1))*'Time Discounting'!G47 -> 0.0008956501158 | AV50: 0.0008317538612 | AW50: 0.0008317538612 | AX50: =0 + '1. Strategy Calcs'!V49 + '1. Strategy Calcs'!AL49 + AZ49 -> 0.001885370952 | AY50: 0.001439560637 | AZ50: 0.001406450743 | BA50: 3.310989466e-05 | BB50: 0.0004458103142 | BC50: =(AX50*(cFollowingMacroalbuminuriaBaseCase))*'Time Discounting'!C47 -> 3.873364025 | BD50: 3.576805786 | BE50: =(0)*'Time Discounting'!C47 -> 0 | BF50: 3.576805786 | BG50: =(AX50*(INDEX(vQoLMacro_1,cycle+1)))*'Time Discounting'!E47 -> 0.000353027372 | BH50: 0.000325998367 | BI50: 0.000325998367 | BJ50: =(AX50*(1))*'Time Discounting'!G47 -> 0.0005447953272 | BK50: 0.0005030838996 | BL50: 0.0005030838996 | BM50: =0 + '1. Strategy Calcs'!W49 + '1. Strategy Calcs'!BA49 + BN49 -> 0.0009119975576 | BN50: 0.0007168300803 | BO50: 0.0001951674773 | BP50: =(BM50*(cFollowingRenalDiseaseBaseCase))*'Time Discounting'!C47 -> 8.409749043 | BQ50: 7.725729135 | BR50: =(0)*'Time Discounting'!C47 -> 0 | BS50: 7.725729135 | BT50: =(BM50*(INDEX(vQoLRenalDisease_1,cycle+1)))*'Time Discounting'!E47 -> 0.0001372991855 | BU50: 0.0001261317445 | BV50: 0.0001261317445 | BW50: =(BM50*(1))*'Time Discounting'!G47 -> 0.0002635301066 | BX50: 0.0002420954789 | BY50: 0.0002420954789 | BZ50: =0 + '1. Strategy Calcs'!X49 + '1. Strategy Calcs'!AM49 + '1. Strategy Calcs'!BB49 + '1. Strategy Calcs'!BO49 + CA49 -> 0.9797766028 | CA50: 0.9797766028 | CB50: =(BZ50*(vQoLDeath))*'Time Discounting'!E47 -> 0 | CC50: 0 | CD50: 0 | CF50: 0.2364576127 | CG50: 0.2201832021 | CH50: =IF(rGender=0,InterpolateTable(tGeneralMortWONephropathy_2023,rAge+cycle,1),InterpolateTable(tGeneralMortWONephropathy_2023,rAge+cycle,2)) -> 0.095731827 | CI50: =IF(rGender=1,(0.742-(InterpolateTable(tQoL_AgeDecrements,VALUE(cycle),1)))-0.093,0.742-(InterpolateTable(tQoL_AgeDecrements,VALUE(cycle),1))) -> 0.648 | CJ50: =IF(rGender=1,(0.79-(InterpolateTable(tQoL_AgeDecrements,VALUE(cycle),1)))-0.093,0.79-(InterpolateTable(tQoL_AgeDecrements,VALUE(cycle),1))) -> 0.696 | CK50: =IF(rGender=1,(0.615-(InterpolateTable(tQoL_AgeDecrements,VALUE(cycle),1)))-0.093,0.615-(InterpolateTable(tQoL_AgeDecrements,VALUE(cycle),1))) -> 0.521 | CL50: =IF(rGender=1,(0.79-(InterpolateTable(tQoL_AgeDecrements,VALUE(cycle),1)))-0.093,0.79-(InterpolateTable(tQoL_AgeDecrements,VALUE(cycle),1))) -> 0.696
B51: 43 | D51: ='1. Strategy Calcs'!R51 -> 0.0123602872 | E51: ='1. Strategy Calcs'!AH51 -> 0.002737041316 | F51: ='1. Strategy Calcs'!AX51 -> 0.001644569914 | G51: ='1. Strategy Calcs'!BM51 -> 0.000786549305 | H51: ='1. Strategy Calcs'!BZ51 -> 0.9824715523 | I51: ='1. Strategy Calcs'!AA51 + '1. Strategy Calcs'!AQ51 + '1. Strategy Calcs'!BF51 + '1. Strategy Calcs'!BS51 -> 26.58148192 | J51: 66307.87161 | K51: ='1. Strategy Calcs'!AD51 + '1. Strategy Calcs'!AT51 + '1. Strategy Calcs'!BI51 + '1. Strategy Calcs'!BV51 + '1. Strategy Calcs'!CD51 -> 0.003094711362 | L51: 10.28181121 | M51: ='1. Strategy Calcs'!AG51 + '1. Strategy Calcs'!AW51 + '1. Strategy Calcs'!BL51 + '1. Strategy Calcs'!BY51 -> 0.004526769027 | N51: 13.36673571 | P51: 1 | R51: =0 + T50 + '1. Strategy Calcs'!AK50 -> 0.0123602872 | S51: 0.01117701432 | T51: 0.01053695496 | U51: 0.0004609559737 | V51: 0.0001481237216 | W51: 3.097966632e-05 | X51: 0.001183272876 | Y51: =(R51*(cT2DBaseCase))*'Time Discounting'!C48 -> 13.08141867 | Z51: 12.01572848 | AA51: 12.01572848 | AB51: =(R51*(INDEX(vQoLT2D_1,cycle+1)))*'Time Discounting'!E48 -> 0.002413443517 | AC51: 0.002216830049 | AD51: 0.002216830049 | AE51: =(R51*(1))*'Time Discounting'!G48 -> 0.00346759126 | AF51: 0.003185100645 | AG51: 0.003185100645 | AH51: =0 + '1. Strategy Calcs'!U50 + AJ50 -> 0.002737041316 | AI51: 0.002134390795 | AJ51: 0.001954788619 | AK51: 0.0001198392333 | AL51: 5.976294226e-05 | AM51: 0.0006026505213 | AN51: =(AH51*(cFollowingMicroalbuminuriaBaseCase))*'Time Discounting'!C48 -> 5.459283298 | AO51: 5.068683941 | AP51: =(0)*'Time Discounting'!C48 -> 0 | AQ51: 5.068683941 | AR51: =(AH51*(INDEX(vQoLMicro_1,cycle+1)))*'Time Discounting'!E48 -> 0.0005344288943 | AS51: 0.0004961917171 | AT51: 0.0004961917171 | AU51: =(AH51*(1))*'Time Discounting'!G48 -> 0.0007678576067 | AV51: 0.0007129191338 | AW51: 0.0007129191338 | AX51: =0 + '1. Strategy Calcs'!V50 + '1. Strategy Calcs'!AL50 + AZ50 -> 0.001644569914 | AY51: 0.001255698838 | AZ51: 0.001226817765 | BA51: 2.888107328e-05 | BB51: 0.0003888710758 | BC51: =(AX51*(cFollowingMacroalbuminuriaBaseCase))*'Time Discounting'!C48 -> 3.280247547 | BD51: 3.029274905 | BE51: =(0)*'Time Discounting'!C48 -> 0 | BF51: 3.029274905 | BG51: =(AX51*(INDEX(vQoLMacro_1,cycle+1)))*'Time Discounting'!E48 -> 0.0002989693619 | BH51: 0.0002760951338 | BI51: 0.0002760951338 | BJ51: =(AX51*(1))*'Time Discounting'!G48 -> 0.0004613724721 | BK51: 0.0004260727373 | BL51: 0.0004260727373 | BM51: =0 + '1. Strategy Calcs'!W50 + '1. Strategy Calcs'!BA50 + BN50 -> 0.000786549305 | BN51: 0.0006182277537 | BO51: 0.0001683215513 | BP51: =(BM51*(cFollowingRenalDiseaseBaseCase))*'Time Discounting'!C48 -> 7.041709227 | BQ51: 6.467794593 | BR51: =(0)*'Time Discounting'!C48 -> 0 | BS51: 6.467794593 | BT51: =(BM51*(INDEX(vQoLRenalDisease_1,cycle+1)))*'Time Discounting'!E48 -> 0.0001149643035 | BU51: 0.0001055944625 | BV51: 0.0001055944625 | BW51: =(BM51*(1))*'Time Discounting'!G48 -> 0.0002206608513 | BX51: 0.0002026765115 | BY51: 0.0002026765115 | BZ51: =0 + '1. Strategy Calcs'!X50 + '1. Strategy Calcs'!AM50 + '1. Strategy Calcs'!BB50 + '1. Strategy Calcs'!BO50 + CA50 -> 0.9824715523 | CA51: 0.9824715523 | CB51: =(BZ51*(vQoLDeath))*'Time Discounting'!E48 -> 0 | CC51: 0 | CD51: 0 | CF51: 0.2364576127 | CG51: 0.2201832021 | CH51: =IF(rGender=0,InterpolateTable(tGeneralMortWONephropathy_2023,rAge+cycle,1),InterpolateTable(tGeneralMortWONephropathy_2023,rAge+cycle,2)) -> 0.095731827 | CI51: =IF(rGender=1,(0.742-(InterpolateTable(tQoL_AgeDecrements,VALUE(cycle),1)))-0.093,0.742-(InterpolateTable(tQoL_AgeDecrements,VALUE(cycle),1))) -> 0.648 | CJ51: =IF(rGender=1,(0.79-(InterpolateTable(tQoL_AgeDecrements,VALUE(cycle),1)))-0.093,0.79-(InterpolateTable(tQoL_AgeDecrements,VALUE(cycle),1))) -> 0.696 | CK51: =IF(rGender=1,(0.615-(InterpolateTable(tQoL_AgeDecrements,VALUE(cycle),1)))-0.093,0.615-(InterpolateTable(tQoL_AgeDecrements,VALUE(cycle),1))) -> 0.521 | CL51: =IF(rGender=1,(0.79-(InterpolateTable(tQoL_AgeDecrements,VALUE(cycle),1)))-0.093,0.79-(InterpolateTable(tQoL_AgeDecrements,VALUE(cycle),1))) -> 0.696
B52: 44 | D52: ='1. Strategy Calcs'!R52 -> 0.01065679419 | E52: ='1. Strategy Calcs'!AH52 -> 0.002415744593 | F52: ='1. Strategy Calcs'!AX52 -> 0.001434704429 | G52: ='1. Strategy Calcs'!BM52 -> 0.0006780884933 | H52: ='1. Strategy Calcs'!BZ52 -> 0.9848146683 | I52: ='1. Strategy Calcs'!AA52 + '1. Strategy Calcs'!AQ52 + '1. Strategy Calcs'!BF52 + '1. Strategy Calcs'!BS52 -> 22.37556807 | J52: 66330.24718 | K52: ='1. Strategy Calcs'!AD52 + '1. Strategy Calcs'!AT52 + '1. Strategy Calcs'!BI52 + '1. Strategy Calcs'!BV52 + '1. Strategy Calcs'!CD52 -> 0.002602363617 | L52: 10.28441358 | M52: ='1. Strategy Calcs'!AG52 + '1. Strategy Calcs'!AW52 + '1. Strategy Calcs'!BL52 + '1. Strategy Calcs'!BY52 -> 0.003806562903 | N52: 13.37054227 | P52: 1 | R52: =0 + T51 + '1. Strategy Calcs'!AK51 -> 0.01065679419 | S52: 0.009636599815 | T52: 0.009076022299 | U52: 0.0004057368421 | V52: 0.000128642581 | W52: 2.619809352e-05 | X52: 0.001020194378 | Y52: =(R52*(cT2DBaseCase))*'Time Discounting'!C49 -> 10.95003829 | Z52: 10.05484932 | AA52: 10.05484932 | AB52: =(R52*(INDEX(vQoLT2D_1,cycle+1)))*'Time Discounting'!E49 -> 0.002020216581 | AC52: 0.00185505957 | AD52: 0.00185505957 | AE52: =(R52*(1))*'Time Discounting'!G49 -> 0.00290261003 | AF52: 0.002665315474 | AG52: 0.002665315474 | AH52: =0 + '1. Strategy Calcs'!U51 + AJ51 -> 0.002415744593 | AI52: 0.001883838213 | AJ52: 0.001725319238 | AK52: 0.0001057715052 | AL52: 5.274746997e-05 | AM52: 0.00053190638 | AN52: =(AH52*(cFollowingMicroalbuminuriaBaseCase))*'Time Discounting'!C49 -> 4.678084583 | AO52: 4.342336392 | AP52: =(0)*'Time Discounting'!C49 -> 0 | AQ52: 4.342336392 | AR52: =(AH52*(INDEX(vQoLMicro_1,cycle+1)))*'Time Discounting'!E49 -> 0.00045795454 | AS52: 0.0004250869409 | AT52: 0.0004250869409 | AU52: =(AH52*(1))*'Time Discounting'!G49 -> 0.0006579806609 | AV52: 0.0006107570989 | AW52: 0.0006107570989 | AX52: =0 + '1. Strategy Calcs'!V51 + '1. Strategy Calcs'!AL51 + AZ51 -> 0.001434704429 | AY52: 0.001095457645 | AZ52: 0.001070262119 | BA52: 2.519552583e-05 | BB52: 0.0003392467842 | BC52: =(AX52*(cFollowingMacroalbuminuriaBaseCase))*'Time Discounting'!C49 -> 2.778302263 | BD52: 2.565763718 | BE52: =(0)*'Time Discounting'!C49 -> 0 | BF52: 2.565763718 | BG52: =(AX52*(INDEX(vQoLMacro_1,cycle+1)))*'Time Discounting'!E49 -> 0.0002532209057 | BH52: 0.0002338496503 | BI52: 0.0002338496503 | BJ52: =(AX52*(1))*'Time Discounting'!G49 -> 0.0003907730026 | BK52: 0.0003608790899 | BL52: 0.0003608790899 | BM52: =0 + '1. Strategy Calcs'!W51 + '1. Strategy Calcs'!BA51 + BN51 -> 0.0006780884933 | BN52: 0.0005329775558 | BO52: 0.0001451109376 | BP52: =(BM52*(cFollowingRenalDiseaseBaseCase))*'Time Discounting'!C49 -> 5.893879958 | BQ52: 5.412618641 | BR52: =(0)*'Time Discounting'!C49 -> 0 | BS52: 5.412618641 | BT52: =(BM52*(INDEX(vQoLRenalDisease_1,cycle+1)))*'Time Discounting'!E49 -> 9.622462141e-05 | BU52: 8.836745628e-05 | BV52: 8.836745628e-05 | BW52: =(BM52*(1))*'Time Discounting'!G49 -> 0.0001846921716 | BX52: 0.0001696112405 | BY52: 0.0001696112405 | BZ52: =0 + '1. Strategy Calcs'!X51 + '1. Strategy Calcs'!AM51 + '1. Strategy Calcs'!BB51 + '1. Strategy Calcs'!BO51 + CA51 -> 0.9848146683 | CA52: 0.9848146683 | CB52: =(BZ52*(vQoLDeath))*'Time Discounting'!E49 -> 0 | CC52: 0 | CD52: 0 | CF52: 0.2364576127 | CG52: 0.2201832021 | CH52: =IF(rGender=0,InterpolateTable(tGeneralMortWONephropathy_2023,rAge+cycle,1),InterpolateTable(tGeneralMortWONephropathy_2023,rAge+cycle,2)) -> 0.095731827 | CI52: =IF(rGender=1,(0.742-(InterpolateTable(tQoL_AgeDecrements,VALUE(cycle),1)))-0.093,0.742-(InterpolateTable(tQoL_AgeDecrements,VALUE(cycle),1))) -> 0.648 | CJ52: =IF(rGender=1,(0.79-(InterpolateTable(tQoL_AgeDecrements,VALUE(cycle),1)))-0.093,0.79-(InterpolateTable(tQoL_AgeDecrements,VALUE(cycle),1))) -> 0.696 | CK52: =IF(rGender=1,(0.615-(InterpolateTable(tQoL_AgeDecrements,VALUE(cycle),1)))-0.093,0.615-(InterpolateTable(tQoL_AgeDecrements,VALUE(cycle),1))) -> 0.521 | CL52: =IF(rGender=1,(0.79-(InterpolateTable(tQoL_AgeDecrements,VALUE(cycle),1)))-0.093,0.79-(InterpolateTable(tQoL_AgeDecrements,VALUE(cycle),1))) -> 0.696
B53: 45 | D53: ='1. Strategy Calcs'!R53 -> 0.009181793804 | E53: ='1. Strategy Calcs'!AH53 -> 0.00213105608 | F53: ='1. Strategy Calcs'!AX53 -> 0.00125165217 | G53: ='1. Strategy Calcs'!BM53 -> 0.0005843711751 | H53: ='1. Strategy Calcs'!BZ53 -> 0.9868511268 | I53: ='1. Strategy Calcs'!AA53 + '1. Strategy Calcs'!AQ53 + '1. Strategy Calcs'!BF53 + '1. Strategy Calcs'!BS53 -> 18.82739315 | J53: 66349.07457 | K53: ='1. Strategy Calcs'!AD53 + '1. Strategy Calcs'!AT53 + '1. Strategy Calcs'!BI53 + '1. Strategy Calcs'!BV53 + '1. Strategy Calcs'!CD53 -> 0.002187224351 | L53: 10.2866008 | M53: ='1. Strategy Calcs'!AG53 + '1. Strategy Calcs'!AW53 + '1. Strategy Calcs'!BL53 + '1. Strategy Calcs'!BY53 -> 0.003199319918 | N53: 13.37374159 | P53: 1 | R53: =0 + T52 + '1. Strategy Calcs'!AK52 -> 0.009181793804 | S53: 0.008302803908 | T53: 0.007812132401 | U53: 0.0003568849774 | V53: 0.0001116471545 | W53: 2.213937513e-05 | X53: 0.000878989896 | Y53: =(R53*(cT2DBaseCase))*'Time Discounting'!C50 -> 9.15966035 | Z53: 8.408171118 | AA53: 8.408171118 | AB53: =(R53*(INDEX(vQoLT2D_1,cycle+1)))*'Time Discounting'!E50 -> 0.001689902558 | AC53: 0.001551257289 | AD53: 0.001551257289 | AE53: =(R53*(1))*'Time Discounting'!G50 -> 0.002428020917 | AF53: 0.002228817944 | AG53: 0.002228817944 | AH53: =0 + '1. Strategy Calcs'!U52 + AJ52 -> 0.00213105608 | AI53: 0.001661833329 | AJ53: 0.001521995356 | AK53: 9.330663923e-05 | AL53: 4.65313332e-05 | AM53: 0.0004692227516 | AN53: =(AH53*(cFollowingMicroalbuminuriaBaseCase))*'Time Discounting'!C50 -> 4.0065882 | AO53: 3.718087208 | AP53: =(0)*'Time Discounting'!C50 -> 0 | AQ53: 3.718087208 | AR53: =(AH53*(INDEX(vQoLMicro_1,cycle+1)))*'Time Discounting'!E50 -> 0.0003922193417 | AS53: 0.0003639769411 | AT53: 0.0003639769411 | AU53: =(AH53*(1))*'Time Discounting'!G50 -> 0.000563533537 | AV53: 0.0005229553751 | AW53: 0.0005229553751 | AX53: =0 + '1. Strategy Calcs'!V52 + '1. Strategy Calcs'!AL52 + AZ52 -> 0.00125165217 | AY53: 0.0009556894858 | AZ53: 0.0009337086277 | BA53: 2.198085817e-05 | BB53: 0.000295962684 | BC53: =(AX53*(cFollowingMacroalbuminuriaBaseCase))*'Time Discounting'!C50 -> 2.353225174 | BD53: 2.173142524 | BE53: =(0)*'Time Discounting'!C50 -> 0 | BF53: 2.173142524 | BG53: =(AX53*(INDEX(vQoLMacro_1,cycle+1)))*'Time Discounting'!E50 -> 0.0002144783948 | BH53: 0.0001980652449 | BI53: 0.0001980652449 | BJ53: =(AX53*(1))*'Time Discounting'!G50 -> 0.0003309851772 | BK53: 0.0003056562421 | BL53: 0.0003056562421 | BM53: =0 + '1. Strategy Calcs'!W52 + '1. Strategy Calcs'!BA52 + BN52 -> 0.0005843711751 | BN53: 0.0004593157436 | BO53: 0.0001250554315 | BP53: =(BM53*(cFollowingRenalDiseaseBaseCase))*'Time Discounting'!C50 -> 4.931357323 | BQ53: 4.527992304 | BR53: =(0)*'Time Discounting'!C50 -> 0 | BS53: 4.527992304 | BT53: =(BM53*(INDEX(vQoLRenalDisease_1,cycle+1)))*'Time Discounting'!E50 -> 8.051029115e-05 | BU53: 7.392487602e-05 | BV53: 7.392487602e-05 | BW53: =(BM53*(1))*'Time Discounting'!G50 -> 0.0001545303093 | BX53: 0.000141890357 | BY53: 0.000141890357 | BZ53: =0 + '1. Strategy Calcs'!X52 + '1. Strategy Calcs'!AM52 + '1. Strategy Calcs'!BB52 + '1. Strategy Calcs'!BO52 + CA52 -> 0.9868511268 | CA53: 0.9868511268 | CB53: =(BZ53*(vQoLDeath))*'Time Discounting'!E50 -> 0 | CC53: 0 | CD53: 0 | CF53: 0.2364576127 | CG53: 0.2201832021 | CH53: =IF(rGender=0,InterpolateTable(tGeneralMortWONephropathy_2023,rAge+cycle,1),InterpolateTable(tGeneralMortWONephropathy_2023,rAge+cycle,2)) -> 0.095731827 | CI53: =IF(rGender=1,(0.742-(InterpolateTable(tQoL_AgeDecrements,VALUE(cycle),1)))-0.093,0.742-(InterpolateTable(tQoL_AgeDecrements,VALUE(cycle),1))) -> 0.648 | CJ53: =IF(rGender=1,(0.79-(InterpolateTable(tQoL_AgeDecrements,VALUE(cycle),1)))-0.093,0.79-(InterpolateTable(tQoL_AgeDecrements,VALUE(cycle),1))) -> 0.696 | CK53: =IF(rGender=1,(0.615-(InterpolateTable(tQoL_AgeDecrements,VALUE(cycle),1)))-0.093,0.615-(InterpolateTable(tQoL_AgeDecrements,VALUE(cycle),1))) -> 0.521 | CL53: =IF(rGender=1,(0.79-(InterpolateTable(tQoL_AgeDecrements,VALUE(cycle),1)))-0.093,0.79-(InterpolateTable(tQoL_AgeDecrements,VALUE(cycle),1))) -> 0.696
B54: 46 | D54: ='1. Strategy Calcs'!R54 -> 0.00790543904 | E54: ='1. Strategy Calcs'!AH54 -> 0.001878880333 | F54: ='1. Strategy Calcs'!AX54 -> 0.001091887115 | G54: ='1. Strategy Calcs'!BM54 -> 0.0005034359769 | H54: ='1. Strategy Calcs'!BZ54 -> 0.9886203575 | I54: ='1. Strategy Calcs'!AA54 + '1. Strategy Calcs'!AQ54 + '1. Strategy Calcs'!BF54 + '1. Strategy Calcs'!BS54 -> 15.83513679 | J54: 66364.90971 | K54: ='1. Strategy Calcs'!AD54 + '1. Strategy Calcs'!AT54 + '1. Strategy Calcs'!BI54 + '1. Strategy Calcs'!BV54 + '1. Strategy Calcs'!CD54 -> 0.001837336707 | L54: 10.28843814 | M54: ='1. Strategy Calcs'!AG54 + '1. Strategy Calcs'!AW54 + '1. Strategy Calcs'!BL54 + '1. Strategy Calcs'!BY54 -> 0.002687539644 | N54: 13.37642913 | P54: 1 | R54: =0 + T53 + '1. Strategy Calcs'!AK53 -> 0.00790543904 | S54: 0.007148636918 | T54: 0.006719417546 | U54: 0.0003136934064 | V54: 9.682955084e-05 | W54: 1.86964139e-05 | X54: 0.0007568021225 | Y54: =(R54*(cT2DBaseCase))*'Time Discounting'!C51 -> 7.656681885 | Z54: 7.026232761 | AA54: 7.026232761 | AB54: =(R54*(INDEX(vQoLT2D_1,cycle+1)))*'Time Discounting'!E51 -> 0.00141261202 | AC54: 0.001296297927 | AD54: 0.001296297927 | AE54: =(R54*(1))*'Time Discounting'!G51 -> 0.002029614971 | AF54: 0.001862497021 | AG54: 0.001862497021 | AH54: =0 + '1. Strategy Calcs'!U53 + AJ53 -> 0.001878880333 | AI54: 0.001465182445 | AJ54: 0.001341892017 | AK54: 8.226531956e-05 | AL54: 4.102510847e-05 | AM54: 0.0004136978882 | AN54: =(AH54*(cFollowingMicroalbuminuriaBaseCase))*'Time Discounting'!C51 -> 3.429586215 | AO54: 3.181782515 | AP54: =(0)*'Time Discounting'!C51 -> 0 | AQ54: 3.181782515 | AR54: =(AH54*(INDEX(vQoLMicro_1,cycle+1)))*'Time Discounting'!E51 -> 0.0003357345404 | AS54: 0.0003114761441 | AT54: 0.0003114761441 | AU54: =(AH54*(1))*'Time Discounting'!G51 -> 0.0004823772132 | AV54: 0.0004475231956 | AW54: 0.0004475231956 | AX54: =0 + '1. Strategy Calcs'!V53 + '1. Strategy Calcs'!AL53 + AZ53 -> 0.001091887115 | AY54: 0.0008337020947 | AZ54: 0.0008145269466 | BA54: 1.917514818e-05 | BB54: 0.0002581850206 | BC54: =(AX54*(cFollowingMacroalbuminuriaBaseCase))*'Time Discounting'!C51 -> 1.993059873 | BD54: 1.84042099 | BE54: =(0)*'Time Discounting'!C51 -> 0 | BF54: 1.84042099 | BG54: =(AX54*(INDEX(vQoLMacro_1,cycle+1)))*'Time Discounting'!E51 -> 0.0001816520949 | BH54: 0.0001677402334 | BI54: 0.0001677402334 | BJ54: =(AX54*(1))*'Time Discounting'!G51 -> 0.0002803273069 | BK54: 0.0002588583849 | BL54: 0.0002588583849 | BM54: =0 + '1. Strategy Calcs'!W53 + '1. Strategy Calcs'!BA53 + BN53 -> 0.0005034359769 | BN54: 0.0003957006779 | BO54: 0.0001077352991 | BP54: =(BM54*(cFollowingRenalDiseaseBaseCase))*'Time Discounting'!C51 -> 4.124627284 | BQ54: 3.786700522 | BR54: =(0)*'Time Discounting'!C51 -> 0 | BS54: 3.786700522 | BT54: =(BM54*(INDEX(vQoLRenalDisease_1,cycle+1)))*'Time Discounting'!E51 -> 6.733946088e-05 | BU54: 6.182240335e-05 | BV54: 6.182240335e-05 | BW54: =(BM54*(1))*'Time Discounting'!G51 -> 0.0001292504048 | BX54: 0.0001186610429 | BY54: 0.0001186610429 | BZ54: =0 + '1. Strategy Calcs'!X53 + '1. Strategy Calcs'!AM53 + '1. Strategy Calcs'!BB53 + '1. Strategy Calcs'!BO53 + CA53 -> 0.9886203575 | CA54: 0.9886203575 | CB54: =(BZ54*(vQoLDeath))*'Time Discounting'!E51 -> 0 | CC54: 0 | CD54: 0 | CF54: 0.2364576127 | CG54: 0.2201832021 | CH54: =IF(rGender=0,InterpolateTable(tGeneralMortWONephropathy_2023,rAge+cycle,1),InterpolateTable(tGeneralMortWONephropathy_2023,rAge+cycle,2)) -> 0.095731827 | CI54: =IF(rGender=1,(0.742-(InterpolateTable(tQoL_AgeDecrements,VALUE(cycle),1)))-0.093,0.742-(InterpolateTable(tQoL_AgeDecrements,VALUE(cycle),1))) -> 0.648 | CJ54: =IF(rGender=1,(0.79-(InterpolateTable(tQoL_AgeDecrements,VALUE(cycle),1)))-0.093,0.79-(InterpolateTable(tQoL_AgeDecrements,VALUE(cycle),1))) -> 0.696 | CK54: =IF(rGender=1,(0.615-(InterpolateTable(tQoL_AgeDecrements,VALUE(cycle),1)))-0.093,0.615-(InterpolateTable(tQoL_AgeDecrements,VALUE(cycle),1))) -> 0.521 | CL54: =IF(rGender=1,(0.79-(InterpolateTable(tQoL_AgeDecrements,VALUE(cycle),1)))-0.093,0.79-(InterpolateTable(tQoL_AgeDecrements,VALUE(cycle),1))) -> 0.696
B55: 47 | D55: ='1. Strategy Calcs'!R55 -> 0.006801682866 | E55: ='1. Strategy Calcs'!AH55 -> 0.001655585424 | F55: ='1. Strategy Calcs'!AX55 -> 0.0009523816059 | G55: ='1. Strategy Calcs'!BM55 -> 0.00043357224 | H55: ='1. Strategy Calcs'!BZ55 -> 0.9901567779 | I55: ='1. Strategy Calcs'!AA55 + '1. Strategy Calcs'!AQ55 + '1. Strategy Calcs'!BF55 + '1. Strategy Calcs'!BS55 -> 13.31261014 | J55: 66378.22232 | K55: ='1. Strategy Calcs'!AD55 + '1. Strategy Calcs'!AT55 + '1. Strategy Calcs'!BI55 + '1. Strategy Calcs'!BV55 + '1. Strategy Calcs'!CD55 -> 0.001542577993 | L55: 10.28998072 | M55: ='1. Strategy Calcs'!AG55 + '1. Strategy Calcs'!AW55 + '1. Strategy Calcs'!BL55 + '1. Strategy Calcs'!BY55 -> 0.002256407585 | N55: 13.37868554 | P55: 1 | R55: =0 + T54 + '1. Strategy Calcs'!AK54 -> 0.006801682866 | S55: 0.006150545339 | T55: 0.005775317936 | U55: 0.0002755307977 | V55: 8.391893108e-05 | W55: 1.577767411e-05 | X55: 0.0006511375274 | Y55: =(R55*(cT2DBaseCase))*'Time Discounting'!C52 -> 6.395783638 | Z55: 5.867227276 | AA55: 5.867227276 | AB55: =(R55*(INDEX(vQoLT2D_1,cycle+1)))*'Time Discounting'!E52 -> 0.001179983833 | AC55: 0.001082468345 | AD55: 0.001082468345 | AE55: =(R55*(1))*'Time Discounting'!G52 -> 0.001695379071 | AF55: 0.001555270611 | AG55: 0.001555270611 | AH55: =0 + '1. Strategy Calcs'!U54 + AJ54 -> 0.001655585424 | AI55: 0.001291053324 | AJ55: 0.001182415306 | AK55: 7.248852495e-05 | AL55: 3.614949306e-05 | AM55: 0.0003645320999 | AN55: =(AH55*(cFollowingMicroalbuminuriaBaseCase))*'Time Discounting'!C52 -> 2.933978815 | AO55: 2.721226467 | AP55: =(0)*'Time Discounting'!C52 -> 0 | AQ55: 2.721226467 | AR55: =(AH55*(INDEX(vQoLMicro_1,cycle+1)))*'Time Discounting'!E52 -> 0.0002872177479 | AS55: 0.0002663906546 | AT55: 0.0002663906546 | AU55: =(AH55*(1))*'Time Discounting'!G52 -> 0.000412669178 | AV55: 0.0003827451934 | AW55: 0.0003827451934 | AX55: =0 + '1. Strategy Calcs'!V54 + '1. Strategy Calcs'!AL54 + AZ54 -> 0.0009523816059 | AY55: 0.000727183725 | AZ55: 0.0007104584993 | BA55: 1.672522567e-05 | BB55: 0.0002251978809 | BC55: =(AX55*(cFollowingMacroalbuminuriaBaseCase))*'Time Discounting'!C52 -> 1.687782108 | BD55: 1.558374013 | BE55: =(0)*'Time Discounting'!C52 -> 0 | BF55: 1.558374013 | BG55: =(AX55*(INDEX(vQoLMacro_1,cycle+1)))*'Time Discounting'!E52 -> 0.0001538283719 | BH55: 0.0001420338183 | BI55: 0.0001420338183 | BJ55: =(AX55*(1))*'Time Discounting'!G52 -> 0.0002373894629 | BK55: 0.0002191879912 | BL55: 0.0002191879912 | BM55: =0 + '1. Strategy Calcs'!W54 + '1. Strategy Calcs'!BA54 + BN54 -> 0.00043357224 | BN55: 0.0003407877806 | BO55: 9.278445935e-05 | BP55: =(BM55*(cFollowingRenalDiseaseBaseCase))*'Time Discounting'!C52 -> 3.448773759 | BQ55: 3.165782388 | BR55: =(0)*'Time Discounting'!C52 -> 0 | BS55: 3.165782388 | BT55: =(BM55*(INDEX(vQoLRenalDisease_1,cycle+1)))*'Time Discounting'!E52 -> 5.630534583e-05 | BU55: 5.16851741e-05 | BV55: 5.16851741e-05 | BW55: =(BM55*(1))*'Time Discounting'!G52 -> 0.0001080716811 | BX55: 9.920378906e-05 | BY55: 9.920378906e-05 | BZ55: =0 + '1. Strategy Calcs'!X54 + '1. Strategy Calcs'!AM54 + '1. Strategy Calcs'!BB54 + '1. Strategy Calcs'!BO54 + CA54 -> 0.9901567779 | CA55: 0.9901567779 | CB55: =(BZ55*(vQoLDeath))*'Time Discounting'!E52 -> 0 | CC55: 0 | CD55: 0 | CF55: 0.2364576127 | CG55: 0.2201832021 | CH55: =IF(rGender=0,InterpolateTable(tGeneralMortWONephropathy_2023,rAge+cycle,1),InterpolateTable(tGeneralMortWONephropathy_2023,rAge+cycle,2)) -> 0.095731827 | CI55: =IF(rGender=1,(0.742-(InterpolateTable(tQoL_AgeDecrements,VALUE(cycle),1)))-0.093,0.742-(InterpolateTable(tQoL_AgeDecrements,VALUE(cycle),1))) -> 0.648 | CJ55: =IF(rGender=1,(0.79-(InterpolateTable(tQoL_AgeDecrements,VALUE(cycle),1)))-0.093,0.79-(InterpolateTable(tQoL_AgeDecrements,VALUE(cycle),1))) -> 0.696 | CK55: =IF(rGender=1,(0.615-(InterpolateTable(tQoL_AgeDecrements,VALUE(cycle),1)))-0.093,0.615-(InterpolateTable(tQoL_AgeDecrements,VALUE(cycle),1))) -> 0.521 | CL55: =IF(rGender=1,(0.79-(InterpolateTable(tQoL_AgeDecrements,VALUE(cycle),1)))-0.093,0.79-(InterpolateTable(tQoL_AgeDecrements,VALUE(cycle),1))) -> 0.696
B56: 48 | D56: ='1. Strategy Calcs'!R56 -> 0.005847806461 | E56: ='1. Strategy Calcs'!AH56 -> 0.001457946103 | F56: ='1. Strategy Calcs'!AX56 -> 0.0008305269234 | G56: ='1. Strategy Calcs'!BM56 -> 0.0003732906804 | H56: ='1. Strategy Calcs'!BZ56 -> 0.9914904298 | I56: ='1. Strategy Calcs'!AA56 + '1. Strategy Calcs'!AQ56 + '1. Strategy Calcs'!BF56 + '1. Strategy Calcs'!BS56 -> 11.18687115 | J56: 66389.40919 | K56: ='1. Strategy Calcs'!AD56 + '1. Strategy Calcs'!AT56 + '1. Strategy Calcs'!BI56 + '1. Strategy Calcs'!BV56 + '1. Strategy Calcs'!CD56 -> 0.001294379606 | L56: 10.2912751 | M56: ='1. Strategy Calcs'!AG56 + '1. Strategy Calcs'!AW56 + '1. Strategy Calcs'!BL56 + '1. Strategy Calcs'!BY56 -> 0.001893384802 | N56: 13.38057892 | P56: 1 | R56: =0 + T55 + '1. Strategy Calcs'!AK55 -> 0.005847806461 | S56: 0.005287985264 | T56: 0.004960169462 | U56: 0.0002418336643 | V56: 7.267717493e-05 | W56: 1.330496287e-05 | X56: 0.0005598211964 | Y56: =(R56*(cT2DBaseCase))*'Time Discounting'!C53 -> 5.338670914 | Z56: 4.895836791 | AA56: 4.895836791 | AB56: =(R56*(INDEX(vQoLT2D_1,cycle+1)))*'Time Discounting'!E53 -> 0.0009849528576 | AC56: 0.0009032526102 | AD56: 0.0009032526102 | AE56: =(R56*(1))*'Time Discounting'!G53 -> 0.001415162152 | AF56: 0.001297776739 | AG56: 0.001297776739 | AH56: =0 + '1. Strategy Calcs'!U55 + AJ55 -> 0.001457946103 | AI56: 0.001136930862 | AJ56: 0.001041261757 | AK56: 6.383504046e-05 | AL56: 3.183406413e-05 | AM56: 0.0003210152415 | AN56: =(AH56*(cFollowingMicroalbuminuriaBaseCase))*'Time Discounting'!C53 -> 2.508474118 | AO56: 2.325904138 | AP56: =(0)*'Time Discounting'!C53 -> 0 | AQ56: 2.325904138 | AR56: =(AH56*(INDEX(vQoLMicro_1,cycle+1)))*'Time Discounting'!E53 -> 0.0002455635614 | AS56: 0.0002276911289 | AT56: 0.0002276911289 | AU56: =(AH56*(1))*'Time Discounting'!G53 -> 0.0003528212089 | AV56: 0.0003271424265 | AW56: 0.0003271424265 | AX56: =0 + '1. Strategy Calcs'!V55 + '1. Strategy Calcs'!AL55 + AZ55 -> 0.0008305269234 | AY56: 0.0006341425098 | AZ56: 0.0006195572321 | BA56: 1.458527773e-05 | BB56: 0.0001963844136 | BC56: =(AX56*(cFollowingMacroalbuminuriaBaseCase))*'Time Discounting'!C53 -> 1.428965918 | BD56: 1.319239496 | BE56: =(0)*'Time Discounting'!C53 -> 0 | BF56: 1.319239496 | BG56: =(AX56*(INDEX(vQoLMacro_1,cycle+1)))*'Time Discounting'!E53 -> 0.0001302392647 | BH56: 0.0001202385444 | BI56: 0.0001202385444 | BJ56: =(AX56*(1))*'Time Discounting'!G53 -> 0.0002009865196 | BK56: 0.0001855533092 | BL56: 0.0001855533092 | BM56: =0 + '1. Strategy Calcs'!W55 + '1. Strategy Calcs'!BA55 + BN55 -> 0.0003732906804 | BN56: 0.0002934064748 | BO56: 7.98842056e-05 | BP56: =(BM56*(cFollowingRenalDiseaseBaseCase))*'Time Discounting'!C53 -> 2.882791017 | BQ56: 2.645890721 | BR56: =(0)*'Time Discounting'!C53 -> 0 | BS56: 2.645890721 | BT56: =(BM56*(INDEX(vQoLRenalDisease_1,cycle+1)))*'Time Discounting'!E53 -> 4.706500237e-05 | BU56: 4.319732242e-05 | BV56: 4.319732242e-05 | BW56: =(BM56*(1))*'Time Discounting'!G53 -> 9.033589706e-05 | BX56: 8.291232711e-05 | BY56: 8.291232711e-05 | BZ56: =0 + '1. Strategy Calcs'!X55 + '1. Strategy Calcs'!AM55 + '1. Strategy Calcs'!BB55 + '1. Strategy Calcs'!BO55 + CA55 -> 0.9914904298 | CA56: 0.9914904298 | CB56: =(BZ56*(vQoLDeath))*'Time Discounting'!E53 -> 0 | CC56: 0 | CD56: 0 | CF56: 0.2364576127 | CG56: 0.2201832021 | CH56: =IF(rGender=0,InterpolateTable(tGeneralMortWONephropathy_2023,rAge+cycle,1),InterpolateTable(tGeneralMortWONephropathy_2023,rAge+cycle,2)) -> 0.095731827 | CI56: =IF(rGender=1,(0.742-(InterpolateTable(tQoL_AgeDecrements,VALUE(cycle),1)))-0.093,0.742-(InterpolateTable(tQoL_AgeDecrements,VALUE(cycle),1))) -> 0.648 | CJ56: =IF(rGender=1,(0.79-(InterpolateTable(tQoL_AgeDecrements,VALUE(cycle),1)))-0.093,0.79-(InterpolateTable(tQoL_AgeDecrements,VALUE(cycle),1))) -> 0.696 | CK56: =IF(rGender=1,(0.615-(InterpolateTable(tQoL_AgeDecrements,VALUE(cycle),1)))-0.093,0.615-(InterpolateTable(tQoL_AgeDecrements,VALUE(cycle),1))) -> 0.521 | CL56: =IF(rGender=1,(0.79-(InterpolateTable(tQoL_AgeDecrements,VALUE(cycle),1)))-0.093,0.79-(InterpolateTable(tQoL_AgeDecrements,VALUE(cycle),1))) -> 0.696
B57: 49 | D57: ='1. Strategy Calcs'!R57 -> 0.005024004503 | E57: ='1. Strategy Calcs'!AH57 -> 0.001283095422 | F57: ='1. Strategy Calcs'!AX57 -> 0.0007240684712 | G57: ='1. Strategy Calcs'!BM57 -> 0.0003212967154 | H57: ='1. Strategy Calcs'!BZ57 -> 0.9926475349 | I57: ='1. Strategy Calcs'!AA57 + '1. Strategy Calcs'!AQ57 + '1. Strategy Calcs'!BF57 + '1. Strategy Calcs'!BS57 -> 9.396202053 | J57: 66398.80539 | K57: ='1. Strategy Calcs'!AD57 + '1. Strategy Calcs'!AT57 + '1. Strategy Calcs'!BI57 + '1. Strategy Calcs'!BV57 + '1. Strategy Calcs'!CD57 -> 0.001068472868 | L57: 10.29234357 | M57: ='1. Strategy Calcs'!AG57 + '1. Strategy Calcs'!AW57 + '1. Strategy Calcs'!BL57 + '1. Strategy Calcs'!BY57 -> 0.001587860452 | N57: 13.38216678 | P57: 1 | R57: =0 + T56 + '1. Strategy Calcs'!AK56 -> 0.005024004503 | S57: 0.004543047373 | T57: 0.004256841477 | U57: 0.0002120993358 | V57: 6.289503855e-05 | W57: 1.121152176e-05 | X57: 0.0004809571299 | Y57: =(R57*(cT2DBaseCase))*'Time Discounting'!C54 -> 4.453002669 | Z57: 4.082241934 | AA57: 4.082241934 | AB57: =(R57*(INDEX(vQoLT2D_1,cycle+1)))*'Time Discounting'!E54 -> 0.0008215523628 | AC57: 0.000741589215 | AD57: 0.000741589215 | AE57: =(R57*(1))*'Time Discounting'!G54 -> 0.001180391326 | AF57: 0.001082110955 | AG57: 0.001082110955 | AH57: =0 + '1. Strategy Calcs'!U56 + AJ56 -> 0.001283095422 | AI57: 0.001000579363 | AJ57: 0.000916383802 | AK57: 5.617933884e-05 | AL57: 2.801622217e-05 | AM57: 0.0002825160585 | AN57: =(AH57*(cFollowingMicroalbuminuriaBaseCase))*'Time Discounting'!C54 -> 2.143334159 | AO57: 1.98674649 | AP57: =(0)*'Time Discounting'!C54 -> 0 | AQ57: 1.98674649 | AR57: =(AH57*(INDEX(vQoLMicro_1,cycle+1)))*'Time Discounting'!E54 -> 0.0002098186964 | AS57: 0.0001914651396 | AT57: 0.0001914651396 | AU57: =(AH57*(1))*'Time Discounting'!G54 -> 0.0003014636442 | AV57: 0.0002794393187 | AW57: 0.0002794393187 | AX57: =0 + '1. Strategy Calcs'!V56 + '1. Strategy Calcs'!AL56 + AZ56 -> 0.0007240684712 | AY57: 0.0005528569691 | AZ57: 0.0005401412588 | BA57: 1.271571029e-05 | BB57: 0.0001712115021 | BC57: =(AX57*(cFollowingMacroalbuminuriaBaseCase))*'Time Discounting'!C54 -> 1.209513074 | BD57: 1.116472794 | BE57: =(0)*'Time Discounting'!C54 -> 0 | BF57: 1.116472794 | BG57: =(AX57*(INDEX(vQoLMacro_1,cycle+1)))*'Time Discounting'!E54 -> 0.0001102378241 | BH57: 0.0001000665337 | BI57: 0.0001000665337 | BJ57: =(AX57*(1))*'Time Discounting'!G54 -> 0.0001701200989 | BK57: 0.0001570338231 | BL57: 0.0001570338231 | BM57: =0 + '1. Strategy Calcs'!W56 + '1. Strategy Calcs'!BA56 + BN56 -> 0.0003212967154 | BN57: 0.0002525392183 | BO57: 6.875749709e-05 | BP57: =(BM57*(cFollowingRenalDiseaseBaseCase))*'Time Discounting'!C54 -> 2.408990424 | BQ57: 2.210740835 | BR57: =(0)*'Time Discounting'!C54 -> 0 | BS57: 2.210740835 | BT57: =(BM57*(INDEX(vQoLRenalDisease_1,cycle+1)))*'Time Discounting'!E54 -> 3.932964248e-05 | BU57: 3.535197996e-05 | BV57: 3.535197996e-05 | BW57: =(BM57*(1))*'Time Discounting'!G54 -> 7.548875715e-05 | BX57: 6.92763559e-05 | BY57: 6.92763559e-05 | BZ57: =0 + '1. Strategy Calcs'!X56 + '1. Strategy Calcs'!AM56 + '1. Strategy Calcs'!BB56 + '1. Strategy Calcs'!BO56 + CA56 -> 0.9926475349 | CA57: 0.9926475349 | CB57: =(BZ57*(vQoLDeath))*'Time Discounting'!E54 -> 0 | CC57: 0 | CD57: 0 | CF57: 0.2364576127 | CG57: 0.2201832021 | CH57: =IF(rGender=0,InterpolateTable(tGeneralMortWONephropathy_2023,rAge+cycle,1),InterpolateTable(tGeneralMortWONephropathy_2023,rAge+cycle,2)) -> 0.095731827 | CI57: =IF(rGender=1,(0.742-(InterpolateTable(tQoL_AgeDecrements,VALUE(cycle),1)))-0.093,0.742-(InterpolateTable(tQoL_AgeDecrements,VALUE(cycle),1))) -> 0.648 | CJ57: =IF(rGender=1,(0.79-(InterpolateTable(tQoL_AgeDecrements,VALUE(cycle),1)))-0.093,0.79-(InterpolateTable(tQoL_AgeDecrements,VALUE(cycle),1))) -> 0.696 | CK57: =IF(rGender=1,(0.615-(InterpolateTable(tQoL_AgeDecrements,VALUE(cycle),1)))-0.093,0.615-(InterpolateTable(tQoL_AgeDecrements,VALUE(cycle),1))) -> 0.521 | CL57: =IF(rGender=1,(0.79-(InterpolateTable(tQoL_AgeDecrements,VALUE(cycle),1)))-0.093,0.79-(InterpolateTable(tQoL_AgeDecrements,VALUE(cycle),1))) -> 0.696
B58: 50 | D58: ='1. Strategy Calcs'!R58 -> 0.004313020815 | E58: ='1. Strategy Calcs'!AH58 -> 0.001128483138 | F58: ='1. Strategy Calcs'!AX58 -> 0.0006310525195 | G58: ='1. Strategy Calcs'!BM58 -> 0.0002764664503 | H58: ='1. Strategy Calcs'!BZ58 -> 0.9936509771 | I58: ='1. Strategy Calcs'!AA58 + '1. Strategy Calcs'!AQ58 + '1. Strategy Calcs'!BF58 + '1. Strategy Calcs'!BS58 -> 7.888394389 | J58: 66406.69379 | K58: ='1. Strategy Calcs'!AD58 + '1. Strategy Calcs'!AT58 + '1. Strategy Calcs'!BI58 + '1. Strategy Calcs'!BV58 + '1. Strategy Calcs'!CD58 -> 0.0008784980531 | L58: 10.29322207 | M58: ='1. Strategy Calcs'!AG58 + '1. Strategy Calcs'!AW58 + '1. Strategy Calcs'!BL58 + '1. Strategy Calcs'!BY58 -> 0.001330857443 | N58: 13.38349764 | P58: 1 | R58: =0 + T57 + '1. Strategy Calcs'!AK57 -> 0.004313020815 | S58: 0.003900127453 | T58: 0.003650418686 | U58: 0.00018587963 | V58: 5.438875043e-05 | W58: 9.440386289e-06 | X58: 0.0004128933626 | Y58: =(R58*(cT2DBaseCase))*'Time Discounting'!C55 -> 3.711481199 | Z58: 3.401279987 | AA58: 3.401279987 | AB58: =(R58*(INDEX(vQoLT2D_1,cycle+1)))*'Time Discounting'!E55 -> 0.0006616260673 | AC58: 0.0006063281426 | AD58: 0.0006063281426 | AE58: =(R58*(1))*'Time Discounting'!G55 -> 0.0009838305833 | AF58: 0.0009016031861 | AG58: 0.0009016031861 | AH58: =0 + '1. Strategy Calcs'!U57 + AJ57 -> 0.001128483138 | AI58: 0.000880010107 | AJ58: 0.0008059600642 | AK58: 4.940975979e-05 | AL58: 2.4640283e-05 | AM58: 0.0002484730308 | AN58: =(AH58*(cFollowingMicroalbuminuriaBaseCase))*'Time Discounting'!C55 -> 1.830158822 | AO58: 1.69593005 | AP58: =(0)*'Time Discounting'!C55 -> 0 | AQ58: 1.69593005 | AR58: =(AH58*(INDEX(vQoLMicro_1,cycle+1)))*'Time Discounting'!E55 -> 0.0001731115829 | AS58: 0.0001604151137 | AT58: 0.0001604151137 | AU58: =(AH58*(1))*'Time Discounting'!G55 -> 0.0002574149932 | AV58: 0.0002385354851 | AW58: 0.0002385354851 | AX58: =0 + '1. Strategy Calcs'!V57 + '1. Strategy Calcs'!AL57 + AZ57 -> 0.0006310525195 | AY58: 0.0004818353472 | AZ58: 0.0004707531343 | BA58: 1.108221299e-05 | BB58: 0.0001492171722 | BC58: =(AX58*(cFollowingMacroalbuminuriaBaseCase))*'Time Discounting'!C55 -> 1.023432515 | BD58: 0.9445460379 | BE58: =(0)*'Time Discounting'!C55 -> 0 | BF58: 0.9445460379 | BG58: =(AX58*(INDEX(vQoLMacro_1,cycle+1)))*'Time Discounting'!E55 -> 8.989524336e-05 | BH58: 8.296609177e-05 | BI58: 8.296609177e-05 | BJ58: =(AX58*(1))*'Time Discounting'!G55 -> 0.0001439475474 | BK58: 0.0001328520285 | BL58: 0.0001328520285 | BM58: =0 + '1. Strategy Calcs'!W57 + '1. Strategy Calcs'!BA57 + BN57 -> 0.0002764664503 | BN58: 0.00021730263 | BO58: 5.916382037e-05 | BP58: =(BM58*(cFollowingRenalDiseaseBaseCase))*'Time Discounting'!C55 -> 2.012491245 | BQ58: 1.846638314 | BR58: =(0)*'Time Discounting'!C55 -> 0 | BS58: 1.846638314 | BT58: =(BM58*(INDEX(vQoLRenalDisease_1,cycle+1)))*'Time Discounting'!E55 -> 3.137431744e-05 | BU58: 2.878870494e-05 | BV58: 2.878870494e-05 | BW58: =(BM58*(1))*'Time Discounting'!G55 -> 6.306395465e-05 | BX58: 5.786674361e-05 | BY58: 5.786674361e-05 | BZ58: =0 + '1. Strategy Calcs'!X57 + '1. Strategy Calcs'!AM57 + '1. Strategy Calcs'!BB57 + '1. Strategy Calcs'!BO57 + CA57 -> 0.9936509771 | CA58: 0.9936509771 | CB58: =(BZ58*(vQoLDeath))*'Time Discounting'!E55 -> 0 | CC58: 0 | CD58: 0 | CF58: 0.2364576127 | CG58: 0.2201832021 | CH58: =IF(rGender=0,InterpolateTable(tGeneralMortWONephropathy_2023,rAge+cycle,1),InterpolateTable(tGeneralMortWONephropathy_2023,rAge+cycle,2)) -> 0.095731827 | CI58: =IF(rGender=1,(0.742-(InterpolateTable(tQoL_AgeDecrements,VALUE(cycle),1)))-0.093,0.742-(InterpolateTable(tQoL_AgeDecrements,VALUE(cycle),1))) -> 0.6245 | CJ58: =IF(rGender=1,(0.79-(InterpolateTable(tQoL_AgeDecrements,VALUE(cycle),1)))-0.093,0.79-(InterpolateTable(tQoL_AgeDecrements,VALUE(cycle),1))) -> 0.6725 | CK58: =IF(rGender=1,(0.615-(InterpolateTable(tQoL_AgeDecrements,VALUE(cycle),1)))-0.093,0.615-(InterpolateTable(tQoL_AgeDecrements,VALUE(cycle),1))) -> 0.4975 | CL58: =IF(rGender=1,(0.79-(InterpolateTable(tQoL_AgeDecrements,VALUE(cycle),1)))-0.093,0.79-(InterpolateTable(tQoL_AgeDecrements,VALUE(cycle),1))) -> 0.6725
B59: 51 | D59: ='1. Strategy Calcs'!R59 -> 0.003699828446 | E59: ='1. Strategy Calcs'!AH59 -> 0.0009918396943 | F59: ='1. Strategy Calcs'!AX59 -> 0.0005497821677 | G59: ='1. Strategy Calcs'!BM59 -> 0.0002378252292 | H59: ='1. Strategy Calcs'!BZ59 -> 0.9945207245 | I59: ='1. Strategy Calcs'!AA59 + '1. Strategy Calcs'!AQ59 + '1. Strategy Calcs'!BF59 + '1. Strategy Calcs'!BS59 -> 6.619294683 | J59: 66413.31308 | K59: ='1. Strategy Calcs'!AD59 + '1. Strategy Calcs'!AT59 + '1. Strategy Calcs'!BI59 + '1. Strategy Calcs'!BV59 + '1. Strategy Calcs'!CD59 -> 0.0007358422285 | L59: 10.29395791 | M59: ='1. Strategy Calcs'!AG59 + '1. Strategy Calcs'!AW59 + '1. Strategy Calcs'!BL59 + '1. Strategy Calcs'!BY59 -> 0.00111478297 | N59: 13.38461242 | P59: 1 | R59: =0 + T58 + '1. Strategy Calcs'!AK58 -> 0.003699828446 | S59: 0.003345637109 | T59: 0.003127921977 | U59: 0.0001627751586 | V59: 4.69969972e-05 | W59: 7.942976321e-06 | X59: 0.0003541913367 | Y59: =(R59*(cT2DBaseCase))*'Time Discounting'!C56 -> 3.091078776 | Z59: 2.831729869 | AA59: 2.831729869 | AB59: =(R59*(INDEX(vQoLT2D_1,cycle+1)))*'Time Discounting'!E56 -> 0.000551030218 | AC59: 0.000504797464 | AD59: 0.000504797464 | AE59: =(R59*(1))*'Time Discounting'!G56 -> 0.0008193757889 | AF59: 0.0007506281992 | AG59: 0.0007506281992 | AH59: =0 + '1. Strategy Calcs'!U58 + AJ58 -> 0.0009918396943 | AI59: 0.0007734532544 | AJ59: 0.0007083696308 | AK59: 4.342693249e-05 | AL59: 2.165669112e-05 | AM59: 0.0002183864399 | AN59: =(AH59*(cFollowingMicroalbuminuriaBaseCase))*'Time Discounting'!C56 -> 1.561701279 | AO59: 1.446705545 | AP59: =(0)*'Time Discounting'!C56 -> 0 | AQ59: 1.446705545 | AR59: =(AH59*(INDEX(vQoLMicro_1,cycle+1)))*'Time Discounting'!E56 -> 0.0001477186445 | AS59: 0.0001368413954 | AT59: 0.0001368413954 | AU59: =(AH59*(1))*'Time Discounting'!G56 -> 0.000219655977 | AV59: 0.0002034816288 | AW59: 0.0002034816288 | AX59: =0 + '1. Strategy Calcs'!V58 + '1. Strategy Calcs'!AL58 + AZ58 -> 0.0005497821677 | AY59: 0.0004197819888 | AZ59: 0.0004101270031 | BA59: 9.654985743e-06 | BB59: 0.0001300001789 | BC59: =(AX59*(cFollowingMacroalbuminuriaBaseCase))*'Time Discounting'!C56 -> 0.865659561 | BD59: 0.7987832661 | BE59: =(0)*'Time Discounting'!C56 -> 0 | BF59: 0.7987832661 | BG59: =(AX59*(INDEX(vQoLMacro_1,cycle+1)))*'Time Discounting'!E56 -> 7.603694019e-05 | BH59: 7.016272696e-05 | BI59: 7.016272696e-05 | BJ59: =(AX59*(1))*'Time Discounting'!G56 -> 0.0001217565095 | BK59: 0.0001123502433 | BL59: 0.0001123502433 | BM59: =0 + '1. Strategy Calcs'!W58 + '1. Strategy Calcs'!BA58 + BN58 -> 0.0002378252292 | BN59: 0.0001869306302 | BO59: 5.089459906e-05 | BP59: =(BM59*(cFollowingRenalDiseaseBaseCase))*'Time Discounting'!C56 -> 1.680785383 | BQ59: 1.542076002 | BR59: =(0)*'Time Discounting'!C56 -> 0 | BS59: 1.542076002 | BT59: =(BM59*(INDEX(vQoLRenalDisease_1,cycle+1)))*'Time Discounting'!E56 -> 2.620309245e-05 | BU59: 2.404064223e-05 | BV59: 2.404064223e-05 | BW59: =(BM59*(1))*'Time Discounting'!G56 -> 5.266953257e-05 | BX59: 4.832289896e-05 | BY59: 4.832289896e-05 | BZ59: =0 + '1. Strategy Calcs'!X58 + '1. Strategy Calcs'!AM58 + '1. Strategy Calcs'!BB58 + '1. Strategy Calcs'!BO58 + CA58 -> 0.9945207245 | CA59: 0.9945207245 | CB59: =(BZ59*(vQoLDeath))*'Time Discounting'!E56 -> 0 | CC59: 0 | CD59: 0 | CF59: 0.2364576127 | CG59: 0.2201832021 | CH59: =IF(rGender=0,InterpolateTable(tGeneralMortWONephropathy_2023,rAge+cycle,1),InterpolateTable(tGeneralMortWONephropathy_2023,rAge+cycle,2)) -> 0.095731827 | CI59: =IF(rGender=1,(0.742-(InterpolateTable(tQoL_AgeDecrements,VALUE(cycle),1)))-0.093,0.742-(InterpolateTable(tQoL_AgeDecrements,VALUE(cycle),1))) -> 0.6245 | CJ59: =IF(rGender=1,(0.79-(InterpolateTable(tQoL_AgeDecrements,VALUE(cycle),1)))-0.093,0.79-(InterpolateTable(tQoL_AgeDecrements,VALUE(cycle),1))) -> 0.6725 | CK59: =IF(rGender=1,(0.615-(InterpolateTable(tQoL_AgeDecrements,VALUE(cycle),1)))-0.093,0.615-(InterpolateTable(tQoL_AgeDecrements,VALUE(cycle),1))) -> 0.4975 | CL59: =IF(rGender=1,(0.79-(InterpolateTable(tQoL_AgeDecrements,VALUE(cycle),1)))-0.093,0.79-(InterpolateTable(tQoL_AgeDecrements,VALUE(cycle),1))) -> 0.6725
B60: 52 | D60: ='1. Strategy Calcs'!R60 -> 0.00317134891 | E60: ='1. Strategy Calcs'!AH60 -> 0.0008711447894 | F60: ='1. Strategy Calcs'!AX60 -> 0.0004787806914 | G60: ='1. Strategy Calcs'!BM60 -> 0.0002045285922 | H60: ='1. Strategy Calcs'!BZ60 -> 0.995274197 | I60: ='1. Strategy Calcs'!AA60 + '1. Strategy Calcs'!AQ60 + '1. Strategy Calcs'!BF60 + '1. Strategy Calcs'!BS60 -> 5.551571429 | J60: 66418.86465 | K60: ='1. Strategy Calcs'!AD60 + '1. Strategy Calcs'!AT60 + '1. Strategy Calcs'!BI60 + '1. Strategy Calcs'!BV60 + '1. Strategy Calcs'!CD60 -> 0.0006159699763 | L60: 10.29457388 | M60: ='1. Strategy Calcs'!AG60 + '1. Strategy Calcs'!AW60 + '1. Strategy Calcs'!BL60 + '1. Strategy Calcs'!BY60 -> 0.0009332170428 | N60: 13.38554564 | P60: 1 | R60: =0 + T59 + '1. Strategy Calcs'!AK59 -> 0.00317134891 | S60: 0.002867749884 | T60: 0.002678063537 | U60: 0.0001424302054 | V60: 4.057825626e-05 | W60: 6.677885708e-06 | X60: 0.0003035990252 | Y60: =(R60*(cT2DBaseCase))*'Time Discounting'!C57 -> 2.572380962 | Z60: 2.355705124 | AA60: 2.355705124 | AB60: =(R60*(INDEX(vQoLT2D_1,cycle+1)))*'Time Discounting'!E57 -> 0.00045856471 | AC60: 0.0004199390576 | AD60: 0.0004199390576 | AE60: =(R60*(1))*'Time Discounting'!G57 -> 0.0006818806096 | AF60: 0.0006244446953 | AG60: 0.0006244446953 | AH60: =0 + '1. Strategy Calcs'!U59 + AJ59 -> 0.0008711447894 | AI60: 0.0006793333402 | AJ60: 0.0006221696071 | AK60: 3.81423996e-05 | AL60: 1.902133353e-05 | AM60: 0.0001918114492 | AN60: =(AH60*(cFollowingMicroalbuminuriaBaseCase))*'Time Discounting'!C57 -> 1.331709811 | AO60: 1.233250844 | AP60: =(0)*'Time Discounting'!C57 -> 0 | AQ60: 1.233250844 | AR60: =(AH60*(INDEX(vQoLMicro_1,cycle+1)))*'Time Discounting'!E57 -> 0.0001259641462 | AS60: 0.0001166510814 | AT60: 0.0001166510814 | AU60: =(AH60*(1))*'Time Discounting'!G57 -> 0.0001873072806 | AV60: 0.0001734588572 | AW60: 0.0001734588572 | AX60: =0 + '1. Strategy Calcs'!V59 + '1. Strategy Calcs'!AL59 + AZ59 -> 0.0004787806914 | AY60: 0.0003655693521 | AZ60: 0.000357161257 | BA60: 8.408095099e-06 | BB60: 0.0001132113393 | BC60: =(AX60*(cFollowingMacroalbuminuriaBaseCase))*'Time Discounting'!C57 -> 0.7319069711 | BD60: 0.6752243067 | BE60: =(0)*'Time Discounting'!C57 -> 0 | BF60: 0.6752243067 | BG60: =(AX60*(INDEX(vQoLMacro_1,cycle+1)))*'Time Discounting'!E57 -> 6.428851374e-05 | BH60: 5.930967846e-05 | BI60: 5.930967846e-05 | BJ60: =(AX60*(1))*'Time Discounting'!G57 -> 0.0001029439772 | BK60: 9.497146271e-05 | BL60: 9.497146271e-05 | BM60: =0 + '1. Strategy Calcs'!W59 + '1. Strategy Calcs'!BA59 + BN59 -> 0.0002045285922 | BN60: 0.0001607594735 | BO60: 4.376911874e-05 | BP60: =(BM60*(cFollowingRenalDiseaseBaseCase))*'Time Discounting'!C57 -> 1.403366622 | BQ60: 1.287391154 | BR60: =(0)*'Time Discounting'!C57 -> 0 | BS60: 1.287391154 | BT60: =(BM60*(INDEX(vQoLRenalDisease_1,cycle+1)))*'Time Discounting'!E57 -> 2.187819201e-05 | BU60: 2.007015873e-05 | BV60: 2.007015873e-05 | BW60: =(BM60*(1))*'Time Discounting'!G57 -> 4.397626535e-05 | BX60: 4.03420276e-05 | BY60: 4.03420276e-05 | BZ60: =0 + '1. Strategy Calcs'!X59 + '1. Strategy Calcs'!AM59 + '1. Strategy Calcs'!BB59 + '1. Strategy Calcs'!BO59 + CA59 -> 0.995274197 | CA60: 0.995274197 | CB60: =(BZ60*(vQoLDeath))*'Time Discounting'!E57 -> 0 | CC60: 0 | CD60: 0 | CF60: 0.2364576127 | CG60: 0.2201832021 | CH60: =IF(rGender=0,InterpolateTable(tGeneralMortWONephropathy_2023,rAge+cycle,1),InterpolateTable(tGeneralMortWONephropathy_2023,rAge+cycle,2)) -> 0.095731827 | CI60: =IF(rGender=1,(0.742-(InterpolateTable(tQoL_AgeDecrements,VALUE(cycle),1)))-0.093,0.742-(InterpolateTable(tQoL_AgeDecrements,VALUE(cycle),1))) -> 0.6245 | CJ60: =IF(rGender=1,(0.79-(InterpolateTable(tQoL_AgeDecrements,VALUE(cycle),1)))-0.093,0.79-(InterpolateTable(tQoL_AgeDecrements,VALUE(cycle),1))) -> 0.6725 | CK60: =IF(rGender=1,(0.615-(InterpolateTable(tQoL_AgeDecrements,VALUE(cycle),1)))-0.093,0.615-(InterpolateTable(tQoL_AgeDecrements,VALUE(cycle),1))) -> 0.4975 | CL60: =IF(rGender=1,(0.79-(InterpolateTable(tQoL_AgeDecrements,VALUE(cycle),1)))-0.093,0.79-(InterpolateTable(tQoL_AgeDecrements,VALUE(cycle),1))) -> 0.6725
B61: 53 | D61: ='1. Strategy Calcs'!R61 -> 0.002716205937 | E61: ='1. Strategy Calcs'!AH61 -> 0.0007645998125 | F61: ='1. Strategy Calcs'!AX61 -> 0.0004167608468 | G61: ='1. Strategy Calcs'!BM61 -> 0.0001758454543 | H61: ='1. Strategy Calcs'!BZ61 -> 0.9959265879 | I61: ='1. Strategy Calcs'!AA61 + '1. Strategy Calcs'!AQ61 + '1. Strategy Calcs'!BF61 + '1. Strategy Calcs'!BS61 -> 4.653669745 | J61: 66423.51832 | K61: ='1. Strategy Calcs'!AD61 + '1. Strategy Calcs'!AT61 + '1. Strategy Calcs'!BI61 + '1. Strategy Calcs'!BV61 + '1. Strategy Calcs'!CD61 -> 0.0005152991173 | L61: 10.29508918 | M61: ='1. Strategy Calcs'!AG61 + '1. Strategy Calcs'!AW61 + '1. Strategy Calcs'!BL61 + '1. Strategy Calcs'!BY61 -> 0.0007807331703 | N61: 13.38632637 | P61: 1 | R61: =0 + T60 + '1. Strategy Calcs'!AK60 -> 0.002716205937 | S61: 0.00245617858 | T61: 0.002291032176 | U61: 0.0001245281237 | V61: 3.500843653e-05 | W61: 5.609843377e-06 | X61: 0.0002600273568 | Y61: =(R61*(cT2DBaseCase))*'Time Discounting'!C58 -> 2.139029286 | Z61: 1.958138887 | AA61: 1.958138887 | AB61: =(R61*(INDEX(vQoLT2D_1,cycle+1)))*'Time Discounting'!E58 -> 0.0003813134053 | AC61: 0.0003490670333 | AD61: 0.0003490670333 | AE61: =(R61*(1))*'Time Discounting'!G58 -> 0.0005670087811 | AF61: 0.0005190587856 | AG61: 0.0005190587856 | AH61: =0 + '1. Strategy Calcs'!U60 + AJ60 -> 0.0007645998125 | AI61: 0.0005962477774 | AJ61: 0.0005460754293 | AK61: 3.347741034e-05 | AL61: 1.669493777e-05 | AM61: 0.000168352035 | AN61: =(AH61*(cFollowingMicroalbuminuriaBaseCase))*'Time Discounting'!C58 -> 1.134791877 | AO61: 1.050544467 | AP61: =(0)*'Time Discounting'!C58 -> 0 | AQ61: 1.050544467 | AR61: =(AH61*(INDEX(vQoLMicro_1,cycle+1)))*'Time Discounting'!E58 -> 0.0001073380167 | AS61: 9.93691987e-05 | AT61: 9.93691987e-05 | AU61: =(AH61*(1))*'Time Discounting'!G58 -> 0.0001596104337 | AV61: 0.0001477608903 | AW61: 0.0001477608903 | AX61: =0 + '1. Strategy Calcs'!V60 + '1. Strategy Calcs'!AL60 + AZ60 -> 0.0004167608468 | AY61: 0.0003182145719 | AZ61: 0.0003108956368 | BA61: 7.318935154e-06 | BB61: 9.85462749e-05 | BC61: =(AX61*(cFollowingMacroalbuminuriaBaseCase))*'Time Discounting'!C58 -> 0.6185416424 | BD61: 0.5705118746 | BE61: =(0)*'Time Discounting'!C58 -> 0 | BF61: 0.5705118746 | BG61: =(AX61*(INDEX(vQoLMacro_1,cycle+1)))*'Time Discounting'!E58 -> 5.433084319e-05 | BH61: 5.01120524e-05 | BI61: 5.01120524e-05 | BJ61: =(AX61*(1))*'Time Discounting'!G58 -> 8.699894826e-05 | BK61: 8.024347862e-05 | BL61: 8.024347862e-05 | BM61: =0 + '1. Strategy Calcs'!W60 + '1. Strategy Calcs'!BA60 + BN60 -> 0.0001758454543 | BN61: 0.0001382145271 | BO61: 3.763092722e-05 | BP61: =(BM61*(cFollowingRenalDiseaseBaseCase))*'Time Discounting'!C58 -> 1.171415686 | BQ61: 1.074474516 | BR61: =(0)*'Time Discounting'!C58 -> 0 | BS61: 1.074474516 | BT61: =(BM61*(INDEX(vQoLRenalDisease_1,cycle+1)))*'Time Discounting'!E58 -> 1.826212545e-05 | BU61: 1.675083289e-05 | BV61: 1.675083289e-05 | BW61: =(BM61*(1))*'Time Discounting'!G58 -> 3.670778985e-05 | BX61: 3.367001585e-05 | BY61: 3.367001585e-05 | BZ61: =0 + '1. Strategy Calcs'!X60 + '1. Strategy Calcs'!AM60 + '1. Strategy Calcs'!BB60 + '1. Strategy Calcs'!BO60 + CA60 -> 0.9959265879 | CA61: 0.9959265879 | CB61: =(BZ61*(vQoLDeath))*'Time Discounting'!E58 -> 0 | CC61: 0 | CD61: 0 | CF61: 0.2364576127 | CG61: 0.2201832021 | CH61: =IF(rGender=0,InterpolateTable(tGeneralMortWONephropathy_2023,rAge+cycle,1),InterpolateTable(tGeneralMortWONephropathy_2023,rAge+cycle,2)) -> 0.095731827 | CI61: =IF(rGender=1,(0.742-(InterpolateTable(tQoL_AgeDecrements,VALUE(cycle),1)))-0.093,0.742-(InterpolateTable(tQoL_AgeDecrements,VALUE(cycle),1))) -> 0.6245 | CJ61: =IF(rGender=1,(0.79-(InterpolateTable(tQoL_AgeDecrements,VALUE(cycle),1)))-0.093,0.79-(InterpolateTable(tQoL_AgeDecrements,VALUE(cycle),1))) -> 0.6725 | CK61: =IF(rGender=1,(0.615-(InterpolateTable(tQoL_AgeDecrements,VALUE(cycle),1)))-0.093,0.615-(InterpolateTable(tQoL_AgeDecrements,VALUE(cycle),1))) -> 0.4975 | CL61: =IF(rGender=1,(0.79-(InterpolateTable(tQoL_AgeDecrements,VALUE(cycle),1)))-0.093,0.79-(InterpolateTable(tQoL_AgeDecrements,VALUE(cycle),1))) -> 0.6725
B62: 54 | D62: ='1. Strategy Calcs'!R62 -> 0.002324509587 | E62: ='1. Strategy Calcs'!AH62 -> 0.000670603553 | F62: ='1. Strategy Calcs'!AX62 -> 0.000362599011 | G62: ='1. Strategy Calcs'!BM62 -> 0.0001511433056 | H62: ='1. Strategy Calcs'!BZ62 -> 0.9964911445 | I62: ='1. Strategy Calcs'!AA62 + '1. Strategy Calcs'!AQ62 + '1. Strategy Calcs'!BF62 + '1. Strategy Calcs'!BS62 -> 3.898925225 | J62: 66427.41725 | K62: ='1. Strategy Calcs'!AD62 + '1. Strategy Calcs'!AT62 + '1. Strategy Calcs'!BI62 + '1. Strategy Calcs'!BV62 + '1. Strategy Calcs'!CD62 -> 0.0004308027388 | L62: 10.29551998 | M62: ='1. Strategy Calcs'!AG62 + '1. Strategy Calcs'!AW62 + '1. Strategy Calcs'!BL62 + '1. Strategy Calcs'!BY62 -> 0.0006527463046 | N62: 13.38697912 | P62: 1 | R62: =0 + T61 + '1. Strategy Calcs'!AK61 -> 0.002324509587 | S62: 0.002101980037 | T62: 0.00195830522 | U62: 0.0001087872016 | V62: 3.017879277e-05 | W62: 4.708822101e-06 | X62: 0.0002225295496 | Y62: =(R62*(cT2DBaseCase))*'Time Discounting'!C59 -> 1.777248488 | Z62: 1.626347095 | AA62: 1.626347095 | AB62: =(R62*(INDEX(vQoLT2D_1,cycle+1)))*'Time Discounting'!E59 -> 0.0003168206613 | AC62: 0.0002899202704 | AD62: 0.0002899202704 | AE62: =(R62*(1))*'Time Discounting'!G59 -> 0.0004711087901 | AF62: 0.0004311082087 | AG62: 0.0004311082087 | AH62: =0 + '1. Strategy Calcs'!U61 + AJ61 -> 0.000670603553 | AI62: 0.0005229479154 | AJ62: 0.0004789435168 | AK62: 2.936185696e-05 | AL62: 1.464254163e-05 | AM62: 0.0001476556376 | AN62: =(AH62*(cFollowingMicroalbuminuriaBaseCase))*'Time Discounting'!C59 -> 0.9662970569 | AO62: 0.8942565743 | AP62: =(0)*'Time Discounting'!C59 -> 0 | AQ62: 0.8942565743 | AR62: =(AH62*(INDEX(vQoLMicro_1,cycle+1)))*'Time Discounting'!E59 -> 9.140038071e-05 | AS62: 8.458619506e-05 | AT62: 8.458619506e-05 | AU62: =(AH62*(1))*'Time Discounting'!G59 -> 0.0001359113468 | AV62: 0.0001257787287 | AW62: 0.0001257787287 | AX62: =0 + '1. Strategy Calcs'!V61 + '1. Strategy Calcs'!AL61 + AZ61 -> 0.000362599011 | AY62: 0.0002768597145 | AZ62: 0.0002704919411 | BA62: 6.367773434e-06 | BB62: 8.573929652e-05 | BC62: =(AX62*(cFollowingMacroalbuminuriaBaseCase))*'Time Discounting'!C59 -> 0.5224821068 | BD62: 0.4817975437 | BE62: =(0)*'Time Discounting'!C59 -> 0 | BF62: 0.4817975437 | BG62: =(AX62*(INDEX(vQoLMacro_1,cycle+1)))*'Time Discounting'!E59 -> 4.589326161e-05 | BH62: 4.231965159e-05 | BI62: 4.231965159e-05 | BJ62: =(AX62*(1))*'Time Discounting'!G59 -> 7.348800899e-05 | BK62: 6.776565506e-05 | BL62: 6.776565506e-05 | BM62: =0 + '1. Strategy Calcs'!W61 + '1. Strategy Calcs'!BA61 + BN61 -> 0.0001511433056 | BN62: 0.0001187986382 | BO62: 3.23446674e-05 | BP62: =(BM62*(cFollowingRenalDiseaseBaseCase))*'Time Discounting'!C59 -> 0.9775333451 | BQ62: 0.8965240114 | BR62: =(0)*'Time Discounting'!C59 -> 0 | BS62: 0.8965240114 | BT62: =(BM62*(INDEX(vQoLRenalDisease_1,cycle+1)))*'Time Discounting'!E59 -> 1.523954032e-05 | BU62: 1.397662176e-05 | BV62: 1.397662176e-05 | BW62: =(BM62*(1))*'Time Discounting'!G59 -> 3.063224185e-05 | BX62: 2.809371208e-05 | BY62: 2.809371208e-05 | BZ62: =0 + '1. Strategy Calcs'!X61 + '1. Strategy Calcs'!AM61 + '1. Strategy Calcs'!BB61 + '1. Strategy Calcs'!BO61 + CA61 -> 0.9964911445 | CA62: 0.9964911445 | CB62: =(BZ62*(vQoLDeath))*'Time Discounting'!E59 -> 0 | CC62: 0 | CD62: 0 | CF62: 0.2364576127 | CG62: 0.2201832021 | CH62: =IF(rGender=0,InterpolateTable(tGeneralMortWONephropathy_2023,rAge+cycle,1),InterpolateTable(tGeneralMortWONephropathy_2023,rAge+cycle,2)) -> 0.095731827 | CI62: =IF(rGender=1,(0.742-(InterpolateTable(tQoL_AgeDecrements,VALUE(cycle),1)))-0.093,0.742-(InterpolateTable(tQoL_AgeDecrements,VALUE(cycle),1))) -> 0.6245 | CJ62: =IF(rGender=1,(0.79-(InterpolateTable(tQoL_AgeDecrements,VALUE(cycle),1)))-0.093,0.79-(InterpolateTable(tQoL_AgeDecrements,VALUE(cycle),1))) -> 0.6725 | CK62: =IF(rGender=1,(0.615-(InterpolateTable(tQoL_AgeDecrements,VALUE(cycle),1)))-0.093,0.615-(InterpolateTable(tQoL_AgeDecrements,VALUE(cycle),1))) -> 0.4975 | CL62: =IF(rGender=1,(0.79-(InterpolateTable(tQoL_AgeDecrements,VALUE(cycle),1)))-0.093,0.79-(InterpolateTable(tQoL_AgeDecrements,VALUE(cycle),1))) -> 0.6725
B63: 55 | D63: ='1. Strategy Calcs'!R63 -> 0.001987667077 | E63: ='1. Strategy Calcs'!AH63 -> 0.0005877307184 | F63: ='1. Strategy Calcs'!AX63 -> 0.0003153132755 | G63: ='1. Strategy Calcs'!BM63 -> 0.0001298752338 | H63: ='1. Strategy Calcs'!BZ63 -> 0.9969794137 | I63: ='1. Strategy Calcs'!AA63 + '1. Strategy Calcs'!AQ63 + '1. Strategy Calcs'!BF63 + '1. Strategy Calcs'!BS63 -> 3.264812864 | J63: 66430.68206 | K63: ='1. Strategy Calcs'!AD63 + '1. Strategy Calcs'!AT63 + '1. Strategy Calcs'!BI63 + '1. Strategy Calcs'!BV63 + '1. Strategy Calcs'!CD63 -> 0.0003599241468 | L63: 10.2958799 | M63: ='1. Strategy Calcs'!AG63 + '1. Strategy Calcs'!AW63 + '1. Strategy Calcs'!BL63 + '1. Strategy Calcs'!BY63 -> 0.0005453838888 | N63: 13.3875245 | P63: 1 | R63: =0 + T62 + '1. Strategy Calcs'!AK62 -> 0.001987667077 | S63: 0.001797384077 | T63: 0.00167248377 | U63: 9.495694979e-05 | V63: 2.599408277e-05 | W63: 3.949274331e-06 | X63: 0.0001902830008 | Y63: =(R63*(cT2DBaseCase))*'Time Discounting'!C60 -> 1.475445702 | Z63: 1.349658251 | AA63: 1.349658251 | AB63: =(R63*(INDEX(vQoLT2D_1,cycle+1)))*'Time Discounting'!E60 -> 0.0002630198794 | AC63: 0.0002405964177 | AD63: 0.0002405964177 | AE63: =(R63*(1))*'Time Discounting'!G60 -> 0.0003911076273 | AF63: 0.0003577641898 | AG63: 0.0003577641898 | AH63: =0 + '1. Strategy Calcs'!U62 + AJ62 -> 0.0005877307184 | AI63: 0.0004583222869 | AJ63: 0.0004197559287 | AK63: 2.573333411e-05 | AL63: 1.283302403e-05 | AM63: 0.0001294084316 | AN63: =(AH63*(cFollowingMicroalbuminuriaBaseCase))*'Time Discounting'!C60 -> 0.8222160917 | AO63: 0.7606548988 | AP63: =(0)*'Time Discounting'!C60 -> 0 | AQ63: 0.7606548988 | AR63: =(AH63*(INDEX(vQoLMicro_1,cycle+1)))*'Time Discounting'!E60 -> 7.777200942e-05 | AS63: 7.19490418e-05 | AT63: 7.19490418e-05 | AU63: =(AH63*(1))*'Time Discounting'!G60 -> 0.0001156461107 | AV63: 0.0001069874228 | AW63: 0.0001069874228 | AX63: =0 + '1. Strategy Calcs'!V62 + '1. Strategy Calcs'!AL62 + AZ62 -> 0.0003153132755 | AY63: 0.0002407550511 | AZ63: 0.0002352176849 | BA63: 5.537366176e-06 | BB63: 7.455822437e-05 | BC63: =(AX63*(cFollowingMacroalbuminuriaBaseCase))*'Time Discounting'!C60 -> 0.4411129807 | BD63: 0.40666315 | BE63: =(0)*'Time Discounting'!C60 -> 0 | BF63: 0.40666315 | BG63: =(AX63*(INDEX(vQoLMacro_1,cycle+1)))*'Time Discounting'!E60 -> 3.874604156e-05 | BH63: 3.572007173e-05 | BI63: 3.572007173e-05 | BJ63: =(AX63*(1))*'Time Discounting'!G60 -> 6.204330114e-05 | BK63: 5.719787307e-05 | BL63: 5.719787307e-05 | BM63: =0 + '1. Strategy Calcs'!W62 + '1. Strategy Calcs'!BA62 + BN62 -> 0.0001298752338 | BN63: 0.0001020819337 | BO63: 2.779330002e-05 | BP63: =(BM63*(cFollowingRenalDiseaseBaseCase))*'Time Discounting'!C60 -> 0.8155146777 | BQ63: 0.747836564 | BR63: =(0)*'Time Discounting'!C60 -> 0 | BS63: 0.747836564 | BT63: =(BM63*(INDEX(vQoLRenalDisease_1,cycle+1)))*'Time Discounting'!E60 -> 1.27137032e-05 | BU63: 1.165861556e-05 | BV63: 1.165861556e-05 | BW63: =(BM63*(1))*'Time Discounting'!G60 -> 2.55551823e-05 | BX63: 2.343440314e-05 | BY63: 2.343440314e-05 | BZ63: =0 + '1. Strategy Calcs'!X62 + '1. Strategy Calcs'!AM62 + '1. Strategy Calcs'!BB62 + '1. Strategy Calcs'!BO62 + CA62 -> 0.9969794137 | CA63: 0.9969794137 | CB63: =(BZ63*(vQoLDeath))*'Time Discounting'!E60 -> 0 | CC63: 0 | CD63: 0 | CF63: 0.2364576127 | CG63: 0.2201832021 | CH63: =IF(rGender=0,InterpolateTable(tGeneralMortWONephropathy_2023,rAge+cycle,1),InterpolateTable(tGeneralMortWONephropathy_2023,rAge+cycle,2)) -> 0.095731827 | CI63: =IF(rGender=1,(0.742-(InterpolateTable(tQoL_AgeDecrements,VALUE(cycle),1)))-0.093,0.742-(InterpolateTable(tQoL_AgeDecrements,VALUE(cycle),1))) -> 0.6245 | CJ63: =IF(rGender=1,(0.79-(InterpolateTable(tQoL_AgeDecrements,VALUE(cycle),1)))-0.093,0.79-(InterpolateTable(tQoL_AgeDecrements,VALUE(cycle),1))) -> 0.6725 | CK63: =IF(rGender=1,(0.615-(InterpolateTable(tQoL_AgeDecrements,VALUE(cycle),1)))-0.093,0.615-(InterpolateTable(tQoL_AgeDecrements,VALUE(cycle),1))) -> 0.4975 | CL63: =IF(rGender=1,(0.79-(InterpolateTable(tQoL_AgeDecrements,VALUE(cycle),1)))-0.093,0.79-(InterpolateTable(tQoL_AgeDecrements,VALUE(cycle),1))) -> 0.6725
B64: 56 | D64: ='1. Strategy Calcs'!R64 -> 0.001698217104 | E64: ='1. Strategy Calcs'!AH64 -> 0.0005147128785 | F64: ='1. Strategy Calcs'!AX64 -> 0.0002740447918 | G64: ='1. Strategy Calcs'!BM64 -> 0.0001115685742 | H64: ='1. Strategy Calcs'!BZ64 -> 0.9974014567 | I64: ='1. Strategy Calcs'!AA64 + '1. Strategy Calcs'!AQ64 + '1. Strategy Calcs'!BF64 + '1. Strategy Calcs'!BS64 -> 2.732310529 | J64: 66433.41437 | K64: ='1. Strategy Calcs'!AD64 + '1. Strategy Calcs'!AT64 + '1. Strategy Calcs'!BI64 + '1. Strategy Calcs'!BV64 + '1. Strategy Calcs'!CD64 -> 0.0003005047357 | L64: 10.29618041 | M64: ='1. Strategy Calcs'!AG64 + '1. Strategy Calcs'!AW64 + '1. Strategy Calcs'!BL64 + '1. Strategy Calcs'!BY64 -> 0.000455376506 | N64: 13.38797988 | P64: 1 | R64: =0 + T63 + '1. Strategy Calcs'!AK63 -> 0.001698217104 | S64: 0.001535643678 | T64: 0.001427148491 | U64: 8.28147695e-05 | V64: 2.237093966e-05 | W64: 3.309477296e-06 | X64: 0.000162573426 | Y64: =(R64*(cT2DBaseCase))*'Time Discounting'!C61 -> 1.2238708 | Z64: 1.119099759 | AA64: 1.119099759 | AB64: =(R64*(INDEX(vQoLT2D_1,cycle+1)))*'Time Discounting'!E61 -> 0.000218172956 | AC64: 0.0001994959783 | AD64: 0.0001994959783 | AE64: =(R64*(1))*'Time Discounting'!G61 -> 0.0003244207524 | AF64: 0.0002966482949 | AG64: 0.0002966482949 | AH64: =0 + '1. Strategy Calcs'!U63 + AJ63 -> 0.0005147128785 | AI64: 0.0004013817488 | AJ64: 0.0003676067552 | AK64: 2.253630456e-05 | AL64: 1.123868897e-05 | AM64: 0.0001133311298 | AN64: =(AH64*(cFollowingMicroalbuminuriaBaseCase))*'Time Discounting'!C61 -> 0.6990937058 | AO64: 0.6465234819 | AP64: =(0)*'Time Discounting'!C61 -> 0 | AQ64: 0.6465234819 | AR64: =(AH64*(INDEX(vQoLMicro_1,cycle+1)))*'Time Discounting'!E61 -> 6.612607418e-05 | AS64: 6.11535469e-05 | AT64: 6.11535469e-05 | AU64: =(AH64*(1))*'Time Discounting'!G61 -> 9.832873484e-05 | AV64: 9.093464223e-05 | AW64: 9.093464223e-05 | AX64: =0 + '1. Strategy Calcs'!V63 + '1. Strategy Calcs'!AL63 + AZ63 -> 0.0002740447918 | AY64: 0.0002092448145 | AZ64: 0.0002044321838 | BA64: 4.812630734e-06 | BB64: 6.479997723e-05 | BC64: =(AX64*(cFollowingMacroalbuminuriaBaseCase))*'Time Discounting'!C61 -> 0.3722133193 | BD64: 0.3430548763 | BE64: =(0)*'Time Discounting'!C61 -> 0 | BF64: 0.3430548763 | BG64: =(AX64*(INDEX(vQoLMacro_1,cycle+1)))*'Time Discounting'!E61 -> 3.26941019e-05 | BH64: 3.013291169e-05 | BI64: 3.013291169e-05 | BJ64: =(AX64*(1))*'Time Discounting'!G61 -> 5.2352445e-05 | BK64: 4.825125971e-05 | BL64: 4.825125971e-05 | BM64: =0 + '1. Strategy Calcs'!W63 + '1. Strategy Calcs'!BA63 + BN63 -> 0.0001115685742 | BN64: 8.769289935e-05 | BO64: 2.387567489e-05 | BP64: =(BM64*(cFollowingRenalDiseaseBaseCase))*'Time Discounting'!C61 -> 0.6801584503 | BQ64: 0.6236324116 | BR64: =(0)*'Time Discounting'!C61 -> 0 | BS64: 0.6236324116 | BT64: =(BM64*(INDEX(vQoLRenalDisease_1,cycle+1)))*'Time Discounting'!E61 -> 1.060352793e-05 | BU64: 9.722298815e-06 | BV64: 9.722298815e-06 | BW64: =(BM64*(1))*'Time Discounting'!G61 -> 2.131362398e-05 | BX64: 1.954230918e-05 | BY64: 1.954230918e-05 | BZ64: =0 + '1. Strategy Calcs'!X63 + '1. Strategy Calcs'!AM63 + '1. Strategy Calcs'!BB63 + '1. Strategy Calcs'!BO63 + CA63 -> 0.9974014567 | CA64: 0.9974014567 | CB64: =(BZ64*(vQoLDeath))*'Time Discounting'!E61 -> 0 | CC64: 0 | CD64: 0 | CF64: 0.2364576127 | CG64: 0.2201832021 | CH64: =IF(rGender=0,InterpolateTable(tGeneralMortWONephropathy_2023,rAge+cycle,1),InterpolateTable(tGeneralMortWONephropathy_2023,rAge+cycle,2)) -> 0.095731827 | CI64: =IF(rGender=1,(0.742-(InterpolateTable(tQoL_AgeDecrements,VALUE(cycle),1)))-0.093,0.742-(InterpolateTable(tQoL_AgeDecrements,VALUE(cycle),1))) -> 0.6245 | CJ64: =IF(rGender=1,(0.79-(InterpolateTable(tQoL_AgeDecrements,VALUE(cycle),1)))-0.093,0.79-(InterpolateTable(tQoL_AgeDecrements,VALUE(cycle),1))) -> 0.6725 | CK64: =IF(rGender=1,(0.615-(InterpolateTable(tQoL_AgeDecrements,VALUE(cycle),1)))-0.093,0.615-(InterpolateTable(tQoL_AgeDecrements,VALUE(cycle),1))) -> 0.4975 | CL64: =IF(rGender=1,(0.79-(InterpolateTable(tQoL_AgeDecrements,VALUE(cycle),1)))-0.093,0.79-(InterpolateTable(tQoL_AgeDecrements,VALUE(cycle),1))) -> 0.6725
B65: 57 | D65: ='1. Strategy Calcs'!R65 -> 0.001449684796 | E65: ='1. Strategy Calcs'!AH65 -> 0.0004504215247 | F65: ='1. Strategy Calcs'!AX65 -> 0.0002380418124 | G65: ='1. Strategy Calcs'!BM65 -> 9.581500738e-05 | H65: ='1. Strategy Calcs'!BZ65 -> 0.9977660369 | I65: ='1. Strategy Calcs'!AA65 + '1. Strategy Calcs'!AQ65 + '1. Strategy Calcs'!BF65 + '1. Strategy Calcs'!BS65 -> 2.2853596 | J65: 66435.69973 | K65: ='1. Strategy Calcs'!AD65 + '1. Strategy Calcs'!AT65 + '1. Strategy Calcs'!BI65 + '1. Strategy Calcs'!BV65 + '1. Strategy Calcs'!CD65 -> 0.0002507228182 | L65: 10.29643113 | M65: ='1. Strategy Calcs'!AG65 + '1. Strategy Calcs'!AW65 + '1. Strategy Calcs'!BL65 + '1. Strategy Calcs'!BY65 -> 0.0003799651555 | N65: 13.38835984 | P65: 1 | R65: =0 + T64 + '1. Strategy Calcs'!AK64 -> 0.001449684796 | S65: 0.001310903822 | T65: 0.00121673345 | U65: 7.216296446e-05 | V65: 1.923643513e-05 | W65: 2.770972023e-06 | X65: 0.0001387809741 | Y65: =(R65*(cT2DBaseCase))*'Time Discounting'!C62 -> 1.014328719 | Z65: 0.9271323256 | AA65: 0.9271323256 | AB65: =(R65*(INDEX(vQoLT2D_1,cycle+1)))*'Time Discounting'!E62 -> 0.0001808190006 | AC65: 0.0001652749621 | AD65: 0.0001652749621 | AE65: =(R65*(1))*'Time Discounting'!G62 -> 0.0002688758374 | AF65: 0.0002457620254 | AG65: 0.0002457620254 | AH65: =0 + '1. Strategy Calcs'!U64 + AJ64 -> 0.0004504215247 | AI65: 0.0003512462711 | AJ65: 0.0003216900181 | AK65: 1.972135745e-05 | AL65: 9.834895592e-06 | AM65: 9.917525361e-05 | AN65: =(AH65*(cFollowingMicroalbuminuriaBaseCase))*'Time Discounting'!C62 -> 0.5939532581 | AO65: 0.5490924216 | AP65: =(0)*'Time Discounting'!C62 -> 0 | AQ65: 0.5490924216 | AR65: =(AH65*(INDEX(vQoLMicro_1,cycle+1)))*'Time Discounting'!E62 -> 5.618101962e-05 | AS65: 5.193771007e-05 | AT65: 5.193771007e-05 | AU65: =(AH65*(1))*'Time Discounting'!G62 -> 8.354054962e-05 | AV65: 7.723079564e-05 | AW65: 7.723079564e-05 | AX65: =0 + '1. Strategy Calcs'!V64 + '1. Strategy Calcs'!AL64 + AZ64 -> 0.0002380418124 | AY65: 0.0001817550137 | AZ65: 0.0001775746484 | BA65: 4.180365316e-06 | BB65: 5.628679869e-05 | BC65: =(AX65*(cFollowingMacroalbuminuriaBaseCase))*'Time Discounting'!C62 -> 0.3138964332 | BD65: 0.2892278161 | BE65: =(0)*'Time Discounting'!C62 -> 0 | BF65: 0.2892278161 | BG65: =(AX65*(INDEX(vQoLMacro_1,cycle+1)))*'Time Discounting'!E62 -> 2.757172148e-05 | BH65: 2.540490413e-05 | BI65: 2.540490413e-05 | BJ65: =(AX65*(1))*'Time Discounting'!G62 -> 4.415007443e-05 | BK65: 4.068039092e-05 | BL65: 4.068039092e-05 | BM65: =0 + '1. Strategy Calcs'!W64 + '1. Strategy Calcs'!BA64 + BN64 -> 9.581500738e-05 | BN65: 7.53105958e-05 | BO65: 2.050441158e-05 | BP65: =(BM65*(cFollowingRenalDiseaseBaseCase))*'Time Discounting'!C62 -> 0.5671063728 | BQ65: 0.5199070364 | BR65: =(0)*'Time Discounting'!C62 -> 0 | BS65: 0.5199070364 | BT65: =(BM65*(INDEX(vQoLRenalDisease_1,cycle+1)))*'Time Discounting'!E62 -> 8.841069697e-06 | BU65: 8.105241919e-06 | BV65: 8.105241919e-06 | BW65: =(BM65*(1))*'Time Discounting'!G62 -> 1.777099437e-05 | BX65: 1.629194355e-05 | BY65: 1.629194355e-05 | BZ65: =0 + '1. Strategy Calcs'!X64 + '1. Strategy Calcs'!AM64 + '1. Strategy Calcs'!BB64 + '1. Strategy Calcs'!BO64 + CA64 -> 0.9977660369 | CA65: 0.9977660369 | CB65: =(BZ65*(vQoLDeath))*'Time Discounting'!E62 -> 0 | CC65: 0 | CD65: 0 | CF65: 0.2364576127 | CG65: 0.2201832021 | CH65: =IF(rGender=0,InterpolateTable(tGeneralMortWONephropathy_2023,rAge+cycle,1),InterpolateTable(tGeneralMortWONephropathy_2023,rAge+cycle,2)) -> 0.095731827 | CI65: =IF(rGender=1,(0.742-(InterpolateTable(tQoL_AgeDecrements,VALUE(cycle),1)))-0.093,0.742-(InterpolateTable(tQoL_AgeDecrements,VALUE(cycle),1))) -> 0.6245 | CJ65: =IF(rGender=1,(0.79-(InterpolateTable(tQoL_AgeDecrements,VALUE(cycle),1)))-0.093,0.79-(InterpolateTable(tQoL_AgeDecrements,VALUE(cycle),1))) -> 0.6725 | CK65: =IF(rGender=1,(0.615-(InterpolateTable(tQoL_AgeDecrements,VALUE(cycle),1)))-0.093,0.615-(InterpolateTable(tQoL_AgeDecrements,VALUE(cycle),1))) -> 0.4975 | CL65: =IF(rGender=1,(0.79-(InterpolateTable(tQoL_AgeDecrements,VALUE(cycle),1)))-0.093,0.79-(InterpolateTable(tQoL_AgeDecrements,VALUE(cycle),1))) -> 0.6725
B66: 58 | D66: ='1. Strategy Calcs'!R66 -> 0.001236454808 | E66: ='1. Strategy Calcs'!AH66 -> 0.0003938529825 | F66: ='1. Strategy Calcs'!AX66 -> 0.0002066459791 | G66: ='1. Strategy Calcs'!BM66 -> 8.226193314e-05 | H66: ='1. Strategy Calcs'!BZ66 -> 0.9980807843 | I66: ='1. Strategy Calcs'!AA66 + '1. Strategy Calcs'!AQ66 + '1. Strategy Calcs'!BF66 + '1. Strategy Calcs'!BS66 -> 1.91040801 | J66: 66437.61014 | K66: ='1. Strategy Calcs'!AD66 + '1. Strategy Calcs'!AT66 + '1. Strategy Calcs'!BI66 + '1. Strategy Calcs'!BV66 + '1. Strategy Calcs'!CD66 -> 0.0002090417573 | L66: 10.29664017 | M66: ='1. Strategy Calcs'!AG66 + '1. Strategy Calcs'!AW66 + '1. Strategy Calcs'!BL66 + '1. Strategy Calcs'!BY66 -> 0.0003168226407 | N66: 13.38867667 | P66: 1 | R66: =0 + T65 + '1. Strategy Calcs'!AK65 -> 0.001236454808 | S66: 0.00111808673 | T66: 0.001036415774 | U66: 6.282606117e-05 | V66: 1.652681161e-05 | W66: 2.318083061e-06 | X66: 0.0001183680777 | Y66: =(R66*(cT2DBaseCase))*'Time Discounting'!C63 -> 0.8399359323 | Z66: 0.7674251686 | AA66: 0.7674251686 | AB66: =(R66*(INDEX(vQoLT2D_1,cycle+1)))*'Time Discounting'!E63 -> 0.0001497309235 | AC66: 0.0001368048143 | AD66: 0.0001368048143 | AE66: =(R66*(1))*'Time Discounting'!G63 -> 0.0002226482134 | AF66: 0.0002034272332 | AG66: 0.0002034272332 | AH66: =0 + '1. Strategy Calcs'!U65 + AJ65 -> 0.0003938529825 | AI66: 0.0003071331717 | AJ66: 0.0002812888952 | AK66: 1.724454767e-05 | AL66: 8.599728807e-06 | AM66: 8.671981085e-05 | AN66: =(AH66*(cFollowingMicroalbuminuriaBaseCase))*'Time Discounting'!C63 -> 0.5042315851 | AO66: 0.4659771093 | AP66: =(0)*'Time Discounting'!C63 -> 0 | AQ66: 0.4659771093 | AR66: =(AH66*(INDEX(vQoLMicro_1,cycle+1)))*'Time Discounting'!E63 -> 4.769440052e-05 | AS66: 4.407597528e-05 | AT66: 4.407597528e-05 | AU66: =(AH66*(1))*'Time Discounting'!G63 -> 7.092104166e-05 | AV66: 6.554048369e-05 | AW66: 6.554048369e-05 | AX66: =0 + '1. Strategy Calcs'!V65 + '1. Strategy Calcs'!AL65 + AZ65 -> 0.0002066459791 | AY66: 0.0001577829642 | AZ66: 0.0001541539561 | BA66: 3.629008178e-06 | BB66: 4.88630149e-05 | BC66: =(AX66*(cFollowingMacroalbuminuriaBaseCase))*'Time Discounting'!C63 -> 0.2645591991 | BD66: 0.2436992351 | BE66: =(0)*'Time Discounting'!C63 -> 0 | BF66: 0.2436992351 | BG66: =(AX66*(INDEX(vQoLMacro_1,cycle+1)))*'Time Discounting'!E63 -> 2.323808678e-05 | BH66: 2.140581009e-05 | BI66: 2.140581009e-05 | BJ66: =(AX66*(1))*'Time Discounting'!G63 -> 3.721070741e-05 | BK66: 3.427671752e-05 | BL66: 3.427671752e-05 | BM66: =0 + '1. Strategy Calcs'!W65 + '1. Strategy Calcs'!BA65 + BN65 -> 8.226193314e-05 | BN66: 6.465787945e-05 | BO66: 1.760405369e-05 | BP66: =(BM66*(cFollowingRenalDiseaseBaseCase))*'Time Discounting'!C63 -> 0.4727077001 | BQ66: 0.4333064972 | BR66: =(0)*'Time Discounting'!C63 -> 0 | BS66: 0.4333064972 | BT66: =(BM66*(INDEX(vQoLRenalDisease_1,cycle+1)))*'Time Discounting'!E63 -> 7.36941414e-06 | BU66: 6.75515763e-06 | BV66: 6.75515763e-06 | BW66: =(BM66*(1))*'Time Discounting'!G63 -> 1.481289274e-05 | BX66: 1.357820629e-05 | BY66: 1.357820629e-05 | BZ66: =0 + '1. Strategy Calcs'!X65 + '1. Strategy Calcs'!AM65 + '1. Strategy Calcs'!BB65 + '1. Strategy Calcs'!BO65 + CA65 -> 0.9980807843 | CA66: 0.9980807843 | CB66: =(BZ66*(vQoLDeath))*'Time Discounting'!E63 -> 0 | CC66: 0 | CD66: 0 | CF66: 0.2364576127 | CG66: 0.2201832021 | CH66: =IF(rGender=0,InterpolateTable(tGeneralMortWONephropathy_2023,rAge+cycle,1),InterpolateTable(tGeneralMortWONephropathy_2023,rAge+cycle,2)) -> 0.095731827 | CI66: =IF(rGender=1,(0.742-(InterpolateTable(tQoL_AgeDecrements,VALUE(cycle),1)))-0.093,0.742-(InterpolateTable(tQoL_AgeDecrements,VALUE(cycle),1))) -> 0.6245 | CJ66: =IF(rGender=1,(0.79-(InterpolateTable(tQoL_AgeDecrements,VALUE(cycle),1)))-0.093,0.79-(InterpolateTable(tQoL_AgeDecrements,VALUE(cycle),1))) -> 0.6725 | CK66: =IF(rGender=1,(0.615-(InterpolateTable(tQoL_AgeDecrements,VALUE(cycle),1)))-0.093,0.615-(InterpolateTable(tQoL_AgeDecrements,VALUE(cycle),1))) -> 0.4975 | CL66: =IF(rGender=1,(0.79-(InterpolateTable(tQoL_AgeDecrements,VALUE(cycle),1)))-0.093,0.79-(InterpolateTable(tQoL_AgeDecrements,VALUE(cycle),1))) -> 0.6725
B67: 59 | D67: ='1. Strategy Calcs'!R67 -> 0.001053660322 | E67: ='1. Strategy Calcs'!AH67 -> 0.0003441149564 | F67: ='1. Strategy Calcs'!AX67 -> 0.0001792804965 | G67: ='1. Strategy Calcs'!BM67 -> 7.060497069e-05 | H67: ='1. Strategy Calcs'!BZ67 -> 0.9983523393 | I67: ='1. Strategy Calcs'!AA67 + '1. Strategy Calcs'!AQ67 + '1. Strategy Calcs'!BF67 + '1. Strategy Calcs'!BS67 -> 1.596023179 | J67: 66439.20616 | K67: ='1. Strategy Calcs'!AD67 + '1. Strategy Calcs'!AT67 + '1. Strategy Calcs'!BI67 + '1. Strategy Calcs'!BV67 + '1. Strategy Calcs'!CD67 -> 0.0001713469179 | L67: 10.29681152 | M67: ='1. Strategy Calcs'!AG67 + '1. Strategy Calcs'!AW67 + '1. Strategy Calcs'!BL67 + '1. Strategy Calcs'!BY67 -> 0.0002639869315 | N67: 13.38894065 | P67: 1 | R67: =0 + T66 + '1. Strategy Calcs'!AK66 -> 0.001053660322 | S67: 0.0009527914941 | T67: 0.000882019215 | U67: 5.464840749e-05 | V67: 1.418636412e-05 | W67: 1.937507497e-06 | X67: 0.0001008688276 | Y67: =(R67*(cT2DBaseCase))*'Time Discounting'!C64 -> 0.694914405 | Z67: 0.6346658803 | AA67: 0.6346658803 | AB67: =(R67*(INDEX(vQoLT2D_1,cycle+1)))*'Time Discounting'!E64 -> 0.0001238787051 | AC67: 0.0001113494043 | AD67: 0.0001113494043 | AE67: =(R67*(1))*'Time Discounting'!G64 -> 0.0001842062529 | AF67: 0.0001682357177 | AG67: 0.0001682357177 | AH67: =0 + '1. Strategy Calcs'!U66 + AJ66 -> 0.0003441149564 | AI67: 0.0002683466234 | AJ67: 0.0002457661112 | AK67: 1.506680673e-05 | AL67: 7.513705455e-06 | AM67: 7.576833299e-05 | AN67: =(AH67*(cFollowingMicroalbuminuriaBaseCase))*'Time Discounting'!C64 -> 0.4277226334 | AO67: 0.3951256594 | AP67: =(0)*'Time Discounting'!C64 -> 0 | AQ67: 0.3951256594 | AR67: =(AH67*(INDEX(vQoLMicro_1,cycle+1)))*'Time Discounting'!E64 -> 4.045755004e-05 | AS67: 3.677512236e-05 | AT67: 3.677512236e-05 | AU67: =(AH67*(1))*'Time Discounting'!G64 -> 6.015992571e-05 | AV67: 5.557510513e-05 | AW67: 5.557510513e-05 | AX67: =0 + '1. Strategy Calcs'!V66 + '1. Strategy Calcs'!AL66 + AZ66 -> 0.0001792804965 | AY67: 0.0001368882583 | AZ67: 0.0001337398283 | BA67: 3.14842994e-06 | BB67: 4.23922382e-05 | BC67: =(AX67*(cFollowingMacroalbuminuriaBaseCase))*'Time Discounting'!C64 -> 0.2228392712 | BD67: 0.2052090804 | BE67: =(0)*'Time Discounting'!C64 -> 0 | BF67: 0.2052090804 | BG67: =(AX67*(INDEX(vQoLMacro_1,cycle+1)))*'Time Discounting'!E64 -> 1.95735334e-05 | BH67: 1.77149466e-05 | BI67: 1.77149466e-05 | BJ67: =(AX67*(1))*'Time Discounting'!G64 -> 3.134272763e-05 | BK67: 2.886301091e-05 | BL67: 2.886301091e-05 | BM67: =0 + '1. Strategy Calcs'!W66 + '1. Strategy Calcs'!BA66 + BN66 -> 7.060497069e-05 | BN67: 5.549550696e-05 | BO67: 1.510946373e-05 | BP67: =(BM67*(cFollowingRenalDiseaseBaseCase))*'Time Discounting'!C64 -> 0.3939052942 | BQ67: 0.3610225587 | BR67: =(0)*'Time Discounting'!C64 -> 0 | BS67: 0.3610225587 | BT67: =(BM67*(INDEX(vQoLRenalDisease_1,cycle+1)))*'Time Discounting'!E64 -> 6.140901121e-06 | BU67: 5.507444714e-06 | BV67: 5.507444714e-06 | BW67: =(BM67*(1))*'Time Discounting'!G64 -> 1.234351984e-05 | BX67: 1.13130978e-05 | BY67: 1.13130978e-05 | BZ67: =0 + '1. Strategy Calcs'!X66 + '1. Strategy Calcs'!AM66 + '1. Strategy Calcs'!BB66 + '1. Strategy Calcs'!BO66 + CA66 -> 0.9983523393 | CA67: 0.9983523393 | CB67: =(BZ67*(vQoLDeath))*'Time Discounting'!E64 -> 0 | CC67: 0 | CD67: 0 | CF67: 0.2364576127 | CG67: 0.2201832021 | CH67: =IF(rGender=0,InterpolateTable(tGeneralMortWONephropathy_2023,rAge+cycle,1),InterpolateTable(tGeneralMortWONephropathy_2023,rAge+cycle,2)) -> 0.095731827 | CI67: =IF(rGender=1,(0.742-(InterpolateTable(tQoL_AgeDecrements,VALUE(cycle),1)))-0.093,0.742-(InterpolateTable(tQoL_AgeDecrements,VALUE(cycle),1))) -> 0.6245 | CJ67: =IF(rGender=1,(0.79-(InterpolateTable(tQoL_AgeDecrements,VALUE(cycle),1)))-0.093,0.79-(InterpolateTable(tQoL_AgeDecrements,VALUE(cycle),1))) -> 0.6725 | CK67: =IF(rGender=1,(0.615-(InterpolateTable(tQoL_AgeDecrements,VALUE(cycle),1)))-0.093,0.615-(InterpolateTable(tQoL_AgeDecrements,VALUE(cycle),1))) -> 0.4975 | CL67: =IF(rGender=1,(0.79-(InterpolateTable(tQoL_AgeDecrements,VALUE(cycle),1)))-0.093,0.79-(InterpolateTable(tQoL_AgeDecrements,VALUE(cycle),1))) -> 0.6725
B68: 60 | D68: ='1. Strategy Calcs'!R68 -> 0.0008970860217 | E68: ='1. Strategy Calcs'!AH68 -> 0.0003004145187 | F68: ='1. Strategy Calcs'!AX68 -> 0.0001554398979 | G68: ='1. Strategy Calcs'!BM68 -> 6.05814444e-05 | H68: ='1. Strategy Calcs'!BZ68 -> 0.9985864781 | I68: ='1. Strategy Calcs'!AA68 + '1. Strategy Calcs'!AQ68 + '1. Strategy Calcs'!BF68 + '1. Strategy Calcs'!BS68 -> 0 | J68: 66439.20616 | K68: ='1. Strategy Calcs'!AD68 + '1. Strategy Calcs'!AT68 + '1. Strategy Calcs'!BI68 + '1. Strategy Calcs'!BV68 + '1. Strategy Calcs'!CD68 -> 0 | L68: 10.29681152 | M68: ='1. Strategy Calcs'!AG68 + '1. Strategy Calcs'!AW68 + '1. Strategy Calcs'!BL68 + '1. Strategy Calcs'!BY68 -> 0 | N68: 13.38894065 | P68: 1 | R68: =0 + T67 + '1. Strategy Calcs'!AK67 -> 0.0008970860217 | Y68: =(R68*(cT2DBaseCase))*'Time Discounting'!C65 -> 0.5744173556 | AA68: 0 | AB68: =(R68*(INDEX(vQoLT2D_1,cycle+1)))*'Time Discounting'!E65 -> 9.882010343e-05 | AD68: 0 | AE68: =(R68*(1))*'Time Discounting'!G65 -> 0.0001522651825 | AG68: 0 | AH68: =0 + '1. Strategy Calcs'!U67 + AJ67 -> 0.0003004145187 | AN68: =(AH68*(cFollowingMicroalbuminuriaBaseCase))*'Time Discounting'!C65 -> 0.3625286854 | AQ68: 0 | AR68: =(AH68*(INDEX(vQoLMicro_1,cycle+1)))*'Time Discounting'!E65 -> 3.309269467e-05 | AT68: 0 | AU68: =(AH68*(1))*'Time Discounting'!G65 -> 5.099028455e-05 | AW68: 0 | AX68: =0 + '1. Strategy Calcs'!V67 + '1. Strategy Calcs'!AL67 + AZ67 -> 0.0001554398979 | BC68: =(AX68*(cFollowingMacroalbuminuriaBaseCase))*'Time Discounting'!C65 -> 0.1875788897 | BF68: 0 | BG68: =(AX68*(INDEX(vQoLMacro_1,cycle+1)))*'Time Discounting'!E65 -> 1.58563598e-05 | BI68: 0 | BJ68: =(AX68*(1))*'Time Discounting'!G65 -> 2.638329418e-05 | BL68: 0 | BM68: =0 + '1. Strategy Calcs'!W67 + '1. Strategy Calcs'!BA67 + BN67 -> 6.05814444e-05 | BP68: =(BM68*(cFollowingRenalDiseaseBaseCase))*'Time Discounting'!C65 -> 0.3281398233 | BS68: 0 | BT68: =(BM68*(INDEX(vQoLRenalDisease_1,cycle+1)))*'Time Discounting'!E65 -> 4.873988308e-06 | BV68: 0 | BW68: =(BM68*(1))*'Time Discounting'!G65 -> 1.028267576e-05 | BY68: 0 | BZ68: =0 + '1. Strategy Calcs'!X67 + '1. Strategy Calcs'!AM67 + '1. Strategy Calcs'!BB67 + '1. Strategy Calcs'!BO67 + CA67 -> 0.9985864781 | CB68: =(BZ68*(vQoLDeath))*'Time Discounting'!E65 -> 0 | CD68: 0 | CF68: 0.2364576127 | CG68: 0.2201832021 | CH68: =IF(rGender=0,InterpolateTable(tGeneralMortWONephropathy_2023,rAge+cycle,1),InterpolateTable(tGeneralMortWONephropathy_2023,rAge+cycle,2)) -> 0.095731827 | CI68: =IF(rGender=1,(0.742-(InterpolateTable(tQoL_AgeDecrements,VALUE(cycle),1)))-0.093,0.742-(InterpolateTable(tQoL_AgeDecrements,VALUE(cycle),1))) -> 0.601 | CJ68: =IF(rGender=1,(0.79-(InterpolateTable(tQoL_AgeDecrements,VALUE(cycle),1)))-0.093,0.79-(InterpolateTable(tQoL_AgeDecrements,VALUE(cycle),1))) -> 0.649 | CK68: =IF(rGender=1,(0.615-(InterpolateTable(tQoL_AgeDecrements,VALUE(cycle),1)))-0.093,0.615-(InterpolateTable(tQoL_AgeDecrements,VALUE(cycle),1))) -> 0.474 | CL68: =IF(rGender=1,(0.79-(InterpolateTable(tQoL_AgeDecrements,VALUE(cycle),1)))-0.093,0.79-(InterpolateTable(tQoL_AgeDecrements,VALUE(cycle),1))) -> 0.649
B70: Total | I70: =SUM(I8:I68) -> 66439.20616 | J70: =J68 -> 66439.20616 | K70: =SUM(K8:K68) -> 10.29681152 | L70: =L68 -> 10.29681152 | M70: =SUM(M8:M68) -> 13.38894065 | N70: =N68 -> 13.38894065

Sheet 2. Strategy Calcs
B1: Strategy | C1: 2 | D1: Tirzepatide 15mg/Week
B2: States | C2: All
R3: T2D - State 2.1 | AH3: Microalbuminuria - State 2.2 | AX3: Macroalbuminuria - State 2.3 | BM3: Renal Disease - State 2.4 | BZ3: Death - State 2.5
D4: Cohort State Proportions | R4: Cohort % | Y4: Payoff 1 - Cost | AB4: Payoff 2 - QALY | AE4: Payoff 3 - Life expectancy | AH4: Cohort % | AN4: Payoff 1 - Cost | AR4: Payoff 2 - QALY | AU4: Payoff 3 - Life expectancy | AX4: Cohort % | BC4: Payoff 1 - Cost | BG4: Payoff 2 - QALY | BJ4: Payoff 3 - Life expectancy | BM4: Cohort % | BP4: Payoff 1 - Cost | BT4: Payoff 2 - QALY | BW4: Payoff 3 - Life expectancy | BZ4: Cohort % | CB4: Payoff 2 - QALY
B5: Cycle | D5: T2D | E5: Microalbuminuria | F5: Macroalbuminuria | G5: Renal Disease | H5: Death | I5: Payoff 1 - Cost | K5: Payoff 2 - QALY | M5: Payoff 3 - Life expectancy | P5: Checksum of Cohort % | R5: 2.1 State | S5: 2.1.1 Transition | T5: 2.1.1.1 Transition | U5: 2.1.1.2 Transition | V5: 2.1.1.3 Transition | W5: 2.1.1.4 Transition | X5: 2.1.2 Transition | Y5: 2.1 State before WCC | Z5: 2.1 State after WCC | AA5: State/Trans | AB5: 2.1 State before WCC | AC5: 2.1 State after WCC | AD5: State/Trans | AE5: 2.1 State before WCC | AF5: 2.1 State after WCC | AG5: State/Trans | AH5: 2.2 State | AI5: 2.2.1 Transition | AJ5: 2.2.1.1 Transition | AK5: 2.2.1.2 Transition | AL5: 2.2.1.3 Transition | AM5: 2.2.2 Transition | AN5: 2.2 State before WCC | AO5: 2.2 State after WCC | AP5: 2.2 State StartUp and Event | AQ5: State/Trans | AR5: 2.2 State before WCC | AS5: 2.2 State after WCC | AT5: State/Trans | AU5: 2.2 State before WCC | AV5: 2.2 State after WCC | AW5: State/Trans | AX5: 2.3 State | AY5: 2.3.1 Transition | AZ5: 2.3.1.1 Transition | BA5: 2.3.1.2 Transition | BB5: 2.3.2 Transition | BC5: 2.3 State before WCC | BD5: 2.3 State after WCC | BE5: 2.3 State StartUp and Event | BF5: State/Trans | BG5: 2.3 State before WCC | BH5: 2.3 State after WCC | BI5: State/Trans | BJ5: 2.3 State before WCC | BK5: 2.3 State after WCC | BL5: State/Trans | BM5: 2.4 State | BN5: 2.4.1 Transition | BO5: 2.4.2 Transition | BP5: 2.4 State before WCC | BQ5: 2.4 State after WCC | BR5: 2.4 State StartUp and Event | BS5: State/Trans | BT5: 2.4 State before WCC | BU5: 2.4 State after WCC | BV5: State/Trans | BW5: 2.4 State before WCC | BX5: 2.4 State after WCC | BY5: State/Trans | BZ5: 2.5 State | CA5: 2.5.1 Transition | CB5: 2.5 State before WCC | CC5: 2.5 State after WCC | CD5: State/Trans | CF5: pMacroalbuminuriaToDeath | CG5: pMicroalbuminuriaToDeath | CH5: pT2DToDeath | CI5: vQoLMacro | CJ5: vQoLMicro | CK5: vQoLRenalDisease | CL5: vQoLT2D
I6: WCC Disc | J6: Cum Disc | K6: WCC Disc | L6: Cum Disc | M6: WCC Disc | N6: Cum Disc | R6: T2D | S6: Alive | T6: Stay in T2D | U6: Microalbuminuria | V6: Macroalbuminuria | W6: Renal Disease | X6: Dead | Y6: T2D | Z6: T2D | AA6: State Total | AB6: T2D | AC6: T2D | AD6: State Total | AE6: T2D | AF6: T2D | AG6: State Total | AH6: Microalbuminuria | AI6: Alive | AJ6: Stay in Microalbuminuria | AK6: T2D | AL6: Macroalbuminuria | AM6: Dead | AN6: Microalbuminuria | AO6: Microalbuminuria | AP6: Microalbuminuria | AQ6: State Total | AR6: Microalbuminuria | AS6: Microalbuminuria | AT6: State Total | AU6: Microalbuminuria | AV6: Microalbuminuria | AW6: State Total | AX6: Macroalbuminuria | AY6: Alive | AZ6: Stay in Macroalbuminuria | BA6: Renal Disease | BB6: Dead | BC6: Macroalbuminuria | BD6: Macroalbuminuria | BE6: Macroalbuminuria | BF6: State Total | BG6: Macroalbuminuria | BH6: Macroalbuminuria | BI6: State Total | BJ6: Macroalbuminuria | BK6: Macroalbuminuria | BL6: State Total | BM6: Renal Disease | BN6: Stay in Renal Disease | BO6: Dead | BP6: Renal Disease | BQ6: Renal Disease | BR6: Renal Disease | BS6: State Total | BT6: Renal Disease | BU6: Renal Disease | BV6: State Total | BW6: Renal Disease | BX6: Renal Disease | BY6: State Total | BZ6: Death | CA6: Dead | CB6: Death | CC6: Death | CD6: State Total
B8: 0 | D8: =1 -> 1 | E8: =0 -> 0 | F8: =0 -> 0 | G8: =0 -> 0 | H8: =0 -> 0 | I8: ='2. Strategy Calcs'!AA8 + '2. Strategy Calcs'!AQ8 + '2. Strategy Calcs'!BF8 + '2. Strategy Calcs'!BS8 -> 9931.970191 | J8: =I8 -> 9931.970191 | K8: ='2. Strategy Calcs'!AD8 + '2. Strategy Calcs'!AT8 + '2. Strategy Calcs'!BI8 + '2. Strategy Calcs'!BV8 + '2. Strategy Calcs'!CD8 -> 0.7738069233 | L8: =K8 -> 0.7738069233 | M8: ='2. Strategy Calcs'!AG8 + '2. Strategy Calcs'!AW8 + '2. Strategy Calcs'!BL8 + '2. Strategy Calcs'!BY8 -> 0.980232702 | N8: =M8 -> 0.980232702 | P8: =SUM(D8:H8) -> 1 | R8: ='2. Strategy Calcs'!D8 -> 1 | S8: =R8*(1-(INDEX(pT2DToDeath_2,cycle+1))) -> 0.9892793662 | T8: =S8*(1-((1-(0.78^(EXP(((((((((((((((0.02114*(rAge+cycle))+(0.16956*rGender))-(0.00804*risBlack))+(0.17342*risHispanic))+(0.28362*rSmoker))+(0.00334*rSBP))+(0.22312*rCVDHistory))+(0.28372*rAntiHypertensiveDrugs))+(0.06584*rOralT2DDrugs))+(0.42199*rAnticoagulants))+(0.13847*(rHbA1c+rHbA1c_Tirzepatide)))+(0.00034*(rTotalCholesterol+rTotalCholesterol_Tirzepatide)))-(0.0097*(rHDL+rHDL_Tirzepatide)))+(0.67026*rSerumCreatinine))-3.64)/10))))-((1-(0.94^(EXP((((((((((((((((0.00733*(rAge+cycle))+(0.2738*rGender))-(0.00556*risBlack))+(0.3563*risHispanic))+(0.1001*rSmoker))+((-0.00101)*rSBP))+(0.2557*rCVDHistory))+(0.2418*rAntiHypertensiveDrugs))+(0.09015*rOralT2DDrugs))+(0.01091*rAnticoagulants))+(0.09639*(rHbA1c+rHbA1c_Tirzepatide)))+(0.00009*(rTotalCholesterol+rTotalCholesterol_Tirzepatide)))-(0.01135*(rHDL+rHDL_Tirzepatide)))+(1.149*rSerumCreatinine))+(0.01335*rUrinAlbumin_Creatinine))-2.66)/10))))-((1-(0.973^(EXP(((((((((((((((((-0.01938)*(rAge+cycle))+((-0.01129)*rGender))+(0.08812*risBlack))+(0.2338*risHispanic))+(0.1483*rSmoker))+(0.00303*rSBP))+((-0.02164)*rCVDHistory))+((-0.07952)*rAntiHypertensiveDrugs))-(0.1256*rOralT2DDrugs))+(0.03199*rAnticoagulants))+(0.1369*(rHbA1c+rHbA1c_Tirzepatide)))-(0.00111*(rTotalCholesterol+rTotalCholesterol_Tirzepatide)))+(0.00629*(rHDL+rHDL_Tirzepatide)))+(0.8609*rSerumCreatinine))+(0.00036*rUrinAlbumin_Creatinine))-0.23)/10))))) -> 0.9656663661 | U8: =S8*((1-(0.78^(EXP(((((((((((((((0.02114*(rAge+cycle))+(0.16956*rGender))-(0.00804*risBlack))+(0.17342*risHispanic))+(0.28362*rSmoker))+(0.00334*rSBP))+(0.22312*rCVDHistory))+(0.28372*rAntiHypertensiveDrugs))+(0.06584*rOralT2DDrugs))+(0.42199*rAnticoagulants))+(0.13847*(rHbA1c+rHbA1c_Tirzepatide)))+(0.00034*(rTotalCholesterol+rTotalCholesterol_Tirzepatide)))-(0.0097*(rHDL+rHDL_Tirzepatide)))+(0.67026*rSerumCreatinine))-3.64)/10)))) -> 0.01154426156 | V8: =S8*((1-(0.94^(EXP((((((((((((((((0.00733*(rAge+cycle))+(0.2738*rGender))-(0.00556*risBlack))+(0.3563*risHispanic))+(0.1001*rSmoker))+((-0.00101)*rSBP))+(0.2557*rCVDHistory))+(0.2418*rAntiHypertensiveDrugs))+(0.09015*rOralT2DDrugs))+(0.01091*rAnticoagulants))+(0.09639*(rHbA1c+rHbA1c_Tirzepatide)))+(0.00009*(rTotalCholesterol+rTotalCholesterol_Tirzepatide)))-(0.01135*(rHDL+rHDL_Tirzepatide)))+(1.149*rSerumCreatinine))+(0.01335*rUrinAlbumin_Creatinine))-2.66)/10)))) -> 0.007272377284 | W8: =S8*((1-(0.973^(EXP(((((((((((((((((-0.01938)*(rAge+cycle))+((-0.01129)*rGender))+(0.08812*risBlack))+(0.2338*risHispanic))+(0.1483*rSmoker))+(0.00303*rSBP))+((-0.02164)*rCVDHistory))+((-0.07952)*rAntiHypertensiveDrugs))-(0.1256*rOralT2DDrugs))+(0.03199*rAnticoagulants))+(0.1369*(rHbA1c+rHbA1c_Tirzepatide)))-(0.00111*(rTotalCholesterol+rTotalCholesterol_Tirzepatide)))+(0.00629*(rHDL+rHDL_Tirzepatide)))+(0.8609*rSerumCreatinine))+(0.00036*rUrinAlbumin_Creatinine))-0.23)/10)))) -> 0.004796361267 | X8: =R8*(INDEX(pT2DToDeath_2,cycle+1)) -> 0.0107206338 | Y8: =(R8*((cT2DBaseCase+cTirzepatideTx)))*'Time Discounting'!C5 -> 10034.32 | Z8: =(Y8 + Y9)/2 -> 9720.948995 | AA8: =SUM(Z8:Z8) -> 9720.948995 | AB8: =(R8*(INDEX(vQoLT2D_2,cycle+1)))*'Time Discounting'!E5 -> 0.79 | AC8: =(AB8 + AB9)/2 -> 0.7653283637 | AD8: =SUM(AC8:AC8) -> 0.7653283637 | AE8: =(R8*(1))*'Time Discounting'!G5 -> 1 | AF8: =(AE8 + AE9)/2 -> 0.9687700806 | AG8: =SUM(AF8:AF8) -> 0.9687700806 | AH8: ='2. Strategy Calcs'!E8 -> 0 | AI8: =AH8*(1-(INDEX(pMicroalbuminuriaToDeath_2,cycle+1))) -> 0 | AJ8: =AI8*(1-(((((1-INDEX(pMicroalbuminuriaToDeath_2,cycle+1))*0.072)*vFactorHbA1cChange_Node2)*1))-((0.028*vHR_Intervention_MicroMacro_Node2))) -> 0 | AK8: =AI8*(((((1-INDEX(pMicroalbuminuriaToDeath_2,cycle+1))*0.072)*vFactorHbA1cChange_Node2)*1)) -> 0 | AL8: =AI8*((0.028*vHR_Intervention_MicroMacro_Node2)) -> 0 | AM8: =AH8*(INDEX(pMicroalbuminuriaToDeath_2,cycle+1)) -> 0 | AN8: =(AH8*((cFollowingMicroalbuminuriaBaseCase+cTirzepatideTx)))*'Time Discounting'!C5 -> 0 | AO8: =(AN8 + AN9)/2 -> 74.93458633 | AP8: =(AH8*((cFirstYearMicroalbuminuriaBaseCase+cTirzepatideTx)) + 0)*'Time Discounting'!C5 -> 0 | AQ8: =SUM(AO8:AP8) -> 74.93458633 | AR8: =(AH8*(INDEX(vQoLMicro_2,cycle+1)))*'Time Discounting'!E5 -> 0 | AS8: =(AR8 + AR9)/2 -> 0.004427168267 | AT8: =SUM(AS8:AS8) -> 0.004427168267 | AU8: =(AH8*(1))*'Time Discounting'!G5 -> 0 | AV8: =(AU8 + AU9)/2 -> 0.005604010465 | AW8: =SUM(AV8:AV8) -> 0.005604010465 | AX8: ='2. Strategy Calcs'!F8 -> 0 | AY8: =AX8*(1-(INDEX(pMacroalbuminuriaToDeath_2,cycle+1))) -> 0 | AZ8: =AY8*(1-((0.023*vHR_Intervention_MacroRenal_Node2))) -> 0 | BA8: =AY8*((0.023*vHR_Intervention_MacroRenal_Node2)) -> 0 | BB8: =AX8*(INDEX(pMacroalbuminuriaToDeath_2,cycle+1)) -> 0 | BC8: =(AX8*((cFollowingMacroalbuminuriaBaseCase+cTirzepatideTx)))*'Time Discounting'!C5 -> 0 | BD8: =(BC8 + BC9)/2 -> 47.20549519 | BE8: =(AX8*((cFirstYearMacroalbuminuriaBaseCase+cTirzepatideTx)) + 0)*'Time Discounting'!C5 -> 0 | BF8: =SUM(BD8:BE8) -> 47.20549519 | BG8: =(AX8*(INDEX(vQoLMacro_2,cycle+1)))*'Time Discounting'!E5 -> 0 | BH8: =(BG8 + BG9)/2 -> 0.002619467934 | BI8: =SUM(BH8:BH8) -> 0.002619467934 | BJ8: =(AX8*(1))*'Time Discounting'!G5 -> 0 | BK8: =(BJ8 + BJ9)/2 -> 0.003530280235 | BL8: =SUM(BK8:BK8) -> 0.003530280235 | BM8: ='2. Strategy Calcs'!G8 -> 0 | BN8: =BM8*(1-((IF(rAge<64,0.214,0.365)*vHR_Intervention_RenalDeath_Node2))) -> 0 | BO8: =BM8*((IF(rAge<64,0.214,0.365)*vHR_Intervention_RenalDeath_Node2)) -> 0 | BP8: =(BM8*((cFollowingRenalDiseaseBaseCase+cTirzepatideTx)))*'Time Discounting'!C5 -> 0 | BQ8: =(BP8 + BP9)/2 -> 88.88111453 | BR8: =(BM8*((cFirstYearRenalDiseaseBaseCase+cTirzepatideTx)) + 0)*'Time Discounting'!C5 -> 0 | BS8: =SUM(BQ8:BR8) -> 88.88111453 | BT8: =(BM8*(INDEX(vQoLRenalDisease_2,cycle+1)))*'Time Discounting'!E5 -> 0 | BU8: =(BT8 + BT9)/2 -> 0.001431923388 | BV8: =SUM(BU8:BU8) -> 0.001431923388 | BW8: =(BM8*(1))*'Time Discounting'!G5 -> 0 | BX8: =(BW8 + BW9)/2 -> 0.002328330712 | BY8: =SUM(BX8:BX8) -> 0.002328330712 | BZ8: ='2. Strategy Calcs'!H8 -> 0 | CA8: =BZ8*(1) -> 0 | CB8: =(BZ8*(vQoLDeath))*'Time Discounting'!E5 -> 0 | CC8: =(CB8 + CB9)/2 -> 0 | CD8: =SUM(CC8:CC8) -> 0 | CF8: =INDEX(pT2DToDeath_2,cycle+1)*2.47 -> 0.02647996549 | CG8: =IF(rAge<64,INDEX(pT2DToDeath_2,cycle+1)*2.3,INDEX(pT2DToDeath_2,cycle+1)*1.7) -> 0.02465745774 | CH8: =IF(rGender=0,InterpolateTable(tGeneralMortWONephropathy_2023,rAge+cycle,1),InterpolateTable(tGeneralMortWONephropathy_2023,rAge+cycle,2)) -> 0.0107206338 | CI8: =IF(rGender=1,(0.742-(InterpolateTable(tQoL_AgeDecrements,VALUE(cycle),1)))-0.093,0.742-(InterpolateTable(tQoL_AgeDecrements,VALUE(cycle),1))) -> 0.742 | CJ8: =IF(rGender=1,(0.79-(InterpolateTable(tQoL_AgeDecrements,VALUE(cycle),1)))-0.093,0.79-(InterpolateTable(tQoL_AgeDecrements,VALUE(cycle),1))) -> 0.79 | CK8: =IF(rGender=1,(0.615-(InterpolateTable(tQoL_AgeDecrements,VALUE(cycle),1)))-0.093,0.615-(InterpolateTable(tQoL_AgeDecrements,VALUE(cycle),1))) -> 0.615 | CL8: =IF(rGender=1,(0.79-(InterpolateTable(tQoL_AgeDecrements,VALUE(cycle),1)))-0.093,0.79-(InterpolateTable(tQoL_AgeDecrements,VALUE(cycle),1))) -> 0.79
B9: 1 | D9: ='2. Strategy Calcs'!R9 -> 0.9656663661 | E9: ='2. Strategy Calcs'!AH9 -> 0.01154426156 | F9: ='2. Strategy Calcs'!AX9 -> 0.007272377284 | G9: ='2. Strategy Calcs'!BM9 -> 0.004796361267 | H9: ='2. Strategy Calcs'!BZ9 -> 0.0107206338 | I9: ='2. Strategy Calcs'!AA9 + '2. Strategy Calcs'!AQ9 + '2. Strategy Calcs'!BF9 + '2. Strategy Calcs'!BS9 -> 9706.118157 | J9: =J8 + I9 -> 19638.08835 | K9: ='2. Strategy Calcs'!AD9 + '2. Strategy Calcs'!AT9 + '2. Strategy Calcs'!BI9 + '2. Strategy Calcs'!BV9 + '2. Strategy Calcs'!CD9 -> 0.7414375645 | L9: =L8 + K9 -> 1.515244488 | M9: ='2. Strategy Calcs'!AG9 + '2. Strategy Calcs'!AW9 + '2. Strategy Calcs'!BL9 + '2. Strategy Calcs'!BY9 -> 0.9405881181 | N9: =N8 + M9 -> 1.92082082 | P9: 1 | R9: =0 + T8 + '2. Strategy Calcs'!AK8 -> 0.9656663661 | S9: 0.9542889153 | T9: 0.9313117744 | U9: 0.01137244179 | V9: 0.007066574401 | W9: 0.00453812473 | X9: 0.0113774508 | Y9: =(R9*((cT2DBaseCase+cTirzepatideTx)))*'Time Discounting'!C6 -> 9407.577991 | Z9: 9116.581088 | AA9: 9116.581088 | AB9: =(R9*(INDEX(vQoLT2D_2,cycle+1)))*'Time Discounting'!E6 -> 0.7406567274 | AC9: 0.7177465996 | AD9: 0.7177465996 | AE9: =(R9*(1))*'Time Discounting'!G6 -> 0.9375401613 | AF9: 0.9085399995 | AG9: 0.9085399995 | AH9: =0 + '2. Strategy Calcs'!U8 + AJ8 -> 0.01154426156 | AI9: 0.01123142907 | AJ9: 0.009256991096 | AK9: 0.001792039562 | AL9: 0.000182398408 | AM9: 0.0003128324925 | AN9: =(AH9*((cFollowingMicroalbuminuriaBaseCase+cTirzepatideTx)))*'Time Discounting'!C6 -> 149.8691727 | AO9: 204.9414318 | AP9: =(0)*'Time Discounting'!C6 -> 0 | AQ9: 204.9414318 | AR9: =(AH9*(INDEX(vQoLMicro_2,cycle+1)))*'Time Discounting'!E6 -> 0.008854336535 | AS9: 0.01210802979 | AT9: 0.01210802979 | AU9: =(AH9*(1))*'Time Discounting'!G6 -> 0.01120802093 | AV9: 0.01532661999 | AW9: 0.01532661999 | AX9: =0 + '2. Strategy Calcs'!V8 + '2. Strategy Calcs'!AL8 + AZ8 -> 0.007272377284 | AY9: 0.007060740469 | AZ9: 0.006966550191 | BA9: 9.419027786e-05 | BB9: 0.0002116368144 | BC9: =(AX9*((cFollowingMacroalbuminuriaBaseCase+cTirzepatideTx)))*'Time Discounting'!C6 -> 94.41099037 | BD9: 136.791831 | BE9: =(0)*'Time Discounting'!C6 -> 0 | BF9: 136.791831 | BG9: =(AX9*(INDEX(vQoLMacro_2,cycle+1)))*'Time Discounting'!E6 -> 0.005238935868 | BH9: 0.007590680144 | BI9: 0.007590680144 | BJ9: =(AX9*(1))*'Time Discounting'!G6 -> 0.007060560469 | BK9: 0.01023002715 | BL9: 0.01023002715 | BM9: =0 + '2. Strategy Calcs'!W8 + '2. Strategy Calcs'!BA8 + BN8 -> 0.004796361267 | BN9: 0.004201036907 | BO9: 0.0005953243605 | BP9: =(BM9*((cFollowingRenalDiseaseBaseCase+cTirzepatideTx)))*'Time Discounting'!C6 -> 177.7622291 | BQ9: 247.8038064 | BR9: =(0)*'Time Discounting'!C6 -> 0 | BS9: 247.8038064 | BT9: =(BM9*(INDEX(vQoLRenalDisease_2,cycle+1)))*'Time Discounting'!E6 -> 0.002863846776 | BU9: 0.003992254912 | BV9: 0.003992254912 | BW9: =(BM9*(1))*'Time Discounting'!G6 -> 0.004656661424 | BX9: 0.006491471401 | BY9: 0.006491471401 | BZ9: =0 + '2. Strategy Calcs'!X8 + '2. Strategy Calcs'!AM8 + '2. Strategy Calcs'!BB8 + '2. Strategy Calcs'!BO8 + CA8 -> 0.0107206338 | CA9: 0.0107206338 | CB9: =(BZ9*(vQoLDeath))*'Time Discounting'!E6 -> 0 | CC9: 0 | CD9: 0 | CF9: 0.02910146244 | CG9: 0.02709852778 | CH9: =IF(rGender=0,InterpolateTable(tGeneralMortWONephropathy_2023,rAge+cycle,1),InterpolateTable(tGeneralMortWONephropathy_2023,rAge+cycle,2)) -> 0.0117819686 | CI9: =IF(rGender=1,(0.742-(InterpolateTable(tQoL_AgeDecrements,VALUE(cycle),1)))-0.093,0.742-(InterpolateTable(tQoL_AgeDecrements,VALUE(cycle),1))) -> 0.742 | CJ9: =IF(rGender=1,(0.79-(InterpolateTable(tQoL_AgeDecrements,VALUE(cycle),1)))-0.093,0.79-(InterpolateTable(tQoL_AgeDecrements,VALUE(cycle),1))) -> 0.79 | CK9: =IF(rGender=1,(0.615-(InterpolateTable(tQoL_AgeDecrements,VALUE(cycle),1)))-0.093,0.615-(InterpolateTable(tQoL_AgeDecrements,VALUE(cycle),1))) -> 0.615 | CL9: =IF(rGender=1,(0.79-(InterpolateTable(tQoL_AgeDecrements,VALUE(cycle),1)))-0.093,0.79-(InterpolateTable(tQoL_AgeDecrements,VALUE(cycle),1))) -> 0.79
B10: 2 | D10: ='2. Strategy Calcs'!R10 -> 0.9331038139 | E10: ='2. Strategy Calcs'!AH10 -> 0.02062943289 | F10: ='2. Strategy Calcs'!AX10 -> 0.014215523 | G10: ='2. Strategy Calcs'!BM10 -> 0.008833351914 | H10: ='2. Strategy Calcs'!BZ10 -> 0.02321787827 | I10: ='2. Strategy Calcs'!AA10 + '2. Strategy Calcs'!AQ10 + '2. Strategy Calcs'!BF10 + '2. Strategy Calcs'!BS10 -> 9442.04027 | J10: 29080.12862 | K10: ='2. Strategy Calcs'!AD10 + '2. Strategy Calcs'!AT10 + '2. Strategy Calcs'!BI10 + '2. Strategy Calcs'!BV10 + '2. Strategy Calcs'!CD10 -> 0.7091340652 | L10: 2.224378553 | M10: ='2. Strategy Calcs'!AG10 + '2. Strategy Calcs'!AW10 + '2. Strategy Calcs'!BL10 + '2. Strategy Calcs'!BY10 -> 0.9007831395 | N10: 2.82160396 | P10: 1 | R10: =0 + T9 + '2. Strategy Calcs'!AK9 -> 0.9331038139 | S10: 0.921021636 | T10: 0.898646308 | U10: 0.01120905895 | V10: 0.006870216268 | W10: 0.004296052757 | X10: 0.01208217791 | Y10: =(R10*((cT2DBaseCase+cTirzepatideTx)))*'Time Discounting'!C7 -> 8825.584185 | Z10: 8553.46998 | AA10: 8553.46998 | AB10: =(R10*(INDEX(vQoLT2D_2,cycle+1)))*'Time Discounting'!E7 -> 0.6948364719 | AC10: 0.6734129751 | AD10: 0.6734129751 | AE10: =(R10*(1))*'Time Discounting'!G7 -> 0.8795398378 | AF10: 0.8524214875 | AG10: 0.8524214875 | AH10: =0 + '2. Strategy Calcs'!U9 + AJ9 -> 0.02062943289 | AI10: 0.02001506234 | AJ10: 0.01650530459 | AK10: 0.003184713134 | AL10: 0.0003250446124 | AM10: 0.0006143705465 | AN10: =(AH10*((cFollowingMicroalbuminuriaBaseCase+cTirzepatideTx)))*'Time Discounting'!C7 -> 260.013691 | AO10: 299.5759069 | AP10: =(0)*'Time Discounting'!C7 -> 0 | AQ10: 299.5759069 | AR10: =(AH10*(INDEX(vQoLMicro_2,cycle+1)))*'Time Discounting'!E7 -> 0.01536172305 | AS10: 0.01769907614 | AT10: 0.01769907614 | AU10: =(AH10*(1))*'Time Discounting'!G7 -> 0.01944521905 | AV10: 0.02240389385 | AW10: 0.02240389385 | AX10: =0 + '2. Strategy Calcs'!V9 + '2. Strategy Calcs'!AL9 + AZ9 -> 0.014215523 | AY10: 0.01376087524 | AZ10: 0.01357730516 | BA10: 0.0001835700757 | BB10: 0.0004546477619 | BC10: =(AX10*((cFollowingMacroalbuminuriaBaseCase+cTirzepatideTx)))*'Time Discounting'!C7 -> 179.1726716 | BD10: 216.6823278 | BE10: =(0)*'Time Discounting'!C7 -> 0 | BF10: 216.6823278 | BG10: =(AX10*(INDEX(vQoLMacro_2,cycle+1)))*'Time Discounting'!E7 -> 0.009942424419 | BH10: 0.01202386306 | BI10: 0.01202386306 | BJ10: =(AX10*(1))*'Time Discounting'!G7 -> 0.01339949383 | BK10: 0.01620466719 | BL10: 0.01620466719 | BM10: =0 + '2. Strategy Calcs'!W9 + '2. Strategy Calcs'!BA9 + BN9 -> 0.008833351914 | BN10: 0.007736956275 | BO10: 0.00109639564 | BP10: =(BM10*((cFollowingRenalDiseaseBaseCase+cTirzepatideTx)))*'Time Discounting'!C7 -> 317.8453838 | BQ10: 372.3120548 | BR10: =(0)*'Time Discounting'!C7 -> 0 | BS10: 372.3120548 | BT10: =(BM10*(INDEX(vQoLRenalDisease_2,cycle+1)))*'Time Discounting'!E7 -> 0.005120663048 | BU10: 0.00599815092 | BV10: 0.00599815092 | BW10: =(BM10*(1))*'Time Discounting'!G7 -> 0.008326281378 | BX10: 0.009753090927 | BY10: 0.009753090927 | BZ10: =0 + '2. Strategy Calcs'!X9 + '2. Strategy Calcs'!AM9 + '2. Strategy Calcs'!BB9 + '2. Strategy Calcs'!BO9 + CA9 -> 0.02321787827 | CA10: 0.02321787827 | CB10: =(BZ10*(vQoLDeath))*'Time Discounting'!E7 -> 0 | CC10: 0 | CD10: 0 | CF10: 0.03198248576 | CG10: 0.02978126204 | CH10: =IF(rGender=0,InterpolateTable(tGeneralMortWONephropathy_2023,rAge+cycle,1),InterpolateTable(tGeneralMortWONephropathy_2023,rAge+cycle,2)) -> 0.0129483748 | CI10: =IF(rGender=1,(0.742-(InterpolateTable(tQoL_AgeDecrements,VALUE(cycle),1)))-0.093,0.742-(InterpolateTable(tQoL_AgeDecrements,VALUE(cycle),1))) -> 0.742 | CJ10: =IF(rGender=1,(0.79-(InterpolateTable(tQoL_AgeDecrements,VALUE(cycle),1)))-0.093,0.79-(InterpolateTable(tQoL_AgeDecrements,VALUE(cycle),1))) -> 0.79 | CK10: =IF(rGender=1,(0.615-(InterpolateTable(tQoL_AgeDecrements,VALUE(cycle),1)))-0.093,0.615-(InterpolateTable(tQoL_AgeDecrements,VALUE(cycle),1))) -> 0.615 | CL10: =IF(rGender=1,(0.79-(InterpolateTable(tQoL_AgeDecrements,VALUE(cycle),1)))-0.093,0.79-(InterpolateTable(tQoL_AgeDecrements,VALUE(cycle),1))) -> 0.79
B11: 3 | D11: ='2. Strategy Calcs'!R11 -> 0.9018310212 | E11: ='2. Strategy Calcs'!AH11 -> 0.02771436355 | F11: ='2. Strategy Calcs'!AX11 -> 0.02077256604 | G11: ='2. Strategy Calcs'!BM11 -> 0.01221657911 | H11: ='2. Strategy Calcs'!BZ11 -> 0.03746547013 | I11: ='2. Strategy Calcs'!AA11 + '2. Strategy Calcs'!AQ11 + '2. Strategy Calcs'!BF11 + '2. Strategy Calcs'!BS11 -> 9147.129444 | J11: 38227.25806 | K11: ='2. Strategy Calcs'!AD11 + '2. Strategy Calcs'!AT11 + '2. Strategy Calcs'!BI11 + '2. Strategy Calcs'!BV11 + '2. Strategy Calcs'!CD11 -> 0.676954347 | L11: 2.9013329 | M11: ='2. Strategy Calcs'!AG11 + '2. Strategy Calcs'!AW11 + '2. Strategy Calcs'!BL11 + '2. Strategy Calcs'!BY11 -> 0.8609254156 | N11: 3.682529375 | P11: 1 | R11: =0 + T10 + '2. Strategy Calcs'!AK10 -> 0.9018310212 | S11: 0.8889977363 | T11: 0.8672014892 | U11: 0.01104903298 | V11: 0.006679941566 | W11: 0.00406727252 | X11: 0.01283328486 | Y11: =(R11*((cT2DBaseCase+cTirzepatideTx)))*'Time Discounting'!C8 -> 8281.355775 | Z11: 8025.342373 | AA11: 8025.342373 | AB11: =(R11*(INDEX(vQoLT2D_2,cycle+1)))*'Time Discounting'!E8 -> 0.6519894784 | AC11: 0.6318335946 | AD11: 0.6318335946 | AE11: =(R11*(1))*'Time Discounting'!G8 -> 0.8253031372 | AF11: 0.7997893602 | AG11: 0.7997893602 | AH11: =0 + '2. Strategy Calcs'!U10 + AJ10 -> 0.02771436355 | AI11: 0.02680728393 | AJ11: 0.02211943255 | AK11: 0.004252501081 | AL11: 0.000435350291 | AM11: 0.0009070796208 | AN11: =(AH11*((cFollowingMicroalbuminuriaBaseCase+cTirzepatideTx)))*'Time Discounting'!C8 -> 339.1381229 | AO11: 366.5979296 | AP11: =(0)*'Time Discounting'!C8 -> 0 | AQ11: 366.5979296 | AR11: =(AH11*(INDEX(vQoLMicro_2,cycle+1)))*'Time Discounting'!E8 -> 0.02003642923 | AS11: 0.02165876667 | AT11: 0.02165876667 | AU11: =(AH11*(1))*'Time Discounting'!G8 -> 0.02536256864 | AV11: 0.02741616034 | AW11: 0.02741616034 | AX11: =0 + '2. Strategy Calcs'!V10 + '2. Strategy Calcs'!AL10 + AZ10 -> 0.02077256604 | AY11: 0.02004243676 | AZ11: 0.01977507066 | BA11: 0.0002673661064 | BB11: 0.0007301292813 | BC11: =(AX11*((cFollowingMacroalbuminuriaBaseCase+cTirzepatideTx)))*'Time Discounting'!C8 -> 254.191984 | BD11: 286.8313793 | BE11: =(0)*'Time Discounting'!C8 -> 0 | BF11: 286.8313793 | BG11: =(AX11*(INDEX(vQoLMacro_2,cycle+1)))*'Time Discounting'!E8 -> 0.01410530169 | BH11: 0.01591648594 | BI11: 0.01591648594 | BJ11: =(AX11*(1))*'Time Discounting'!G8 -> 0.01900984056 | BK11: 0.02145078968 | BL11: 0.02145078968 | BM11: =0 + '2. Strategy Calcs'!W10 + '2. Strategy Calcs'!BA10 + BN10 -> 0.01221657911 | BN11: 0.01070025731 | BO11: 0.001516321799 | BP11: =(BM11*((cFollowingRenalDiseaseBaseCase+cTirzepatideTx)))*'Time Discounting'!C8 -> 426.7787258 | BQ11: 468.3577619 | BR11: =(0)*'Time Discounting'!C8 -> 0 | BS11: 468.3577619 | BT11: =(BM11*(INDEX(vQoLRenalDisease_2,cycle+1)))*'Time Discounting'!E8 -> 0.006875638793 | BU11: 0.007545499815 | BV11: 0.007545499815 | BW11: =(BM11*(1))*'Time Discounting'!G8 -> 0.01117990048 | BX11: 0.01226910539 | BY11: 0.01226910539 | BZ11: =0 + '2. Strategy Calcs'!X10 + '2. Strategy Calcs'!AM10 + '2. Strategy Calcs'!BB10 + '2. Strategy Calcs'!BO10 + CA10 -> 0.03746547013 | CA11: 0.03746547013 | CB11: =(BZ11*(vQoLDeath))*'Time Discounting'!E8 -> 0 | CC11: 0 | CD11: 0 | CF11: 0.03514872837 | CG11: 0.03272958512 | CH11: =IF(rGender=0,InterpolateTable(tGeneralMortWONephropathy_2023,rAge+cycle,1),InterpolateTable(tGeneralMortWONephropathy_2023,rAge+cycle,2)) -> 0.0142302544 | CI11: =IF(rGender=1,(0.742-(InterpolateTable(tQoL_AgeDecrements,VALUE(cycle),1)))-0.093,0.742-(InterpolateTable(tQoL_AgeDecrements,VALUE(cycle),1))) -> 0.742 | CJ11: =IF(rGender=1,(0.79-(InterpolateTable(tQoL_AgeDecrements,VALUE(cycle),1)))-0.093,0.79-(InterpolateTable(tQoL_AgeDecrements,VALUE(cycle),1))) -> 0.79 | CK11: =IF(rGender=1,(0.615-(InterpolateTable(tQoL_AgeDecrements,VALUE(cycle),1)))-0.093,0.615-(InterpolateTable(tQoL_AgeDecrements,VALUE(cycle),1))) -> 0.615 | CL11: =IF(rGender=1,(0.79-(InterpolateTable(tQoL_AgeDecrements,VALUE(cycle),1)))-0.093,0.79-(InterpolateTable(tQoL_AgeDecrements,VALUE(cycle),1))) -> 0.79
